Workbook

Sheet Sheet3 (hidden)
A1: Locality | B1: Fiscal Year | C1: Accomack | D1: Albemarle | E1: Alexandria | F1: Alleghany | G1: Amelia | H1: Amherst | I1: Appomattox | J1: Arlington | K1: Augusta | L1: Bath | M1: Bedford County_Bedford City | N1: Bland | O1: Botetourt | P1: Bristol | Q1: Brunswick | R1: Buchanan | S1: Buckingham | T1: Buena Vista | U1: Campbell | V1: Caroline | W1: Carroll | X1: Charles City | Y1: Charlotte | Z1: Charlottesville | AA1: Chesapeake | AB1: Chesterfield | AC1: Clarke | AD1: Colonial Heights | AE1: Covington | AF1: Craig | AG1: Culpeper | AH1: Cumberland | AI1: Danville | AJ1: Dickenson | AK1: Dinwiddie | AL1: Essex | AM1: Fairfax_Falls Church | AN1: Fauquier | AO1: Floyd | AP1: Fluvanna | AQ1: Franklin City | AR1: Franklin County | AS1: Frederick | AT1: Fredericksburg | AU1: Galax | AV1: Giles | AW1: Gloucester | AX1: Goochland | AY1: Grayson | AZ1: Greene | BA1: Greensville_Emporia | BB1: Halifax | BC1: Hampton | BD1: Hanover | BE1: Harrisonburg | BF1: Henrico | BG1: Henry | BH1: Highland | BI1: Hopewell | BJ1: Isle of Wight | BK1: James City | BL1: King & Queen | BM1: King George | BN1: King William | BO1: Lancaster | BP1: Lee | BQ1: Lexington | BR1: Loudoun | BS1: Louisa | BT1: Lunenburg | BU1: Lynchburg | BV1: Madison | BW1: Manassas City | BX1: Manassas Park | BY1: Martinsville | BZ1: Mathews | CA1: Mecklenburg | CB1: Middlesex | CC1: Montgomery | CD1: Nelson | CE1: New Kent | CF1: Newport News | CG1: Norfolk | CH1: Northampton | CI1: Northumberland | CJ1: Norton | CK1: Nottoway | CL1: Orange | CM1: Page | CN1: Patrick | CO1: Petersburg | CP1: Pittsylvania | CQ1: Poquoson | CR1: Portsmouth | CS1: Powhatan | CT1: Prince Edward | CU1: Prince George | CV1: Prince William | CW1: Pulaski | CX1: Radford | CY1: Rappahannock | CZ1: Richmond City | DA1: Richmond County | DB1: Roanoke City | DC1: Roanoke County | DD1: Rockbridge | DE1: Rockingham | DF1: Russell | DG1: Salem | DH1: Scott | DI1: Shenandoah | DJ1: Smyth | DK1: Southampton | DL1: Spotsylvania | DM1: Stafford | DN1: Staunton | DO1: Suffolk | DP1: Surry | DQ1: Sussex | DR1: Tazewell | DS1: Virginia Beach | DT1: Warren | DU1: Washington | DV1: Waynesboro | DW1: Westmoreland | DX1: Williamsburg | DY1: Winchester | DZ1: Wise | EA1: Wythe | EB1: York | EC1: Statewide
A2: Percent of Youth with a Decrease in CANS Child School Domain1 | B2: 2015 | C2: 0.5 | D2: 0.4666666667 | E2: 0.5 | F2: 0.5 | G2: 0.6 | H2: 0.6956521739 | I2: 0.44 | J2: 0.5396825397 | K2: 0.4857142857 | L2: 0 | M2: 0.6111111111 | O2: 0.8181818182 | P2: 0.5789473684 | Q2: 0.6666666667 | R2: 0.4705882353 | S2: 0.8571428571 | T2: 0.5 | U2: 0.5151515152 | V2: 0.6666666667 | W2: 0.4888888889 | X2: 1 | Y2: 0.2857142857 | Z2: 0.488372093 | AA2: 0.5909090909 | AB2: 0.5495495495 | AC2: 0.3333333333 | AD2: 0.6666666667 | AE2: 0 | AF2: 0.2857142857 | AG2: 0.3636363636 | AH2: 0.8 | AI2: 0.5319148936 | AJ2: 0.4571428571 | AK2: 0.6666666667 | AL2: 0.5 | AM2: 0.474537037 | AN2: 0.4642857143 | AO2: 0.5 | AP2: 0.5555555556 | AQ2: 0.5 | AR2: 0.4181818182 | AS2: 0.5 | AT2: 0.6470588235 | AU2: 0.3571428571 | AV2: 0.6 | AW2: 0.3333333333 | AX2: 0.2857142857 | AY2: 0.4583333333 | AZ2: 0.7 | BA2: 0.6666666667 | BB2: 0.4117647059 | BC2: 0.4047619048 | BD2: 0.6 | BE2: 0.5 | BF2: 0.4375 | BG2: 0.4705882353 | BI2: 0.6 | BJ2: 1 | BK2: 0.5 | BL2: 0.8333333333 | BM2: 0.6842105263 | BN2: 0.5 | BO2: 0 | BP2: 0.7391304348 | BQ2: 0 | BR2: 0.4459459459 | BS2: 0.6086956522 | BU2: 0.4057971014 | BV2: 0.5135135135 | BW2: 0.5714285714 | BX2: 0 | BZ2: 0.5 | CA2: 0.7368421053 | CB2: 0.5 | CC2: 0.48 | CE2: 0.6 | CF2: 0.4197530864 | CG2: 0.625 | CH2: 0.25 | CI2: 0.3333333333 | CJ2: 0.6 | CL2: 0.5428571429 | CM2: 0.84 | CN2: 0.6666666667 | CO2: 0.6818181818 | CP2: 0.4561403509 | CQ2: 1 | CR2: 0.3076923077 | CS2: 0.5151515152 | CT2: 0.5 | CU2: 0.3636363636 | CV2: 0.5769230769 | CW2: 0.44 | CX2: 0.8571428571 | CY2: 0.2857142857 | CZ2: 0.5102040816 | DA2: 0.3333333333 | DB2: 0.5833333333 | DC2: 0.5333333333 | DD2: 0.5882352941 | DE2: 0.3703703704 | DF2: 0.6222222222 | DG2: 0.4666666667 | DH2: 0.2857142857 | DI2: 0.6034482759 | DJ2: 0.7777777778 | DK2: 1 | DL2: 0.6164383562 | DM2: 0.775 | DN2: 0.5357142857 | DO2: 0.5 | DP2: 0.1 | DQ2: 0.25 | DR2: 0.64 | DS2: 0.4954954955 | DT2: 0.65 | DU2: 0.75 | DV2: 0.5 | DW2: 0.5 | DX2: 0.6666666667 | DY2: 0.3333333333 | DZ2: 0.5 | EA2: 0.5 | EB2: 0.6 | EC2: 0.5184128631
B3: 2016 | C3: 0.75 | D3: 0.4942528736 | E3: 0.3823529412 | F3: 0.6 | G3: 0.4 | H3: 0.3870967742 | I3: 0.5714285714 | J3: 0.5166666667 | K3: 0.4857142857 | M3: 0.6037735849 | N3: 0.8 | O3: 0.6315789474 | P3: 0.75 | Q3: 0.625 | R3: 0.3 | S3: 0.2727272727 | T3: 0.6923076923 | U3: 0.6071428571 | V3: 0.6666666667 | W3: 0.6046511628 | X3: 0 | Y3: 0.25 | Z3: 0.5925925926 | AA3: 0.5957446809 | AB3: 0.5631067961 | AC3: 0.8333333333 | AD3: 1 | AE3: 0.625 | AF3: 0 | AG3: 0.6 | AH3: 0.6363636364 | AI3: 0.5306122449 | AJ3: 0.4722222222 | AK3: 0.4666666667 | AL3: 0.5 | AM3: 0.4219066937 | AN3: 0.4482758621 | AO3: 0.5555555556 | AP3: 0.4482758621 | AR3: 0.5490196078 | AS3: 0.59375 | AT3: 0.4705882353 | AU3: 0.4285714286 | AV3: 0.6333333333 | AW3: 0.4 | AX3: 0.7142857143 | AY3: 0.2142857143 | AZ3: 0.4375 | BA3: 0 | BB3: 0.7272727273 | BC3: 0.5573770492 | BD3: 0.6744186047 | BE3: 0.4814814815 | BF3: 0.4406779661 | BG3: 0.4230769231 | BI3: 0.75 | BJ3: 0.375 | BK3: 0.65 | BM3: 0.4705882353 | BN3: 0.5 | BP3: 0.4137931034 | BQ3: 1 | BR3: 0.5245901639 | BS3: 0.4347826087 | BU3: 0.4179104478 | BV3: 0.5652173913 | BW3: 0.5 | BX3: 0 | BY3: 1 | CA3: 0.6666666667 | CB3: 0.5 | CC3: 0.5333333333 | CE3: 0.5 | CF3: 0.4090909091 | CG3: 0.654676259 | CH3: 0.2857142857 | CI3: 0.6666666667 | CL3: 0.3846153846 | CM3: 0.7142857143 | CN3: 0.2727272727 | CO3: 0.6666666667 | CP3: 0.4528301887 | CQ3: 1 | CR3: 0.4545454545 | CS3: 0.5714285714 | CT3: 0.2857142857 | CU3: 0.7777777778 | CV3: 0.4846153846 | CW3: 0.4019607843 | CX3: 0.75 | CY3: 0.25 | CZ3: 0.5251798561 | DA3: 0.3333333333 | DB3: 0.6017699115 | DC3: 0.5192307692 | DD3: 0.4761904762 | DE3: 0.4838709677 | DF3: 0.5102040816 | DG3: 0.2105263158 | DH3: 0.2352941176 | DI3: 0.4358974359 | DJ3: 0.1818181818 | DK3: 0.6666666667 | DL3: 0.4142857143 | DM3: 0.5606060606 | DN3: 0.5238095238 | DO3: 0.5 | DP3: 0 | DQ3: 1 | DR3: 0.45 | DS3: 0.4942528736 | DT3: 0.5 | DU3: 0.5 | DV3: 0.4545454545 | DW3: 0.5 | DX3: 1 | DY3: 0.4375 | DZ3: 0.3125 | EA3: 0.6666666667 | EB3: 0.2 | EC3: 0.4985922703
B4: 2017
A5: Percent of Youth with a Decrease in CANS Child Behavior/Emotional Needs Domain1 | B5: 2015 | C5: 0.6666666667 | D5: 0.3466666667 | E5: 0.3793103448 | F5: 0.5 | G5: 0.8 | H5: 0.5652173913 | I5: 0.44 | J5: 0.5238095238 | K5: 0.4285714286 | L5: 0 | M5: 0.3888888889 | O5: 0.6363636364 | P5: 0.4210526316 | Q5: 0.6666666667 | R5: 0.4117647059 | S5: 0.5714285714 | T5: 0.8 | U5: 0.5454545455 | V5: 0.3333333333 | W5: 0.4222222222 | X5: 0 | Y5: 0.3571428571 | Z5: 0.4186046512 | AA5: 0.6590909091 | AB5: 0.4504504505 | AC5: 0.3333333333 | AD5: 0.5 | AE5: 0 | AF5: 0.5714285714 | AG5: 0.5454545455 | AH5: 0.7 | AI5: 0.4255319149 | AJ5: 0.5142857143 | AK5: 0.4761904762 | AL5: 1 | AM5: 0.4976851852 | AN5: 0.5 | AO5: 0.5 | AP5: 0.6666666667 | AQ5: 1 | AR5: 0.3636363636 | AS5: 0.4642857143 | AT5: 0.7058823529 | AU5: 0.2857142857 | AV5: 0.4 | AW5: 0.6111111111 | AX5: 0.3571428571 | AY5: 0.5833333333 | AZ5: 0.55 | BA5: 0.3333333333 | BB5: 0.5294117647 | BC5: 0.5 | BD5: 0.6 | BE5: 0.35 | BF5: 0.475 | BG5: 0.3725490196 | BI5: 0.4 | BJ5: 1 | BK5: 0.875 | BL5: 0.5 | BM5: 0.4736842105 | BN5: 0.625 | BO5: 0 | BP5: 0.5217391304 | BQ5: 1 | BR5: 0.472972973 | BS5: 0.5217391304 | BU5: 0.4492753623 | BV5: 0.4594594595 | BW5: 0.7857142857 | BX5: 0 | BZ5: 1 | CA5: 0.8947368421 | CB5: 0.5 | CC5: 0.28 | CE5: 0.7 | CF5: 0.4320987654 | CG5: 0.4270833333 | CH5: 0 | CI5: 0.5 | CJ5: 1 | CL5: 0.7428571429 | CM5: 0.76 | CN5: 0.6666666667 | CO5: 0.6818181818 | CP5: 0.4912280702 | CQ5: 1 | CR5: 0.4230769231 | CS5: 0.6060606061 | CT5: 0 | CU5: 0.2727272727 | CV5: 0.4711538462 | CW5: 0.5866666667 | CX5: 0.5714285714 | CY5: 0.2857142857 | CZ5: 0.4489795918 | DA5: 1 | DB5: 0.4880952381 | DC5: 0.5666666667 | DD5: 0.4117647059 | DE5: 0.3703703704 | DF5: 0.5333333333 | DG5: 0.4666666667 | DH5: 0.1428571429 | DI5: 0.5 | DJ5: 0.7777777778 | DK5: 1 | DL5: 0.602739726 | DM5: 0.65 | DN5: 0.3214285714 | DO5: 0.5 | DP5: 0.3 | DQ5: 0.5 | DR5: 0.48 | DS5: 0.4594594595 | DT5: 0.4 | DU5: 0.5 | DV5: 0.4666666667 | DW5: 0.5 | DX5: 0.3333333333 | DY5: 0.3888888889 | DZ5: 0.4166666667 | EA5: 0.5 | EB5: 0.5 | EC5: 0.4909232365
B6: 2016 | C6: 0.625 | D6: 0.5287356322 | E6: 0.4117647059 | F6: 0.4 | G6: 0 | H6: 0.5161290323 | I6: 0.4571428571 | J6: 0.45 | K6: 0.7142857143 | M6: 0.5471698113 | N6: 0.4 | O6: 0.5789473684 | P6: 0.25 | Q6: 0.75 | R6: 0.25 | S6: 0.2727272727 | T6: 0.6923076923 | U6: 0.7142857143 | V6: 0.25 | W6: 0.4651162791 | X6: 0 | Y6: 0.6875 | Z6: 0.3148148148 | AA6: 0.5744680851 | AB6: 0.4757281553 | AC6: 0.8333333333 | AD6: 0.5555555556 | AE6: 0.5 | AF6: 0 | AG6: 0.8 | AH6: 0.6363636364 | AI6: 0.4081632653 | AJ6: 0.3888888889 | AK6: 0.2 | AL6: 1 | AM6: 0.5050709939 | AN6: 0.4827586207 | AO6: 0.5555555556 | AP6: 0.6206896552 | AR6: 0.568627451 | AS6: 0.5 | AT6: 0.5294117647 | AU6: 0.2857142857 | AV6: 0.5 | AW6: 0.35 | AX6: 0.5714285714 | AY6: 0.2857142857 | AZ6: 0.5625 | BA6: 0 | BB6: 0.3636363636 | BC6: 0.5573770492 | BD6: 0.5813953488 | BE6: 0.3333333333 | BF6: 0.5254237288 | BG6: 0.3846153846 | BI6: 0.375 | BJ6: 0.375 | BK6: 0.7 | BM6: 0.2352941176 | BN6: 0.75 | BP6: 0.3448275862 | BQ6: 1 | BR6: 0.4426229508 | BS6: 0.3043478261 | BU6: 0.3731343284 | BV6: 0.4782608696 | BW6: 0.2222222222 | BX6: 1 | BY6: 0.6666666667 | CA6: 0.7333333333 | CB6: 0.25 | CC6: 0.5333333333 | CE6: 0.8 | CF6: 0.4318181818 | CG6: 0.5395683453 | CH6: 0.1428571429 | CI6: 0.3333333333 | CL6: 0.4615384615 | CM6: 0.380952381 | CN6: 0.3636363636 | CO6: 0.6666666667 | CP6: 0.3773584906 | CQ6: 1 | CR6: 0.4545454545 | CS6: 0.5714285714 | CT6: 0.3571428571 | CU6: 0.5555555556 | CV6: 0.5 | CW6: 0.5196078431 | CX6: 0.75 | CY6: 0.75 | CZ6: 0.4100719424 | DA6: 0.6666666667 | DB6: 0.4955752212 | DC6: 0.4423076923 | DD6: 0.4761904762 | DE6: 0.5483870968 | DF6: 0.4285714286 | DG6: 0.3684210526 | DH6: 0.2941176471 | DI6: 0.6153846154 | DJ6: 0.2727272727 | DK6: 0.6666666667 | DL6: 0.4428571429 | DM6: 0.5606060606 | DN6: 0.4761904762 | DO6: 0.6111111111 | DP6: 0.6666666667 | DQ6: 1 | DR6: 0.35 | DS6: 0.4137931034 | DT6: 0.4444444444 | DU6: 0.7777777778 | DV6: 0.3636363636 | DW6: 1 | DX6: 1 | DY6: 0.5625 | DZ6: 0.375 | EA6: 0.4761904762 | EB6: 0.6 | EC6: 0.4845149731
B7: 2017
A8: Percent of Youth Receiving ICC Against Those in Residential2 (Target = 75%) | B8: 2015 | C8: 0 | D8: 0.5 | E8: 0.5833333333 | F8: 0 | H8: 1 | I8: 0.4285714286 | J8: 0 | K8: 1 | O8: 1 | P8: 0.1489361702 | R8: 0 | U8: 0 | V8: 0 | W8: 1 | Y8: 0 | Z8: 0.2285714286 | AA8: 0.2222222222 | AB8: 0.1290322581 | AF8: 0.3333333333 | AG8: 0 | AI8: 0 | AJ8: 0 | AK8: 0.25 | AM8: 0.8612440191 | AN8: 0.2142857143 | AP8: 0 | AQ8: 1 | AR8: 0.5555555556 | AS8: 0 | AT8: 0.375 | AX8: 0 | BB8: 0 | BC8: 1 | BD8: 0.04545454545 | BE8: 0.4761904762 | BF8: 0.9473684211 | BG8: 0 | BI8: 0 | BK8: 0.2857142857 | BM8: 0 | BN8: 1 | BO8: 0 | BP8: 0 | BR8: 0.7222222222 | BS8: 1 | BT8: 0 | BU8: 0.1587301587 | BV8: 0 | CA8: 0 | CF8: 0.75 | CG8: 0.3432835821 | CK8: 0 | CL8: 0.09090909091 | CM8: 0 | CO8: 0.07692307692 | CP8: 0.125 | CQ8: 0.5 | CR8: 1 | CS8: 0 | CT8: 0.3333333333 | CV8: 0.01075268817 | CW8: 0 | CX8: 0 | CY8: 0 | CZ8: 0.2602739726 | DA8: 0.5 | DB8: 0.2340425532 | DC8: 0.5238095238 | DD8: 0 | DE8: 0.4594594595 | DF8: 0 | DG8: 1 | DI8: 0 | DJ8: 0.8333333333 | DL8: 0.347826087 | DM8: 0 | DN8: 1 | DO8: 0.2222222222 | DQ8: 1 | DR8: 0 | DS8: 0.128 | DT8: 0 | DU8: 0.6086956522 | DV8: 0.8571428571 | DW8: 0.6666666667 | DY8: 0 | DZ8: 0 | EA8: 0 | EB8: 0.2 | EC8: 0.3192267503
B9: 2016 | C9: 0 | D9: 0.6875 | E9: 0.8571428571 | H9: 0.1 | I9: 0 | J9: 0.04651162791 | K9: 1 | M9: 0 | O9: 0.3333333333 | P9: 0.1578947368 | R9: 0 | U9: 0 | W9: 1 | Y9: 0.1 | Z9: 0.2903225806 | AA9: 0.3043478261 | AB9: 0.1627906977 | AF9: 1 | AG9: 0 | AI9: 0 | AJ9: 0 | AK9: 0.1428571429 | AM9: 0.9292035398 | AN9: 0.07142857143 | AP9: 0.04347826087 | AR9: 1 | AS9: 0 | AT9: 0.1666666667 | AV9: 0 | AX9: 0.09090909091 | AZ9: 0 | BB9: 0 | BC9: 1 | BD9: 0.2142857143 | BE9: 0.2962962963 | BF9: 0.7666666667 | BJ9: 0.3333333333 | BL9: 1 | BM9: 0 | BN9: 1 | BO9: 0 | BR9: 0.25 | BS9: 0.5 | BU9: 0 | BV9: 0.03846153846 | CA9: 0 | CB9: 1 | CF9: 0.25 | CG9: 0.3230769231 | CI9: 0.3333333333 | CL9: 0 | CO9: 0.1212121212 | CP9: 0.5833333333 | CR9: 0.5714285714 | CT9: 0.3333333333 | CV9: 0.02857142857 | CW9: 0 | CX9: 0 | CY9: 0 | CZ9: 0.198630137 | DA9: 1 | DB9: 0 | DC9: 0.75 | DD9: 0 | DE9: 0.4137931034 | DF9: 0 | DG9: 0.8 | DH9: 0 | DI9: 0 | DJ9: 1 | DK9: 0.3333333333 | DL9: 0 | DM9: 0 | DN9: 0.875 | DO9: 0.3333333333 | DS9: 0.05357142857 | DU9: 0.7142857143 | DV9: 1 | DW9: 1 | DY9: 0.06666666667 | DZ9: 0 | EA9: 0 | EB9: 0 | EC9: 0.3104557641
B10: 2017
A11: Percent of Youth Receiving CBS Out of All CSA Youth (Target = 50%) | B11: 2015 | C11: 0.09090909091 | D11: 0.4894894895 | E11: 0.489539749 | F11: 0.7333333333 | G11: 0.4285714286 | H11: 0.3670886076 | I11: 0.5375 | J11: 0.3886462882 | K11: 0.5025125628 | L11: 0.6666666667 | M11: 0.3867924528 | N11: 0.06666666667 | O11: 0.7272727273 | P11: 0.0977443609 | Q11: 0.4210526316 | R11: 0.2716049383 | S11: 0.7101449275 | T11: 0.6976744186 | U11: 0.6467065868 | V11: 0.4745762712 | W11: 0.6639344262 | X11: 0.625 | Y11: 0.5842696629 | Z11: 0.5663430421 | AA11: 0.5611510791 | AB11: 0.5129032258 | AC11: 0.4333333333 | AD11: 0.625 | AE11: 0.7272727273 | AF11: 0.71875 | AG11: 0.6778242678 | AH11: 0.7142857143 | AI11: 0.5541401274 | AJ11: 0.4895104895 | AK11: 0.5208333333 | AL11: 0.3333333333 | AM11: 0.6736214605 | AN11: 0.5277777778 | AO11: 0.6 | AP11: 0.8034188034 | AQ11: 0.2857142857 | AR11: 0.6274509804 | AS11: 0.4198473282 | AT11: 0.5303030303 | AU11: 0.9411764706 | AV11: 0.2933333333 | AW11: 0.2549019608 | AX11: 0.325 | AY11: 0.6440677966 | AZ11: 0.525 | BA11: 0.4827586207 | BB11: 0.6354166667 | BC11: 0.8403846154 | BD11: 0.5819672131 | BE11: 0.4046242775 | BF11: 0.6347150259 | BG11: 0.4765625 | BH11: 0 | BI11: 0.7441860465 | BJ11: 0.08333333333 | BK11: 0.5192307692 | BL11: 0.5 | BM11: 0.6896551724 | BN11: 0.625 | BO11: 0.2941176471 | BP11: 0.09677419355 | BQ11: 0.9285714286 | BR11: 0.5131578947 | BS11: 0.5479452055 | BT11: 0.7352941176 | BU11: 0.3717105263 | BV11: 0.4909090909 | BW11: 0.4285714286 | BX11: 0.8 | BY11: 0.4444444444 | BZ11: 0.5384615385 | CA11: 0.4698795181 | CB11: 0.625 | CC11: 0.2708333333 | CD11: 0.6551724138 | CE11: 0.7037037037 | CF11: 0.4664310954 | CG11: 0.197080292 | CH11: 0.2727272727 | CI11: 0.7 | CJ11: 0.3333333333 | CK11: 0.08333333333 | CL11: 0.6395348837 | CM11: 0.5769230769 | CN11: 0 | CO11: 0.3986928105 | CP11: 0.7265625 | CQ11: 0.5384615385 | CR11: 0.06944444444 | CS11: 0.5079365079 | CT11: 0.5625 | CU11: 0.6170212766 | CV11: 0.6633986928 | CW11: 0.5240963855 | CX11: 0.1818181818 | CY11: 0.3409090909 | CZ11: 0.2106227106 | DA11: 0.5 | DB11: 0.3350649351 | DC11: 0.4509803922 | DD11: 0.7432432432 | DE11: 0.3483146067 | DF11: 0.2307692308 | DG11: 0.406779661 | DH11: 0.1886792453 | DI11: 0.7614678899 | DJ11: 0.6590909091 | DK11: 0.4117647059 | DL11: 0.456928839 | DM11: 0.6319444444 | DN11: 0.4461538462 | DO11: 0.243902439 | DP11: 0.7272727273 | DQ11: 0.68 | DR11: 0.27 | DS11: 0.3314917127 | DT11: 0.5185185185 | DU11: 0.2748091603 | DV11: 0.4827586207 | DW11: 0.7073170732 | DX11: 0.25 | DY11: 0.5535714286 | DZ11: 0.2582417582 | EA11: 0.5052631579 | EB11: 0.5625 | EC11: 0.5039400346
B12: 2016 | C12: 0.25 | D12: 0.6060606061 | E12: 0.5043859649 | F12: 0.8070175439 | G12: 0.4545454545 | H12: 0.5211267606 | I12: 0.5454545455 | J12: 0.3611111111 | K12: 0.5490196078 | L12: 0.6666666667 | M12: 0.5 | N12: 0.06666666667 | O12: 0.7804878049 | P12: 0.09333333333 | Q12: 0.5238095238 | R12: 0.08641975309 | S12: 0.737704918 | T12: 0.8333333333 | U12: 0.6538461538 | V12: 0.4909090909 | W12: 0.5338983051 | X12: 0.8888888889 | Y12: 0.5405405405 | Z12: 0.5454545455 | AA12: 0.4429530201 | AB12: 0.5275362319 | AC12: 0.5 | AD12: 0.6333333333 | AE12: 0.8181818182 | AF12: 0.6206896552 | AG12: 0.6592920354 | AH12: 0.6285714286 | AI12: 0.5197368421 | AJ12: 0.5801526718 | AK12: 0.6 | AL12: 0.6129032258 | AM12: 0.6784996651 | AN12: 0.6096491228 | AO12: 0.6 | AP12: 0.7280701754 | AQ12: 0 | AR12: 0.6666666667 | AS12: 0.4468085106 | AT12: 0.5373134328 | AU12: 0.7843137255 | AV12: 0.3571428571 | AW12: 0.2037037037 | AX12: 0.2888888889 | AY12: 0.6326530612 | AZ12: 0.511627907 | BA12: 0.4545454545 | BB12: 0.6095238095 | BC12: 0.8203592814 | BD12: 0.6218487395 | BE12: 0.40625 | BF12: 0.6223958333 | BG12: 0.2372881356 | BH12: 0 | BI12: 0.7698412698 | BJ12: 0 | BK12: 0.6470588235 | BL12: 0.5 | BM12: 0.5490196078 | BN12: 0.6315789474 | BO12: 0.4 | BP12: 0.2209302326 | BQ12: 0.8461538462 | BR12: 0.5873786408 | BS12: 0.4888888889 | BT12: 0.847826087 | BU12: 0.4054878049 | BV12: 0.4434782609 | BW12: 0.4255319149 | BX12: 0.7368421053 | BY12: 0.5 | BZ12: 0.2857142857 | CA12: 0.4545454545 | CB12: 0.6923076923 | CC12: 0.488372093 | CD12: 0.4827586207 | CE12: 0.6428571429 | CF12: 0.5075757576 | CG12: 0.25 | CH12: 0.3571428571 | CI12: 0.5925925926 | CJ12: 0.1428571429 | CK12: 0.1052631579 | CL12: 0.4608695652 | CM12: 0.4565217391 | CN12: 0 | CO12: 0.4642857143 | CP12: 0.7172413793 | CQ12: 0.4 | CR12: 0.09090909091 | CS12: 0.5161290323 | CT12: 0.5090909091 | CU12: 0.7 | CV12: 0.4820627803 | CW12: 0.5482233503 | CX12: 0.2093023256 | CY12: 0.3125 | CZ12: 0.2114754098 | DA12: 0.6666666667 | DB12: 0.2670157068 | DC12: 0.5092592593 | DD12: 0.6707317073 | DE12: 0.3655913978 | DF12: 0.1393442623 | DG12: 0.46875 | DH12: 0.1428571429 | DI12: 0.7862068966 | DJ12: 0.5775862069 | DK12: 0.3888888889 | DL12: 0.5252525253 | DM12: 0.6242424242 | DN12: 0.5462184874 | DO12: 0.275 | DP12: 0.8571428571 | DQ12: 0.7727272727 | DR12: 0.2745098039 | DS12: 0.126146789 | DT12: 0.4833333333 | DU12: 0.1923076923 | DV12: 0.5405405405 | DW12: 0.8571428571 | DX12: 0.3333333333 | DY12: 0.5923566879 | DZ12: 0.303030303 | EA12: 0.5565217391 | EB12: 0.6 | EC12: 0.5048650042
B13: 2017
A14: Percent of Foster Care Children in Family-based Placements (Target = 85%) | B14: 2015 | C14: 0.7142857143 | D14: 0.869047619 | E14: 0.8865979381 | F14: 0.3333333333 | H14: 0.875 | I14: 0.8947368421 | J14: 0.7777777778 | K14: 0.5 | L14: 0.8 | M14: 0.8103448276 | N14: 0.9166666667 | O14: 1 | P14: 0.7666666667 | Q14: 0.6666666667 | R14: 0.7910447761 | S14: 0.8 | T14: 0.5789473684 | U14: 0.8333333333 | V14: 0.7368421053 | W14: 0.8846153846 | Y14: 0.9259259259 | Z14: 0.7816091954 | AA14: 0.8358208955 | AB14: 0.8064516129 | AC14: 0.8888888889 | AD14: 0.8064516129 | AE14: 0.3333333333 | AF14: 0.8888888889 | AG14: 0.6896551724 | AH14: 0.8333333333 | AI14: 0.6444444444 | AJ14: 0.8985507246 | AK14: 0.8214285714 | AL14: 0.6666666667 | AM14: 0.8684210526 | AN14: 0.8 | AO14: 0.875 | AP14: 0.8333333333 | AQ14: 1 | AR14: 0.8571428571 | AS14: 0.8 | AT14: 0.875 | AU14: 1 | AV14: 0.8857142857 | AW14: 0.8333333333 | AX14: 0.6 | AY14: 0.9444444444 | AZ14: 0.7272727273 | BA14: 1 | BB14: 0.6428571429 | BC14: 0.9636363636 | BD14: 0.8148148148 | BE14: 0.8116883117 | BF14: 0.7522123894 | BG14: 0.825 | BI14: 0.8095238095 | BJ14: 1 | BK14: 1 | BL14: 0.8 | BM14: 0.75 | BN14: 0.6 | BO14: 0.625 | BP14: 0.8518518519 | BQ14: 0.5789473684 | BR14: 0.76 | BS14: 0.7222222222 | BT14: 0.5714285714 | BU14: 0.8523489933 | BV14: 0.6756756757 | BW14: 0.8 | BX14: 1 | BY14: 0.825 | BZ14: 1 | CA14: 0.5909090909 | CB14: 1 | CC14: 0.9523809524 | CD14: 0.7142857143 | CE14: 0.75 | CF14: 0.8846153846 | CG14: 0.8893442623 | CH14: 0.6666666667 | CI14: 1 | CJ14: 1 | CK14: 1 | CL14: 0.5652173913 | CM14: 0.5555555556 | CN14: 1 | CO14: 0.6842105263 | CP14: 0.9285714286 | CQ14: 0.5 | CR14: 0.9206349206 | CS14: 0.625 | CT14: 1 | CU14: 0.6923076923 | CV14: 0.6705882353 | CW14: 0.6363636364 | CX14: 0.6470588235 | CY14: 0.84 | CZ14: 0.7272727273 | DA14: 0.4 | DB14: 0.8870967742 | DC14: 0.8490566038 | DD14: 0.5789473684 | DE14: 0.8116883117 | DF14: 0.8656716418 | DG14: 0.8490566038 | DH14: 0.9230769231 | DI14: 0.6111111111 | DJ14: 0.8571428571 | DK14: 0.625 | DL14: 0.7792207792 | DM14: 0.9655172414 | DN14: 0.8846153846 | DO14: 0.7142857143 | DQ14: 1 | DR14: 0.9387755102 | DS14: 0.8136363636 | DT14: 0.7222222222 | DU14: 0.8461538462 | DV14: 0.8846153846 | DW14: 0.3333333333 | DX14: 0.8888888889 | DY14: 1 | DZ14: 0.9252336449 | EA14: 0.9032258065 | EB14: 0.5 | EC14: 0.8213783404
B15: 2016 | C15: 0.8333333333 | D15: 0.9 | E15: 0.8651685393 | F15: 0.7 | G15: 1 | H15: 0.76 | I15: 0.75 | J15: 0.8777777778 | L15: 1 | M15: 0.8363636364 | N15: 0.9230769231 | O15: 0.6666666667 | P15: 0.6666666667 | Q15: 0.6666666667 | R15: 0.7808219178 | S15: 0.6363636364 | T15: 0.75 | U15: 0.7105263158 | V15: 0.7894736842 | W15: 0.8048780488 | Y15: 0.6875 | Z15: 0.9270833333 | AA15: 0.8870967742 | AB15: 0.7575757576 | AC15: 0.9090909091 | AD15: 0.7575757576 | AE15: 0.7 | AF15: 1 | AG15: 0.5454545455 | AH15: 0.5 | AI15: 0.7307692308 | AJ15: 0.8723404255 | AK15: 0.9 | AL15: 0.5 | AM15: 0.9244444444 | AN15: 0.7884615385 | AO15: 0.875 | AP15: 0.7272727273 | AQ15: 1 | AR15: 0.8852459016 | AS15: 0.7333333333 | AT15: 0.8947368421 | AU15: 0.8 | AV15: 0.8139534884 | AW15: 0.8846153846 | AX15: 0.6666666667 | AY15: 0.9 | AZ15: 0.6923076923 | BA15: 1 | BB15: 0.6875 | BC15: 0.96 | BD15: 0.7777777778 | BE15: 0.7961783439 | BF15: 0.6960784314 | BG15: 0.8235294118 | BH15: 1 | BI15: 0.85 | BJ15: 0.6 | BK15: 1 | BL15: 0.6666666667 | BM15: 0.9375 | BN15: 0.75 | BO15: 0.5 | BP15: 0.9166666667 | BQ15: 0.75 | BR15: 0.7619047619 | BS15: 0.7631578947 | BT15: 0.5 | BU15: 0.8484848485 | BV15: 0.641509434 | BW15: 0.9090909091 | BX15: 1 | BY15: 0.8235294118 | BZ15: 1 | CA15: 0.652173913 | CB15: 1 | CC15: 0.9705882353 | CD15: 0.9 | CE15: 1 | CF15: 0.8611111111 | CG15: 0.9154228856 | CH15: 0.6666666667 | CI15: 0.875 | CJ15: 0.8333333333 | CL15: 0.6666666667 | CM15: 0.7272727273 | CN15: 0.7647058824 | CO15: 0.6444444444 | CP15: 0.6875 | CQ15: 0.25 | CR15: 0.9338842975 | CS15: 0.8181818182 | CT15: 1 | CU15: 0.8235294118 | CV15: 0.7830188679 | CW15: 0.7358490566 | CX15: 0.7272727273 | CY15: 0.6666666667 | CZ15: 0.6748466258 | DA15: 0.3333333333 | DB15: 0.8549019608 | DC15: 0.829787234 | DD15: 0.75 | DE15: 0.7961783439 | DF15: 0.724137931 | DG15: 0.829787234 | DH15: 0.9166666667 | DI15: 0.7 | DJ15: 0.9333333333 | DK15: 0.5 | DL15: 0.8804347826 | DM15: 0.88 | DN15: 0.875 | DO15: 0.5833333333 | DQ15: 1 | DR15: 0.8888888889 | DS15: 0.8050847458 | DT15: 0.8571428571 | DU15: 0.8409090909 | DV15: 0.875 | DW15: 0.6666666667 | DX15: 1 | DY15: 0.9 | DZ15: 0.9541284404 | EA15: 0.8974358974 | EB15: 0.25 | EC15: 0.8195706827
B16: 2017
A17: Percent of Children Who Exit from Foster Care to a Permanent Living Arrangement (Target = 86%) | B17: 2015 | C17: 0.3333333333 | D17: 0.66 | E17: 0.724137931 | F17: 0.8333333333 | G17: 1 | H17: 0.7777777778 | I17: 0.5 | J17: 0.7222222222 | K17: 0.8888888889 | M17: 0.9310344828 | N17: 1 | O17: 0.8571428571 | P17: 0.7368421053 | Q17: 1 | R17: 0.8333333333 | S17: 1 | T17: 0.8 | U17: 0.75 | V17: 0.7142857143 | W17: 0.6875 | Y17: 0.6666666667 | Z17: 0.6551724138 | AA17: 0.4761904762 | AB17: 0.8181818182 | AC17: 0.5 | AD17: 0.8181818182 | AE17: 0.8333333333 | AF17: 1 | AG17: 0.8947368421 | AH17: 1 | AI17: 0.5909090909 | AJ17: 0.9642857143 | AK17: 0.875 | AL17: 0.6 | AM17: 0.7699115044 | AN17: 0.8510638298 | AO17: 0.8333333333 | AP17: 0.8333333333 | AR17: 0.8055555556 | AS17: 0.8611111111 | AT17: 0.9130434783 | AU17: 0.6666666667 | AV17: 0.9166666667 | AW17: 0.8421052632 | AX17: 0.6666666667 | AY17: 0.5714285714 | AZ17: 0.5 | BA17: 0.5 | BB17: 0.75 | BC17: 0.7575757576 | BD17: 0.5 | BE17: 0.7926829268 | BF17: 0.6875 | BG17: 0.9069767442 | BI17: 0.7692307692 | BJ17: 1 | BK17: 1 | BM17: 0.5 | BO17: 0.8571428571 | BP17: 0.8181818182 | BQ17: 0.8 | BR17: 0.8 | BS17: 0.5714285714 | BT17: 0.9230769231 | BU17: 0.7457627119 | BV17: 0.75 | BW17: 0.8571428571 | BY17: 0.9069767442 | BZ17: 1 | CA17: 0.8 | CB17: 0.5 | CC17: 0.8571428571 | CD17: 1 | CE17: 1 | CF17: 0.693877551 | CG17: 0.8453608247 | CI17: 1 | CJ17: 0.875 | CK17: 0.5 | CL17: 0.25 | CM17: 0.8571428571 | CN17: 1 | CO17: 0.8684210526 | CP17: 0.25 | CQ17: 0.6 | CR17: 0.7906976744 | CS17: 0.5 | CU17: 1 | CV17: 0.5609756098 | CW17: 0.7857142857 | CX17: 0.8571428571 | CY17: 0.8461538462 | CZ17: 0.7752808989 | DA17: 1 | DB17: 0.7314814815 | DC17: 0.8076923077 | DD17: 0.8 | DE17: 0.7926829268 | DF17: 0.8333333333 | DG17: 0.8076923077 | DH17: 0.8095238095 | DI17: 1 | DJ17: 0.8461538462 | DL17: 0.6909090909 | DM17: 0.8518518519 | DN17: 0.7948717949 | DO17: 0.2 | DQ17: 1 | DR17: 0.7741935484 | DS17: 0.6705882353 | DT17: 0.75 | DU17: 0.7333333333 | DV17: 0.7948717949 | DW17: 0.9 | DX17: 1 | DY17: 0.8333333333 | DZ17: 0.8181818182 | EA17: 0.7222222222 | EB17: 0.6 | EC17: 0.775711575
B18: 2016 | C18: 0.8 | D18: 0.7450980392 | E18: 0.7297297297 | F18: 0.5 | H18: 0.9090909091 | I18: 0.75 | J18: 0.7636363636 | K18: 1 | L18: 1 | M18: 0.8285714286 | N18: 0.8 | P18: 0.6 | R18: 0.7941176471 | T18: 0.8 | U18: 0.7222222222 | V18: 1 | W18: 0.8 | Y18: 0.7142857143 | Z18: 0.6666666667 | AA18: 0.8333333333 | AB18: 0.8 | AC18: 1 | AD18: 0.8 | AE18: 0.5 | AF18: 0.25 | AG18: 0.8620689655 | AH18: 1 | AI18: 0.5806451613 | AJ18: 0.9433962264 | AK18: 0.8333333333 | AL18: 0.2 | AM18: 0.7047619048 | AN18: 0.8611111111 | AO18: 0.8 | AP18: 0.8 | AQ18: 1 | AR18: 0.7272727273 | AS18: 1 | AT18: 0.9473684211 | AU18: 1 | AV18: 0.8518518519 | AW18: 0.75 | AX18: 0.8181818182 | AY18: 0.8333333333 | AZ18: 0.7777777778 | BA18: 0.6666666667 | BB18: 0.5555555556 | BC18: 0.6153846154 | BD18: 0.8571428571 | BE18: 0.7205882353 | BF18: 0.8076923077 | BG18: 0.88 | BI18: 0.75 | BJ18: 1 | BK18: 1 | BM18: 0.5 | BN18: 1 | BO18: 0.5 | BP18: 0.8076923077 | BQ18: 0.8 | BR18: 0.8095238095 | BS18: 0.5 | BT18: 1 | BU18: 0.8070175439 | BV18: 0.75 | BW18: 1 | BY18: 0.88 | BZ18: 1 | CA18: 1 | CB18: 0.8571428571 | CC18: 0.8636363636 | CD18: 0.75 | CF18: 0.6739130435 | CG18: 0.8870967742 | CI18: 0.25 | CJ18: 1 | CK18: 0.75 | CL18: 0.8275862069 | CM18: 1 | CN18: 1 | CO18: 0.8484848485 | CP18: 0.8571428571 | CR18: 0.7073170732 | CS18: 0.8 | CT18: 0.8333333333 | CU18: 0.8 | CV18: 0.6904761905 | CW18: 0.625 | CX18: 0.7272727273 | CY18: 0.8 | CZ18: 0.75 | DA18: 1 | DB18: 0.6704545455 | DC18: 0.8421052632 | DD18: 0.8 | DE18: 0.7205882353 | DF18: 0.7878787879 | DG18: 0.8421052632 | DH18: 0.7142857143 | DI18: 1 | DJ18: 0.7857142857 | DK18: 1 | DL18: 0.7179487179 | DM18: 0.8695652174 | DN18: 0.7049180328 | DO18: 0.8333333333 | DQ18: 1 | DR18: 0.6842105263 | DS18: 0.6632653061 | DT18: 0.8 | DU18: 0.8125 | DV18: 0.7049180328 | DW18: 1 | DX18: 0.8888888889 | DY18: 0.9230769231 | DZ18: 0.8032786885 | EA18: 0.7826086957 | EC18: 0.7733895706
B19: 2017
A20: Composite Performance Measure3 | B20: 2015 | C20: 2 | D20: 2.333333333 | E20: 2.5 | F20: 2.5 | G20: 3.25 | H20: 3.166666667 | I20: 2.5 | J20: 2 | K20: 2.5 | L20: 2.25 | M20: 2.6 | N20: 3 | O20: 3.833333333 | P20: 1.833333333 | Q20: 3 | R20: 1.5 | S20: 3.8 | T20: 2.8 | U20: 2.666666667 | V20: 2 | W20: 2.833333333 | X20: 3 | Y20: 2.166666667 | Z20: 2 | AA20: 3 | AB20: 2.5 | AC20: 1.8 | AD20: 3.4 | AE20: 2.2 | AF20: 3.333333333 | AG20: 2.666666667 | AH20: 3.8 | AI20: 2.166666667 | AJ20: 2.5 | AK20: 2.833333333 | AL20: 2.2 | AM20: 3.166666667 | AN20: 2.333333333 | AO20: 3.2 | AP20: 3 | AQ20: 3 | AR20: 2.666666667 | AS20: 2.166666667 | AT20: 3.833333333 | AU20: 2.4 | AV20: 2.8 | AW20: 2.4 | AX20: 1.333333333 | AY20: 3 | AZ20: 3 | BA20: 2.6 | BB20: 2.166666667 | BC20: 3 | BD20: 3 | BE20: 2.166666667 | BF20: 2.5 | BG20: 2 | BH20: 1 | BI20: 2.5 | BJ20: 3.4 | BK20: 3.166666667 | BL20: 3 | BM20: 2.5 | BN20: 3.2 | BO20: 1.5 | BP20: 2.666666667 | BQ20: 2.6 | BR20: 2.333333333 | BS20: 3.166666667 | BT20: 2.75 | BU20: 1.833333333 | BV20: 1.833333333 | BW20: 3 | BX20: 2.5 | BY20: 2.666666667 | BZ20: 3.4 | CA20: 2.5 | CB20: 3 | CC20: 2.2 | CD20: 3.333333333 | CE20: 3.6 | CF20: 2.333333333 | CG20: 2.666666667 | CH20: 1.25 | CI20: 3.2 | CJ20: 3.4 | CK20: 2 | CL20: 2.666666667 | CM20: 3 | CN20: 3.4 | CO20: 2.666666667 | CP20: 2.5 | CQ20: 3.166666667 | CR20: 2.166666667 | CS20: 2.333333333 | CT20: 2.8 | CU20: 2.4 | CV20: 2.5 | CW20: 2.166666667 | CX20: 2.5 | CY20: 1.666666667 | CZ20: 1.666666667 | DA20: 2.833333333 | DB20: 2.333333333 | DC20: 2.833333333 | DD20: 2.333333333 | DE20: 2 | DF20: 2.666666667 | DG20: 2.166666667 | DH20: 1.8 | DI20: 3 | DJ20: 3.833333333 | DK20: 2.75 | DL20: 2.666666667 | DM20: 3.333333333 | DN20: 2.5 | DO20: 1.833333333 | DP20: 2 | DQ20: 3.333333333 | DR20: 2.333333333 | DS20: 1.833333333 | DT20: 2.166666667 | DU20: 2.833333333 | DV20: 2.666666667 | DW20: 3.166666667 | DX20: 2.8 | DY20: 2.333333333 | DZ20: 2 | EA20: 2.5 | EB20: 2.666666667 | EC20: 2.598333333
B21: 2016 | C21: 2.5 | D21: 3.166666667 | E21: 2.333333333 | F21: 2.6 | G21: 1.75 | H21: 2.333333333 | I21: 2.333333333 | J21: 2.166666667 | K21: 3.6 | L21: 4 | M21: 2.833333333 | N21: 2.4 | O21: 3.4 | P21: 1.833333333 | Q21: 3.25 | R21: 1.333333333 | S21: 2 | T21: 3.2 | U21: 2.833333333 | V21: 2.6 | W21: 3 | X21: 2 | Y21: 2.166666667 | Z21: 2.666666667 | AA21: 3 | AB21: 2.333333333 | AC21: 3.6 | AD21: 3.2 | AE21: 3 | AF21: 2.666666667 | AG21: 3.166666667 | AH21: 3.6 | AI21: 2 | AJ21: 2.666666667 | AK21: 2.5 | AL21: 3 | AM21: 3 | AN21: 2.333333333 | AO21: 3.6 | AP21: 2.333333333 | AQ21: 3 | AR21: 3.666666667 | AS21: 2.5 | AT21: 2.833333333 | AU21: 2.6 | AV21: 2.5 | AW21: 1.8 | AX21: 2.5 | AY21: 2.6 | AZ21: 2.166666667 | BA21: 1.8 | BB21: 2.333333333 | BC21: 3.666666667 | BD21: 3 | BE21: 1.666666667 | BF21: 2.666666667 | BG21: 2 | BH21: 2.5 | BI21: 3 | BJ21: 2 | BK21: 4 | BL21: 2.666666667 | BM21: 2.333333333 | BN21: 3.5 | BO21: 1.5 | BP21: 1.8 | BQ21: 3.2 | BR21: 2.333333333 | BS21: 2 | BT21: 3.333333333 | BU21: 1.5 | BV21: 2 | BW21: 2.6 | BX21: 3.25 | BY21: 3.4 | BZ21: 3 | CA21: 2.666666667 | CB21: 3.166666667 | CC21: 3.4 | CD21: 2.666666667 | CE21: 3.75 | CF21: 2 | CG21: 3.333333333 | CH21: 1.25 | CI21: 3 | CJ21: 2.666666667 | CK21: 1.5 | CL21: 1.666666667 | CM21: 2.4 | CN21: 1.8 | CO21: 2.666666667 | CP21: 2.5 | CQ21: 2.75 | CR21: 2.5 | CS21: 3.2 | CT21: 2.5 | CU21: 3.4 | CV21: 2 | CW21: 2 | CX21: 2.333333333 | CY21: 1.833333333 | CZ21: 1.666666667 | DA21: 3.166666667 | DB21: 2.5 | DC21: 3 | DD21: 2.166666667 | DE21: 2.5 | DF21: 1.666666667 | DG21: 2.333333333 | DH21: 1.666666667 | DI21: 2.666666667 | DJ21: 2.666666667 | DK21: 3 | DL21: 2.166666667 | DM21: 3.5 | DN21: 3 | DO21: 2.666666667 | DP21: 3 | DQ21: 4 | DR21: 1.8 | DS21: 1.666666667 | DT21: 2.6 | DU21: 3 | DV21: 2.666666667 | DW21: 3.5 | DX21: 3.4 | DY21: 3 | DZ21: 1.666666667 | EA21: 2.833333333 | EB21: 2.4 | EC21: 2.617179487
B22: 2017

Sheet All_Original (hidden)
B1: CSA Performance Measures - FY2015-2017
A2: Fips | B2: Locality | C2: Percent of Youth with a Decrease in CANS Child School Domain1 | E2: Percent of Youth with a Decrease in CANS Child Behavior/Emotional Needs Domain1 | G2: Percent of Youth Receiving ICC Against Those in Residential2 (Target = 75%) | I2: Percent of Youth Receiving CBS Out of All CSA Youth (Target = 50%) | K2: Percent of Foster Care Children in Family-based Placements (Target = 85%) | M2: Percent of Children Who Exit from Foster Care to a Permanent Living Arrangement (Target = 86%) | O2: Composite Performance Measure3 | Q2: SCH15 | R2: SCH16 | S2: CANS15 | T2: CANS16 | U2: ICC15 | V2: ICC16 | W2: CBS15 | X2: CBS16 | Y2: Fam15 | Z2: Fam16 | AA2: Per15 | AB2: Per16 | AC2: Com15 | AD2: Com16 | AE2: CANS15 | AH2: ICC Rank15 | AK2: CBS15 | AN2: Family15 | AQ2: Permanency15 | AT2: Composite15 | AW2: CANS16 | AZ2: ICC Rank16 | BC2: CBS16 | BF2: Family16 | BI2: Permanency16 | BL2: Composite16
A3: 1 | B3: Accomack | C3: 0.5 | D3: 0.75 | E3: 0.6666666667 | F3: 0.625 | G3: 0 | H3: 0 | I3: 0.09090909091 | J3: 0.25 | K3: 0.7142857143 | L3: 0.8333333333 | M3: 0.3333333333 | N3: 0.8 | O3: 2 | P3: 2.5 | Q3: 59t | R3: 7t | S3: 19t | T3: 1t | U3: 53t | V3: 54t | W3: 124 | X3: 110t | Y3: 92t | Z3: 56t | AA3: 116 | AB3: 57t | AC3: 104t | AD3: 86t | AE3: 0.19 | AF3: =IF(E3<>"",MAX(E3,AE3),"") -> 0.6666666667 | AG3: 19t | AH3: 0.53 | AI3: =IF(G3<>"",MAX(G3,AH3),"") -> 0.53 | AJ3: 53t | AK3: 1.24 | AL3: =IF(I3<>"",MAX(I3,AK3),"") -> 1.24 | AM3: 124 | AN3: 0.92 | AO3: =IF(K3<>"",MAX(K3,AN3),"") -> 0.92 | AP3: 92t | AQ3: 1.16 | AR3: =IF(M3<>"",MAX(M3,AQ3),"") -> 1.16 | AS3: 116 | AT3: 1.06 | AU3: =IF(O3<>"",MAX(O3,AT3),"") -> 2 | AV3: 106t | AW3: 0.01 | AX3: =IF(F3<>"",MAX(F3,AW3),"") -> 0.625 | AY3: 1t | AZ3: 0.54 | BA3: =IF(H3<>"",MAX(H3,AZ3),"") -> 0.54 | BB3: 54t | BC3: 1.1 | BD3: =IF(J3<>"",MAX(J3,BC3),"") -> 1.1 | BE3: 110t | BF3: 53 | BG3: =IF(L3<>"",MAX(L3,BF3),"") -> 53 | BH3: 53 | BI3: 0.57 | BJ3: =IF(N3<>"",MAX(N3,BI3),"") -> 0.8 | BK3: 57t | BL3: 1.06 | BM3: =IF(P3<>"",MAX(P3,BL3),"") -> 2.5 | BN3: 106t
A4: 3 | B4: Albemarle | C4: 0.4666666667 | D4: 0.4942528736 | E4: 0.3466666667 | F4: 0.5287356322 | G4: 0.5 | H4: 0.6875 | I4: 0.4894894895 | J4: 0.6060606061 | K4: 0.869047619 | L4: 0.9 | M4: 0.66 | N4: 0.7450980392 | O4: 2.333333333 | P4: 3.166666667 | Q4: 99t | R4: 77 | S4: 110 | T4: 42t | U4: 24t | V4: 20 | W4: 74 | X4: 41 | Y4: 45 | Z4: 29t | AA4: 97 | AB4: 84 | AC4: 83t | AD4: 21t | AE4: 1.1 | AF4: 1.1 | AG4: 110 | AH4: 0.24 | AI4: 0.5 | AJ4: 24t | AK4: 0.74 | AL4: 0.74 | AM4: 74 | AN4: 0.45 | AO4: 0.869047619 | AP4: 45 | AQ4: 0.97 | AR4: 0.97 | AS4: 97 | AT4: 0.65 | AU4: 2.333333333 | AV4: 65t | AW4: 0.42 | AX4: 0.5287356322 | AY4: 42t | AZ4: 0.2 | BA4: 0.6875 | BB4: 20 | BC4: 0.41 | BD4: 0.6060606061 | BE4: 41 | BF4: 1 | BG4: 1 | BH4: 1 | BI4: 0.84 | BJ4: 0.84 | BK4: 84 | BL4: 0.08 | BM4: 3.166666667 | BN4: 8t | CC4: 0.45 | CE4: 0.45
A5: 510 | B5: Alexandria | C5: 0.5 | D5: 0.3823529412 | E5: 0.3793103448 | F5: 0.4117647059 | G5: 0.5833333333 | H5: 0.8571428571 | I5: 0.489539749 | J5: 0.5043859649 | K5: 0.8865979381 | L5: 0.8651685393 | M5: 0.724137931 | N5: 0.7297297297 | O5: 2.5 | P5: 2.333333333 | Q5: 91 | R5: 58 | S5: 96 | T5: 101 | U5: 21 | V5: 15 | W5: 72 | X5: 71 | Y5: 36 | Z5: 48 | AA5: 85 | AB5: 85 | AC5: 83t | AD5: 56t | AE5: 0.96 | AF5: 0.96 | AG5: 96 | AH5: 0.21 | AI5: 0.5833333333 | AJ5: 21 | AK5: 0.72 | AL5: 0.72 | AM5: 72 | AN5: 0.36 | AO5: 0.8865979381 | AP5: 36 | AQ5: 0.85 | AR5: 0.85 | AS5: 85 | AT5: 0.65 | AU5: 2.5 | AV5: 65t | AW5: 1.01 | AX5: 1.01 | AY5: 101 | AZ5: 0.15 | BA5: 0.8571428571 | BB5: 15 | BC5: 0.71 | BD5: 0.71 | BE5: 71 | BF5: 34 | BG5: 34 | BH5: 34 | BI5: 0.85 | BJ5: 0.85 | BK5: 85 | BL5: 0.66 | BM5: 2.333333333 | BN5: 66t | CC5: 0.36 | CE5: 0.36
A6: 5 | B6: Alleghany | C6: 0.5 | D6: 0.6 | E6: 0.5 | F6: 0.4 | G6: 0 | I6: 0.7333333333 | J6: 0.8070175439 | K6: 0.3333333333 | L6: 0.7 | M6: 0.8333333333 | N6: 0.5 | O6: 2.5 | P6: 2.6 | Q6: 18t | R6: 53t | S6: 19t | T6: 94t | U6: 53t | W6: 10 | X6: 9 | Y6: 124t | Z6: 94t | AA6: 45t | AB6: 110t | AC6: 29t | AD6: 81t | AE6: 0.19 | AF6: 0.5 | AG6: 19t | AH6: 0.53 | AI6: 0.53 | AJ6: 53t | AK6: 0.1 | AL6: 0.7333333333 | AM6: 10 | AN6: 1.24 | AO6: 1.24 | AP6: 124t | AQ6: 0.45 | AR6: 0.8333333333 | AS6: 45t | AT6: 0.43 | AU6: 2.5 | AV6: 43t | AW6: 0.94 | AX6: 0.94 | AY6: 94t | AZ6: 0 | BC6: 0.09 | BD6: 0.8070175439 | BE6: 9 | BF6: 68 | BG6: 68 | BH6: 68 | BI6: 1.1 | BJ6: 1.1 | BK6: 110t | BL6: 0.91 | BM6: 2.6 | BN6: 91t | CC6: 1.24 | CE6: 1.24
A7: 7 | B7: Amelia | C7: 0.6 | D7: 0.4 | E7: 0.8 | F7: 0 | I7: 0.4285714286 | J7: 0.4545454545 | L7: 1 | M7: 1 | O7: 3.25 | P7: 1.75 | Q7: 32t | R7: 17 | S7: 9 | T7: 105t | W7: 86t | X7: 86t | Z7: 1t | AA7: 1t | AC7: 19 | AD7: 104t | AE7: 0.09 | AF7: 0.8 | AG7: 9 | AK7: 0.86 | AL7: 0.86 | AM7: 86t | AN7: 0 | AQ7: 0.01 | AR7: 1 | AS7: 1t | AT7: 0.26 | AU7: 3.25 | AV7: 26t | AW7: 1.05 | AX7: 1.05 | AY7: 105t | AZ7: 0 | BC7: 0.86 | BD7: 0.86 | BE7: 86t | BF7: 2 | BG7: 2 | BH7: 2 | BI7: 0 | BL7: 1.29 | BM7: 1.75 | BN7: 129t | CC7: 0 | CE7: 0
A8: 9 | B8: Amherst | C8: 0.6956521739 | D8: 0.3870967742 | E8: 0.5652173913 | F8: 0.5161290323 | G8: 1 | H8: 0.1 | I8: 0.3670886076 | J8: 0.5211267606 | K8: 0.875 | L8: 0.76 | M8: 0.7777777778 | N8: 0.9090909091 | O8: 3.166666667 | P8: 2.333333333 | Q8: 16t | R8: 52 | S8: 38 | T8: 42t | U8: 1t | V8: 44t | W8: 97 | X8: 64 | Y8: 42t | Z8: 78 | AA8: 71 | AB8: 27 | AC8: 24t | AD8: 21t | AE8: 0.38 | AF8: 0.5652173913 | AG8: 38 | AH8: 0.01 | AI8: 1 | AJ8: 1t | AK8: 0.97 | AL8: 0.97 | AM8: 97 | AN8: 0.42 | AO8: 0.875 | AP8: 42t | AQ8: 0.71 | AR8: 0.7777777778 | AS8: 71 | AT8: 0.26 | AU8: 3.166666667 | AV8: 26t | AW8: 0.42 | AX8: 0.5161290323 | AY8: 42t | AZ8: 0.44 | BA8: 0.44 | BB8: 44t | BC8: 0.64 | BD8: 0.64 | BE8: 64 | BF8: 69 | BG8: 69 | BH8: 69 | BI8: 0.27 | BJ8: 0.9090909091 | BK8: 27 | BL8: 0.22 | BM8: 2.333333333 | BN8: 22t | CC8: 0.42 | CE8: 0.42
A9: 11 | B9: Appomattox | C9: 0.44 | D9: 0.5714285714 | E9: 0.44 | F9: 0.4571428571 | G9: 0.4285714286 | H9: 0 | I9: 0.5375 | J9: 0.5454545455 | K9: 0.8947368421 | L9: 0.75 | M9: 0.5 | N9: 0.75 | O9: 2.5 | P9: 2.333333333 | Q9: 99t | R9: 50t | S9: 92 | T9: 73t | U9: 29 | V9: 54t | W9: 56 | X9: 55t | Y9: 30 | Z9: 81t | AA9: 106t | AB9: 77t | AC9: 71t | AD9: 69t | AE9: 0.92 | AF9: 0.92 | AG9: 92 | AH9: 0.29 | AI9: 0.4285714286 | AJ9: 29 | AK9: 0.56 | AL9: 0.56 | AM9: 56 | AN9: 0.3 | AO9: 0.8947368421 | AP9: 30 | AQ9: 1.06 | AR9: 1.06 | AS9: 106t | AT9: 0.43 | AU9: 2.5 | AV9: 43t | AW9: 0.73 | AX9: 0.73 | AY9: 73t | AZ9: 0.54 | BA9: 0.54 | BB9: 54t | BC9: 0.55 | BD9: 0.55 | BE9: 55t | BF9: 70 | BG9: 70 | BH9: 70 | BI9: 0.77 | BJ9: 0.77 | BK9: 77t | BL9: 0.77 | BM9: 2.333333333 | BN9: 77t | CC9: 0.3 | CE9: 0.3
A10: 13 | B10: Arlington | C10: 0.5396825397 | D10: 0.5166666667 | E10: 0.5238095238 | F10: 0.45 | G10: 0 | H10: 0.04651162791 | I10: 0.3886462882 | J10: 0.3611111111 | K10: 0.7777777778 | L10: 0.8777777778 | M10: 0.7222222222 | N10: 0.7636363636 | O10: 2 | P10: 2.166666667 | Q10: 57 | R10: 65t | S10: 37 | T10: 89 | U10: 53t | V10: 50 | W10: 94 | X10: 99 | Y10: 81 | Z10: 42 | AA10: 86t | AB10: 76 | AC10: 98t | AD10: 125t | AE10: 0.37 | AF10: 0.5238095238 | AG10: 37 | AH10: 0.53 | AI10: 0.53 | AJ10: 53t | AK10: 0.94 | AL10: 0.94 | AM10: 94 | AN10: 0.81 | AO10: 0.81 | AP10: 81 | AQ10: 0.86 | AR10: 0.86 | AS10: 86t | AT10: 1.06 | AU10: 2 | AV10: 106t | AW10: 0.89 | AX10: 0.89 | AY10: 89 | AZ10: 0.5 | BA10: 0.5 | BB10: 50 | BC10: 0.99 | BD10: 0.99 | BE10: 99 | BF10: 3 | BG10: 3 | BH10: 3 | BI10: 0.76 | BJ10: 0.7636363636 | BK10: 76 | BL10: 1.24 | BM10: 2.166666667 | BN10: 124t | CC10: 0.81 | CE10: 0.81
A11: 15 | B11: Augusta | C11: 0.4857142857 | D11: 0.4857142857 | E11: 0.4285714286 | F11: 0.7142857143 | G11: 1 | H11: 1 | I11: 0.5025125628 | J11: 0.5490196078 | K11: 0.5 | M11: 0.8888888889 | N11: 1 | O11: 2.5 | P11: 3.6 | Q11: 90 | R11: 22 | S11: 90 | T11: 21 | U11: 1t | V11: 1t | W11: 68 | X11: 51t | Y11: 120t | AA11: 28 | AB11: 1t | AC11: 83t | AD11: 3t | AE11: 0.9 | AF11: 0.9 | AG11: 90 | AH11: 0.01 | AI11: 1 | AJ11: 1t | AK11: 0.68 | AL11: 0.68 | AM11: 68 | AN11: 1.2 | AO11: 1.2 | AP11: 120t | AQ11: 0.28 | AR11: 0.8888888889 | AS11: 28 | AT11: 0.65 | AU11: 2.5 | AV11: 65t | AW11: 0.21 | AX11: 0.7142857143 | AY11: 21 | AZ11: 0.01 | BA11: 1 | BB11: 1t | BC11: 0.51 | BD11: 0.5490196078 | BE11: 51t | BI11: 0.01 | BJ11: 1 | BK11: 1t | BL11: 0.08 | BM11: 3.6 | BN11: 8t | CC11: 1.2 | CE11: 1.2
A12: 17 | B12: Bath | C12: 0 | E12: 0 | I12: 0.6666666667 | J12: 0.6666666667 | K12: 0.8 | L12: 1 | N12: 1 | O12: 2.25 | P12: 4 | Q12: 119t | S12: 117t | W12: 26 | X12: 23t | Y12: 72t | Z12: 1t | AB12: 1t | AC12: 96 | AD12: 3t | AE12: 1.17 | AF12: 1.17 | AG12: 117t | AK12: 0.26 | AL12: 0.6666666667 | AM12: 26 | AN12: 0.72 | AO12: 0.8 | AP12: 72t | AS12: 0 | AT12: 0.62 | AU12: 2.25 | AV12: 62t | AW12: 0 | AZ12: 0 | BC12: 0.23 | BD12: 0.6666666667 | BE12: 23t | BF12: 4 | BG12: 4 | BH12: 4 | BI12: 0.01 | BJ12: 1 | BK12: 1t | BL12: 0.07 | BM12: 4 | BN12: 7 | CC12: 0.72 | CE12: 0.72
A13: 19 | B13: Bedford County_Bedford City | C13: 0.6111111111 | D13: 0.6037735849 | E13: 0.3888888889 | F13: 0.5471698113 | H13: 0 | I13: 0.3867924528 | J13: 0.5 | K13: 0.8103448276 | L13: 0.8363636364 | M13: 0.9310344828 | N13: 0.8285714286 | O13: 2.6 | P13: 2.833333333 | Q13: 48 | R13: 53t | S13: 105t | T13: 75t | V13: 54t | W13: 95 | X13: 72t | Y13: 68 | Z13: 55 | AA13: 20 | AB13: 48 | AC13: 68t | AD13: 86t | AE13: 1.05 | AF13: 1.05 | AG13: 105t | AK13: 0.95 | AL13: 0.95 | AM13: 95 | AN13: 0.68 | AO13: 0.8103448276 | AP13: 68 | AQ13: 0.2 | AR13: 0.9310344828 | AS13: 20 | AT13: 0.95 | AU13: 2.6 | AV13: 95t | AW13: 0.75 | AX13: 0.75 | AY13: 75t | AZ13: 0.54 | BA13: 0.54 | BB13: 54t | BC13: 0.72 | BD13: 0.72 | BE13: 72t | BF13: 54 | BG13: 54 | BH13: 54 | BI13: 0.48 | BJ13: 0.8285714286 | BK13: 48 | BL13: 0.95 | BM13: 2.833333333 | BN13: 95t | CC13: 0.68 | CE13: 0.68
A14: 21 | B14: Bland | D14: 0.8 | F14: 0.4 | I14: 0.06666666667 | J14: 0.06666666667 | K14: 0.9166666667 | L14: 0.9230769231 | M14: 1 | N14: 0.8 | O14: 3 | P14: 2.4 | W14: 128 | X14: 126 | Y14: 27 | Z14: 23 | AA14: 1t | AB14: 57t | AC14: 29t | AD14: 86t | AK14: 1.28 | AL14: 1.28 | AM14: 128 | AN14: 0.27 | AO14: 0.9166666667 | AP14: 27 | AQ14: 0.01 | AR14: 1 | AS14: 1t | AT14: 0.26 | AU14: 3 | AV14: 26t | AW14: 0 | AX14: 0.4 | AZ14: 0 | BC14: 1.26 | BD14: 1.26 | BE14: 126 | BF14: 5 | BG14: 5 | BH14: 5 | BI14: 0.57 | BJ14: 0.8 | BK14: 57t | BL14: 0.86 | BM14: 2.4 | BN14: 86t | CC14: 0.27 | CE14: 0.27
A15: 23 | B15: Botetourt | C15: 0.8181818182 | D15: 0.6315789474 | E15: 0.6363636364 | F15: 0.5789473684 | G15: 1 | H15: 0.3333333333 | I15: 0.7272727273 | J15: 0.7804878049 | K15: 1 | L15: 0.6666666667 | M15: 0.8571428571 | O15: 3.833333333 | P15: 3.4 | Q15: 10 | R15: 31t | S15: 16 | T15: 60t | U15: 1t | V15: 25t | W15: 11t | X15: 12 | Y15: 1t | Z15: 103t | AA15: 33t | AC15: 1t | AD15: 7t | AE15: 0.16 | AF15: 0.6363636364 | AG15: 16 | AH15: 0.01 | AI15: 1 | AJ15: 1t | AK15: 0.11 | AL15: 0.7272727273 | AM15: 11t | AN15: 0.01 | AO15: 1 | AP15: 1t | AQ15: 0.33 | AR15: 0.8571428571 | AS15: 33t | AT15: 0.01 | AU15: 3.833333333 | AV15: 1t | AW15: 0.6 | AX15: 0.6 | AY15: 60t | AZ15: 0.25 | BA15: 0.3333333333 | BB15: 25t | BC15: 0.12 | BD15: 0.7804878049 | BE15: 12 | BF15: 71t | BG15: 0.6666666667 | BH15: 71t | BI15: 0 | BL15: 0.12 | BM15: 3.4 | BN15: 12t | CC15: 0.01 | CE15: 0.01
A16: 520 | B16: Bristol | C16: 0.5789473684 | D16: 0.75 | E16: 0.4210526316 | F16: 0.25 | G16: 0.1489361702 | H16: 0.1578947368 | I16: 0.0977443609 | J16: 0.09333333333 | K16: 0.7666666667 | L16: 0.6666666667 | M16: 0.7368421053 | N16: 0.6 | O16: 1.833333333 | P16: 1.833333333 | Q16: 46 | R16: 1t | S16: 97t | T16: 113t | U16: 45 | V16: 41 | W16: 122 | X16: 123 | Y16: 82 | Z16: 103t | AA16: 82 | AB16: 107 | AC16: 114t | AD16: 117t | AE16: 0.97 | AF16: 0.97 | AG16: 97t | AH16: 0.45 | AI16: 0.45 | AJ16: 45 | AK16: 1.22 | AL16: 1.22 | AM16: 122 | AN16: 0.82 | AO16: 0.82 | AP16: 82 | AQ16: 0.82 | AR16: 0.82 | AS16: 82 | AT16: 1.25 | AU16: 1.833333333 | AV16: 125t | AW16: 1.13 | AX16: 1.13 | AY16: 113t | AZ16: 0.41 | BA16: 0.41 | BB16: 41 | BC16: 1.23 | BD16: 1.23 | BE16: 123 | BF16: 115 | BG16: 115 | BH16: 115 | BI16: 1.07 | BJ16: 1.07 | BK16: 107 | BL16: 1.24 | BM16: 1.833333333 | BN16: 124t | CC16: 0.82 | CE16: 0.82
A17: 25 | B17: Brunswick | C17: 0.6666666667 | D17: 0.625 | E17: 0.6666666667 | F17: 0.75 | I17: 0.4210526316 | J17: 0.5238095238 | K17: 0.6666666667 | L17: 0.6666666667 | M17: 1 | O17: 3 | P17: 3.25 | Q17: 1t | R17: 108t | S17: 19t | T17: 80t | W17: 88 | X17: 63 | Y17: 100t | Z17: 103t | AA17: 1t | AC17: 29t | AD17: 122 | AE17: 0.19 | AF17: 0.6666666667 | AG17: 19t | AK17: 0.88 | AL17: 0.88 | AM17: 88 | AN17: 1 | AO17: 1 | AP17: 100t | AQ17: 0.01 | AR17: 1 | AS17: 1t | AT17: 0.55 | AU17: 3 | AV17: 55t | AW17: 0.8 | AX17: 0.8 | AY17: 80t | AZ17: 0 | BC17: 0.63 | BD17: 0.63 | BE17: 63 | BF17: 71t | BG17: 0.6666666667 | BH17: 71t | BI17: 0 | BL17: 1.06 | BM17: 3.25 | BN17: 106t | CC17: 1 | CE17: 1
A18: 27 | B18: Buchanan | C18: 0.4705882353 | D18: 0.3 | E18: 0.4117647059 | F18: 0.25 | G18: 0 | H18: 0 | I18: 0.2716049383 | J18: 0.08641975309 | K18: 0.7910447761 | L18: 0.7808219178 | M18: 0.8333333333 | N18: 0.7941176471 | O18: 1.5 | P18: 1.333333333 | Q18: 104 | R18: 90 | S18: 71t | T18: 91 | U18: 53t | V18: 54t | W18: 110 | X18: 125 | Y18: 78 | Z18: 73 | AA18: 45t | AB18: 71 | AC18: 121t | AD18: 128 | AE18: 0.71 | AF18: 0.71 | AG18: 71t | AH18: 0.53 | AI18: 0.53 | AJ18: 53t | AK18: 1.1 | AL18: 1.1 | AM18: 110 | AN18: 0.78 | AO18: 0.7910447761 | AP18: 78 | AQ18: 0.45 | AR18: 0.8333333333 | AS18: 45t | AT18: 1.17 | AU18: 1.5 | AV18: 117t | AW18: 0.91 | AX18: 0.91 | AY18: 91 | AZ18: 0.54 | BA18: 0.54 | BB18: 54t | BC18: 1.25 | BD18: 1.25 | BE18: 125 | BF18: 73 | BG18: 73 | BH18: 73 | BI18: 0.71 | BJ18: 0.7941176471 | BK18: 71 | BL18: 1.24 | BM18: 1.333333333 | BN18: 124t | CC18: 0.78 | CE18: 0.78
A19: 29 | B19: Buckingham | C19: 0.8571428571 | D19: 0.2727272727 | E19: 0.5714285714 | F19: 0.2727272727 | I19: 0.7101449275 | J19: 0.737704918 | K19: 0.8 | L19: 0.6363636364 | M19: 1 | O19: 3.8 | P19: 2 | Q19: 18t | R19: 70t | S19: 47t | T19: 103 | W19: 17 | X19: 15 | Y19: 72t | Z19: 115 | AA19: 1t | AC19: 4t | AD19: 69t | AE19: 0.47 | AF19: 0.5714285714 | AG19: 47t | AK19: 0.17 | AL19: 0.7101449275 | AM19: 17 | AN19: 0.72 | AO19: 0.8 | AP19: 72t | AQ19: 0.01 | AR19: 1 | AS19: 1t | AT19: 0.09 | AU19: 3.8 | AV19: 9t | AW19: 1.03 | AX19: 1.03 | AY19: 103 | AZ19: 0 | BC19: 0.15 | BD19: 0.737704918 | BE19: 15 | BF19: 74 | BG19: 74 | BH19: 74 | BI19: 0 | BL19: 0.64 | BM19: 2 | BN19: 64t | CC19: 0.72 | CE19: 0.72
A20: 530 | B20: Buena Vista | C20: 0.5 | D20: 0.6923076923 | E20: 0.8 | F20: 0.6923076923 | I20: 0.6976744186 | J20: 0.8333333333 | K20: 0.5789473684 | L20: 0.75 | M20: 0.8 | N20: 0.8 | O20: 2.8 | P20: 3.2 | Q20: 59t | R20: 48t | S20: 18 | T20: 25 | W20: 21 | X20: 6 | Y20: 114t | Z20: 81t | AA20: 60t | AB20: 57t | AC20: 48t | AD20: 28t | AE20: 0.18 | AF20: 0.8 | AG20: 18 | AK20: 0.21 | AL20: 0.6976744186 | AM20: 21 | AN20: 1.14 | AO20: 1.14 | AP20: 114t | AQ20: 0.6 | AR20: 0.8 | AS20: 60t | AT20: 0.26 | AU20: 2.8 | AV20: 26t | AW20: 0.25 | AX20: 0.6923076923 | AY20: 25 | AZ20: 0 | BC20: 0.06 | BD20: 0.8333333333 | BE20: 6 | BF20: 116 | BG20: 116 | BH20: 116 | BI20: 0.57 | BJ20: 0.8 | BK20: 57t | BL20: 0.3 | BM20: 3.2 | BN20: 30t | CC20: 1.14 | CE20: 1.14
A21: 31 | B21: Campbell | C21: 0.5151515152 | D21: 0.6071428571 | E21: 0.5454545455 | F21: 0.7142857143 | G21: 0 | H21: 0 | I21: 0.6467065868 | J21: 0.6538461538 | K21: 0.8333333333 | L21: 0.7105263158 | M21: 0.75 | N21: 0.7222222222 | O21: 2.666666667 | P21: 2.833333333 | Q21: 43 | R21: 31t | S21: 28 | T21: 16t | U21: 53t | V21: 54t | W21: 31 | X21: 27 | Y21: 57t | Z21: 93 | AA21: 77t | AB21: 88 | AC21: 29t | AD21: 28t | AE21: 0.28 | AF21: 0.5454545455 | AG21: 28 | AH21: 0.53 | AI21: 0.53 | AJ21: 53t | AK21: 0.31 | AL21: 0.6467065868 | AM21: 31 | AN21: 0.57 | AO21: 0.8333333333 | AP21: 57t | AQ21: 0.77 | AR21: 0.77 | AS21: 77t | AT21: 0.43 | AU21: 2.666666667 | AV21: 43t | AW21: 0.16 | AX21: 0.7142857143 | AY21: 16t | AZ21: 0.54 | BA21: 0.54 | BB21: 54t | BC21: 0.27 | BD21: 0.6538461538 | BE21: 27 | BF21: 75 | BG21: 75 | BH21: 75 | BI21: 0.88 | BJ21: 0.88 | BK21: 88 | BL21: 0.5 | BM21: 2.833333333 | BN21: 50t | CC21: 0.57 | CE21: 0.57
A22: 33 | B22: Caroline | C22: 0.6666666667 | D22: 0.6666666667 | E22: 0.3333333333 | F22: 0.25 | G22: 0 | I22: 0.4745762712 | J22: 0.4909090909 | K22: 0.7368421053 | L22: 0.7894736842 | M22: 0.7142857143 | N22: 1 | O22: 2 | P22: 2.6 | Q22: 84 | R22: 31t | S22: 117t | T22: 105t | U22: 53t | W22: 78 | X22: 76 | Y22: 87 | Z22: 70 | AA22: 88 | AB22: 1t | AC22: 126t | AD22: 64t | AE22: 1.17 | AF22: 1.17 | AG22: 117t | AH22: 0.53 | AI22: 0.53 | AJ22: 53t | AK22: 0.78 | AL22: 0.78 | AM22: 78 | AN22: 0.87 | AO22: 0.87 | AP22: 87 | AQ22: 0.88 | AR22: 0.88 | AS22: 88 | AT22: 1.22 | AU22: 2 | AV22: 122t | AW22: 1.05 | AX22: 1.05 | AY22: 105t | AZ22: 0 | BC22: 0.76 | BD22: 0.76 | BE22: 76 | BF22: 76 | BG22: 76 | BH22: 76 | BI22: 0.01 | BJ22: 1 | BK22: 1t | BL22: 0.91 | BM22: 2.6 | BN22: 91t | CC22: 0.87 | CE22: 0.87
A23: 35 | B23: Carroll | C23: 0.4888888889 | D23: 0.6046511628 | E23: 0.4222222222 | F23: 0.4651162791 | G23: 1 | H23: 1 | I23: 0.6639344262 | J23: 0.5338983051 | K23: 0.8846153846 | L23: 0.8048780488 | M23: 0.6875 | N23: 0.8 | O23: 2.833333333 | P23: 3 | Q23: 94 | R23: 29 | S23: 93 | T23: 58 | U23: 1t | V23: 1t | W23: 27 | X23: 60 | Y23: 38t | Z23: 66 | AA23: 91t | AB23: 57t | AC23: 55t | AD23: 15t | AE23: 0.93 | AF23: 0.93 | AG23: 93 | AH23: 0.01 | AI23: 1 | AJ23: 1t | AK23: 0.27 | AL23: 0.6639344262 | AM23: 27 | AN23: 0.38 | AO23: 0.8846153846 | AP23: 38t | AQ23: 0.91 | AR23: 0.91 | AS23: 91t | AT23: 0.26 | AU23: 2.833333333 | AV23: 26t | AW23: 0.58 | AX23: 0.58 | AY23: 58 | AZ23: 0.01 | BA23: 1 | BB23: 1t | BC23: 0.6 | BD23: 0.6 | BE23: 60 | BF23: 55 | BG23: 55 | BH23: 55 | BI23: 0.57 | BJ23: 0.8 | BK23: 57t | BL23: 0.22 | BM23: 3 | BN23: 22t | CC23: 0.38 | CE23: 0.38
A24: 36 | B24: Charles City | C24: 1 | D24: 0 | E24: 0 | F24: 0 | I24: 0.625 | J24: 0.8888888889 | O24: 3 | P24: 2 | Q24: 1t | R24: 108t | S24: 117t | T24: 113t | W24: 38t | X24: 1 | AC24: 29t | AD24: 104t | AE24: 1.17 | AF24: 1.17 | AG24: 117t | AK24: 0.38 | AL24: 0.625 | AM24: 38t | AN24: 0 | AS24: 0 | AT24: 0.76 | AU24: 3 | AV24: 76t | AW24: 1.13 | AX24: 1.13 | AY24: 113t | AZ24: 0 | BC24: 0.01 | BD24: 0.8888888889 | BE24: 1 | BI24: 0 | BL24: 0.73 | BM24: 2 | BN24: 73t | CC24: 0 | CE24: 0
A25: 37 | B25: Charlotte | C25: 0.2857142857 | D25: 0.25 | E25: 0.3571428571 | F25: 0.6875 | G25: 0 | H25: 0.1 | I25: 0.5842696629 | J25: 0.5405405405 | K25: 0.9259259259 | L25: 0.6875 | M25: 0.6666666667 | N25: 0.7142857143 | O25: 2.166666667 | P25: 2.166666667 | Q25: 106 | R25: 74t | S25: 101 | T25: 18t | U25: 53t | V25: 44t | W25: 44 | X25: 57t | Y25: 23 | Z25: 99t | AA25: 94t | AB25: 92t | AC25: 98t | AD25: 69t | AE25: 1.01 | AF25: 1.01 | AG25: 101 | AH25: 0.53 | AI25: 0.53 | AJ25: 53t | AK25: 0.44 | AL25: 0.5842696629 | AM25: 44 | AN25: 0.23 | AO25: 0.9259259259 | AP25: 23 | AQ25: 0.94 | AR25: 0.94 | AS25: 94t | AT25: 0.79 | AU25: 2.166666667 | AV25: 79t | AW25: 0.18 | AX25: 0.6875 | AY25: 18t | AZ25: 0.44 | BA25: 0.44 | BB25: 44t | BC25: 0.57 | BD25: 0.57 | BE25: 57t | BF25: 77 | BG25: 77 | BH25: 77 | BI25: 0.92 | BJ25: 0.92 | BK25: 92t | BL25: 0.5 | BM25: 2.166666667 | BN25: 50t | CC25: 0.23 | CE25: 0.23
A26: 540 | B26: Charlottesville | C26: 0.488372093 | D26: 0.5925925926 | E26: 0.4186046512 | F26: 0.3148148148 | G26: 0.2285714286 | H26: 0.2903225806 | I26: 0.5663430421 | J26: 0.5454545455 | K26: 0.7816091954 | L26: 0.9270833333 | M26: 0.6551724138 | N26: 0.6666666667 | O26: 2 | P26: 2.666666667 | Q26: 83 | R26: 96 | S26: 103t | T26: 98 | U26: 39 | V26: 34 | W26: 47 | X26: 55t | Y26: 79 | Z26: 21 | AA26: 98 | AB26: 102t | AC26: 114t | AD26: 117t | AE26: 1.03 | AF26: 1.03 | AG26: 103t | AH26: 0.39 | AI26: 0.39 | AJ26: 39 | AK26: 0.47 | AL26: 0.5663430421 | AM26: 47 | AN26: 0.79 | AO26: 0.79 | AP26: 79 | AQ26: 0.98 | AR26: 0.98 | AS26: 98 | AT26: 1.06 | AU26: 2 | AV26: 106t | AW26: 0.98 | AX26: 0.98 | AY26: 98 | AZ26: 0.34 | BA26: 0.34 | BB26: 34 | BC26: 0.55 | BD26: 0.55 | BE26: 55t | BF26: 35 | BG26: 35 | BH26: 35 | BI26: 1.02 | BJ26: 1.02 | BK26: 102t | BL26: 1.06 | BM26: 2.666666667 | BN26: 106t | CC26: 0.79 | CE26: 0.79
A27: 550 | B27: Chesapeake | C27: 0.5909090909 | D27: 0.5957446809 | E27: 0.6590909091 | F27: 0.5744680851 | G27: 0.2222222222 | H27: 0.3043478261 | I27: 0.5611510791 | J27: 0.4429530201 | K27: 0.8358208955 | L27: 0.8870967742 | M27: 0.4761904762 | N27: 0.8333333333 | O27: 3 | P27: 3 | Q27: 26 | R27: 102 | S27: 35 | T27: 49 | U27: 40t | V27: 32 | W27: 50 | X27: 91 | Y27: 56 | Z27: 37 | AA27: 115 | AB27: 43t | AC27: 29t | AD27: 100t | AE27: 0.35 | AF27: 0.6590909091 | AG27: 35 | AH27: 0.4 | AI27: 0.4 | AJ27: 40t | AK27: 0.5 | AL27: 0.5611510791 | AM27: 50 | AN27: 0.56 | AO27: 0.8358208955 | AP27: 56 | AQ27: 1.15 | AR27: 1.15 | AS27: 115 | AT27: 0.43 | AU27: 3 | AV27: 43t | AW27: 0.49 | AX27: 0.5744680851 | AY27: 49 | AZ27: 0.32 | BA27: 0.32 | BB27: 32 | BC27: 0.91 | BD27: 0.91 | BE27: 91 | BF27: 36 | BG27: 36 | BH27: 36 | BI27: 0.43 | BJ27: 0.8333333333 | BK27: 43t | BL27: 0.77 | BM27: 3 | BN27: 77t | CC27: 0.56 | CE27: 0.56
A28: 41 | B28: Chesterfield | C28: 0.5495495495 | D28: 0.5631067961 | E28: 0.4504504505 | F28: 0.4757281553 | G28: 0.1290322581 | H28: 0.1627906977 | I28: 0.5129032258 | J28: 0.5275362319 | K28: 0.8064516129 | L28: 0.7575757576 | M28: 0.8181818182 | N28: 0.8 | O28: 2.5 | P28: 2.333333333 | Q28: 53 | R28: 30 | S28: 74 | T28: 72 | U28: 46 | V28: 40 | W28: 65 | X28: 61 | Y28: 70t | Z28: 79t | AA28: 52t | AB28: 57t | AC28: 71t | AD28: 69t | AE28: 0.74 | AF28: 0.74 | AG28: 74 | AH28: 0.46 | AI28: 0.46 | AJ28: 46 | AK28: 0.65 | AL28: 0.65 | AM28: 65 | AN28: 0.7 | AO28: 0.8064516129 | AP28: 70t | AQ28: 0.52 | AR28: 0.8181818182 | AS28: 52t | AT28: 0.79 | AU28: 2.5 | AV28: 79t | AW28: 0.72 | AX28: 0.72 | AY28: 72 | AZ28: 0.4 | BA28: 0.4 | BB28: 40 | BC28: 0.61 | BD28: 0.61 | BE28: 61 | BF28: 78 | BG28: 78 | BH28: 78 | BI28: 0.57 | BJ28: 0.8 | BK28: 57t | BL28: 0.95 | BM28: 2.333333333 | BN28: 95t | CC28: 0.7 | CE28: 0.7
A29: 43 | B29: Clarke | C29: 0.3333333333 | D29: 0.8333333333 | E29: 0.3333333333 | F29: 0.8333333333 | I29: 0.4333333333 | J29: 0.5 | K29: 0.8888888889 | L29: 0.9090909091 | M29: 0.5 | N29: 1 | O29: 1.8 | P29: 3.6 | Q29: 108 | R29: 10t | S29: 105t | T29: 9 | W29: 85 | X29: 72t | Y29: 32t | Z29: 27t | AA29: 106t | AB29: 1t | AC29: 118t | AD29: 7t | AE29: 1.05 | AF29: 1.05 | AG29: 105t | AK29: 0.85 | AL29: 0.85 | AM29: 85 | AN29: 0.32 | AO29: 0.8888888889 | AP29: 32t | AQ29: 1.06 | AR29: 1.06 | AS29: 106t | AT29: 1.06 | AU29: 1.8 | AV29: 106t | AW29: 0.09 | AX29: 0.8333333333 | AY29: 9 | AZ29: 0 | BC29: 0.72 | BD29: 0.72 | BE29: 72t | BF29: 6 | BG29: 6 | BH29: 6 | BI29: 0.01 | BJ29: 1 | BK29: 1t | BL29: 0.12 | BM29: 3.6 | BN29: 12t | CC29: 0.32 | CE29: 0.32
A30: 570 | B30: Colonial Heights | C30: 0.6666666667 | D30: 1 | E30: 0.5 | F30: 0.5555555556 | I30: 0.625 | J30: 0.6333333333 | K30: 0.8064516129 | L30: 0.7575757576 | M30: 0.8181818182 | N30: 0.8 | O30: 3.4 | P30: 3.2 | Q30: 18t | R30: 7t | S30: 19t | T30: 105t | W30: 38t | X30: 30 | Y30: 70t | Z30: 79t | AA30: 52t | AB30: 57t | AC30: 4t | AD30: 52t | AE30: 0.19 | AF30: 0.5 | AG30: 19t | AK30: 0.38 | AL30: 0.625 | AM30: 38t | AN30: 0.7 | AO30: 0.8064516129 | AP30: 70t | AQ30: 0.52 | AR30: 0.8181818182 | AS30: 52t | AT30: 0.09 | AU30: 3.4 | AV30: 9t | AW30: 1.05 | AX30: 1.05 | AY30: 105t | AZ30: 0 | BC30: 0.3 | BD30: 0.6333333333 | BE30: 30 | BF30: 117 | BG30: 117 | BH30: 117 | BI30: 0.57 | BJ30: 0.8 | BK30: 57t | BL30: 0.73 | BM30: 3.2 | BN30: 73t | CC30: 0.7 | CE30: 0.7
A31: 580 | B31: Covington | C31: 0 | D31: 0.625 | E31: 0 | F31: 0.5 | I31: 0.7272727273 | J31: 0.8181818182 | K31: 0.3333333333 | L31: 0.7 | M31: 0.8333333333 | N31: 0.5 | O31: 2.2 | P31: 3 | R31: 1t | T31: 1t | W31: 11t | X31: 8 | Y31: 124t | Z31: 94t | AA31: 45t | AB31: 110t | AC31: 29t | AD31: 18t | AF31: 0 | AK31: 0.11 | AL31: 0.7272727273 | AM31: 11t | AN31: 1.24 | AO31: 1.24 | AP31: 124t | AQ31: 0.45 | AR31: 0.8333333333 | AS31: 45t | AT31: 0.26 | AU31: 2.2 | AV31: 26t | AW31: 0.01 | AX31: 0.5 | AY31: 1t | AZ31: 0 | BC31: 0.08 | BD31: 0.8181818182 | BE31: 8 | BF31: 118 | BG31: 118 | BH31: 118 | BI31: 1.1 | BJ31: 1.1 | BK31: 110t | BL31: 0.3 | BM31: 3 | BN31: 30t | CC31: 1.24 | CE31: 1.24
A32: 45 | B32: Craig | C32: 0.2857142857 | D32: 0 | E32: 0.5714285714 | F32: 0 | G32: 0.3333333333 | H32: 1 | I32: 0.71875 | J32: 0.6206896552 | K32: 0.8888888889 | L32: 1 | M32: 1 | N32: 0.25 | O32: 3.333333333 | P32: 2.666666667 | Q32: 117 | R32: 13t | S32: 32 | T32: 80t | U32: 33t | V32: 1t | W32: 15 | X32: 37 | Y32: 32t | Z32: 1t | AA32: 1t | AB32: 115t | AC32: 14t | AD32: 21t | AE32: 0.32 | AF32: 0.5714285714 | AG32: 32 | AH32: 0.33 | AI32: 0.3333333333 | AJ32: 33t | AK32: 0.15 | AL32: 0.71875 | AM32: 15 | AN32: 0.32 | AO32: 0.8888888889 | AP32: 32t | AQ32: 0.01 | AR32: 1 | AS32: 1t | AT32: 0.01 | AU32: 3.333333333 | AV32: 1t | AW32: 0.8 | AX32: 0.8 | AY32: 80t | AZ32: 0.01 | BA32: 1 | BB32: 1t | BC32: 0.37 | BD32: 0.6206896552 | BE32: 37 | BF32: 7 | BG32: 7 | BH32: 7 | BI32: 1.15 | BJ32: 1.15 | BK32: 115t | BL32: 0.3 | BM32: 2.666666667 | BN32: 30t | CC32: 0.32 | CE32: 0.32
A33: 47 | B33: Culpeper | C33: 0.3636363636 | D33: 0.6 | E33: 0.5454545455 | F33: 0.8 | G33: 0 | H33: 0 | I33: 0.6778242678 | J33: 0.6592920354 | K33: 0.6896551724 | L33: 0.5454545455 | M33: 0.8947368421 | N33: 0.8620689655 | O33: 2.666666667 | P33: 3.166666667 | Q33: 109t | R33: 15 | S33: 34 | T33: 10 | U33: 53t | V33: 54t | W33: 24 | X33: 26 | Y33: 96 | Z33: 118 | AA33: 27 | AB33: 34 | AC33: 55t | AD33: 21t | AE33: 0.34 | AF33: 0.5454545455 | AG33: 34 | AH33: 0.53 | AI33: 0.53 | AJ33: 53t | AK33: 0.24 | AL33: 0.6778242678 | AM33: 24 | AN33: 0.96 | AO33: 0.96 | AP33: 96 | AQ33: 0.27 | AR33: 0.8947368421 | AS33: 27 | AT33: 0.26 | AU33: 2.666666667 | AV33: 26t | AW33: 0.1 | AX33: 0.8 | AY33: 10 | AZ33: 0.54 | BA33: 0.54 | BB33: 54t | BC33: 0.26 | BD33: 0.6592920354 | BE33: 26 | BF33: 79 | BG33: 79 | BH33: 79 | BI33: 0.34 | BJ33: 0.8620689655 | BK33: 34 | BL33: 0.3 | BM33: 3.166666667 | BN33: 30t | CC33: 0.96 | CE33: 0.96
A34: 49 | B34: Cumberland | C34: 0.8 | D34: 0.6363636364 | E34: 0.7 | F34: 0.6363636364 | I34: 0.7142857143 | J34: 0.6285714286 | K34: 0.8333333333 | L34: 0.5 | M34: 1 | N34: 1 | O34: 3.8 | P34: 3.6 | Q34: 32t | R34: 103t | S34: 47t | T34: 104 | W34: 16 | X34: 33 | Y34: 57t | Z34: 119t | AA34: 1t | AB34: 1t | AC34: 4t | AD34: 64t | AE34: 0.47 | AF34: 0.7 | AG34: 47t | AK34: 0.16 | AL34: 0.7142857143 | AM34: 16 | AN34: 0.57 | AO34: 0.8333333333 | AP34: 57t | AQ34: 0.01 | AR34: 1 | AS34: 1t | AT34: 0.09 | AU34: 3.8 | AV34: 9t | AW34: 1.04 | AX34: 1.04 | AY34: 104 | AZ34: 0 | BC34: 0.33 | BD34: 0.6285714286 | BE34: 33 | BF34: 80t | BG34: 0.5 | BH34: 80t | BI34: 0.01 | BJ34: 1 | BK34: 1t | BL34: 0.3 | BM34: 3.6 | BN34: 30t | CC34: 0.57 | CE34: 0.57
A35: 590 | B35: Danville | C35: 0.5319148936 | D35: 0.5306122449 | E35: 0.4255319149 | F35: 0.4081632653 | G35: 0 | H35: 0 | I35: 0.5541401274 | J35: 0.5197368421 | K35: 0.6444444444 | L35: 0.7307692308 | M35: 0.5909090909 | N35: 0.5806451613 | O35: 2.166666667 | P35: 2 | Q35: 52 | R35: 28 | S35: 62 | T35: 59 | U35: 53t | V35: 54t | W35: 51 | X35: 65 | Y35: 104 | Z35: 88 | AA35: 102 | AB35: 108 | AC35: 71t | AD35: 69t | AE35: 0.62 | AF35: =IF(E35<>"",MAX(E35,AE35),"") -> 0.62 | AG35: 62 | AH35: 0.53 | AI35: =IF(G35<>"",MAX(G35,AH35),"") -> 0.53 | AJ35: 53t | AK35: 0.51 | AL35: =IF(I35<>"",MAX(I35,AK35),"") -> 0.5541401274 | AM35: 51 | AN35: 1.04 | AO35: =IF(K35<>"",MAX(K35,AN35),"") -> 1.04 | AP35: 104 | AQ35: 1.02 | AR35: =IF(M35<>"",MAX(M35,AQ35),"") -> 1.02 | AS35: 102 | AT35: 0.79 | AU35: =IF(O35<>"",MAX(O35,AT35),"") -> 2.166666667 | AV35: 79t | AW35: 0.59 | AX35: =IF(F35<>"",MAX(F35,AW35),"") -> 0.59 | AY35: 59 | AZ35: 0.54 | BA35: =IF(H35<>"",MAX(H35,AZ35),"") -> 0.54 | BB35: 54t | BC35: 0.65 | BD35: =IF(J35<>"",MAX(J35,BC35),"") -> 0.65 | BE35: 65 | BF35: 119 | BG35: =IF(L35<>"",MAX(L35,BF35),"") -> 119 | BH35: 119 | BI35: 1.08 | BJ35: =IF(N35<>"",MAX(N35,BI35),"") -> 1.08 | BK35: 108 | BL35: 0.95 | BM35: =IF(P35<>"",MAX(P35,BL35),"") -> 2 | BN35: 95t | CC35: 1.04 | CE35: 1.04
A36: 51 | B36: Dickenson | C36: 0.4571428571 | D36: 0.4722222222 | E36: 0.5142857143 | F36: 0.3888888889 | G36: 0 | H36: 0 | I36: 0.4895104895 | J36: 0.5801526718 | K36: 0.8985507246 | L36: 0.8723404255 | M36: 0.9642857143 | N36: 0.9433962264 | O36: 2.5 | P36: 2.666666667 | Q36: 107 | R36: 67t | S36: 70 | T36: 71 | U36: 53t | V36: 54t | W36: 73 | X36: 48 | Y36: 29 | Z36: 47 | AA36: 19 | AB36: 25 | AC36: 83t | AD36: 45t | AE36: 0.7 | AF36: 0.7 | AG36: 70 | AH36: 0.53 | AI36: 0.53 | AJ36: 53t | AK36: 0.73 | AL36: 0.73 | AM36: 73 | AN36: 0.29 | AO36: 0.8985507246 | AP36: 29 | AQ36: 0.19 | AR36: 0.9642857143 | AS36: 19 | AT36: 0.65 | AU36: 2.5 | AV36: 65t | AW36: 0.71 | AX36: 0.71 | AY36: 71 | AZ36: 0.54 | BA36: 0.54 | BB36: 54t | BC36: 0.48 | BD36: 0.5801526718 | BE36: 48 | BF36: 8 | BG36: 8 | BH36: 8 | BI36: 0.25 | BJ36: 0.9433962264 | BK36: 25 | BL36: 0.3 | BM36: 2.666666667 | BN36: 30t | CC36: 0.29 | CE36: 0.29
A37: 53 | B37: Dinwiddie | C37: 0.6666666667 | D37: 0.4666666667 | E37: 0.4761904762 | F37: 0.2 | G37: 0.25 | H37: 0.1428571429 | I37: 0.5208333333 | J37: 0.6 | K37: 0.8214285714 | L37: 0.9 | M37: 0.875 | N37: 0.8333333333 | O37: 2.833333333 | P37: 2.5 | Q37: 44 | R37: 48t | S37: 64 | T37: 50 | U37: 37 | V37: 42 | W37: 61 | X37: 42t | Y37: 63 | Z37: 29t | AA37: 29t | AB37: 43t | AC37: 29t | AD37: 45t | AE37: 0.64 | AF37: 0.64 | AG37: 64 | AH37: 0.37 | AI37: 0.37 | AJ37: 37 | AK37: 0.61 | AL37: 0.61 | AM37: 61 | AN37: 0.63 | AO37: 0.8214285714 | AP37: 63 | AQ37: 0.29 | AR37: 0.875 | AS37: 29t | AT37: 0.43 | AU37: 2.833333333 | AV37: 43t | AW37: 0.5 | AX37: 0.5 | AY37: 50 | AZ37: 0.42 | BA37: 0.42 | BB37: 42 | BC37: 0.42 | BD37: 0.6 | BE37: 42t | BF37: 9 | BG37: 9 | BH37: 9 | BI37: 0.43 | BJ37: 0.8333333333 | BK37: 43t | BL37: 0.5 | BM37: 2.5 | BN37: 50t | CC37: 0.63 | CE37: 0.63
A38: 57 | B38: Essex | C38: 0.5 | D38: 0.5 | E38: 1 | F38: 1 | I38: 0.3333333333 | J38: 0.6129032258 | K38: 0.6666666667 | L38: 0.5 | M38: 0.6 | N38: 0.2 | O38: 2.2 | P38: 3 | Q38: 119t | R38: 31t | S38: 47t | T38: 30t | W38: 101t | X38: 38 | Y38: 100t | Z38: 119t | AA38: 99t | AB38: 117 | AC38: 118t | AD38: 18t | AE38: 0.47 | AF38: 1 | AG38: 47t | AK38: 1.01 | AL38: 1.01 | AM38: 101t | AN38: 1 | AO38: 1 | AP38: 100t | AQ38: 0.99 | AR38: 0.99 | AS38: 99t | AT38: 1.06 | AU38: 2.2 | AV38: 106t | AW38: 0.3 | AX38: 1 | AY38: 30t | AZ38: 0 | BC38: 0.38 | BD38: 0.6129032258 | BE38: 38 | BF38: 80t | BG38: 0.5 | BH38: 80t | BI38: 1.17 | BJ38: 1.17 | BK38: 117 | BL38: 0.3 | BM38: 3 | BN38: 30t | CC38: 1 | CE38: 1
A39: 1300 | B39: Fairfax_Falls Church | C39: 0.474537037 | D39: 0.4219066937 | E39: 0.4976851852 | F39: 0.5050709939 | G39: 0.8612440191 | H39: 0.9292035398 | I39: 0.6736214605 | J39: 0.6784996651 | K39: 0.8684210526 | L39: 0.9244444444 | M39: 0.7699115044 | N39: 0.7047619048 | O39: 3.166666667 | P39: 3 | Q39: 75 | R39: 92 | S39: 46 | T39: 67 | U39: 14 | V39: 13 | W39: 25 | X39: 21 | Y39: 46 | Z39: 22 | AA39: 74 | AB39: 97 | AC39: 24t | AD39: 45t | AE39: 0.46 | AF39: 0.4976851852 | AG39: 46 | AH39: 0.14 | AI39: 0.8612440191 | AJ39: 14 | AK39: 0.25 | AL39: 0.6736214605 | AM39: 25 | AN39: 0.46 | AO39: 0.8684210526 | AP39: 46 | AQ39: 0.74 | AR39: 0.7699115044 | AS39: 74 | AT39: 0.14 | AU39: 3.166666667 | AV39: 14t | AW39: 0.67 | AX39: 0.67 | AY39: 67 | AZ39: 0.13 | BA39: 0.9292035398 | BB39: 13 | BC39: 0.21 | BD39: 0.6784996651 | BE39: 21 | BF39: 52 | BG39: 52 | BH39: 52 | BI39: 0.97 | BJ39: 0.97 | BK39: 97 | BL39: 0.22 | BM39: 3 | BN39: 22t | CC39: 0.46 | CE39: 0.46
A40: 61 | B40: Fauquier | C40: 0.4642857143 | D40: 0.4482758621 | E40: 0.5 | F40: 0.4827586207 | G40: 0.2142857143 | H40: 0.07142857143 | I40: 0.5277777778 | J40: 0.6096491228 | K40: 0.8 | L40: 0.7884615385 | M40: 0.8510638298 | N40: 0.8611111111 | O40: 2.333333333 | P40: 2.333333333 | Q40: 85 | R40: 46t | S40: 66t | T40: 46t | U40: 42 | V40: 47 | W40: 58 | X40: 39 | Y40: 72t | Z40: 71 | AA40: 40 | AB40: 35 | AC40: 83t | AD40: 28t | AE40: 0.66 | AF40: 0.66 | AG40: 66t | AH40: 0.42 | AI40: 0.42 | AJ40: 42 | AK40: 0.58 | AL40: 0.58 | AM40: 58 | AN40: 0.72 | AO40: 0.8 | AP40: 72t | AQ40: 0.4 | AR40: 0.8510638298 | AS40: 40 | AT40: 0.65 | AU40: 2.333333333 | AV40: 65t | AW40: 0.46 | AX40: 0.4827586207 | AY40: 46t | AZ40: 0.47 | BA40: 0.47 | BB40: 47 | BC40: 0.39 | BD40: 0.6096491228 | BE40: 39 | BF40: 82 | BG40: 82 | BH40: 82 | BI40: 0.35 | BJ40: 0.8611111111 | BK40: 35 | BL40: 0.3 | BM40: 2.333333333 | BN40: 30t | CC40: 0.72 | CE40: 0.72
A41: 63 | B41: Floyd | C41: 0.5 | D41: 0.5555555556 | E41: 0.5 | F41: 0.5555555556 | I41: 0.6 | J41: 0.6 | K41: 0.875 | L41: 0.875 | M41: 0.8333333333 | N41: 0.8 | O41: 3.2 | P41: 3.6 | Q41: 119t | R41: 83t | S41: 1t | T41: 80t | W41: 43 | X41: 42t | Y41: 42t | Z41: 43t | AA41: 45t | AB41: 57t | AC41: 20t | AD41: 81t | AE41: 0.01 | AF41: 0.5 | AG41: 1t | AK41: 0.43 | AL41: 0.6 | AM41: 43 | AN41: 0.42 | AO41: 0.875 | AP41: 42t | AQ41: 0.45 | AR41: 0.8333333333 | AS41: 45t | AT41: 0.06 | AU41: 3.2 | AV41: 6t | AW41: 0.8 | AX41: 0.8 | AY41: 80t | AZ41: 0 | BC41: 0.42 | BD41: 0.6 | BE41: 42t | BF41: 10 | BG41: 10 | BH41: 10 | BI41: 0.57 | BJ41: 0.8 | BK41: 57t | BL41: 0.6 | BM41: 3.6 | BN41: 60t | CC41: 0.42 | CE41: 0.42
A42: 65 | B42: Fluvanna | C42: 0.5555555556 | D42: 0.4482758621 | E42: 0.6666666667 | F42: 0.6206896552 | G42: 0 | H42: 0.04347826087 | I42: 0.8034188034 | J42: 0.7280701754 | K42: 0.8333333333 | L42: 0.7272727273 | M42: 0.8333333333 | N42: 0.8 | O42: 3 | P42: 2.333333333 | Q42: 58 | R42: 78t | S42: 39t | T42: 16t | U42: 53t | V42: 51 | W42: 4 | X42: 17 | Y42: 57t | Z42: 89t | AA42: 45t | AB42: 57t | AC42: 29t | AD42: 69t | AE42: 0.39 | AF42: 0.6666666667 | AG42: 39t | AH42: 0.53 | AI42: 0.53 | AJ42: 53t | AK42: 0.04 | AL42: 0.8034188034 | AM42: 4 | AN42: 0.57 | AO42: 0.8333333333 | AP42: 57t | AQ42: 0.45 | AR42: 0.8333333333 | AS42: 45t | AT42: 0.26 | AU42: 3 | AV42: 26t | AW42: 0.16 | AX42: 0.6206896552 | AY42: 16t | AZ42: 0.51 | BA42: 0.51 | BB42: 51 | BC42: 0.17 | BD42: 0.7280701754 | BE42: 17 | BF42: 83 | BG42: 83 | BH42: 83 | BI42: 0.57 | BJ42: 0.8 | BK42: 57t | BL42: 0.5 | BM42: 2.333333333 | BN42: 50t | CC42: 0.57 | CE42: 0.57
A43: 620 | B43: Franklin City | C43: 0.5 | E43: 1 | G43: 1 | I43: 0.2857142857 | J43: 0 | K43: 1 | L43: 1 | N43: 1 | O43: 3 | P43: 3 | Q43: 59t | S43: 1t | U43: 1t | W43: 107 | X43: 127t | Y43: 1t | Z43: 1t | AB43: 1t | AC43: 29t | AD43: 28t | AE43: 0.01 | AF43: 1 | AG43: 1t | AH43: 0.01 | AI43: 1 | AJ43: 1t | AK43: 1.07 | AL43: 1.07 | AM43: 107 | AN43: 0.01 | AO43: 1 | AP43: 1t | AS43: 0 | AT43: 0.18 | AU43: 3 | AV43: 18t | AW43: 0 | AZ43: 0 | BC43: 1.27 | BD43: 1.27 | BE43: 127t | BF43: 37 | BG43: 37 | BH43: 37 | BI43: 0.01 | BJ43: 1 | BK43: 1t | BL43: 0.3 | BM43: 3 | BN43: 30t | CC43: 0.01 | CE43: 0.01
A44: 67 | B44: Franklin County | C44: 0.4181818182 | D44: 0.5490196078 | E44: 0.3636363636 | F44: 0.568627451 | G44: 0.5555555556 | H44: 1 | I44: 0.6274509804 | J44: 0.6666666667 | K44: 0.8571428571 | L44: 0.8852459016 | M44: 0.8055555556 | N44: 0.7272727273 | O44: 2.666666667 | P44: 3.666666667 | Q44: 105 | R44: 81 | S44: 95 | T44: 92 | U44: 22 | V44: 1t | W44: 37 | X44: 23t | Y44: 48t | Z44: 38 | AA44: 59 | AB44: 86t | AC44: 55t | AD44: 56t | AE44: 0.95 | AF44: 0.95 | AG44: 95 | AH44: 0.22 | AI44: 0.5555555556 | AJ44: 22 | AK44: 0.37 | AL44: 0.6274509804 | AM44: 37 | AN44: 0.48 | AO44: 0.8571428571 | AP44: 48t | AQ44: 0.59 | AR44: 0.8055555556 | AS44: 59 | AT44: 0.26 | AU44: 2.666666667 | AV44: 26t | AW44: 0.92 | AX44: 0.92 | AY44: 92 | AZ44: 0.01 | BA44: 1 | BB44: 1t | BC44: 0.23 | BD44: 0.6666666667 | BE44: 23t | BF44: 11 | BG44: 11 | BH44: 11 | BI44: 0.86 | BJ44: 0.86 | BK44: 86t | BL44: 0.3 | BM44: 3.666666667 | BN44: 30t | CC44: 0.48 | CE44: 0.48
A45: 69 | B45: Frederick | C45: 0.5 | D45: 0.59375 | E45: 0.4642857143 | F45: 0.5 | G45: 0 | H45: 0 | I45: 0.4198473282 | J45: 0.4468085106 | K45: 0.8 | L45: 0.7333333333 | M45: 0.8611111111 | N45: 1 | O45: 2.166666667 | P45: 2.5 | Q45: 79 | R45: 18 | S45: 78t | T45: 66 | U45: 53t | V45: 54t | W45: 89 | X45: 89 | Y45: 72t | Z45: 87 | AA45: 32 | AB45: 1t | AC45: 98t | AD45: 69t | AE45: 0.78 | AF45: 0.78 | AG45: 78t | AH45: 0.53 | AI45: 0.53 | AJ45: 53t | AK45: 0.89 | AL45: 0.89 | AM45: 89 | AN45: 0.72 | AO45: 0.8 | AP45: 72t | AQ45: 0.32 | AR45: 0.8611111111 | AS45: 32 | AT45: 0.97 | AU45: 2.166666667 | AV45: 97t | AW45: 0.66 | AX45: 0.66 | AY45: 66 | AZ45: 0.54 | BA45: 0.54 | BB45: 54t | BC45: 0.89 | BD45: 0.89 | BE45: 89 | BF45: 84 | BG45: 84 | BH45: 84 | BI45: 0.01 | BJ45: 1 | BK45: 1t | BL45: 0.95 | BM45: 2.5 | BN45: 95t | CC45: 0.72 | CE45: 0.72
A46: 630 | B46: Fredericksburg | C46: 0.6470588235 | D46: 0.4705882353 | E46: 0.7058823529 | F46: 0.5294117647 | G46: 0.375 | H46: 0.1666666667 | I46: 0.5303030303 | J46: 0.5373134328 | K46: 0.875 | L46: 0.8947368421 | M46: 0.9130434783 | N46: 0.9473684211 | O46: 3.833333333 | P46: 2.833333333 | Q46: 39 | R46: 74t | S46: 10 | T46: 18t | U46: 30 | V46: 39 | W46: 57 | X46: 59 | Y46: 42t | Z46: 35 | AA46: 23 | AB46: 24 | AC46: 1t | AD46: 45t | AE46: 0.1 | AF46: 0.7058823529 | AG46: 10 | AH46: 0.3 | AI46: 0.375 | AJ46: 30 | AK46: 0.57 | AL46: 0.57 | AM46: 57 | AN46: 0.42 | AO46: 0.875 | AP46: 42t | AQ46: 0.23 | AR46: 0.9130434783 | AS46: 23 | AT46: 0.01 | AU46: 3.833333333 | AV46: 1t | AW46: 0.18 | AX46: 0.5294117647 | AY46: 18t | AZ46: 0.39 | BA46: 0.39 | BB46: 39 | BC46: 0.59 | BD46: 0.59 | BE46: 59 | BF46: 38 | BG46: 38 | BH46: 38 | BI46: 0.24 | BJ46: 0.9473684211 | BK46: 24 | BL46: 0.22 | BM46: 2.833333333 | BN46: 22t | CC46: 0.42 | CE46: 0.42
A47: 640 | B47: Galax | C47: 0.3571428571 | D47: 0.4285714286 | E47: 0.2857142857 | F47: 0.2857142857 | I47: 0.9411764706 | J47: 0.7843137255 | K47: 1 | L47: 0.8 | M47: 0.6666666667 | N47: 1 | O47: 2.4 | P47: 2.6 | Q47: 88 | R47: 70t | S47: 78t | T47: 30t | W47: 1 | X47: 11 | Y47: 1t | Z47: 67 | AA47: 94t | AB47: 1t | AC47: 68t | AD47: 7t | AE47: 0.78 | AF47: 0.78 | AG47: 78t | AK47: 0.01 | AL47: 0.9411764706 | AM47: 1 | AN47: 0.01 | AO47: 1 | AP47: 1t | AQ47: 0.94 | AR47: 0.94 | AS47: 94t | AT47: 0.26 | AU47: 2.4 | AV47: 26t | AW47: 0.3 | AX47: 0.3 | AY47: 30t | AZ47: 0 | BC47: 0.11 | BD47: 0.7843137255 | BE47: 11 | BF47: 62 | BG47: 62 | BH47: 62 | BI47: 0.01 | BJ47: 1 | BK47: 1t | BL47: 0.01 | BM47: 2.6 | BN47: 1t | CC47: 0.01 | CE47: 0.01
A48: 71 | B48: Giles | C48: 0.6 | D48: 0.6333333333 | E48: 0.4 | F48: 0.5 | H48: 0 | I48: 0.2933333333 | J48: 0.3571428571 | K48: 0.8857142857 | L48: 0.8139534884 | M48: 0.9166666667 | N48: 0.8518518519 | O48: 2.8 | P48: 2.5 | Q48: 14t | R48: 12 | S48: 66t | T48: 51 | V48: 54t | W48: 106 | X48: 100t | Y48: 37 | Z48: 64 | AA48: 22 | AB48: 39 | AC48: 20t | AD48: 56t | AE48: 0.66 | AF48: 0.66 | AG48: 66t | AK48: 1.06 | AL48: 1.06 | AM48: 106 | AN48: 0.37 | AO48: 0.8857142857 | AP48: 37 | AQ48: 0.22 | AR48: 0.9166666667 | AS48: 22 | AT48: 0.26 | AU48: 2.8 | AV48: 26t | AW48: 0.51 | AX48: 0.51 | AY48: 51 | AZ48: 0.54 | BA48: 0.54 | BB48: 54t | BC48: 1 | BD48: 1 | BE48: 100t | BF48: 56 | BG48: 56 | BH48: 56 | BI48: 0.39 | BJ48: 0.8518518519 | BK48: 39 | BL48: 0.77 | BM48: 2.5 | BN48: 77t | CC48: 0.37 | CE48: 0.37
A49: 73 | B49: Gloucester | C49: 0.3333333333 | D49: 0.4 | E49: 0.6111111111 | F49: 0.35 | I49: 0.2549019608 | J49: 0.2037037037 | K49: 0.8333333333 | L49: 0.8846153846 | M49: 0.8421052632 | N49: 0.75 | O49: 2.4 | P49: 1.8 | Q49: 109t | R49: 97t | S49: 26t | T49: 99t | W49: 114 | X49: 116 | Y49: 57t | Z49: 39 | AA49: 44 | AB49: 77t | AC49: 80t | AD49: 124 | AE49: 0.26 | AF49: 0.6111111111 | AG49: 26t | AK49: 1.14 | AL49: 1.14 | AM49: 114 | AN49: 0.57 | AO49: 0.8333333333 | AP49: 57t | AQ49: 0.44 | AR49: 0.8421052632 | AS49: 44 | AT49: 0.55 | AU49: 2.4 | AV49: 55t | AW49: 0.99 | AX49: 0.99 | AY49: 99t | AZ49: 0 | BC49: 1.16 | BD49: 1.16 | BE49: 116 | BF49: 12 | BG49: 12 | BH49: 12 | BI49: 0.77 | BJ49: 0.77 | BK49: 77t | BL49: 1.2 | BM49: 1.8 | BN49: 120 | CC49: 0.57 | CE49: 0.57
A50: 75 | B50: Goochland | C50: 0.2857142857 | D50: 0.7142857143 | E50: 0.3571428571 | F50: 0.5714285714 | G50: 0 | H50: 0.09090909091 | I50: 0.325 | J50: 0.2888888889 | K50: 0.6 | L50: 0.6666666667 | M50: 0.6666666667 | N50: 0.8181818182 | O50: 1.333333333 | P50: 2.5 | Q50: 111 | R50: 7t | S50: 109 | T50: 105t | U50: 53t | V50: 46 | W50: 104 | X50: 105 | Y50: 111t | Z50: 103t | AA50: 94t | AB50: 50 | AC50: 128 | AD50: 104t | AE50: 1.09 | AF50: 1.09 | AG50: 109 | AH50: 0.53 | AI50: 0.53 | AJ50: 53t | AK50: 1.04 | AL50: 1.04 | AM50: 104 | AN50: 1.11 | AO50: 1.11 | AP50: 111t | AQ50: 0.94 | AR50: 0.94 | AS50: 94t | AT50: 1.25 | AU50: 1.333333333 | AV50: 125t | AW50: 1.05 | AX50: 1.05 | AY50: 105t | AZ50: 0.46 | BA50: 0.46 | BB50: 46 | BC50: 1.05 | BD50: 1.05 | BE50: 105 | BF50: 85 | BG50: 85 | BH50: 85 | BI50: 0.5 | BJ50: 0.8181818182 | BK50: 50 | BL50: 1.21 | BM50: 2.5 | BN50: 121t | CC50: 1.11 | CE50: 1.11
A51: 77 | B51: Grayson | C51: 0.4583333333 | D51: 0.2142857143 | E51: 0.5833333333 | F51: 0.2857142857 | I51: 0.6440677966 | J51: 0.6326530612 | K51: 0.9444444444 | L51: 0.9 | M51: 0.5714285714 | N51: 0.8333333333 | O51: 3 | P51: 2.6 | Q51: 86 | R51: 97t | S51: 42 | T51: 99t | W51: 32 | X51: 31 | Y51: 20 | Z51: 29t | AA51: 103t | AB51: 43t | AC51: 29t | AD51: 64t | AE51: 0.42 | AF51: 0.5833333333 | AG51: 42 | AK51: 0.32 | AL51: 0.6440677966 | AM51: 32 | AN51: 0.2 | AO51: 0.9444444444 | AP51: 20 | AQ51: 1.03 | AR51: 1.03 | AS51: 103t | AT51: 0.09 | AU51: 3 | AV51: 9t | AW51: 0.99 | AX51: 0.99 | AY51: 99t | AZ51: 0 | BC51: 0.31 | BD51: 0.6326530612 | BE51: 31 | BF51: 13 | BG51: 13 | BH51: 13 | BI51: 0.43 | BJ51: 0.8333333333 | BK51: 43t | BL51: 0.3 | BM51: 2.6 | BN51: 30t | CC51: 0.2 | CE51: 0.2
A52: 79 | B52: Greene | C52: 0.7 | D52: 0.4375 | E52: 0.55 | F52: 0.5625 | H52: 0 | I52: 0.525 | J52: 0.511627907 | K52: 0.7272727273 | L52: 0.6923076923 | M52: 0.5 | N52: 0.7777777778 | O52: 3 | P52: 2.166666667 | Q52: 32t | R52: 83t | S52: 47t | T52: 60t | V52: 54t | W52: 59 | X52: 67 | Y52: 88t | Z52: 98 | AA52: 106t | AB52: 75 | AC52: 48t | AD52: 104t | AE52: 0.47 | AF52: 0.55 | AG52: 47t | AK52: 0.59 | AL52: 0.59 | AM52: 59 | AN52: 0.88 | AO52: 0.88 | AP52: 88t | AQ52: 1.06 | AR52: 1.06 | AS52: 106t | AT52: 0.76 | AU52: 3 | AV52: 76t | AW52: 0.6 | AX52: 0.6 | AY52: 60t | AZ52: 0.54 | BA52: 0.54 | BB52: 54t | BC52: 0.67 | BD52: 0.67 | BE52: 67 | BF52: 86 | BG52: 86 | BH52: 86 | BI52: 0.75 | BJ52: 0.7777777778 | BK52: 75 | BL52: 0.95 | BM52: 2.166666667 | BN52: 95t | CC52: 0.88 | CE52: 0.88
A53: 1200 | B53: Greensville_Emporia | C53: 0.6666666667 | D53: 0 | E53: 0.3333333333 | F53: 0 | I53: 0.4827586207 | J53: 0.4545454545 | K53: 1 | L53: 1 | M53: 0.5 | N53: 0.6666666667 | O53: 2.6 | P53: 1.8 | Q53: 59t | S53: 47t | W53: 75t | X53: 86t | Y53: 1t | Z53: 1t | AA53: 106t | AB53: 102t | AC53: 68t | AD53: 86t | AE53: 0.47 | AF53: 0.47 | AG53: 47t | AK53: 0.75 | AL53: 0.75 | AM53: 75t | AN53: 0.01 | AO53: 1 | AP53: 1t | AQ53: 1.06 | AR53: 1.06 | AS53: 106t | AT53: 0.55 | AU53: 2.6 | AV53: 55t | AW53: 0 | AX53: 0 | AZ53: 0 | BC53: 0.86 | BD53: 0.86 | BE53: 86t | BF53: 51 | BG53: 51 | BH53: 51 | BI53: 1.02 | BJ53: 1.02 | BK53: 102t | BL53: 0.86 | BM53: 1.8 | BN53: 86t | CC53: 0.01 | CE53: 0.01
A54: 83 | B54: Halifax | C54: 0.4117647059 | D54: 0.7272727273 | E54: 0.5294117647 | F54: 0.3636363636 | G54: 0 | H54: 0 | I54: 0.6354166667 | J54: 0.6095238095 | K54: 0.6428571429 | L54: 0.6875 | M54: 0.75 | N54: 0.5555555556 | O54: 2.166666667 | P54: 2.333333333 | Q54: 76t | R54: 83t | S54: 29 | T54: 11t | U54: 53t | V54: 54t | W54: 34 | X54: 40 | Y54: 105 | Z54: 99t | AA54: 77t | AB54: 109 | AC54: 71t | AD54: 86t | AE54: 0.29 | AF54: 0.5294117647 | AG54: 29 | AH54: 0.53 | AI54: 0.53 | AJ54: 53t | AK54: 0.34 | AL54: 0.6354166667 | AM54: 34 | AN54: 1.05 | AO54: 1.05 | AP54: 105 | AQ54: 0.77 | AR54: 0.77 | AS54: 77t | AT54: 0.65 | AU54: 2.166666667 | AV54: 65t | AW54: 0.11 | AX54: 0.3636363636 | AY54: 11t | AZ54: 0.54 | BA54: 0.54 | BB54: 54t | BC54: 0.4 | BD54: 0.6095238095 | BE54: 40 | BF54: 87 | BG54: 87 | BH54: 87 | BI54: 1.09 | BJ54: 1.09 | BK54: 109 | BL54: 0.66 | BM54: 2.333333333 | BN54: 66t | CC54: 1.05 | CE54: 1.05
A55: 650 | B55: Hampton | C55: 0.4047619048 | D55: 0.5573770492 | E55: 0.5 | F55: 0.5573770492 | G55: 1 | H55: 1 | I55: 0.8403846154 | J55: 0.8203592814 | K55: 0.9636363636 | L55: 0.96 | M55: 0.7575757576 | N55: 0.6153846154 | O55: 3 | P55: 3.666666667 | Q55: 71 | R55: 16 | S55: 39t | T55: 63 | U55: 1t | V55: 1t | W55: 3 | X55: 7 | Y55: 18 | Z55: 16 | AA55: 76 | AB55: 106 | AC55: 14t | AD55: 11 | AE55: 0.39 | AF55: 0.5 | AG55: 39t | AH55: 0.01 | AI55: 1 | AJ55: 1t | AK55: 0.03 | AL55: 0.8403846154 | AM55: 3 | AN55: 0.18 | AO55: 0.9636363636 | AP55: 18 | AQ55: 0.76 | AR55: 0.76 | AS55: 76 | AT55: 0.08 | AU55: 3 | AV55: 8 | AW55: 0.63 | AX55: 0.63 | AY55: 63 | AZ55: 0.01 | BA55: 1 | BB55: 1t | BC55: 0.07 | BD55: 0.8203592814 | BE55: 7 | BF55: 39 | BG55: 39 | BH55: 39 | BI55: 1.06 | BJ55: 1.06 | BK55: 106 | BL55: 0.14 | BM55: 3.666666667 | BN55: 14t | CC55: 0.18 | CE55: 0.18
A56: 85 | B56: Hanover | C56: 0.6 | D56: 0.6744186047 | E56: 0.6 | F56: 0.5813953488 | G56: 0.04545454545 | H56: 0.2142857143 | I56: 0.5819672131 | J56: 0.6218487395 | K56: 0.8148148148 | L56: 0.7777777778 | M56: 0.5 | N56: 0.8571428571 | O56: 3 | P56: 3 | Q56: 41 | R56: 31t | S56: 25 | T56: 30t | U56: 51 | V56: 37 | W56: 45 | X56: 36 | Y56: 64 | Z56: 74 | AA56: 106t | AB56: 36t | AC56: 29t | AD56: 21t | AE56: 0.25 | AF56: 0.6 | AG56: 25 | AH56: 0.51 | AI56: 0.51 | AJ56: 51 | AK56: 0.45 | AL56: 0.5819672131 | AM56: 45 | AN56: 0.64 | AO56: 0.8148148148 | AP56: 64 | AQ56: 1.06 | AR56: 1.06 | AS56: 106t | AT56: 0.43 | AU56: 3 | AV56: 43t | AW56: 0.3 | AX56: 0.5813953488 | AY56: 30t | AZ56: 0.37 | BA56: 0.37 | BB56: 37 | BC56: 0.36 | BD56: 0.6218487395 | BE56: 36 | BF56: 88 | BG56: 88 | BH56: 88 | BI56: 0.36 | BJ56: 0.8571428571 | BK56: 36t | BL56: 0.3 | BM56: 3 | BN56: 30t | CC56: 0.64 | CE56: 0.64
A57: 660 | B57: Harrisonburg | C57: 0.5 | D57: 0.4814814815 | E57: 0.35 | F57: 0.3333333333 | G57: 0.4761904762 | H57: 0.2962962963 | I57: 0.4046242775 | J57: 0.40625 | K57: 0.8116883117 | L57: 0.7961783439 | M57: 0.7926829268 | N57: 0.7205882353 | O57: 2.166666667 | P57: 1.666666667 | Q57: 96t | R57: 50t | S57: 103t | T57: 90 | U57: 27 | V57: 33 | W57: 92 | X57: 93 | Y57: 66t | Z57: 68t | AA57: 67t | AB57: 89t | AC57: 104t | AD57: 104t | AE57: 1.03 | AF57: 1.03 | AG57: 103t | AH57: 0.27 | AI57: 0.4761904762 | AJ57: 27 | AK57: 0.92 | AL57: 0.92 | AM57: 92 | AN57: 0.66 | AO57: 0.8116883117 | AP57: 66t | AQ57: 0.67 | AR57: 0.7926829268 | AS57: 67t | AT57: 0.97 | AU57: 2.166666667 | AV57: 97t | AW57: 0.9 | AX57: 0.9 | AY57: 90 | AZ57: 0.33 | BA57: 0.33 | BB57: 33 | BC57: 0.93 | BD57: 0.93 | BE57: 93 | BF57: 120 | BG57: 120 | BH57: 120 | BI57: 0.89 | BJ57: 0.89 | BK57: 89t | BL57: 1.18 | BM57: 1.666666667 | BN57: 118t | CC57: 0.66 | CE57: 0.66
A58: 87 | B58: Henrico | C58: 0.4375 | D58: 0.4406779661 | E58: 0.475 | F58: 0.5254237288 | G58: 0.9473684211 | H58: 0.7666666667 | I58: 0.6347150259 | J58: 0.6223958333 | K58: 0.7522123894 | L58: 0.6960784314 | M58: 0.6875 | N58: 0.8076923077 | O58: 2.5 | P58: 2.666666667 | Q58: 92t | R58: 67t | S58: 76 | T58: 28 | U58: 13 | V58: 17 | W58: 35 | X58: 35 | Y58: 84 | Z58: 97 | AA58: 91t | AB58: 53t | AC58: 71t | AD58: 28t | AE58: 0.76 | AF58: 0.76 | AG58: 76 | AH58: 0.13 | AI58: 0.9473684211 | AJ58: 13 | AK58: 0.35 | AL58: 0.6347150259 | AM58: 35 | AN58: 0.84 | AO58: 0.84 | AP58: 84 | AQ58: 0.91 | AR58: 0.91 | AS58: 91t | AT58: 0.43 | AU58: 2.5 | AV58: 43t | AW58: 0.28 | AX58: 0.5254237288 | AY58: 28 | AZ58: 0.17 | BA58: 0.7666666667 | BB58: 17 | BC58: 0.35 | BD58: 0.6223958333 | BE58: 35 | BF58: 89 | BG58: 89 | BH58: 89 | BI58: 0.53 | BJ58: 0.8076923077 | BK58: 53t | BL58: 0.22 | BM58: 2.666666667 | BN58: 22t | CC58: 0.84 | CE58: 0.84
A59: 89 | B59: Henry | C59: 0.4705882353 | D59: 0.4230769231 | E59: 0.3725490196 | F59: 0.3846153846 | G59: 0 | I59: 0.4765625 | J59: 0.2372881356 | K59: 0.825 | L59: 0.8235294118 | M59: 0.9069767442 | N59: 0.88 | O59: 2 | P59: 2 | Q59: 87 | R59: 80 | S59: 99 | T59: 78 | U59: 53t | W59: 77 | X59: 112 | Y59: 61t | Z59: 60t | AA59: 24t | AB59: 30t | AC59: 104t | AD59: 104t | AE59: 0.99 | AF59: 0.99 | AG59: 99 | AH59: 0.53 | AI59: 0.53 | AJ59: 53t | AK59: 0.77 | AL59: 0.77 | AM59: 77 | AN59: 0.61 | AO59: 0.825 | AP59: 61t | AQ59: 0.24 | AR59: 0.9069767442 | AS59: 24t | AT59: 0.97 | AU59: 2 | AV59: 97t | AW59: 0.78 | AX59: 0.78 | AY59: 78 | AZ59: 0 | BC59: 1.12 | BD59: 1.12 | BE59: 112 | BF59: 57 | BG59: 57 | BH59: 57 | BI59: 0.3 | BJ59: 0.88 | BK59: 30t | BL59: 0.91 | BM59: 2 | BN59: 91t | CC59: 0.61 | CE59: 0.61
A60: 91 | B60: Highland | I60: 0 | J60: 0 | L60: 1 | O60: 1 | P60: 2.5 | W60: 129t | X60: 127t | Z60: 1t | AC60: 130 | AD60: 130 | AK60: 1.29 | AL60: 1.29 | AM60: 129t | AN60: 0 | AS60: 0 | AT60: 1.3 | AU60: 1.3 | AV60: 130 | AW60: 0 | AZ60: 0 | BC60: 1.27 | BD60: 1.27 | BE60: 127t | BF60: 14t | BG60: 1 | BH60: 14t | BI60: 0 | BL60: 1.29 | BM60: 2.5 | BN60: 129t | CC60: 0 | CE60: 0
A61: 670 | B61: Hopewell | C61: 0.6 | D61: 0.75 | E61: 0.4 | F61: 0.375 | G61: 0 | I61: 0.7441860465 | J61: 0.7698412698 | K61: 0.8095238095 | L61: 0.85 | M61: 0.7692307692 | N61: 0.75 | O61: 2.5 | P61: 3 | Q61: 29 | R61: 31t | S61: 77 | T61: 30t | U61: 53t | W61: 7 | X61: 14 | Y61: 69 | Z61: 52 | AA61: 75 | AB61: 77t | AC61: 55t | AD61: 12t | AE61: 0.77 | AF61: 0.77 | AG61: 77 | AH61: 0.53 | AI61: 0.53 | AJ61: 53t | AK61: 0.07 | AL61: 0.7441860465 | AM61: 7 | AN61: 0.69 | AO61: 0.8095238095 | AP61: 69 | AQ61: 0.75 | AR61: 0.7692307692 | AS61: 75 | AT61: 0.79 | AU61: 2.5 | AV61: 79t | AW61: 0.3 | AX61: 0.375 | AY61: 30t | AZ61: 0 | BC61: 0.14 | BD61: 0.7698412698 | BE61: 14 | BF61: 40 | BG61: 40 | BH61: 40 | BI61: 0.77 | BJ61: 0.77 | BK61: 77t | BL61: 0.18 | BM61: 3 | BN61: 18t | CC61: 0.69 | CE61: 0.69
A62: 93 | B62: Isle of Wight | C62: 1 | D62: 0.375 | E62: 1 | F62: 0.375 | H62: 0.3333333333 | I62: 0.08333333333 | J62: 0 | K62: 1 | L62: 0.6 | M62: 1 | N62: 1 | O62: 3.4 | P62: 2 | Q62: 8 | R62: 94 | S62: 1t | T62: 94t | V62: 25t | W62: 125t | X62: 127t | Y62: 1t | Z62: 116 | AA62: 1t | AB62: 1t | AC62: 9t | AD62: 86t | AE62: 0.01 | AF62: 1 | AG62: 1t | AK62: 1.25 | AL62: 1.25 | AM62: 125t | AN62: 0.01 | AO62: 1 | AP62: 1t | AQ62: 0.01 | AR62: 1 | AS62: 1t | AT62: 0.18 | AU62: 3.4 | AV62: 18t | AW62: 0.94 | AX62: 0.94 | AY62: 94t | AZ62: 0.25 | BA62: 0.3333333333 | BB62: 25t | BC62: 1.27 | BD62: 1.27 | BE62: 127t | BF62: 90 | BG62: 90 | BH62: 90 | BI62: 0.01 | BJ62: 1 | BK62: 1t | BL62: 0.66 | BM62: 2 | BN62: 66t | CC62: 0.01 | CE62: 0.01
A63: 95 | B63: James City | C63: 0.5 | D63: 0.65 | E63: 0.875 | F63: 0.7 | G63: 0.2857142857 | I63: 0.5192307692 | J63: 0.6470588235 | K63: 1 | L63: 1 | M63: 1 | N63: 1 | O63: 3.166666667 | P63: 4 | Q63: 101t | R63: 69 | S63: 11 | T63: 27 | U63: 35 | W63: 62 | X63: 28 | Y63: 1t | Z63: 1t | AA63: 1t | AB63: 1t | AC63: 29t | AD63: 7t | AE63: 0.11 | AF63: 0.875 | AG63: 11 | AH63: 0.35 | AI63: 0.35 | AJ63: 35 | AK63: 0.62 | AL63: 0.62 | AM63: 62 | AN63: 0.01 | AO63: 1 | AP63: 1t | AQ63: 0.01 | AR63: 1 | AS63: 1t | AT63: 0.14 | AU63: 3.166666667 | AV63: 14t | AW63: 0.27 | AX63: 0.7 | AY63: 27 | AZ63: 0 | BC63: 0.28 | BD63: 0.6470588235 | BE63: 28 | BF63: 14t | BG63: 1 | BH63: 14t | BI63: 0.01 | BJ63: 1 | BK63: 1t | BL63: 0.01 | BM63: 4 | BN63: 1t | CC63: 0.01 | CE63: 0.01
A64: 97 | B64: King & Queen | C64: 0.8333333333 | E64: 0.5 | H64: 1 | I64: 0.5 | J64: 0.5 | K64: 0.8 | L64: 0.6666666667 | O64: 3 | P64: 2.666666667 | Q64: 9 | S64: 47t | V64: 1t | W64: 69t | X64: 72t | Y64: 72t | Z64: 103t | AC64: 29t | AD64: 28t | AE64: 0.47 | AF64: 0.5 | AG64: 47t | AK64: 0.69 | AL64: 0.69 | AM64: 69t | AN64: 0.72 | AO64: 0.8 | AP64: 72t | AS64: 0 | AT64: 0.62 | AU64: 3 | AV64: 62t | AW64: 0 | AZ64: 0.01 | BA64: 1 | BB64: 1t | BC64: 0.72 | BD64: 0.72 | BE64: 72t | BF64: 91 | BG64: 91 | BH64: 91 | BI64: 0 | BL64: 0.3 | BM64: 2.666666667 | BN64: 30t | CC64: 0.72 | CE64: 0.72
A65: 99 | B65: King George | C65: 0.6842105263 | D65: 0.4705882353 | E65: 0.4736842105 | F65: 0.2352941176 | G65: 0 | H65: 0 | I65: 0.6896551724 | J65: 0.5490196078 | K65: 0.75 | L65: 0.9375 | M65: 0.5 | N65: 0.5 | O65: 2.5 | P65: 2.333333333 | Q65: 14t | R65: 103t | S65: 66t | T65: 113t | U65: 53t | V65: 54t | W65: 22 | X65: 51t | Y65: 85t | Z65: 18 | AA65: 106t | AB65: 110t | AC65: 55t | AD65: 117t | AE65: 0.66 | AF65: 0.66 | AG65: 66t | AH65: 0.53 | AI65: 0.53 | AJ65: 53t | AK65: 0.22 | AL65: 0.6896551724 | AM65: 22 | AN65: 0.85 | AO65: 0.85 | AP65: 85t | AQ65: 1.06 | AR65: 1.06 | AS65: 106t | AT65: 0.79 | AU65: 2.5 | AV65: 79t | AW65: 1.13 | AX65: 1.13 | AY65: 113t | AZ65: 0.54 | BA65: 0.54 | BB65: 54t | BC65: 0.51 | BD65: 0.5490196078 | BE65: 51t | BF65: 16 | BG65: 16 | BH65: 16 | BI65: 1.1 | BJ65: 1.1 | BK65: 110t | BL65: 1.06 | BM65: 2.333333333 | BN65: 106t | CC65: 0.85 | CE65: 0.85
A66: 101 | B66: King William | C66: 0.5 | D66: 0.5 | E66: 0.625 | F66: 0.75 | G66: 1 | H66: 1 | I66: 0.625 | J66: 0.6315789474 | K66: 0.6 | L66: 0.75 | N66: 1 | O66: 3.2 | P66: 3.5 | Q66: 101t | R66: 1t | S66: 97t | T66: 30t | U66: 1t | V66: 1t | W66: 38t | X66: 32 | Y66: 111t | Z66: 81t | AB66: 1t | AC66: 80t | AD66: 3t | AE66: 0.97 | AF66: 0.97 | AG66: 97t | AH66: 0.01 | AI66: 1 | AJ66: 1t | AK66: 0.38 | AL66: 0.625 | AM66: 38t | AN66: 1.11 | AO66: 1.11 | AP66: 111t | AS66: 0 | AT66: 0.55 | AU66: 3.2 | AV66: 55t | AW66: 0.3 | AX66: 0.75 | AY66: 30t | AZ66: 0.01 | BA66: 1 | BB66: 1t | BC66: 0.32 | BD66: 0.6315789474 | BE66: 32 | BF66: 92 | BG66: 92 | BH66: 92 | BI66: 0.01 | BJ66: 1 | BK66: 1t | BL66: 0.08 | BM66: 3.5 | BN66: 8t | CC66: 1.11 | CE66: 1.11
A67: 103 | B67: Lancaster | C67: 0 | E67: 0 | G67: 0 | H67: 0 | I67: 0.2941176471 | J67: 0.4 | K67: 0.625 | L67: 0.5 | M67: 0.8571428571 | N67: 0.5 | O67: 1.5 | P67: 1.5 | U67: 53t | V67: 54t | W67: 105 | X67: 95t | Y67: 107t | Z67: 119t | AA67: 33t | AB67: 110t | AC67: 120 | AD67: 125t | AF67: =IF(E67<>"",MAX(E67,AE67),"") -> 0 | AH67: 0.53 | AI67: =IF(G67<>"",MAX(G67,AH67),"") -> 0.53 | AJ67: 53t | AK67: 1.05 | AL67: =IF(I67<>"",MAX(I67,AK67),"") -> 1.05 | AM67: 105 | AN67: 1.07 | AO67: =IF(K67<>"",MAX(K67,AN67),"") -> 1.07 | AP67: 107t | AQ67: 0.33 | AR67: =IF(M67<>"",MAX(M67,AQ67),"") -> 0.8571428571 | AS67: 33t | AT67: 1.21 | AU67: =IF(O67<>"",MAX(O67,AT67),"") -> 1.5 | AV67: 121 | AW67: 0 | AX67: =IF(F67<>"",MAX(F67,AW67),"") ->  | AZ67: 0.54 | BA67: =IF(H67<>"",MAX(H67,AZ67),"") -> 0.54 | BB67: 54t | BC67: 0.95 | BD67: =IF(J67<>"",MAX(J67,BC67),"") -> 0.95 | BE67: 95t | BF67: 93 | BG67: =IF(L67<>"",MAX(L67,BF67),"") -> 93 | BH67: 93 | BI67: 1.1 | BJ67: =IF(N67<>"",MAX(N67,BI67),"") -> 1.1 | BK67: 110t | BL67: 1.23 | BM67: =IF(P67<>"",MAX(P67,BL67),"") -> 1.5 | BN67: 123 | CC67: 1.07 | CE67: 1.07
A68: 105 | B68: Lee | C68: 0.7391304348 | D68: 0.4137931034 | E68: 0.5217391304 | F68: 0.3448275862 | G68: 0 | I68: 0.09677419355 | J68: 0.2209302326 | K68: 0.8518518519 | L68: 0.9166666667 | M68: 0.8181818182 | N68: 0.8076923077 | O68: 2.666666667 | P68: 1.8 | Q68: 13 | R68: 27 | S68: 91 | T68: 52t | U68: 53t | W68: 123 | X68: 113 | Y68: 51 | Z68: 24t | AA68: 52t | AB68: 53t | AC68: 83t | AD68: 52t | AE68: 0.91 | AF68: 0.91 | AG68: 91 | AH68: 0.53 | AI68: 0.53 | AJ68: 53t | AK68: 1.23 | AL68: 1.23 | AM68: 123 | AN68: 0.51 | AO68: 0.8518518519 | AP68: 51 | AQ68: 0.52 | AR68: 0.8181818182 | AS68: 52t | AT68: 1.06 | AU68: 2.666666667 | AV68: 106t | AW68: 0.52 | AX68: 0.52 | AY68: 52t | AZ68: 0 | BC68: 1.13 | BD68: 1.13 | BE68: 113 | BF68: 17 | BG68: 17 | BH68: 17 | BI68: 0.53 | BJ68: 0.8076923077 | BK68: 53t | BL68: 0.73 | BM68: 1.8 | BN68: 73t | CC68: 0.51 | CE68: 0.51
A69: 678 | B69: Lexington | C69: 0 | D69: 1 | E69: 1 | F69: 1 | I69: 0.9285714286 | J69: 0.8461538462 | K69: 0.5789473684 | L69: 0.75 | M69: 0.8 | N69: 0.8 | O69: 2.6 | P69: 3.2 | Q69: 1t | S69: 1t | W69: 2 | X69: 5 | Y69: 114t | Z69: 81t | AA69: 60t | AB69: 57t | AC69: 20t | AD69: 56t | AE69: 0.01 | AF69: 1 | AG69: 1t | AK69: 0.02 | AL69: 0.9285714286 | AM69: 2 | AN69: 1.14 | AO69: 1.14 | AP69: 114t | AQ69: 0.6 | AR69: 0.8 | AS69: 60t | AT69: 0.26 | AU69: 2.6 | AV69: 26t | AW69: 0 | AX69: 1 | AZ69: 0 | BC69: 0.05 | BD69: 0.8461538462 | BE69: 5 | BF69: 121 | BG69: 121 | BH69: 121 | BI69: 0.57 | BJ69: 0.8 | BK69: 57t | BL69: 0.64 | BM69: 3.2 | BN69: 64t | CC69: 1.14 | CE69: 1.14
A70: 107 | B70: Loudoun | C70: 0.4459459459 | D70: 0.5245901639 | E70: 0.472972973 | F70: 0.4426229508 | G70: 0.7222222222 | H70: 0.25 | I70: 0.5131578947 | J70: 0.5873786408 | K70: 0.76 | L70: 0.7619047619 | M70: 0.8 | N70: 0.8095238095 | O70: 2.333333333 | P70: 2.333333333 | Q70: 92t | R70: 43 | S70: 45 | T70: 44 | U70: 18 | V70: 35t | W70: 64 | X70: 47 | Y70: 83 | Z70: 77 | AA70: 60t | AB70: 52 | AC70: 71t | AD70: 45t | AE70: 0.45 | AF70: 0.472972973 | AG70: 45 | AH70: 0.18 | AI70: 0.7222222222 | AJ70: 18 | AK70: 0.64 | AL70: 0.64 | AM70: 64 | AN70: 0.83 | AO70: 0.83 | AP70: 83 | AQ70: 0.6 | AR70: 0.8 | AS70: 60t | AT70: 0.43 | AU70: 2.333333333 | AV70: 43t | AW70: 0.44 | AX70: 0.4426229508 | AY70: 44 | AZ70: 0.35 | BA70: 0.35 | BB70: 35t | BC70: 0.47 | BD70: 0.5873786408 | BE70: 47 | BF70: 94 | BG70: 94 | BH70: 94 | BI70: 0.52 | BJ70: 0.8095238095 | BK70: 52 | BL70: 0.66 | BM70: 2.333333333 | BN70: 66t | CC70: 0.83 | CE70: 0.83
A71: 109 | B71: Louisa | C71: 0.6086956522 | D71: 0.4347826087 | E71: 0.5217391304 | F71: 0.3043478261 | G71: 1 | H71: 0.5 | I71: 0.5479452055 | J71: 0.4888888889 | K71: 0.7222222222 | L71: 0.7631578947 | M71: 0.5714285714 | N71: 0.5 | O71: 3.166666667 | P71: 2 | Q71: 36t | R71: 19 | S71: 83t | T71: 65 | U71: 1t | V71: 23 | W71: 53 | X71: 77 | Y71: 90t | Z71: 76 | AA71: 103t | AB71: 110t | AC71: 45t | AD71: 56t | AE71: 0.83 | AF71: 0.83 | AG71: 83t | AH71: 0.01 | AI71: 1 | AJ71: 1t | AK71: 0.53 | AL71: 0.5479452055 | AM71: 53 | AN71: 0.9 | AO71: 0.9 | AP71: 90t | AQ71: 1.03 | AR71: 1.03 | AS71: 103t | AT71: 0.65 | AU71: 3.166666667 | AV71: 65t | AW71: 0.65 | AX71: 0.65 | AY71: 65 | AZ71: 0.23 | BA71: 0.5 | BB71: 23 | BC71: 0.77 | BD71: 0.77 | BE71: 77 | BF71: 95 | BG71: 95 | BH71: 95 | BI71: 1.1 | BJ71: 1.1 | BK71: 110t | BL71: 0.77 | BM71: 2 | BN71: 77t | CC71: 0.9 | CE71: 0.9
A72: 111 | B72: Lunenburg | G72: 0 | I72: 0.7352941176 | J72: 0.847826087 | K72: 0.5714285714 | L72: 0.5 | M72: 0.9230769231 | N72: 1 | O72: 2.75 | P72: 3.333333333 | U72: 53t | W72: 9 | X72: 4 | Y72: 117 | Z72: 119t | AA72: 21 | AB72: 1t | AC72: 53t | AD72: 15t | AH72: 0.53 | AI72: 0.53 | AJ72: 53t | AK72: 0.09 | AL72: 0.7352941176 | AM72: 9 | AN72: 1.17 | AO72: 1.17 | AP72: 117 | AQ72: 0.21 | AR72: 0.9230769231 | AS72: 21 | AT72: 0.55 | AU72: 2.75 | AV72: 55t | AW72: 0 | AZ72: 0 | BC72: 0.04 | BD72: 0.847826087 | BE72: 4 | BF72: 96 | BG72: 96 | BH72: 96 | BI72: 0.01 | BJ72: 1 | BK72: 1t | BL72: 0.17 | BM72: 3.333333333 | BN72: 17 | CC72: 1.17 | CE72: 1.17
A73: 680 | B73: Lynchburg | C73: 0.4057971014 | D73: 0.4179104478 | E73: 0.4492753623 | F73: 0.3731343284 | G73: 0.1587301587 | H73: 0 | I73: 0.3717105263 | J73: 0.4054878049 | K73: 0.8523489933 | L73: 0.8484848485 | M73: 0.7457627119 | N73: 0.8070175439 | O73: 1.833333333 | P73: 1.5 | Q73: 80 | R73: 93 | S73: 81 | T73: 88 | U73: 44 | V73: 54t | W73: 96 | X73: 94 | Y73: 50 | Z73: 53 | AA73: 81 | AB73: 55 | AC73: 121t | AD73: 123 | AE73: 0.81 | AF73: 0.81 | AG73: 81 | AH73: 0.44 | AI73: 0.44 | AJ73: 44 | AK73: 0.96 | AL73: 0.96 | AM73: 96 | AN73: 0.5 | AO73: 0.8523489933 | AP73: 50 | AQ73: 0.81 | AR73: 0.81 | AS73: 81 | AT73: 1.17 | AU73: 1.833333333 | AV73: 117t | AW73: 0.88 | AX73: 0.88 | AY73: 88 | AZ73: 0.54 | BA73: 0.54 | BB73: 54t | BC73: 0.94 | BD73: 0.94 | BE73: 94 | BF73: 63 | BG73: 63 | BH73: 63 | BI73: 0.55 | BJ73: 0.8070175439 | BK73: 55 | BL73: 1.18 | BM73: 1.5 | BN73: 118t | CC73: 0.5 | CE73: 0.5
A74: 113 | B74: Madison | C74: 0.5135135135 | D74: 0.5652173913 | E74: 0.4594594595 | F74: 0.4782608696 | G74: 0 | H74: 0.03846153846 | I74: 0.4909090909 | J74: 0.4434782609 | K74: 0.6756756757 | L74: 0.641509434 | M74: 0.75 | N74: 0.75 | O74: 1.833333333 | P74: 2 | Q74: 95 | R74: 24t | S74: 102 | T74: 45 | U74: 53t | V74: 52 | W74: 71 | X74: 90 | Y74: 98 | Z74: 114 | AA74: 77t | AB74: 77t | AC74: 126t | AD74: 86t | AE74: 1.02 | AF74: 1.02 | AG74: 102 | AH74: 0.53 | AI74: 0.53 | AJ74: 53t | AK74: 0.71 | AL74: 0.71 | AM74: 71 | AN74: 0.98 | AO74: 0.98 | AP74: 98 | AQ74: 0.77 | AR74: 0.77 | AS74: 77t | AT74: 1.22 | AU74: 1.833333333 | AV74: 122t | AW74: 0.45 | AX74: 0.4782608696 | AY74: 45 | AZ74: 0.52 | BA74: 0.52 | BB74: 52 | BC74: 0.9 | BD74: 0.9 | BE74: 90 | BF74: 97 | BG74: 97 | BH74: 97 | BI74: 0.77 | BJ74: 0.77 | BK74: 77t | BL74: 1.06 | BM74: 2 | BN74: 106t | CC74: 0.98 | CE74: 0.98
A75: 683 | B75: Manassas City | C75: 0.5714285714 | D75: 0.5 | E75: 0.7857142857 | F75: 0.2222222222 | I75: 0.4285714286 | J75: 0.4255319149 | K75: 0.8 | L75: 0.9090909091 | M75: 0.8571428571 | N75: 1 | O75: 3 | P75: 2.6 | Q75: 50t | R75: 24t | S75: 12 | T75: 109 | W75: 86t | X75: 92 | Y75: 72t | Z75: 27t | AA75: 33t | AB75: 1t | AC75: 48t | AD75: 64t | AE75: 0.12 | AF75: 0.7857142857 | AG75: 12 | AK75: 0.86 | AL75: 0.86 | AM75: 86t | AN75: 0.72 | AO75: 0.8 | AP75: 72t | AQ75: 0.33 | AR75: 0.8571428571 | AS75: 33t | AT75: 0.55 | AU75: 3 | AV75: 55t | AW75: 1.09 | AX75: 1.09 | AY75: 109 | AZ75: 0 | BC75: 0.92 | BD75: 0.92 | BE75: 92 | BF75: 41 | BG75: 41 | BH75: 41 | BI75: 0.01 | BJ75: 1 | BK75: 1t | BL75: 0.91 | BM75: 2.6 | BN75: 91t | CC75: 0.72 | CE75: 0.72
A76: 685 | B76: Manassas Park | C76: 0 | D76: 0 | E76: 0 | F76: 1 | I76: 0.8 | J76: 0.7368421053 | K76: 1 | L76: 1 | O76: 2.5 | P76: 3.25 | Q76: 119t | R76: 108t | S76: 117t | T76: 1t | W76: 5 | X76: 16 | Y76: 1t | Z76: 1t | AC76: 71t | AD76: 17 | AE76: 1.17 | AF76: 1.17 | AG76: 117t | AK76: 0.05 | AL76: 0.8 | AM76: 5 | AN76: 0.01 | AO76: 1 | AP76: 1t | AS76: 0 | AT76: 0.26 | AU76: 2.5 | AV76: 26t | AW76: 0.01 | AX76: 1 | AY76: 1t | AZ76: 0 | BC76: 0.16 | BD76: 0.7368421053 | BE76: 16 | BF76: 42 | BG76: 42 | BH76: 42 | BI76: 0 | BL76: 0.01 | BM76: 3.25 | BN76: 1t | CC76: 0.01 | CE76: 0.01
A77: 690 | B77: Martinsville | D77: 1 | F77: 0.6666666667 | I77: 0.4444444444 | J77: 0.5 | K77: 0.825 | L77: 0.8235294118 | M77: 0.9069767442 | N77: 0.88 | O77: 2.666666667 | P77: 3.4 | R77: 31t | T77: 30t | W77: 84 | X77: 72t | Y77: 61t | Z77: 60t | AA77: 24t | AB77: 30t | AC77: 55t | AD77: 12t | AK77: 0.84 | AL77: 0.84 | AM77: 84 | AN77: 0.61 | AO77: 0.825 | AP77: 61t | AQ77: 0.24 | AR77: 0.9069767442 | AS77: 24t | AT77: 0.62 | AU77: 2.666666667 | AV77: 62t | AW77: 0.3 | AX77: 0.6666666667 | AY77: 30t | AZ77: 0 | BC77: 0.72 | BD77: 0.72 | BE77: 72t | BF77: 64 | BG77: 64 | BH77: 64 | BI77: 0.3 | BJ77: 0.88 | BK77: 30t | BL77: 0.18 | BM77: 3.4 | BN77: 18t | CC77: 0.61 | CE77: 0.61
A78: 115 | B78: Mathews | C78: 0.5 | E78: 1 | I78: 0.5384615385 | J78: 0.2857142857 | K78: 1 | L78: 1 | M78: 1 | N78: 1 | O78: 3.4 | P78: 3 | Q78: 59t | S78: 1t | W78: 54t | X78: 106 | Y78: 1t | Z78: 1t | AA78: 1t | AB78: 1t | AC78: 9t | AD78: 28t | AE78: 0.01 | AF78: 1 | AG78: 1t | AK78: 0.54 | AL78: 0.54 | AM78: 54t | AN78: 0.01 | AO78: 1 | AP78: 1t | AQ78: 0.01 | AR78: 1 | AS78: 1t | AT78: 0.06 | AU78: 3.4 | AV78: 6t | AW78: 0 | AZ78: 0 | BC78: 1.06 | BD78: 1.06 | BE78: 106 | BF78: 18t | BG78: 1 | BH78: 18t | BI78: 0.01 | BJ78: 1 | BK78: 1t | BL78: 0.3 | BM78: 3 | BN78: 30t | CC78: 0.01 | CE78: 0.01
A79: 117 | B79: Mecklenburg | C79: 0.7368421053 | D79: 0.6666666667 | E79: 0.8947368421 | F79: 0.7333333333 | G79: 0 | H79: 0 | I79: 0.4698795181 | J79: 0.4545454545 | K79: 0.5909090909 | L79: 0.652173913 | M79: 0.8 | N79: 1 | O79: 2.5 | P79: 2.666666667 | Q79: 82 | R79: 53t | S79: 8 | T79: 55t | U79: 53t | V79: 54t | W79: 79 | X79: 86t | Y79: 113 | Z79: 112 | AA79: 60t | AB79: 1t | AC79: 104t | AD79: 86t | AE79: 0.08 | AF79: 0.8947368421 | AG79: 8 | AH79: 0.53 | AI79: 0.53 | AJ79: 53t | AK79: 0.79 | AL79: 0.79 | AM79: 79 | AN79: 1.13 | AO79: 1.13 | AP79: 113 | AQ79: 0.6 | AR79: 0.8 | AS79: 60t | AT79: 0.97 | AU79: 2.5 | AV79: 97t | AW79: 0.55 | AX79: 0.7333333333 | AY79: 55t | AZ79: 0.54 | BA79: 0.54 | BB79: 54t | BC79: 0.86 | BD79: 0.86 | BE79: 86t | BF79: 98 | BG79: 98 | BH79: 98 | BI79: 0.01 | BJ79: 1 | BK79: 1t | BL79: 0.95 | BM79: 2.666666667 | BN79: 95t | CC79: 1.13 | CE79: 1.13
A80: 119 | B80: Middlesex | C80: 0.5 | D80: 0.5 | E80: 0.5 | F80: 0.25 | H80: 1 | I80: 0.625 | J80: 0.6923076923 | K80: 1 | L80: 1 | M80: 0.5 | N80: 0.8571428571 | O80: 3 | P80: 3.166666667 | Q80: 12 | R80: 31t | S80: 47t | T80: 30t | V80: 1t | W80: 38t | X80: 20 | Y80: 1t | Z80: 1t | AA80: 106t | AB80: 36t | AC80: 9t | AD80: 2 | AE80: 0.47 | AF80: 0.5 | AG80: 47t | AK80: 0.38 | AL80: 0.625 | AM80: 38t | AN80: 0.01 | AO80: 1 | AP80: 1t | AQ80: 1.06 | AR80: 1.06 | AS80: 106t | AT80: 0.18 | AU80: 3 | AV80: 18t | AW80: 0.3 | AX80: 0.3 | AY80: 30t | AZ80: 0.01 | BA80: 1 | BB80: 1t | BC80: 0.2 | BD80: 0.6923076923 | BE80: 20 | BF80: 18t | BG80: 1 | BH80: 18t | BI80: 0.36 | BJ80: 0.8571428571 | BK80: 36t | BL80: 0.06 | BM80: 3.166666667 | BN80: 6 | CC80: 0.01 | CE80: 0.01
A81: 121 | B81: Montgomery | C81: 0.48 | D81: 0.5333333333 | E81: 0.28 | F81: 0.5333333333 | I81: 0.2708333333 | J81: 0.488372093 | K81: 0.9523809524 | L81: 0.9705882353 | M81: 0.8571428571 | N81: 0.8636363636 | O81: 2.2 | P81: 3.4 | Q81: 74 | R81: 21 | S81: 112t | T81: 60t | W81: 111 | X81: 78 | Y81: 19 | Z81: 15 | AA81: 33t | AB81: 33 | AC81: 97 | AD81: 12t | AE81: 1.12 | AF81: 1.12 | AG81: 112t | AK81: 1.11 | AL81: 1.11 | AM81: 111 | AN81: 0.19 | AO81: 0.9523809524 | AP81: 19 | AQ81: 0.33 | AR81: 0.8571428571 | AS81: 33t | AT81: 0.95 | AU81: 2.2 | AV81: 95t | AW81: 0.6 | AX81: 0.6 | AY81: 60t | AZ81: 0 | BC81: 0.78 | BD81: 0.78 | BE81: 78 | BF81: 20 | BG81: 20 | BH81: 20 | BI81: 0.33 | BJ81: 0.8636363636 | BK81: 33 | BL81: 0.18 | BM81: 3.4 | BN81: 18t | CC81: 0.19 | CE81: 0.19
A82: 125 | B82: Nelson | I82: 0.6551724138 | J82: 0.4827586207 | K82: 0.7142857143 | L82: 0.9 | M82: 1 | N82: 0.75 | O82: 3.333333333 | P82: 2.666666667 | W82: 30 | X82: 80 | Y82: 92t | Z82: 29t | AA82: 1t | AB82: 77t | AC82: 14t | AD82: 104t | AK82: 0.3 | AL82: 0.6551724138 | AM82: 30 | AN82: 0.92 | AO82: 0.92 | AP82: 92t | AQ82: 0.01 | AR82: 1 | AS82: 1t | AT82: 0.17 | AU82: 3.333333333 | AV82: 17 | AW82: 0 | AZ82: 0 | BC82: 0.8 | BD82: 0.8 | BE82: 80 | BF82: 21 | BG82: 21 | BH82: 21 | BI82: 0.77 | BJ82: 0.77 | BK82: 77t | BL82: 1.06 | BM82: 2.666666667 | BN82: 106t | CC82: 0.92 | CE82: 0.92
A83: 127 | B83: New Kent | C83: 0.6 | D83: 0.5 | E83: 0.7 | F83: 0.8 | I83: 0.7037037037 | J83: 0.6428571429 | K83: 0.75 | L83: 1 | M83: 1 | O83: 3.6 | P83: 3.75 | Q83: 18t | R83: 108t | S83: 36 | T83: 110t | W83: 19 | X83: 29 | Y83: 85t | Z83: 1t | AA83: 1t | AC83: 4t | AD83: 104t | AE83: 0.36 | AF83: 0.7 | AG83: 36 | AK83: 0.19 | AL83: 0.7037037037 | AM83: 19 | AN83: 0.85 | AO83: 0.85 | AP83: 85t | AQ83: 0.01 | AR83: 1 | AS83: 1t | AT83: 0.09 | AU83: 3.6 | AV83: 9t | AW83: 1.1 | AX83: 1.1 | AY83: 110t | AZ83: 0 | BC83: 0.29 | BD83: 0.6428571429 | BE83: 29 | BF83: 22 | BG83: 22 | BH83: 22 | BI83: 0 | BL83: 0.86 | BM83: 3.75 | BN83: 86t | CC83: 0.85 | CE83: 0.85
A84: 700 | B84: Newport News | C84: 0.4197530864 | D84: 0.4090909091 | E84: 0.4320987654 | F84: 0.4318181818 | G84: 0.75 | H84: 0.25 | I84: 0.4664310954 | J84: 0.5075757576 | K84: 0.8846153846 | L84: 0.8611111111 | M84: 0.693877551 | N84: 0.6739130435 | O84: 2.333333333 | P84: 2 | Q84: 89 | R84: 82 | S84: 82 | T84: 97 | U84: 17 | V84: 35t | W84: 80 | X84: 70 | Y84: 38t | Z84: 49 | AA84: 89 | AB84: 100 | AC84: 83t | AD84: 104t | AE84: 0.82 | AF84: 0.82 | AG84: 82 | AH84: 0.17 | AI84: 0.75 | AJ84: 17 | AK84: 0.8 | AL84: 0.8 | AM84: 80 | AN84: 0.38 | AO84: 0.8846153846 | AP84: 38t | AQ84: 0.89 | AR84: 0.89 | AS84: 89 | AT84: 0.65 | AU84: 2.333333333 | AV84: 65t | AW84: 0.97 | AX84: 0.97 | AY84: 97 | AZ84: 0.35 | BA84: 0.35 | BB84: 35t | BC84: 0.7 | BD84: 0.7 | BE84: 70 | BF84: 43 | BG84: 43 | BH84: 43 | BI84: 1 | BJ84: 1 | BK84: 100 | BL84: 0.95 | BM84: 2 | BN84: 95t | CC84: 0.38 | CE84: 0.38
A85: 710 | B85: Norfolk | C85: 0.625 | D85: 0.654676259 | E85: 0.4270833333 | F85: 0.5395683453 | G85: 0.3432835821 | H85: 0.3230769231 | I85: 0.197080292 | J85: 0.25 | K85: 0.8893442623 | L85: 0.9154228856 | M85: 0.8453608247 | N85: 0.8870967742 | O85: 2.666666667 | P85: 3.333333333 | Q85: 40 | R85: 20 | S85: 100 | T85: 64 | U85: 32 | V85: 31 | W85: 119 | X85: 110t | Y85: 31 | Z85: 26 | AA85: 43 | AB85: 29 | AC85: 55t | AD85: 28t | AE85: 1 | AF85: 1 | AG85: 100 | AH85: 0.32 | AI85: 0.3432835821 | AJ85: 32 | AK85: 1.19 | AL85: 1.19 | AM85: 119 | AN85: 0.31 | AO85: 0.8893442623 | AP85: 31 | AQ85: 0.43 | AR85: 0.8453608247 | AS85: 43 | AT85: 0.79 | AU85: 2.666666667 | AV85: 79t | AW85: 0.64 | AX85: 0.64 | AY85: 64 | AZ85: 0.31 | BA85: 0.3230769231 | BB85: 31 | BC85: 1.1 | BD85: 1.1 | BE85: 110t | BF85: 44 | BG85: 44 | BH85: 44 | BI85: 0.29 | BJ85: 0.8870967742 | BK85: 29 | BL85: 0.5 | BM85: 3.333333333 | BN85: 50t | CC85: 0.31 | CE85: 0.31
A86: 131 | B86: Northampton | C86: 0.25 | D86: 0.2857142857 | E86: 0 | F86: 0.1428571429 | I86: 0.2727272727 | J86: 0.3571428571 | K86: 0.6666666667 | L86: 0.6666666667 | O86: 1.25 | P86: 1.25 | Q86: 115 | R86: 108t | S86: 117t | T86: 113t | W86: 109 | X86: 100t | Y86: 100t | Z86: 103t | AC86: 129 | AD86: 129 | AE86: 1.17 | AF86: 1.17 | AG86: 117t | AK86: 1.09 | AL86: 1.09 | AM86: 109 | AN86: 1 | AO86: 1 | AP86: 100t | AS86: 0 | AT86: 1.29 | AU86: 1.29 | AV86: 129 | AW86: 1.13 | AX86: 1.13 | AY86: 113t | AZ86: 0 | BC86: 1 | BD86: 1 | BE86: 100t | BF86: 99t | BG86: 0.6666666667 | BH86: 99t | BI86: 0 | BL86: 1.28 | BM86: 1.28 | BN86: 128 | CC86: 1 | CE86: 1
A87: 133 | B87: Northumberland | C87: 0.3333333333 | D87: 0.6666666667 | E87: 0.5 | F87: 0.3333333333 | H87: 0.3333333333 | I87: 0.7 | J87: 0.5925925926 | K87: 1 | L87: 0.875 | M87: 1 | N87: 0.25 | O87: 3.2 | P87: 3 | Q87: 116 | R87: 83t | S87: 86t | T87: 80t | V87: 25t | W87: 20 | X87: 45 | Y87: 1t | Z87: 43t | AA87: 1t | AB87: 115t | AC87: 48t | AD87: 69t | AE87: 0.86 | AF87: 0.86 | AG87: 86t | AK87: 0.2 | AL87: 0.7 | AM87: 20 | AN87: 0.01 | AO87: 1 | AP87: 1t | AQ87: 0.01 | AR87: 1 | AS87: 1t | AT87: 0.18 | AU87: 3.2 | AV87: 18t | AW87: 0.8 | AX87: 0.8 | AY87: 80t | AZ87: 0.25 | BA87: 0.3333333333 | BB87: 25t | BC87: 0.45 | BD87: 0.5925925926 | BE87: 45 | BF87: 23 | BG87: 23 | BH87: 23 | BI87: 1.15 | BJ87: 1.15 | BK87: 115t | BL87: 0.5 | BM87: 3 | BN87: 50t | CC87: 0.01 | CE87: 0.01
A88: 720 | B88: Norton | C88: 0.6 | E88: 1 | I88: 0.3333333333 | J88: 0.1428571429 | K88: 1 | L88: 0.8333333333 | M88: 0.875 | N88: 1 | O88: 3.4 | P88: 2.666666667 | Q88: 32t | S88: 1t | W88: 101t | X88: 118t | Y88: 1t | Z88: 56t | AA88: 29t | AB88: 1t | AC88: 9t | AD88: 28t | AE88: 0.01 | AF88: 1 | AG88: 1t | AK88: 1.01 | AL88: 1.01 | AM88: 101t | AN88: 0.01 | AO88: 1 | AP88: 1t | AQ88: 0.29 | AR88: 0.875 | AS88: 29t | AT88: 0.18 | AU88: 3.4 | AV88: 18t | AW88: 0 | AZ88: 0 | BC88: 1.18 | BD88: 1.18 | BE88: 118t | BF88: 65 | BG88: 65 | BH88: 65 | BI88: 0.01 | BJ88: 1 | BK88: 1t | BL88: 0.3 | BM88: 2.666666667 | BN88: 30t | CC88: 0.01 | CE88: 0.01
A89: 135 | B89: Nottoway | G89: 0 | I89: 0.08333333333 | J89: 0.1052631579 | K89: 1 | M89: 0.5 | N89: 0.75 | O89: 2 | P89: 1.5 | U89: 53t | W89: 125t | X89: 122 | Y89: 1t | AA89: 106t | AB89: 77t | AC89: 104t | AD89: 86t | AH89: 0.53 | AI89: 0.53 | AJ89: 53t | AK89: 1.25 | AL89: 1.25 | AM89: 125t | AN89: 0.01 | AO89: 1 | AP89: 1t | AQ89: 1.06 | AR89: 1.06 | AS89: 106t | AT89: 1.06 | AU89: 2 | AV89: 106t | AW89: 0 | AZ89: 0 | BC89: 1.22 | BD89: 1.22 | BE89: 122 | BI89: 0.77 | BJ89: 0.77 | BK89: 77t | BL89: 0.86 | BM89: 1.5 | BN89: 86t | CC89: 0.01 | CE89: 0.01
A90: 137 | B90: Orange | C90: 0.5428571429 | D90: 0.3846153846 | E90: 0.7428571429 | F90: 0.4615384615 | G90: 0.09090909091 | H90: 0 | I90: 0.6395348837 | J90: 0.4608695652 | K90: 0.5652173913 | L90: 0.6666666667 | M90: 0.25 | N90: 0.8275862069 | O90: 2.666666667 | P90: 1.666666667 | Q90: 54 | R90: 62t | S90: 13 | T90: 55t | U90: 49 | V90: 54t | W90: 33 | X90: 84 | Y90: 118 | Z90: 103t | AA90: 117t | AB90: 49 | AC90: 55t | AD90: 104t | AE90: 0.13 | AF90: 0.7428571429 | AG90: 13 | AH90: 0.49 | AI90: 0.49 | AJ90: 49 | AK90: 0.33 | AL90: 0.6395348837 | AM90: 33 | AN90: 1.18 | AO90: 1.18 | AP90: 118 | AQ90: 1.17 | AR90: 1.17 | AS90: 117t | AT90: 0.65 | AU90: 2.666666667 | AV90: 65t | AW90: 0.55 | AX90: 0.55 | AY90: 55t | AZ90: 0.54 | BA90: 0.54 | BB90: 54t | BC90: 0.84 | BD90: 0.84 | BE90: 84 | BF90: 99t | BG90: 0.6666666667 | BH90: 99t | BI90: 0.49 | BJ90: 0.8275862069 | BK90: 49 | BL90: 1.06 | BM90: 1.666666667 | BN90: 106t | CC90: 1.18 | CE90: 1.18
A91: 139 | B91: Page | C91: 0.84 | D91: 0.7142857143 | E91: 0.76 | F91: 0.380952381 | G91: 0 | I91: 0.5769230769 | J91: 0.4565217391 | K91: 0.5555555556 | L91: 0.7272727273 | M91: 0.8571428571 | N91: 1 | O91: 3 | P91: 2.4 | Q91: 7 | R91: 23 | S91: 14 | T91: 26 | U91: 53t | W91: 46 | X91: 85 | Y91: 119 | Z91: 89t | AA91: 33t | AB91: 1t | AC91: 29t | AD91: 28t | AE91: 0.14 | AF91: 0.76 | AG91: 14 | AH91: 0.53 | AI91: 0.53 | AJ91: 53t | AK91: 0.46 | AL91: 0.5769230769 | AM91: 46 | AN91: 1.19 | AO91: 1.19 | AP91: 119 | AQ91: 0.33 | AR91: 0.8571428571 | AS91: 33t | AT91: 0.43 | AU91: 3 | AV91: 43t | AW91: 0.26 | AX91: 0.380952381 | AY91: 26 | AZ91: 0 | BC91: 0.85 | BD91: 0.85 | BE91: 85 | BF91: 101 | BG91: 101 | BH91: 101 | BI91: 0.01 | BJ91: 1 | BK91: 1t | BL91: 0.6 | BM91: 2.4 | BN91: 60t | CC91: 1.19 | CE91: 1.19
A92: 141 | B92: Patrick | C92: 0.6666666667 | D92: 0.2727272727 | E92: 0.6666666667 | F92: 0.3636363636 | I92: 0 | J92: 0 | K92: 1 | L92: 0.7647058824 | M92: 1 | N92: 1 | O92: 3.4 | P92: 1.8 | Q92: 27 | R92: 107 | S92: 26t | T92: 55t | W92: 129t | X92: 127t | Y92: 1t | Z92: 75 | AA92: 1t | AB92: 1t | AC92: 9t | AD92: 64t | AE92: 0.26 | AF92: 0.6666666667 | AG92: 26t | AK92: 1.29 | AL92: 1.29 | AM92: 129t | AN92: 0.01 | AO92: 1 | AP92: 1t | AQ92: 0.01 | AR92: 1 | AS92: 1t | AT92: 0.18 | AU92: 3.4 | AV92: 18t | AW92: 0.55 | AX92: 0.55 | AY92: 55t | AZ92: 0 | BC92: 1.27 | BD92: 1.27 | BE92: 127t | BF92: 102 | BG92: 102 | BH92: 102 | BI92: 0.01 | BJ92: 1 | BK92: 1t | BL92: 0.3 | BM92: 1.8 | BN92: 30t | CC92: 0.01 | CE92: 0.01
A93: 730 | B93: Petersburg | C93: 0.6818181818 | D93: 0.6666666667 | E93: 0.6818181818 | F93: 0.6666666667 | G93: 0.07692307692 | H93: 0.1212121212 | I93: 0.3986928105 | J93: 0.4642857143 | K93: 0.6842105263 | L93: 0.6444444444 | M93: 0.8684210526 | N93: 0.8484848485 | O93: 2.666666667 | P93: 2.666666667 | Q93: 30 | R93: 31t | S93: 19t | T93: 30t | U93: 50 | V93: 43 | W93: 93 | X93: 83 | Y93: 97 | Z93: 113 | AA93: 31 | AB93: 40 | AC93: 55t | AD93: 56t | AE93: 0.19 | AF93: 0.6818181818 | AG93: 19t | AH93: 0.5 | AI93: 0.5 | AJ93: 50 | AK93: 0.93 | AL93: 0.93 | AM93: 93 | AN93: 0.97 | AO93: 0.97 | AP93: 97 | AQ93: 0.31 | AR93: 0.8684210526 | AS93: 31 | AT93: 0.79 | AU93: 2.666666667 | AV93: 79t | AW93: 0.3 | AX93: 0.6666666667 | AY93: 30t | AZ93: 0.43 | BA93: 0.43 | BB93: 43 | BC93: 0.83 | BD93: 0.83 | BE93: 83 | BF93: 122 | BG93: 122 | BH93: 122 | BI93: 0.4 | BJ93: 0.8484848485 | BK93: 40 | BL93: 0.77 | BM93: 2.666666667 | BN93: 77t | CC93: 0.97 | CE93: 0.97
A94: 143 | B94: Pittsylvania | C94: 0.4561403509 | D94: 0.4528301887 | E94: 0.4912280702 | F94: 0.3773584906 | G94: 0.125 | H94: 0.5833333333 | I94: 0.7265625 | J94: 0.7172413793 | K94: 0.9285714286 | L94: 0.6875 | M94: 0.25 | N94: 0.8571428571 | O94: 2.5 | P94: 2.5 | Q94: 70 | R94: 73 | S94: 61 | T94: 75t | U94: 48 | V94: 21 | W94: 14 | X94: 18 | Y94: 22 | Z94: 99t | AA94: 117t | AB94: 36t | AC94: 55t | AD94: 21t | AE94: 0.61 | AF94: 0.61 | AG94: 61 | AH94: 0.48 | AI94: 0.48 | AJ94: 48 | AK94: 0.14 | AL94: 0.7265625 | AM94: 14 | AN94: 0.22 | AO94: 0.9285714286 | AP94: 22 | AQ94: 1.17 | AR94: 1.17 | AS94: 117t | AT94: 0.43 | AU94: 2.5 | AV94: 43t | AW94: 0.75 | AX94: 0.75 | AY94: 75t | AZ94: 0.21 | BA94: 0.5833333333 | BB94: 21 | BC94: 0.18 | BD94: 0.7172413793 | BE94: 18 | BF94: 103 | BG94: 103 | BH94: 103 | BI94: 0.36 | BJ94: 0.8571428571 | BK94: 36t | BL94: 0.14 | BM94: 2.5 | BN94: 14t | CC94: 0.22 | CE94: 0.22
A95: 735 | B95: Poquoson | C95: 1 | D95: 1 | E95: 1 | F95: 1 | G95: 0.5 | I95: 0.5384615385 | J95: 0.4 | K95: 0.5 | L95: 0.25 | M95: 0.6 | O95: 3.166666667 | P95: 2.75 | Q95: 1t | R95: 1t | S95: 1t | T95: 1t | U95: 24t | W95: 54t | X95: 95t | Y95: 120t | Z95: 125t | AA95: 99t | AC95: 24t | AD95: 55 | AE95: 0.01 | AF95: 1 | AG95: 1t | AH95: 0.24 | AI95: 0.5 | AJ95: 24t | AK95: 0.54 | AL95: 0.54 | AM95: 54t | AN95: 1.2 | AO95: 1.2 | AP95: 120t | AQ95: 0.99 | AR95: 0.99 | AS95: 99t | AT95: 0.26 | AU95: 3.166666667 | AV95: 26t | AW95: 0.01 | AX95: 1 | AY95: 1t | AZ95: 0 | BC95: 0.95 | BD95: 0.95 | BE95: 95t | BF95: 123 | BG95: 123 | BH95: 123 | BI95: 0 | BL95: 0.86 | BM95: 2.75 | BN95: 86t | CC95: 1.2 | CE95: 1.2
A96: 740 | B96: Portsmouth | C96: 0.3076923077 | D96: 0.4545454545 | E96: 0.4230769231 | F96: 0.4545454545 | G96: 1 | H96: 0.5714285714 | I96: 0.06944444444 | J96: 0.09090909091 | K96: 0.9206349206 | L96: 0.9338842975 | M96: 0.7906976744 | N96: 0.7073170732 | O96: 2.166666667 | P96: 2.5 | Q96: 113 | R96: 60 | S96: 85 | T96: 102 | U96: 1t | V96: 22 | W96: 127 | X96: 124 | Y96: 26 | Z96: 19 | AA96: 69 | AB96: 94 | AC96: 98t | AD96: 86t | AE96: 0.85 | AF96: 0.85 | AG96: 85 | AH96: 0.01 | AI96: 1 | AJ96: 1t | AK96: 1.27 | AL96: 1.27 | AM96: 127 | AN96: 0.26 | AO96: 0.9206349206 | AP96: 26 | AQ96: 0.69 | AR96: 0.7906976744 | AS96: 69 | AT96: 0.79 | AU96: 2.166666667 | AV96: 79t | AW96: 1.02 | AX96: 1.02 | AY96: 102 | AZ96: 0.22 | BA96: 0.5714285714 | BB96: 22 | BC96: 1.24 | BD96: 1.24 | BE96: 124 | BF96: 45 | BG96: 45 | BH96: 45 | BI96: 0.94 | BJ96: 0.94 | BK96: 94 | BL96: 0.77 | BM96: 2.5 | BN96: 77t | CC96: 0.26 | CE96: 0.26
A97: 145 | B97: Powhatan | C97: 0.5151515152 | D97: 0.5714285714 | E97: 0.6060606061 | F97: 0.5714285714 | G97: 0 | I97: 0.5079365079 | J97: 0.5161290323 | K97: 0.625 | L97: 0.8181818182 | M97: 0.5 | N97: 0.8 | O97: 2.333333333 | P97: 3.2 | Q97: 73 | R97: 78t | S97: 43 | T97: 24 | U97: 53t | W97: 66 | X97: 66 | Y97: 107t | Z97: 63 | AA97: 106t | AB97: 57t | AC97: 83t | AD97: 81t | AE97: 0.43 | AF97: 0.6060606061 | AG97: 43 | AH97: 0.53 | AI97: 0.53 | AJ97: 53t | AK97: 0.66 | AL97: 0.66 | AM97: 66 | AN97: 1.07 | AO97: 1.07 | AP97: 107t | AQ97: 1.06 | AR97: 1.06 | AS97: 106t | AT97: 0.79 | AU97: 2.333333333 | AV97: 79t | AW97: 0.24 | AX97: 0.5714285714 | AY97: 24 | AZ97: 0 | BC97: 0.66 | BD97: 0.66 | BE97: 66 | BF97: 58 | BG97: 58 | BH97: 58 | BI97: 0.57 | BJ97: 0.8 | BK97: 57t | BL97: 0.6 | BM97: 3.2 | BN97: 60t | CC97: 1.07 | CE97: 1.07
A98: 147 | B98: Prince Edward | C98: 0.5 | D98: 0.2857142857 | E98: 0 | F98: 0.3571428571 | G98: 0.3333333333 | H98: 0.3333333333 | I98: 0.5625 | J98: 0.5090909091 | K98: 1 | L98: 1 | N98: 0.8333333333 | O98: 2.8 | P98: 2.5 | Q98: 18t | R98: 83t | S98: 117t | T98: 80t | U98: 33t | V98: 25t | W98: 48t | X98: 69 | Y98: 1t | Z98: 1t | AB98: 43t | AC98: 20t | AD98: 69t | AE98: 1.17 | AF98: 1.17 | AG98: 117t | AH98: 0.33 | AI98: 0.3333333333 | AJ98: 33t | AK98: 0.48 | AL98: 0.5625 | AM98: 48t | AN98: 0.01 | AO98: 1 | AP98: 1t | AS98: 0 | AT98: 0.26 | AU98: 2.8 | AV98: 26t | AW98: 0.8 | AX98: 0.8 | AY98: 80t | AZ98: 0.25 | BA98: 0.3333333333 | BB98: 25t | BC98: 0.69 | BD98: 0.69 | BE98: 69 | BF98: 24 | BG98: 24 | BH98: 24 | BI98: 0.43 | BJ98: 0.8333333333 | BK98: 43t | BL98: 0.5 | BM98: 2.5 | BN98: 50t | CC98: 0.01 | CE98: 0.01
A99: 149 | B99: Prince George | C99: 0.3636363636 | D99: 0.7777777778 | E99: 0.2727272727 | F99: 0.5555555556 | I99: 0.6170212766 | J99: 0.7 | K99: 0.6923076923 | L99: 0.8235294118 | M99: 1 | N99: 0.8 | O99: 2.4 | P99: 3.4 | Q99: 112 | R99: 1t | S99: 112t | T99: 30t | W99: 42 | X99: 19 | Y99: 95 | Z99: 60t | AA99: 1t | AB99: 57t | AC99: 80t | AD99: 18t | AE99: 1.12 | AF99: =IF(E99<>"",MAX(E99,AE99),"") -> 1.12 | AG99: 112t | AI99: =IF(G99<>"",MAX(G99,AH99),"") ->  | AK99: 0.42 | AL99: =IF(I99<>"",MAX(I99,AK99),"") -> 0.6170212766 | AM99: 42 | AN99: 0.95 | AO99: =IF(K99<>"",MAX(K99,AN99),"") -> 0.95 | AP99: 95 | AQ99: 0.01 | AR99: =IF(M99<>"",MAX(M99,AQ99),"") -> 1 | AS99: 1t | AT99: 0.55 | AU99: =IF(O99<>"",MAX(O99,AT99),"") -> 2.4 | AV99: 55t | AW99: 0.3 | AX99: =IF(F99<>"",MAX(F99,AW99),"") -> 0.5555555556 | AY99: 30t | AZ99: 0 | BA99: =IF(H99<>"",MAX(H99,AZ99),"") ->  | BC99: 0.19 | BD99: =IF(J99<>"",MAX(J99,BC99),"") -> 0.7 | BE99: 19 | BF99: 59 | BG99: =IF(L99<>"",MAX(L99,BF99),"") -> 59 | BH99: 59 | BI99: 0.57 | BJ99: =IF(N99<>"",MAX(N99,BI99),"") -> 0.8 | BK99: 57t | BL99: 0.3 | BM99: =IF(P99<>"",MAX(P99,BL99),"") -> 3.4 | BN99: 30t | CC99: 0.95 | CE99: 0.95
A100: 153 | B100: Prince William | C100: 0.5769230769 | D100: 0.4846153846 | E100: 0.4711538462 | F100: 0.5 | G100: 0.01075268817 | H100: 0.02857142857 | I100: 0.6633986928 | J100: 0.4820627803 | K100: 0.6705882353 | L100: 0.7830188679 | M100: 0.5609756098 | N100: 0.6904761905 | O100: 2.5 | P100: 2 | Q100: 45 | R100: 44 | S100: 63 | T100: 30t | U100: 52 | V100: 53 | W100: 28 | X100: 81 | Y100: 99 | Z100: 72 | AA100: 105 | AB100: 98 | AC100: 55t | AD100: 69t | AE100: 0.63 | AF100: 0.63 | AG100: 63 | AH100: 0.52 | AI100: 0.52 | AJ100: 52 | AK100: 0.28 | AL100: 0.6633986928 | AM100: 28 | AN100: 0.99 | AO100: 0.99 | AP100: 99 | AQ100: 1.05 | AR100: 1.05 | AS100: 105 | AT100: 0.79 | AU100: 2.5 | AV100: 79t | AW100: 0.3 | AX100: 0.5 | AY100: 30t | AZ100: 0.53 | BA100: 0.53 | BB100: 53 | BC100: 0.81 | BD100: 0.81 | BE100: 81 | BF100: 104 | BG100: 104 | BH100: 104 | BI100: 0.98 | BJ100: 0.98 | BK100: 98 | BL100: 0.95 | BM100: 2 | BN100: 95t | CC100: 0.99 | CE100: 0.99
A101: 155 | B101: Pulaski | C101: 0.44 | D101: 0.4019607843 | E101: 0.5866666667 | F101: 0.5196078431 | G101: 0 | H101: 0 | I101: 0.5240963855 | J101: 0.5482233503 | K101: 0.6363636364 | L101: 0.7358490566 | M101: 0.7857142857 | N101: 0.625 | O101: 2.166666667 | P101: 2 | Q101: 81 | R101: 99 | S101: 47t | T101: 29 | U101: 53t | V101: 54t | W101: 60 | X101: 53 | Y101: 106 | Z101: 86 | AA101: 70 | AB101: 105 | AC101: 104t | AD101: 100t | AE101: 0.47 | AF101: 0.5866666667 | AG101: 47t | AH101: 0.53 | AI101: 0.53 | AJ101: 53t | AK101: 0.6 | AL101: 0.6 | AM101: 60 | AN101: 1.06 | AO101: 1.06 | AP101: 106 | AQ101: 0.7 | AR101: 0.7857142857 | AS101: 70 | AT101: 0.97 | AU101: 2.166666667 | AV101: 97t | AW101: 0.29 | AX101: 0.5196078431 | AY101: 29 | AZ101: 0.54 | BA101: 0.54 | BB101: 54t | BC101: 0.53 | BD101: 0.5482233503 | BE101: 53 | BF101: 105 | BG101: 105 | BH101: 105 | BI101: 1.05 | BJ101: 1.05 | BK101: 105 | BL101: 0.77 | BM101: 2 | BN101: 77t | CC101: 1.06 | CE101: 1.06
A102: 750 | B102: Radford | C102: 0.8571428571 | D102: 0.75 | E102: 0.5714285714 | F102: 0.75 | G102: 0 | H102: 0 | I102: 0.1818181818 | J102: 0.2093023256 | K102: 0.6470588235 | L102: 0.7272727273 | M102: 0.8571428571 | N102: 0.7272727273 | O102: 2.5 | P102: 2.333333333 | Q102: 18t | R102: 6 | S102: 47t | T102: 20 | U102: 53t | V102: 54t | W102: 121 | X102: 115 | Y102: 103 | Z102: 89t | AA102: 33t | AB102: 86t | AC102: 83t | AD102: 86t | AE102: 0.47 | AF102: 0.5714285714 | AG102: 47t | AH102: 0.53 | AI102: 0.53 | AJ102: 53t | AK102: 1.21 | AL102: 1.21 | AM102: 121 | AN102: 1.03 | AO102: 1.03 | AP102: 103 | AQ102: 0.33 | AR102: 0.8571428571 | AS102: 33t | AT102: 1.06 | AU102: 2.5 | AV102: 106t | AW102: 0.2 | AX102: 0.75 | AY102: 20 | AZ102: 0.54 | BA102: 0.54 | BB102: 54t | BC102: 1.15 | BD102: 1.15 | BE102: 115 | BF102: 124 | BG102: 124 | BH102: 124 | BI102: 0.86 | BJ102: 0.86 | BK102: 86t | BL102: 1.06 | BM102: 2.333333333 | BN102: 106t | CC102: 1.03 | CE102: 1.03
A103: 157 | B103: Rappahannock | C103: 0.2857142857 | D103: 0.25 | E103: 0.2857142857 | F103: 0.75 | G103: 0 | H103: 0 | I103: 0.3409090909 | J103: 0.3125 | K103: 0.84 | L103: 0.6666666667 | M103: 0.8461538462 | N103: 0.8 | O103: 1.666666667 | P103: 1.833333333 | Q103: 96t | R103: 83t | S103: 112t | T103: 1t | U103: 53t | V103: 54t | W103: 99 | X103: 103 | Y103: 55 | Z103: 103t | AA103: 41t | AB103: 57t | AC103: 121t | AD103: 104t | AE103: 1.12 | AF103: 1.12 | AG103: 112t | AH103: 0.53 | AI103: 0.53 | AJ103: 53t | AK103: 0.99 | AL103: 0.99 | AM103: 99 | AN103: 0.55 | AO103: 0.84 | AP103: 55 | AQ103: 0.41 | AR103: 0.8461538462 | AS103: 41t | AT103: 1.17 | AU103: 1.666666667 | AV103: 117t | AW103: 0.01 | AX103: 0.75 | AY103: 1t | AZ103: 0.54 | BA103: 0.54 | BB103: 54t | BC103: 1.03 | BD103: 1.03 | BE103: 103 | BF103: 106 | BG103: 106 | BH103: 106 | BI103: 0.57 | BJ103: 0.8 | BK103: 57t | BL103: 0.95 | BM103: 1.833333333 | BN103: 95t | CC103: 0.55 | CE103: 0.55
A104: 760 | B104: Richmond City | C104: 0.5102040816 | D104: 0.5251798561 | E104: 0.4489795918 | F104: 0.4100719424 | G104: 0.2602739726 | H104: 0.198630137 | I104: 0.2106227106 | J104: 0.2114754098 | K104: 0.7272727273 | L104: 0.6748466258 | M104: 0.7752808989 | N104: 0.75 | O104: 1.666666667 | P104: 1.666666667 | Q104: 55 | R104: 45 | S104: 94 | T104: 87 | U104: 36 | V104: 38 | W104: 118 | X104: 114 | Y104: 88t | Z104: 102 | AA104: 72 | AB104: 77t | AC104: 121t | AD104: 117t | AE104: 0.94 | AF104: 0.94 | AG104: 94 | AH104: 0.36 | AI104: 0.36 | AJ104: 36 | AK104: 1.18 | AL104: 1.18 | AM104: 118 | AN104: 0.88 | AO104: 0.88 | AP104: 88t | AQ104: 0.72 | AR104: 0.7752808989 | AS104: 72 | AT104: 1.25 | AU104: 1.666666667 | AV104: 125t | AW104: 0.87 | AX104: 0.87 | AY104: 87 | AZ104: 0.38 | BA104: 0.38 | BB104: 38 | BC104: 1.14 | BD104: 1.14 | BE104: 114 | BF104: 125 | BG104: 125 | BH104: 125 | BI104: 0.77 | BJ104: 0.77 | BK104: 77t | BL104: 1.24 | BM104: 1.666666667 | BN104: 124t | CC104: 0.88 | CE104: 0.88
A105: 159 | B105: Richmond County | C105: 0.3333333333 | D105: 0.3333333333 | E105: 1 | F105: 0.6666666667 | G105: 0.5 | H105: 1 | I105: 0.5 | J105: 0.6666666667 | K105: 0.4 | L105: 0.3333333333 | M105: 1 | N105: 1 | O105: 2.833333333 | P105: 3.166666667 | Q105: 18t | R105: 108t | S105: 19t | T105: 80t | U105: 24t | V105: 1t | W105: 69t | X105: 23t | Y105: 123 | Z105: 124 | AA105: 1t | AB105: 1t | AC105: 14t | AD105: 56t | AE105: 0.19 | AF105: 1 | AG105: 19t | AH105: 0.24 | AI105: 0.5 | AJ105: 24t | AK105: 0.69 | AL105: 0.69 | AM105: 69t | AN105: 1.23 | AO105: 1.23 | AP105: 123 | AQ105: 0.01 | AR105: 1 | AS105: 1t | AT105: 0.24 | AU105: 2.833333333 | AV105: 24t | AW105: 0.8 | AX105: 0.8 | AY105: 80t | AZ105: 0.01 | BA105: 1 | BB105: 1t | BC105: 0.23 | BD105: 0.6666666667 | BE105: 23t | BF105: 107 | BG105: 107 | BH105: 107 | BI105: 0.01 | BJ105: 1 | BK105: 1t | BL105: 0.3 | BM105: 3.166666667 | BN105: 30t | CC105: 1.23 | CE105: 1.23
A106: 770 | B106: Roanoke City | C106: 0.5833333333 | D106: 0.6017699115 | E106: 0.4880952381 | F106: 0.4955752212 | G106: 0.2340425532 | H106: 0 | I106: 0.3350649351 | J106: 0.2670157068 | K106: 0.8870967742 | L106: 0.8549019608 | M106: 0.7314814815 | N106: 0.6704545455 | O106: 2.333333333 | P106: 2.5 | Q106: 38 | R106: 26 | S106: 65 | T106: 54 | U106: 38 | V106: 54t | W106: 100 | X106: 109 | Y106: 35 | Z106: 51 | AA106: 84 | AB106: 101 | AC106: 71t | AD106: 69t | AE106: 0.65 | AF106: 0.65 | AG106: 65 | AH106: 0.38 | AI106: 0.38 | AJ106: 38 | AK106: 1 | AL106: 1 | AM106: 100 | AN106: 0.35 | AO106: 0.8870967742 | AP106: 35 | AQ106: 0.84 | AR106: 0.84 | AS106: 84 | AT106: 0.97 | AU106: 2.333333333 | AV106: 97t | AW106: 0.54 | AX106: 0.54 | AY106: 54 | AZ106: 0.54 | BA106: 0.54 | BB106: 54t | BC106: 1.09 | BD106: 1.09 | BE106: 109 | BF106: 46 | BG106: 46 | BH106: 46 | BI106: 1.01 | BJ106: 1.01 | BK106: 101 | BL106: 0.95 | BM106: 2.5 | BN106: 95t | CC106: 0.35 | CE106: 0.35
A107: 161 | B107: Roanoke County | C107: 0.5333333333 | D107: 0.5192307692 | E107: 0.5666666667 | F107: 0.4423076923 | G107: 0.5238095238 | H107: 0.75 | I107: 0.4509803922 | J107: 0.5092592593 | K107: 0.8490566038 | L107: 0.829787234 | M107: 0.8076923077 | N107: 0.8421052632 | O107: 2.833333333 | P107: 3 | Q107: 47 | R107: 64 | S107: 31 | T107: 52t | U107: 23 | V107: 18 | W107: 82 | X107: 68 | Y107: 52t | Z107: 58t | AA107: 57t | AB107: 41t | AC107: 29t | AD107: 28t | AE107: 0.31 | AF107: 0.5666666667 | AG107: 31 | AH107: 0.23 | AI107: 0.5238095238 | AJ107: 23 | AK107: 0.82 | AL107: 0.82 | AM107: 82 | AN107: 0.52 | AO107: 0.8490566038 | AP107: 52t | AQ107: 0.57 | AR107: 0.8076923077 | AS107: 57t | AT107: 0.43 | AU107: 2.833333333 | AV107: 43t | AW107: 0.52 | AX107: 0.52 | AY107: 52t | AZ107: 0.18 | BA107: 0.75 | BB107: 18 | BC107: 0.68 | BD107: 0.68 | BE107: 68 | BF107: 60 | BG107: 60 | BH107: 60 | BI107: 0.41 | BJ107: 0.8421052632 | BK107: 41t | BL107: 0.22 | BM107: 3 | BN107: 22t | CC107: 0.52 | CE107: 0.52
A108: 163 | B108: Rockbridge | C108: 0.5882352941 | D108: 0.4761904762 | E108: 0.4117647059 | F108: 0.4761904762 | G108: 0 | H108: 0 | I108: 0.7432432432 | J108: 0.6707317073 | K108: 0.5789473684 | L108: 0.75 | M108: 0.8 | N108: 0.8 | O108: 2.333333333 | P108: 2.166666667 | Q108: 76t | R108: 46t | S108: 86t | T108: 46t | U108: 53t | V108: 54t | W108: 8 | X108: 22 | Y108: 114t | Z108: 81t | AA108: 60t | AB108: 57t | AC108: 104t | AD108: 69t | AE108: 0.86 | AF108: 0.86 | AG108: 86t | AH108: 0.53 | AI108: 0.53 | AJ108: 53t | AK108: 0.08 | AL108: 0.7432432432 | AM108: 8 | AN108: 1.14 | AO108: 1.14 | AP108: 114t | AQ108: 0.6 | AR108: 0.8 | AS108: 60t | AT108: 1.06 | AU108: 2.333333333 | AV108: 106t | AW108: 0.46 | AX108: 0.4761904762 | AY108: 46t | AZ108: 0.54 | BA108: 0.54 | BB108: 54t | BC108: 0.22 | BD108: 0.6707317073 | BE108: 22 | BF108: 108 | BG108: 108 | BH108: 108 | BI108: 0.57 | BJ108: 0.8 | BK108: 57t | BL108: 0.77 | BM108: 2.166666667 | BN108: 77t | CC108: 1.14 | CE108: 1.14
A109: 165 | B109: Rockingham | C109: 0.3703703704 | D109: 0.4838709677 | E109: 0.3703703704 | F109: 0.5483870968 | G109: 0.4594594595 | H109: 0.4137931034 | I109: 0.3483146067 | J109: 0.3655913978 | K109: 0.8116883117 | L109: 0.7961783439 | M109: 0.7926829268 | N109: 0.7205882353 | O109: 2 | P109: 2.5 | Q109: 101t | R109: 105 | S109: 105t | T109: 94t | U109: 28 | V109: 24 | W109: 98 | X109: 98 | Y109: 66t | Z109: 68t | AA109: 67t | AB109: 89t | AC109: 104t | AD109: 104t | AE109: 1.05 | AF109: 1.05 | AG109: 105t | AH109: 0.28 | AI109: 0.4594594595 | AJ109: 28 | AK109: 0.98 | AL109: 0.98 | AM109: 98 | AN109: 0.66 | AO109: 0.8116883117 | AP109: 66t | AQ109: 0.67 | AR109: 0.7926829268 | AS109: 67t | AT109: 0.97 | AU109: 2 | AV109: 97t | AW109: 0.94 | AX109: 0.94 | AY109: 94t | AZ109: 0.24 | BA109: 0.4137931034 | BB109: 24 | BC109: 0.98 | BD109: 0.98 | BE109: 98 | BF109: 109 | BG109: 109 | BH109: 109 | BI109: 0.89 | BJ109: 0.89 | BK109: 89t | BL109: 0.95 | BM109: 2.5 | BN109: 95t | CC109: 0.66 | CE109: 0.66
A110: 167 | B110: Russell | C110: 0.6222222222 | D110: 0.5102040816 | E110: 0.5333333333 | F110: 0.4285714286 | G110: 0 | H110: 0 | I110: 0.2307692308 | J110: 0.1393442623 | K110: 0.8656716418 | L110: 0.724137931 | M110: 0.8333333333 | N110: 0.7878787879 | O110: 2.666666667 | P110: 1.666666667 | Q110: 28 | R110: 53t | S110: 44 | T110: 75t | U110: 53t | V110: 54t | W110: 117 | X110: 120 | Y110: 47 | Z110: 92 | AA110: 45t | AB110: 72 | AC110: 55t | AD110: 100t | AE110: 0.44 | AF110: 0.5333333333 | AG110: 44 | AH110: 0.53 | AI110: 0.53 | AJ110: 53t | AK110: 1.17 | AL110: 1.17 | AM110: 117 | AN110: 0.47 | AO110: 0.8656716418 | AP110: 47 | AQ110: 0.45 | AR110: 0.8333333333 | AS110: 45t | AT110: 0.79 | AU110: 2.666666667 | AV110: 79t | AW110: 0.75 | AX110: 0.75 | AY110: 75t | AZ110: 0.54 | BA110: 0.54 | BB110: 54t | BC110: 1.2 | BD110: 1.2 | BE110: 120 | BF110: 110 | BG110: 110 | BH110: 110 | BI110: 0.72 | BJ110: 0.7878787879 | BK110: 72 | BL110: 1.06 | BM110: 1.666666667 | BN110: 106t | CC110: 0.47 | CE110: 0.47
A111: 775 | B111: Salem | C111: 0.4666666667 | D111: 0.2105263158 | E111: 0.4666666667 | F111: 0.3684210526 | G111: 1 | H111: 0.8 | I111: 0.406779661 | J111: 0.46875 | K111: 0.8490566038 | L111: 0.829787234 | M111: 0.8076923077 | N111: 0.8421052632 | O111: 2.166666667 | P111: 2.333333333 | Q111: 76t | R111: 108t | S111: 69 | T111: 112 | U111: 1t | V111: 16 | W111: 91 | X111: 82 | Y111: 52t | Z111: 58t | AA111: 57t | AB111: 41t | AC111: 83t | AD111: 86t | AE111: 0.69 | AF111: 0.69 | AG111: 69 | AH111: 0.01 | AI111: 1 | AJ111: 1t | AK111: 0.91 | AL111: 0.91 | AM111: 91 | AN111: 0.52 | AO111: 0.8490566038 | AP111: 52t | AQ111: 0.57 | AR111: 0.8076923077 | AS111: 57t | AT111: 0.79 | AU111: 2.166666667 | AV111: 79t | AW111: 1.12 | AX111: 1.12 | AY111: 112 | AZ111: 0.16 | BA111: 0.8 | BB111: 16 | BC111: 0.82 | BD111: 0.82 | BE111: 82 | BF111: 66 | BG111: 66 | BH111: 66 | BI111: 0.41 | BJ111: 0.8421052632 | BK111: 41t | BL111: 0.66 | BM111: 2.333333333 | BN111: 66t | CC111: 0.52 | CE111: 0.52
A112: 169 | B112: Scott | C112: 0.2857142857 | D112: 0.2352941176 | E112: 0.1428571429 | F112: 0.2941176471 | H112: 0 | I112: 0.1886792453 | J112: 0.1428571429 | K112: 0.9230769231 | L112: 0.9166666667 | M112: 0.8095238095 | N112: 0.7142857143 | O112: 1.8 | P112: 1.666666667 | Q112: 59t | R112: 100t | S112: 116 | T112: 22t | V112: 54t | W112: 120 | X112: 118t | Y112: 25 | Z112: 24t | AA112: 56 | AB112: 92t | AC112: 104t | AD112: 100t | AE112: 1.16 | AF112: 1.16 | AG112: 116 | AK112: 1.2 | AL112: 1.2 | AM112: 120 | AN112: 0.25 | AO112: 0.9230769231 | AP112: 25 | AQ112: 0.56 | AR112: 0.8095238095 | AS112: 56 | AT112: 1.06 | AU112: 1.8 | AV112: 106t | AW112: 0.22 | AX112: 0.2941176471 | AY112: 22t | AZ112: 0.54 | BA112: 0.54 | BB112: 54t | BC112: 1.18 | BD112: 1.18 | BE112: 118t | BF112: 25 | BG112: 25 | BH112: 25 | BI112: 0.92 | BJ112: 0.92 | BK112: 92t | BL112: 0.77 | BM112: 1.666666667 | BN112: 77t | CC112: 0.25 | CE112: 0.25
A113: 171 | B113: Shenandoah | C113: 0.6034482759 | D113: 0.4358974359 | E113: 0.5 | F113: 0.6153846154 | G113: 0 | H113: 0 | I113: 0.7614678899 | J113: 0.7862068966 | K113: 0.6111111111 | L113: 0.7 | M113: 1 | N113: 1 | O113: 3 | P113: 2.666666667 | Q113: 31 | R113: 53t | S113: 41 | T113: 11t | U113: 53t | V113: 54t | W113: 6 | X113: 10 | Y113: 110 | Z113: 94t | AA113: 1t | AB113: 1t | AC113: 24t | AD113: 28t | AE113: 0.41 | AF113: 0.5 | AG113: 41 | AH113: 0.53 | AI113: 0.53 | AJ113: 53t | AK113: 0.06 | AL113: 0.7614678899 | AM113: 6 | AN113: 1.1 | AO113: 1.1 | AP113: 110 | AQ113: 0.01 | AR113: 1 | AS113: 1t | AT113: 0.26 | AU113: 3 | AV113: 26t | AW113: 0.11 | AX113: 0.6153846154 | AY113: 11t | AZ113: 0.54 | BA113: 0.54 | BB113: 54t | BC113: 0.1 | BD113: 0.7862068966 | BE113: 10 | BF113: 111 | BG113: 111 | BH113: 111 | BI113: 0.01 | BJ113: 1 | BK113: 1t | BL113: 0.3 | BM113: 2.666666667 | BN113: 30t | CC113: 1.1 | CE113: 1.1
A114: 173 | B114: Smyth | C114: 0.7777777778 | D114: 0.1818181818 | E114: 0.7777777778 | F114: 0.2727272727 | G114: 0.8333333333 | H114: 1 | I114: 0.6590909091 | J114: 0.5775862069 | K114: 0.8571428571 | L114: 0.9333333333 | M114: 0.8461538462 | N114: 0.7857142857 | O114: 3.833333333 | P114: 2.666666667 | Q114: 1t | R114: 62t | S114: 17 | T114: 68t | U114: 16 | V114: 1t | W114: 29 | X114: 49 | Y114: 48t | Z114: 20 | AA114: 41t | AB114: 73 | AC114: 1t | AD114: 28t | AE114: 0.17 | AF114: 0.7777777778 | AG114: 17 | AH114: 0.16 | AI114: 0.8333333333 | AJ114: 16 | AK114: 0.29 | AL114: 0.6590909091 | AM114: 29 | AN114: 0.48 | AO114: 0.8571428571 | AP114: 48t | AQ114: 0.41 | AR114: 0.8461538462 | AS114: 41t | AT114: 0.01 | AU114: 3.833333333 | AV114: 1t | AW114: 0.68 | AX114: 0.68 | AY114: 68t | AZ114: 0.01 | BA114: 1 | BB114: 1t | BC114: 0.49 | BD114: 0.5775862069 | BE114: 49 | BF114: 26 | BG114: 26 | BH114: 26 | BI114: 0.73 | BJ114: 0.7857142857 | BK114: 73 | BL114: 0.22 | BM114: 2.666666667 | BN114: 22t | CC114: 0.48 | CE114: 0.48
A115: 175 | B115: Southampton | C115: 1 | D115: 0.6666666667 | E115: 1 | F115: 0.6666666667 | H115: 0.3333333333 | I115: 0.4117647059 | J115: 0.3888888889 | K115: 0.625 | L115: 0.5 | N115: 1 | O115: 2.75 | P115: 3 | Q115: 1t | R115: 13t | S115: 15 | T115: 1t | V115: 25t | W115: 90 | X115: 97 | Y115: 107t | Z115: 119t | AB115: 1t | AC115: 53t | AD115: 28t | AE115: 0.15 | AF115: 1 | AG115: 15 | AK115: 0.9 | AL115: 0.9 | AM115: 90 | AN115: 1.07 | AO115: 1.07 | AP115: 107t | AS115: 0 | AT115: 0.94 | AU115: 2.75 | AV115: 94 | AW115: 0.01 | AX115: 0.6666666667 | AY115: 1t | AZ115: 0.25 | BA115: 0.3333333333 | BB115: 25t | BC115: 0.97 | BD115: 0.97 | BE115: 97 | BF115: 112 | BG115: 112 | BH115: 112 | BI115: 0.01 | BJ115: 1 | BK115: 1t | BL115: 0.5 | BM115: 3 | BN115: 50t | CC115: 1.07 | CE115: 1.07
A116: 177 | B116: Spotsylvania | C116: 0.6164383562 | D116: 0.4142857143 | E116: 0.602739726 | F116: 0.4428571429 | G116: 0.347826087 | H116: 0 | I116: 0.456928839 | J116: 0.5252525253 | K116: 0.7792207792 | L116: 0.8804347826 | M116: 0.6909090909 | N116: 0.7179487179 | O116: 2.666666667 | P116: 2.166666667 | Q116: 42 | R116: 65t | S116: 30 | T116: 70 | U116: 31 | V116: 54t | W116: 81 | X116: 62 | Y116: 80 | Z116: 40 | AA116: 90 | AB116: 91 | AC116: 55t | AD116: 104t | AE116: 0.3 | AF116: 0.602739726 | AG116: 30 | AH116: 0.31 | AI116: 0.347826087 | AJ116: 31 | AK116: 0.81 | AL116: 0.81 | AM116: 81 | AN116: 0.8 | AO116: 0.8 | AP116: 80 | AQ116: 0.9 | AR116: 0.9 | AS116: 90 | AT116: 0.79 | AU116: 2.666666667 | AV116: 79t | AW116: 0.7 | AX116: 0.7 | AY116: 70 | AZ116: 0.54 | BA116: 0.54 | BB116: 54t | BC116: 0.62 | BD116: 0.62 | BE116: 62 | BF116: 27 | BG116: 27 | BH116: 27 | BI116: 0.91 | BJ116: 0.91 | BK116: 91 | BL116: 1.06 | BM116: 2.166666667 | BN116: 106t | CC116: 0.8 | CE116: 0.8
A117: 179 | B117: Stafford | C117: 0.775 | D117: 0.5606060606 | E117: 0.65 | F117: 0.5606060606 | G117: 0 | H117: 0 | I117: 0.6319444444 | J117: 0.6242424242 | K117: 0.9655172414 | L117: 0.88 | M117: 0.8518518519 | N117: 0.8695652174 | O117: 3.333333333 | P117: 3.5 | Q117: 11 | R117: 61 | S117: 33 | T117: 30t | U117: 53t | V117: 54t | W117: 36 | X117: 34 | Y117: 17 | Z117: 41 | AA117: 39 | AB117: 32 | AC117: 14t | AD117: 21t | AE117: 0.33 | AF117: 0.65 | AG117: 33 | AH117: 0.53 | AI117: 0.53 | AJ117: 53t | AK117: 0.36 | AL117: 0.6319444444 | AM117: 36 | AN117: 0.17 | AO117: 0.9655172414 | AP117: 17 | AQ117: 0.39 | AR117: 0.8518518519 | AS117: 39 | AT117: 0.24 | AU117: 3.333333333 | AV117: 24t | AW117: 0.3 | AX117: 0.5606060606 | AY117: 30t | AZ117: 0.54 | BA117: 0.54 | BB117: 54t | BC117: 0.34 | BD117: 0.6242424242 | BE117: 34 | BF117: 28 | BG117: 28 | BH117: 28 | BI117: 0.32 | BJ117: 0.8695652174 | BK117: 32 | BL117: 0.14 | BM117: 3.5 | BN117: 14t | CC117: 0.17 | CE117: 0.17
A118: 790 | B118: Staunton | C118: 0.5357142857 | D118: 0.5238095238 | E118: 0.3214285714 | F118: 0.4761904762 | G118: 1 | H118: 0.875 | I118: 0.4461538462 | J118: 0.5462184874 | K118: 0.8846153846 | L118: 0.875 | M118: 0.7948717949 | N118: 0.7049180328 | O118: 2.5 | P118: 3 | Q118: 50t | R118: 31t | S118: 115 | T118: 80t | U118: 1t | V118: 14 | W118: 83 | X118: 54 | Y118: 38t | Z118: 43t | AA118: 65t | AB118: 95t | AC118: 71t | AD118: 28t | AE118: 1.15 | AF118: 1.15 | AG118: 115 | AH118: 0.01 | AI118: 1 | AJ118: 1t | AK118: 0.83 | AL118: 0.83 | AM118: 83 | AN118: 0.38 | AO118: 0.8846153846 | AP118: 38t | AQ118: 0.65 | AR118: 0.7948717949 | AS118: 65t | AT118: 0.79 | AU118: 2.5 | AV118: 79t | AW118: 0.8 | AX118: 0.8 | AY118: 80t | AZ118: 0.14 | BA118: 0.875 | BB118: 14 | BC118: 0.54 | BD118: 0.5462184874 | BE118: 54 | BF118: 47t | BG118: 0.875 | BH118: 47t | BI118: 0.95 | BJ118: 0.95 | BK118: 95t | BL118: 0.5 | BM118: 3 | BN118: 50t | CC118: 0.38 | CE118: 0.38
A119: 800 | B119: Suffolk | C119: 0.5 | D119: 0.5 | E119: 0.5 | F119: 0.6111111111 | G119: 0.2222222222 | H119: 0.3333333333 | I119: 0.243902439 | J119: 0.275 | K119: 0.7142857143 | L119: 0.5833333333 | M119: 0.2 | N119: 0.8333333333 | O119: 1.833333333 | P119: 2.666666667 | Q119: 36t | R119: 100t | S119: 83t | T119: 22t | U119: 40t | V119: 25t | W119: 116 | X119: 107 | Y119: 92t | Z119: 117 | AA119: 119 | AB119: 43t | AC119: 114t | AD119: 86t | AE119: 0.83 | AF119: 0.83 | AG119: 83t | AH119: 0.4 | AI119: 0.4 | AJ119: 40t | AK119: 1.16 | AL119: 1.16 | AM119: 116 | AN119: 0.92 | AO119: 0.92 | AP119: 92t | AQ119: 1.19 | AR119: 1.19 | AS119: 119 | AT119: 1.25 | AU119: 1.833333333 | AV119: 125t | AW119: 0.22 | AX119: 0.6111111111 | AY119: 22t | AZ119: 0.25 | BA119: 0.3333333333 | BB119: 25t | BC119: 1.07 | BD119: 1.07 | BE119: 107 | BF119: 126 | BG119: 126 | BH119: 126 | BI119: 0.43 | BJ119: 0.8333333333 | BK119: 43t | BL119: 0.66 | BM119: 2.666666667 | BN119: 66t | CC119: 0.92 | CE119: 0.92
A120: 181 | B120: Surry | C120: 0.1 | D120: 0 | E120: 0.3 | F120: 0.6666666667 | I120: 0.7272727273 | J120: 0.8571428571 | O120: 2 | P120: 3 | Q120: 118 | R120: 108t | S120: 111 | T120: 11t | W120: 11t | X120: 2t | AC120: 104t | AD120: 28t | AE120: 1.11 | AF120: 1.11 | AG120: 111 | AK120: 0.11 | AL120: 0.7272727273 | AM120: 11t | AN120: 0 | AS120: 0 | AT120: 0.76 | AU120: 2 | AV120: 76t | AW120: 0.11 | AX120: 0.6666666667 | AY120: 11t | AZ120: 0 | BC120: 0.02 | BD120: 0.8571428571 | BE120: 2t | BI120: 0 | BL120: 0.01 | BM120: 3 | BN120: 1t | CC120: 0 | CE120: 0
A121: 183 | B121: Sussex | C121: 0.25 | D121: 1 | E121: 0.5 | F121: 1 | G121: 1 | I121: 0.68 | J121: 0.7727272727 | K121: 1 | L121: 1 | M121: 1 | N121: 1 | O121: 3.333333333 | P121: 4 | Q121: 59t | S121: 47t | U121: 1t | W121: 23 | X121: 13 | Y121: 1t | Z121: 1t | AA121: 1t | AB121: 1t | AC121: 8 | AD121: 1 | AE121: 0.47 | AF121: 0.5 | AG121: 47t | AH121: 0.01 | AI121: 1 | AJ121: 1t | AK121: 0.23 | AL121: 0.68 | AM121: 23 | AN121: 0.01 | AO121: 1 | AP121: 1t | AQ121: 0.01 | AR121: 1 | AS121: 1t | AT121: 0.01 | AU121: 3.333333333 | AV121: 1t | AW121: 0 | AX121: 1 | AZ121: 0 | BC121: 0.13 | BD121: 0.7727272727 | BE121: 13 | BF121: 29 | BG121: 29 | BH121: 29 | BI121: 0.01 | BJ121: 1 | BK121: 1t | BL121: 0.01 | BM121: 4 | BN121: 1t | CC121: 0.01 | CE121: 0.01
A122: 185 | B122: Tazewell | C122: 0.64 | D122: 0.45 | E122: 0.48 | F122: 0.35 | G122: 0 | I122: 0.27 | J122: 0.2745098039 | K122: 0.9387755102 | L122: 0.8888888889 | M122: 0.7741935484 | N122: 0.6842105263 | O122: 2.333333333 | P122: 1.8 | Q122: 16t | R122: 31t | S122: 71t | T122: 110t | U122: 53t | W122: 112 | X122: 108 | Y122: 21 | Z122: 36 | AA122: 73 | AB122: 99 | AC122: 83t | AD122: 81t | AE122: 0.71 | AF122: 0.71 | AG122: 71t | AH122: 0.53 | AI122: 0.53 | AJ122: 53t | AK122: 1.12 | AL122: 1.12 | AM122: 112 | AN122: 0.21 | AO122: 0.9387755102 | AP122: 21 | AQ122: 0.73 | AR122: 0.7741935484 | AS122: 73 | AT122: 1.06 | AU122: 2.333333333 | AV122: 106t | AW122: 1.1 | AX122: 1.1 | AY122: 110t | AZ122: 0 | BC122: 1.08 | BD122: 1.08 | BE122: 108 | BF122: 30 | BG122: 30 | BH122: 30 | BI122: 0.99 | BJ122: 0.99 | BK122: 99 | BL122: 1.06 | BM122: 1.8 | BN122: 106t | CC122: 0.21 | CE122: 0.21
A123: 810 | B123: Virginia Beach | C123: 0.4954954955 | D123: 0.4942528736 | E123: 0.4594594595 | F123: 0.4137931034 | G123: 0.128 | H123: 0.05357142857 | I123: 0.3314917127 | J123: 0.126146789 | K123: 0.8136363636 | L123: 0.8050847458 | M123: 0.6705882353 | N123: 0.6632653061 | O123: 1.833333333 | P123: 1.666666667 | Q123: 72 | R123: 95 | S123: 80 | T123: 93 | U123: 47 | V123: 49 | W123: 103 | X123: 121 | Y123: 65 | Z123: 65 | AA123: 93 | AB123: 104 | AC123: 121t | AD123: 125t | AE123: 0.8 | AF123: 0.8 | AG123: 80 | AH123: 0.47 | AI123: 0.47 | AJ123: 47 | AK123: 1.03 | AL123: 1.03 | AM123: 103 | AN123: 0.65 | AO123: 0.8136363636 | AP123: 65 | AQ123: 0.93 | AR123: 0.93 | AS123: 93 | AT123: 1.22 | AU123: 1.833333333 | AV123: 122t | AW123: 0.93 | AX123: 0.93 | AY123: 93 | AZ123: 0.49 | BA123: 0.49 | BB123: 49 | BC123: 1.21 | BD123: 1.21 | BE123: 121 | BF123: 67 | BG123: 67 | BH123: 67 | BI123: 1.04 | BJ123: 1.04 | BK123: 104 | BL123: 1.21 | BM123: 1.666666667 | BN123: 121t | CC123: 0.65 | CE123: 0.65
A124: 187 | B124: Warren | C124: 0.65 | D124: 0.5 | E124: 0.4 | F124: 0.4444444444 | G124: 0 | I124: 0.5185185185 | J124: 0.4833333333 | K124: 0.7222222222 | L124: 0.8571428571 | M124: 0.75 | N124: 0.8 | O124: 2.166666667 | P124: 2.6 | Q124: 59t | R124: 91 | S124: 86t | T124: 30t | U124: 53t | W124: 63 | X124: 79 | Y124: 90t | Z124: 50 | AA124: 77t | AB124: 57t | AC124: 114t | AD124: 99 | AE124: 0.86 | AF124: 0.86 | AG124: 86t | AH124: 0.53 | AI124: 0.53 | AJ124: 53t | AK124: 0.63 | AL124: 0.63 | AM124: 63 | AN124: 0.9 | AO124: 0.9 | AP124: 90t | AQ124: 0.77 | AR124: 0.77 | AS124: 77t | AT124: 1.17 | AU124: 2.166666667 | AV124: 117t | AW124: 0.3 | AX124: 0.4444444444 | AY124: 30t | AZ124: 0 | BC124: 0.79 | BD124: 0.79 | BE124: 79 | BF124: 31 | BG124: 31 | BH124: 31 | BI124: 0.57 | BJ124: 0.8 | BK124: 57t | BL124: 0.73 | BM124: 2.6 | BN124: 73t | CC124: 0.9 | CE124: 0.9
A125: 191 | B125: Washington | C125: 0.75 | D125: 0.5 | E125: 0.5 | F125: 0.7777777778 | G125: 0.6086956522 | H125: 0.7142857143 | I125: 0.2748091603 | J125: 0.1923076923 | K125: 0.8461538462 | L125: 0.8409090909 | M125: 0.7333333333 | N125: 0.8125 | O125: 2.833333333 | P125: 3 | Q125: 18t | R125: 59 | S125: 47t | T125: 11t | U125: 20 | V125: 19 | W125: 108 | X125: 117 | Y125: 54 | Z125: 54 | AA125: 83 | AB125: 51 | AC125: 45t | AD125: 28t | AE125: 0.47 | AF125: 0.5 | AG125: 47t | AH125: 0.2 | AI125: 0.6086956522 | AJ125: 20 | AK125: 1.08 | AL125: 1.08 | AM125: 108 | AN125: 0.54 | AO125: 0.8461538462 | AP125: 54 | AQ125: 0.83 | AR125: 0.83 | AS125: 83 | AT125: 0.65 | AU125: 2.833333333 | AV125: 65t | AW125: 0.11 | AX125: 0.7777777778 | AY125: 11t | AZ125: 0.19 | BA125: 0.7142857143 | BB125: 19 | BC125: 1.17 | BD125: 1.17 | BE125: 117 | BF125: 61 | BG125: 61 | BH125: 61 | BI125: 0.51 | BJ125: 0.8125 | BK125: 51 | BL125: 0.3 | BM125: 3 | BN125: 30t | CC125: 0.54 | CE125: 0.54
A126: 820 | B126: Waynesboro | C126: 0.5 | D126: 0.4545454545 | E126: 0.4666666667 | F126: 0.3636363636 | G126: 0.8571428571 | H126: 1 | I126: 0.4827586207 | J126: 0.5405405405 | K126: 0.8846153846 | L126: 0.875 | M126: 0.7948717949 | N126: 0.7049180328 | O126: 2.666666667 | P126: 2.666666667 | Q126: 56 | R126: 74t | S126: 75 | T126: 46t | U126: 15 | V126: 1t | W126: 75t | X126: 57t | Y126: 38t | Z126: 43t | AA126: 65t | AB126: 95t | AC126: 45t | AD126: 45t | AE126: 0.75 | AF126: 0.75 | AG126: 75 | AH126: 0.15 | AI126: 0.8571428571 | AJ126: 15 | AK126: 0.75 | AL126: 0.75 | AM126: 75t | AN126: 0.38 | AO126: 0.8846153846 | AP126: 38t | AQ126: 0.65 | AR126: 0.7948717949 | AS126: 65t | AT126: 0.43 | AU126: 2.666666667 | AV126: 43t | AW126: 0.46 | AX126: 0.46 | AY126: 46t | AZ126: 0.01 | BA126: 1 | BB126: 1t | BC126: 0.57 | BD126: 0.57 | BE126: 57t | BF126: 47t | BG126: 0.875 | BH126: 47t | BI126: 0.95 | BJ126: 0.95 | BK126: 95t | BL126: 0.22 | BM126: 2.666666667 | BN126: 22t | CC126: 0.38 | CE126: 0.38
A127: 193 | B127: Westmoreland | C127: 0.5 | D127: 0.5 | E127: 0.5 | F127: 1 | G127: 0.6666666667 | H127: 1 | I127: 0.7073170732 | J127: 0.8571428571 | K127: 0.3333333333 | L127: 0.6666666667 | M127: 0.9 | N127: 1 | O127: 3.166666667 | P127: 3.5 | Q127: 59t | R127: 31t | S127: 47t | T127: 1t | U127: 19 | V127: 1t | W127: 18 | X127: 2t | Y127: 124t | Z127: 103t | AA127: 26 | AB127: 1t | AC127: 24t | AD127: 3t | AE127: 0.47 | AF127: 0.5 | AG127: 47t | AH127: 0.19 | AI127: 0.6666666667 | AJ127: 19 | AK127: 0.18 | AL127: 0.7073170732 | AM127: 18 | AN127: 1.24 | AO127: 1.24 | AP127: 124t | AQ127: 0.26 | AR127: 0.9 | AS127: 26 | AT127: 0.14 | AU127: 3.166666667 | AV127: 14t | AW127: 0.01 | AX127: 1 | AY127: 1t | AZ127: 0.01 | BA127: 1 | BB127: 1t | BC127: 0.02 | BD127: 0.8571428571 | BE127: 2t | BF127: 113 | BG127: 113 | BH127: 113 | BI127: 0.01 | BJ127: 1 | BK127: 1t | BL127: 0.08 | BM127: 3.5 | BN127: 8t | CC127: 1.24 | CE127: 1.24
A128: 830 | B128: Williamsburg | C128: 0.6666666667 | D128: 1 | E128: 0.3333333333 | F128: 1 | I128: 0.25 | J128: 0.3333333333 | K128: 0.8888888889 | L128: 1 | M128: 1 | N128: 0.8888888889 | O128: 2.8 | P128: 3.4 | Q128: 59t | R128: 108t | S128: 47t | T128: 1t | W128: 115 | X128: 102 | Y128: 32t | Z128: 1t | AA128: 1t | AB128: 28 | AC128: 48t | AD128: 52t | AE128: 0.47 | AF128: 0.47 | AG128: 47t | AH128: 0 | AK128: 1.15 | AL128: 1.15 | AM128: 115 | AN128: 0.32 | AO128: 0.8888888889 | AP128: 32t | AQ128: 0.01 | AR128: 1 | AS128: 1t | AT128: 0.26 | AU128: 2.8 | AV128: 26t | AW128: 0.01 | AX128: 1 | AY128: 1t | AZ128: 0 | BC128: 1.02 | BD128: 1.02 | BE128: 102 | BF128: 49 | BG128: 49 | BH128: 49 | BI128: 0.28 | BJ128: 0.8888888889 | BK128: 28 | BL128: 0.18 | BM128: 3.4 | BN128: 18t | CC128: 0.32 | CE128: 0.32
A129: 840 | B129: Winchester | C129: 0.3333333333 | D129: 0.4375 | E129: 0.3888888889 | F129: 0.5625 | G129: 0 | H129: 0.06666666667 | I129: 0.5535714286 | J129: 0.5923566879 | K129: 1 | L129: 0.9 | M129: 0.8333333333 | N129: 0.9230769231 | O129: 2.333333333 | P129: 3 | Q129: 114 | R129: 70t | S129: 105t | T129: 79 | U129: 53t | V129: 48 | W129: 52 | X129: 46 | Y129: 1t | Z129: 29t | AA129: 45t | AB129: 26 | AC129: 83t | AD129: 56t | AE129: 1.05 | AF129: 1.05 | AG129: 105t | AH129: 0.53 | AI129: 0.53 | AJ129: 53t | AK129: 0.52 | AL129: 0.5535714286 | AM129: 52 | AN129: 0.01 | AO129: 1 | AP129: 1t | AQ129: 0.45 | AR129: 0.8333333333 | AS129: 45t | AT129: 0.65 | AU129: 2.333333333 | AV129: 65t | AW129: 0.79 | AX129: 0.79 | AY129: 79 | AZ129: 0.48 | BA129: 0.48 | BB129: 48 | BC129: 0.46 | BD129: 0.5923566879 | BE129: 46 | BF129: 50 | BG129: 50 | BH129: 50 | BI129: 0.26 | BJ129: 0.9230769231 | BK129: 26 | BL129: 0.5 | BM129: 3 | BN129: 50t | CC129: 0.01 | CE129: 0.01
A130: 195 | B130: Wise | C130: 0.5 | D130: 0.3125 | E130: 0.4166666667 | F130: 0.375 | G130: 0 | H130: 0 | I130: 0.2582417582 | J130: 0.303030303 | K130: 0.9252336449 | L130: 0.9541284404 | M130: 0.8181818182 | N130: 0.8032786885 | O130: 2 | P130: 1.666666667 | Q130: 49 | R130: 106 | S130: 71t | T130: 68t | U130: 53t | V130: 54t | W130: 113 | X130: 104 | Y130: 24 | Z130: 17 | AA130: 52t | AB130: 56 | AC130: 83t | AD130: 117t | AE130: 0.71 | AF130: 0.71 | AG130: 71t | AH130: 0.53 | AI130: 0.53 | AJ130: 53t | AK130: 1.13 | AL130: 1.13 | AM130: 113 | AN130: 0.24 | AO130: 0.9252336449 | AP130: 24 | AQ130: 0.52 | AR130: 0.8181818182 | AS130: 52t | AT130: 0.97 | AU130: 2 | AV130: 97t | AW130: 0.68 | AX130: 0.68 | AY130: 68t | AZ130: 0.54 | BA130: 0.54 | BB130: 54t | BC130: 1.04 | BD130: 1.04 | BE130: 104 | BF130: 32 | BG130: 32 | BH130: 32 | BI130: 0.56 | BJ130: 0.8032786885 | BK130: 56 | BL130: 1.06 | BM130: 1.666666667 | BN130: 106t | CC130: 0.24 | CE130: 0.24
A131: 197 | B131: Wythe | C131: 0.5 | D131: 0.6666666667 | E131: 0.5 | F131: 0.4761904762 | G131: 0 | H131: 0 | I131: 0.5052631579 | J131: 0.5565217391 | K131: 0.9032258065 | L131: 0.8974358974 | M131: 0.7222222222 | N131: 0.7826086957 | O131: 2.5 | P131: 2.833333333 | Q131: 59t | R131: 10t | S131: 86t | T131: 73t | U131: 53t | V131: 54t | W131: 67 | X131: 50 | Y131: 28 | Z131: 34 | AA131: 86t | AB131: 74 | AC131: 98t | AD131: 45t | AE131: 0.86 | AF131: =IF(E131<>"",MAX(E131,AE131),"") -> 0.86 | AG131: 86t | AH131: 0.53 | AI131: =IF(G131<>"",MAX(G131,AH131),"") -> 0.53 | AJ131: 53t | AK131: 0.67 | AL131: =IF(I131<>"",MAX(I131,AK131),"") -> 0.67 | AM131: 67 | AN131: 0.28 | AO131: =IF(K131<>"",MAX(K131,AN131),"") -> 0.9032258065 | AP131: 28 | AQ131: 0.86 | AR131: =IF(M131<>"",MAX(M131,AQ131),"") -> 0.86 | AS131: 86t | AT131: 0.97 | AU131: =IF(O131<>"",MAX(O131,AT131),"") -> 2.5 | AV131: 97t | AW131: 0.73 | AX131: =IF(F131<>"",MAX(F131,AW131),"") -> 0.73 | AY131: 73t | AZ131: 0.54 | BA131: =IF(H131<>"",MAX(H131,AZ131),"") -> 0.54 | BB131: 54t | BC131: 0.5 | BD131: =IF(J131<>"",MAX(J131,BC131),"") -> 0.5565217391 | BE131: 50 | BF131: 33 | BG131: =IF(L131<>"",MAX(L131,BF131),"") -> 33 | BH131: 33 | BI131: 0.74 | BJ131: =IF(N131<>"",MAX(N131,BI131),"") -> 0.7826086957 | BK131: 74 | BL131: 0.66 | BM131: =IF(P131<>"",MAX(P131,BL131),"") -> 2.833333333 | BN131: 66t | CC131: 0.28 | CE131: 0.28
A132: 199 | B132: York | C132: 0.6 | D132: 0.2 | E132: 0.5 | F132: 0.6 | G132: 0.2 | H132: 0 | I132: 0.5625 | J132: 0.6 | K132: 0.5 | L132: 0.25 | M132: 0.6 | O132: 2.666666667 | P132: 2.4 | Q132: 96t | R132: 83t | S132: 47t | T132: 11t | U132: 43 | V132: 54t | W132: 48t | X132: 42t | Y132: 120t | Z132: 125t | AA132: 99t | AC132: 98t | AD132: 81t | AE132: 0.47 | AF132: =IF(E132<>"",MAX(E132,AE132),"") -> 0.5 | AG132: 47t | AH132: 0.43 | AI132: =IF(G132<>"",MAX(G132,AH132),"") -> 0.43 | AJ132: 43 | AK132: 0.48 | AL132: =IF(I132<>"",MAX(I132,AK132),"") -> 0.5625 | AM132: 48t | AN132: 1.2 | AO132: =IF(K132<>"",MAX(K132,AN132),"") -> 1.2 | AP132: 120t | AQ132: 0.99 | AR132: =IF(M132<>"",MAX(M132,AQ132),"") -> 0.99 | AS132: 99t | AT132: 0.79 | AU132: =IF(O132<>"",MAX(O132,AT132),"") -> 2.666666667 | AV132: 79t | AW132: 0.11 | AX132: =IF(F132<>"",MAX(F132,AW132),"") -> 0.6 | AY132: 11t | AZ132: 0.54 | BA132: =IF(H132<>"",MAX(H132,AZ132),"") -> 0.54 | BB132: 54t | BC132: 0.42 | BD132: =IF(J132<>"",MAX(J132,BC132),"") -> 0.6 | BE132: 42t | BF132: 114 | BG132: =IF(L132<>"",MAX(L132,BF132),"") -> 114 | BH132: 114 | BI132: 0 | BL132: 0.6 | BM132: =IF(P132<>"",MAX(P132,BL132),"") -> 2.4 | BN132: 60t | CC132: 1.2 | CE132: 1.2
B133: Statewide | C133: 0.5184128631 | D133: 0.4985922703 | E133: 0.4909232365 | F133: 0.4845149731 | G133: 0.3192267503 | H133: 0.3104557641 | I133: 0.5039400346 | J133: 0.5048650042 | K133: 0.8213783404 | L133: 0.8195706827 | M133: 0.775711575 | N133: 0.7733895706 | O133: 2.598333333 | P133: 2.617179487
B135: Locality Performance Measures with Rankings
L139: l
B166: 1Decreases in CANS scores are generally indicative of improved functioning. CANS performance measures are updated periodically with the youth's latest scores. Scores are expected to decrease as time passes and more services are provided. The average number of days between the youth's inital and latest scores is 474 days for FY 2015 and 319 days for FY 2016. As such, FY 2015 CANS scores are not directly comparable to FY 2016 CANS scores.
B167: 2For the percent of youth receiving ICC, the average is taken for non-zero values only.
B168: 3For each of the five outcome measures, localities are assigned a score relative to their proximity to either the statewide average or targets set by the Commonwealth. The composite outcome measure score is calculated using the average of the six outcome measure scores, with 4 being the highest possible score.

Sheet Allformula (hidden)
B1: CSA Performance Measures - FY2019-2021
A2: Fips | C2: Percent of Youth with a Decrease in CANS Child School Domain1 | F2: Percent of Youth with a Decrease in CANS Child Behavior/Emotional Needs Domain1 | I2: Percent of Youth with a Decrease in CANS Child Strengths Domain1 | L2: Percent of Youth Receiving ICC Against Those in Residential2 (Target=75%) | O2: Percent of Youth Receiving CBS Out of All CSA Youth | R2: Percent of Foster Care Children in Family-based Placements (Target=85%) | U2: Percent of Children Who Exit from Foster Care to a Permanent Living Arrangement (Target = 86%) | X2: Composite Performance Measure3 | AA2: SCH19 | AB2: SCH20 | AC2: SCH21 | AD2: BEH19 | AE2: BEH20 | AF2: BEH21 | AG2: STH19 | AH2: STH20 | AI2: STH21 | AJ2: ICC19 | AK2: ICC20 | AL2: ICC21 | AM2: CBS19 | AN2: CBS20 | AO2: CBS21 | AP2: Fam19 | AQ2: Fam20 | AR2: Fam21 | AS2: Per19 | AT2: Per20 | AU2: Per21 | AV2: Com19 | AW2: Com20 | AX2: Com21 | AY2: CANS19_School | BB2: CANS19_Behavior | BE2: CANS19_Srengh | BH2: ICC Rank19 | BK2: CBS19 | BN2: Family19 | BQ2: Permanency19 | BT2: Composite19 | BW2: CANS20_School | BZ2: CANS20_Behavior | CC2: CANS20_Srengh | CF2: ICC Rank20 | CI2: CBS20 | CL2: Family20 | CO2: Permanency20 | CR2: Composite20 | CU2: CANS21_School | CX2: CANS21_Behavior | DA2: CANS21_Srengh | DD2: ICC Rank21 | DG2: CBS21 | DJ2: Family21 | DM2: Permanency21 | DP2: Composite21
B3: Locality | C3: 2019 | D3: 2020 | E3: 2021 | F3: 2019 | G3: 2020 | H3: 2021 | I3: 2019 | J3: 2020 | K3: 2021 | L3: 2019 | M3: 2020 | N3: 2021 | O3: 2019 | P3: 2020 | Q3: 2021 | R3: 2019 | S3: 2020 | T3: 2021 | U3: 2019 | V3: 2020 | W3: 2021 | X3: 2019 | Y3: 2020 | Z3: 2021
A4: 1 | B4: Accomack | C4: =CANS19School!O2 -> 0.75 | D4: =CANS20School!O2 -> 0.5 | E4: =CANS21School!O2 -> 0.3333333333 | F4: =CANS19Behavior!O2 -> 0.75 | G4: =CANS20Behavior!O2 -> 0.5 | H4: =CANS21Behavior!O2 -> 0.6666666667 | I4: =CANS19Strength!O2 -> 0.5 | J4: =CANS20Strength!O2 -> 0.8333333333 | K4: =CANS21Strength!O2 -> 1 | L4: ='ICC19'!N2 ->  | M4: ='ICC20'!N2 ->  | N4: ='ICC21'!N2 ->  | O4: ='CBS19'!N2 -> 0.6666666667 | P4: ='CBS20'!N2 -> 0.7619047619 | Q4: ='CBS21'!N2 -> 0.6666666667 | R4: =FamilyFC19!AE2 -> 0.9166666667 | S4: =FamilyFC20!AE2 -> 0.9166666667 | T4: =FamilyFC21!AE2 -> 0.8 | U4: =Permanency19!AE2 -> 0.8888888889 | V4: =Permanency20!AE2 -> 0.8 | W4: =Permanency21!AE2 -> 0.7777777778 | X4: =Summary19!AJ3 -> 3 | Y4: =Summary20!AJ3 -> 2.833333333 | Z4: =Summary21!AJ3 -> 2.5 | AA4: =IF(AND(CANS19School!Q2<>"",CANS19School!Q2<>0),CANS19School!Q2,"") -> 12t | AB4: =IF(AND(CANS20School!Q2<>"",CANS20School!Q2<>0),CANS20School!Q2,"") -> 49t | AC4: =IF(AND(CANS21School!Q2<>"",CANS21School!Q2<>0),CANS21School!Q2,"") -> 88t | AD4: =IF(AND(CANS19Behavior!Q2<>"",CANS19Behavior!Q2<>0),CANS19Behavior!Q2,"") -> 14t | AE4: =IF(AND(CANS20Behavior!Q2<>"",CANS20Behavior!Q2<>0),CANS20Behavior!Q2,"") -> 55t | AF4: =IF(AND(CANS21Behavior!Q2<>"",CANS21Behavior!Q2<>0),CANS21Behavior!Q2,"") -> 14t | AG4: =IF(AND(CANS19Strength!Q2<>"",CANS19Strength!Q2<>0),CANS19Strength!Q2,"") -> 96t | AH4: =IF(AND(CANS20Strength!Q2<>"",CANS20Strength!Q2<>0),CANS20Strength!Q2,"") -> 10 | AI4: =IF(AND(CANS21Strength!Q2<>"",CANS21Strength!Q2<>0),CANS21Strength!Q2,"") -> 1t | AJ4: =IF(AND('ICC19'!P2<>"",'ICC19'!P2<>0),'ICC19'!P2,"") ->  | AK4: =IF(AND('ICC20'!P2<>"",'ICC20'!P2<>0),'ICC20'!P2,"") ->  | AL4: =IF(AND('ICC21'!P2<>"",'ICC21'!P2<>0),'ICC21'!P2,"") ->  | AM4: =IF(AND('CBS19'!P2<>"",'CBS19'!P2<>0),'CBS19'!P2,"") -> 126 | AN4: =IF(AND('CBS20'!P2<>"",'CBS20'!P2<>0),'CBS20'!P2,"") -> 109 | AO4: =IF(AND('CBS21'!P2<>"",'CBS21'!P2<>0),'CBS21'!P2,"") -> 127 | AP4: =IF(AND(FamilyFC19!AG2<>"",FamilyFC19!AG2<>0),FamilyFC19!AG2,"") -> 34t | AQ4: =IF(AND(FamilyFC20!AG2<>"",FamilyFC20!AG2<>0),FamilyFC20!AG2,"") -> 39t | AR4: =IF(AND(FamilyFC21!AG2<>"",FamilyFC21!AG2<>0),FamilyFC21!AG2,"") -> 94t | AS4: =IF(AND(Permanency19!AG2<>"",Permanency19!AG2<>0),Permanency19!AG2,"") -> 33t | AT4: =IF(AND(Permanency20!AG2<>"",Permanency20!AG2<>0),Permanency20!AG2,"") -> 47t | AU4: =IF(AND(Permanency21!AG2<>"",Permanency21!AG2<>0),Permanency21!AG2,"") -> 80t | AV4: =IF(AND(Summary19!AL3<>"",Summary19!AL3<>0),Summary19!AL3,"") -> 38t | AW4: =IF(AND(Summary20!AL3<>"",Summary20!AL3<>0),Summary20!AL3,"") -> 50t | AX4: =IF(AND(Summary21!AL3<>"",Summary21!AL3<>0),Summary21!AL3,"") -> 82t | AY4: =IF(BA4<>"",SUBSTITUTE(BA4,"t","")/100,"") -> 0.12 | AZ4: =IF(C4<>"",MAX(C4,AY4),"") -> 0.75 | BA4: =AA4 -> 12t | BB4: =IF(BD4<>"",SUBSTITUTE(BD4,"t","")/100,"") -> 0.14 | BC4: =IF(F4<>"",MAX(F4,BB4),"") -> 0.75 | BD4: =AD4 -> 14t | BE4: =IF(BG4<>"",SUBSTITUTE(BG4,"t","")/100,"") -> 0.96 | BF4: =IF(I4<>"",MAX(I4,BE4),"") -> 0.96 | BG4: =AG4 -> 96t | BH4: =IF(BJ4<>"",SUBSTITUTE(BJ4,"t","")/100,"") ->  | BI4: =IF(L4<>"",MAX(L4,BH4),"") ->  | BJ4: =AJ4 ->  | BK4: =IF(BM4<>"",SUBSTITUTE(BM4,"t","")/100,"") -> 1.26 | BL4: =IF(O4<>"",MAX(O4,BK4),"") -> 1.26 | BM4: =AM4 -> 126 | BN4: =IF(BP4<>"",SUBSTITUTE(BP4,"t","")/100,"") -> 0.34 | BO4: =IF(R4<>"",MAX(R4,BN4),"") -> 0.9166666667 | BP4: =AP4 -> 34t | BQ4: =IF(BS4<>"",SUBSTITUTE(BS4,"t","")/100,"") -> 0.33 | BR4: =IF(U4<>"",MAX(U4,BQ4),"") -> 0.8888888889 | BS4: =AS4 -> 33t | BT4: =IF(BV4<>"",SUBSTITUTE(BV4,"t","")/100,"") -> 0.38 | BU4: =IF(X4<>"",MAX(X4,BT4),"") -> 3 | BV4: =AV4 -> 38t | BW4: =IF(BY4<>"",SUBSTITUTE(BY4,"t","")/100,"") -> 0.49 | BX4: =IF(D4<>"",MAX(D4,BW4),"") -> 0.5 | BY4: =AB4 -> 49t | BZ4: =IF(CB4<>"",SUBSTITUTE(CB4,"t","")/100,"") -> 0.55 | CA4: =IF(G4<>"",MAX(G4,BZ4),"") -> 0.55 | CB4: =AE4 -> 55t | CC4: =IF(CE4<>"",SUBSTITUTE(CE4,"t","")/100,"") -> 0.1 | CD4: =IF(J4<>"",MAX(J4,CC4),"") -> 0.8333333333 | CE4: =AH4 -> 10 | CF4: =IF(CH4<>"",SUBSTITUTE(CH4,"t","")/100,"") ->  | CG4: =IF(M4<>"",MAX(M4,CF4),"") ->  | CH4: =AK4 ->  | CI4: =IF(CK4<>"",SUBSTITUTE(CK4,"t","")/100,"") -> 1.09 | CJ4: =IF(P4<>"",MAX(P4,CI4),"") -> 1.09 | CK4: =AN4 -> 109 | CL4: =IF(CN4<>"",SUBSTITUTE(CN4,"t","")/100,"") -> 0.39 | CM4: =IF(S4<>"",MAX(S4,CL4),"") -> 0.9166666667 | CN4: =AQ4 -> 39t | CO4: =IF(CQ4<>"",SUBSTITUTE(CQ4,"t","")/100,"") -> 0.47 | CP4: =IF(V4<>"",MAX(V4,CO4),"") -> 0.8 | CQ4: =AT4 -> 47t | CR4: =IF(CT4<>"",SUBSTITUTE(CT4,"t","")/100,"") -> 0.5 | CS4: =IF(Y4<>"",MAX(Y4,CR4),"") -> 2.833333333 | CT4: =AW4 -> 50t | CU4: =IF(CW4<>"",SUBSTITUTE(CW4,"t","")/100,"") -> 0.88 | CV4: =IF(E4<>"",MAX(E4,CU4),"") -> 0.88 | CW4: =AC4 -> 88t | CX4: =IF(CZ4<>"",SUBSTITUTE(CZ4,"t","")/100,"") -> 0.14 | CY4: =IF(H4<>"",MAX(H4,CX4),"") -> 0.6666666667 | CZ4: =AF4 -> 14t | DA4: =IF(DC4<>"",SUBSTITUTE(DC4,"t","")/100,"") -> 0.01 | DB4: =IF(K4<>"",MAX(K4,DA4),"") -> 1 | DC4: =AI4 -> 1t | DD4: =IF(DF4<>"",SUBSTITUTE(DF4,"t","")/100,"") ->  | DE4: =IF(N4<>"",MAX(N4,DD4),"") ->  | DF4: =AL4 ->  | DG4: =IF(DI4<>"",SUBSTITUTE(DI4,"t","")/100,"") -> 1.27 | DH4: =IF(Q4<>"",MAX(Q4,DG4),"") -> 1.27 | DI4: =AO4 -> 127 | DJ4: =IF(DL4<>"",SUBSTITUTE(DL4,"t","")/100,"") -> 0.94 | DK4: =IF(T4<>"",MAX(T4,DJ4),"") -> 0.94 | DL4: =AR4 -> 94t | DM4: =IF(DO4<>"",SUBSTITUTE(DO4,"t","")/100,"") -> 0.8 | DN4: =IF(W4<>"",MAX(W4,DM4),"") -> 0.8 | DO4: =AU4 -> 80t | DP4: =IF(DR4<>"",SUBSTITUTE(DR4,"t","")/100,"") -> 0.82 | DQ4: =IF(Z4<>"",MAX(Z4,DP4),"") -> 2.5 | DR4: =AX4 -> 82t
A5: 3 | B5: Albemarle | C5: =CANS19School!O3 -> 0.4647887324 | D5: =CANS20School!O3 -> 0.4848484848 | E5: =CANS21School!O3 -> 0.4444444444 | F5: =CANS19Behavior!O3 -> 0.5774647887 | G5: =CANS20Behavior!O3 -> 0.4696969697 | H5: =CANS21Behavior!O3 -> 0.5185185185 | I5: =CANS19Strength!O3 -> 0.6338028169 | J5: =CANS20Strength!O3 -> 0.5 | K5: =CANS21Strength!O3 -> 0.6666666667 | L5: ='ICC19'!N3 -> 0.7037037037 | M5: ='ICC20'!N3 -> 0.9259259259 | N5: ='ICC21'!N3 -> 1 | O5: ='CBS19'!N3 -> 0.8892508143 | P5: ='CBS20'!N3 -> 0.8885245902 | Q5: ='CBS21'!N3 -> 0.9 | R5: =FamilyFC19!AE3 -> 0.9263157895 | S5: =FamilyFC20!AE3 -> 0.902173913 | T5: =FamilyFC21!AE3 -> 0.9411764706 | U5: =Permanency19!AE3 -> 0.6829268293 | V5: =Permanency20!AE3 -> 0.7027027027 | W5: =Permanency21!AE3 -> 0.7142857143 | X5: =Summary19!AJ4 -> 3.285714286 | Y5: =Summary20!AJ4 -> 2.714285714 | Z5: =Summary21!AJ4 -> 3.571428571 | AA5: =IF(AND(CANS19School!Q3<>"",CANS19School!Q3<>0),CANS19School!Q3,"") -> 88 | AB5: =IF(AND(CANS20School!Q3<>"",CANS20School!Q3<>0),CANS20School!Q3,"") -> 65 | AC5: =IF(AND(CANS21School!Q3<>"",CANS21School!Q3<>0),CANS21School!Q3,"") -> 46t | AD5: =IF(AND(CANS19Behavior!Q3<>"",CANS19Behavior!Q3<>0),CANS19Behavior!Q3,"") -> 48 | AE5: =IF(AND(CANS20Behavior!Q3<>"",CANS20Behavior!Q3<>0),CANS20Behavior!Q3,"") -> 71 | AF5: =IF(AND(CANS21Behavior!Q3<>"",CANS21Behavior!Q3<>0),CANS21Behavior!Q3,"") -> 34 | AG5: =IF(AND(CANS19Strength!Q3<>"",CANS19Strength!Q3<>0),CANS19Strength!Q3,"") -> 61 | AH5: =IF(AND(CANS20Strength!Q3<>"",CANS20Strength!Q3<>0),CANS20Strength!Q3,"") -> 102t | AI5: =IF(AND(CANS21Strength!Q3<>"",CANS21Strength!Q3<>0),CANS21Strength!Q3,"") -> 31t | AJ5: =IF(AND('ICC19'!P3<>"",'ICC19'!P3<>0),'ICC19'!P3,"") -> 25 | AK5: =IF(AND('ICC20'!P3<>"",'ICC20'!P3<>0),'ICC20'!P3,"") -> 22 | AL5: =IF(AND('ICC21'!P3<>"",'ICC21'!P3<>0),'ICC21'!P3,"") -> 1t | AM5: =IF(AND('CBS19'!P3<>"",'CBS19'!P3<>0),'CBS19'!P3,"") -> 26 | AN5: =IF(AND('CBS20'!P3<>"",'CBS20'!P3<>0),'CBS20'!P3,"") -> 39 | AO5: =IF(AND('CBS21'!P3<>"",'CBS21'!P3<>0),'CBS21'!P3,"") -> 28 | AP5: =IF(AND(FamilyFC19!AG3<>"",FamilyFC19!AG3<>0),FamilyFC19!AG3,"") -> 30t | AQ5: =IF(AND(FamilyFC20!AG3<>"",FamilyFC20!AG3<>0),FamilyFC20!AG3,"") -> 48 | AR5: =IF(AND(FamilyFC21!AG3<>"",FamilyFC21!AG3<>0),FamilyFC21!AG3,"") -> 29 | AS5: =IF(AND(Permanency19!AG3<>"",Permanency19!AG3<>0),Permanency19!AG3,"") -> 95 | AT5: =IF(AND(Permanency20!AG3<>"",Permanency20!AG3<>0),Permanency20!AG3,"") -> 84 | AU5: =IF(AND(Permanency21!AG3<>"",Permanency21!AG3<>0),Permanency21!AG3,"") -> 94t | AV5: =IF(AND(Summary19!AL4<>"",Summary19!AL4<>0),Summary19!AL4,"") -> 16t | AW5: =IF(AND(Summary20!AL4<>"",Summary20!AL4<>0),Summary20!AL4,"") -> 55t | AX5: =IF(AND(Summary21!AL4<>"",Summary21!AL4<>0),Summary21!AL4,"") -> 8t | AY5: =IF(BA5<>"",SUBSTITUTE(BA5,"t","")/100,"") -> 0.88 | AZ5: 0.88 | BA5: =AA5 -> 88 | BB5: =IF(BD5<>"",SUBSTITUTE(BD5,"t","")/100,"") -> 0.48 | BC5: 0.5774647887 | BD5: =AD5 -> 48 | BE5: =IF(BG5<>"",SUBSTITUTE(BG5,"t","")/100,"") -> 0.61 | BF5: 0.6338028169 | BG5: =AG5 -> 61 | BH5: =IF(BJ5<>"",SUBSTITUTE(BJ5,"t","")/100,"") -> 0.25 | BI5: 0.7037037037 | BJ5: =AJ5 -> 25 | BK5: =IF(BM5<>"",SUBSTITUTE(BM5,"t","")/100,"") -> 0.26 | BL5: 0.8892508143 | BM5: =AM5 -> 26 | BN5: =IF(BP5<>"",SUBSTITUTE(BP5,"t","")/100,"") -> 0.3 | BO5: 0.9263157895 | BP5: =AP5 -> 30t | BQ5: =IF(BS5<>"",SUBSTITUTE(BS5,"t","")/100,"") -> 0.95 | BR5: 0.95 | BS5: =AS5 -> 95 | BT5: =IF(BV5<>"",SUBSTITUTE(BV5,"t","")/100,"") -> 0.16 | BU5: 3.285714286 | BV5: =AV5 -> 16t | BW5: =IF(BY5<>"",SUBSTITUTE(BY5,"t","")/100,"") -> 0.65 | BX5: 0.65 | BY5: =AB5 -> 65 | BZ5: =IF(CB5<>"",SUBSTITUTE(CB5,"t","")/100,"") -> 0.71 | CA5: =IF(H5<>"",MAX(H5,BZ5),"") -> 0.71 | CB5: =AE5 -> 71 | CC5: =IF(CE5<>"",SUBSTITUTE(CE5,"t","")/100,"") -> 1.02 | CD5: 1.02 | CE5: =AH5 -> 102t | CF5: =IF(CH5<>"",SUBSTITUTE(CH5,"t","")/100,"") -> 0.22 | CG5: 0.9259259259 | CH5: =AK5 -> 22 | CI5: =IF(CK5<>"",SUBSTITUTE(CK5,"t","")/100,"") -> 0.39 | CJ5: 0.8885245902 | CK5: =AN5 -> 39 | CL5: =IF(CN5<>"",SUBSTITUTE(CN5,"t","")/100,"") -> 0.48 | CM5: 0.902173913 | CN5: =AQ5 -> 48 | CO5: =IF(CQ5<>"",SUBSTITUTE(CQ5,"t","")/100,"") -> 0.84 | CP5: 0.84 | CQ5: =AT5 -> 84 | CR5: =IF(CT5<>"",SUBSTITUTE(CT5,"t","")/100,"") -> 0.55 | CS5: 2.714285714 | CT5: =AW5 -> 55t | CU5: =IF(CW5<>"",SUBSTITUTE(CW5,"t","")/100,"") -> 0.46 | CV5: 0.46 | CW5: =AC5 -> 46t | CX5: =IF(CZ5<>"",SUBSTITUTE(CZ5,"t","")/100,"") -> 0.34 | CY5: 0.5185185185 | CZ5: =AF5 -> 34 | DA5: =IF(DC5<>"",SUBSTITUTE(DC5,"t","")/100,"") -> 0.31 | DB5: 0.6666666667 | DC5: =AI5 -> 31t | DD5: =IF(DF5<>"",SUBSTITUTE(DF5,"t","")/100,"") -> 0.01 | DE5: 1 | DF5: =AL5 -> 1t | DG5: =IF(DI5<>"",SUBSTITUTE(DI5,"t","")/100,"") -> 0.28 | DH5: 0.9 | DI5: =AO5 -> 28 | DJ5: =IF(DL5<>"",SUBSTITUTE(DL5,"t","")/100,"") -> 0.29 | DK5: 0.9411764706 | DL5: =AR5 -> 29 | DM5: =IF(DO5<>"",SUBSTITUTE(DO5,"t","")/100,"") -> 0.94 | DN5: 0.94 | DO5: =AU5 -> 94t | DP5: =IF(DR5<>"",SUBSTITUTE(DR5,"t","")/100,"") -> 0.08 | DQ5: 3.571428571 | DR5: =AX5 -> 8t
A6: 510 | B6: Alexandria | C6: =CANS19School!O4 -> 0.5961538462 | D6: =CANS20School!O4 -> 0.4210526316 | E6: =CANS21School!O4 -> 0.9411764706 | F6: =CANS19Behavior!O4 -> 0.4423076923 | G6: =CANS20Behavior!O4 -> 0.4210526316 | H6: =CANS21Behavior!O4 -> 0.3529411765 | I6: =CANS19Strength!O4 -> 0.6153846154 | J6: =CANS20Strength!O4 -> 0.6578947368 | K6: =CANS21Strength!O4 -> 0.5294117647 | L6: ='ICC19'!N4 -> 1 | M6: ='ICC20'!N4 -> 1 | N6: ='ICC21'!N4 -> 1 | O6: ='CBS19'!N4 -> 0.9201877934 | P6: ='CBS20'!N4 -> 0.9323671498 | Q6: ='CBS21'!N4 -> 0.9116022099 | R6: =FamilyFC19!AE4 -> 0.9263157895 | S6: =FamilyFC20!AE4 -> 0.931372549 | T6: =FamilyFC21!AE4 -> 0.9638554217 | U6: =Permanency19!AE4 -> 0.7058823529 | V6: =Permanency20!AE4 -> 0.6764705882 | W6: =Permanency21!AE4 -> 0.7575757576 | X6: =Summary19!AJ5 -> 3.142857143 | Y6: =Summary20!AJ5 -> 2.857142857 | Z6: =Summary21!AJ5 -> 3 | AA6: =IF(AND(CANS19School!Q4<>"",CANS19School!Q4<>0),CANS19School!Q4,"") -> 39 | AB6: =IF(AND(CANS20School!Q4<>"",CANS20School!Q4<>0),CANS20School!Q4,"") -> 82 | AC6: =IF(AND(CANS21School!Q4<>"",CANS21School!Q4<>0),CANS21School!Q4,"") -> 9 | AD6: =IF(AND(CANS19Behavior!Q4<>"",CANS19Behavior!Q4<>0),CANS19Behavior!Q4,"") -> 98 | AE6: =IF(AND(CANS20Behavior!Q4<>"",CANS20Behavior!Q4<>0),CANS20Behavior!Q4,"") -> 84 | AF6: =IF(AND(CANS21Behavior!Q4<>"",CANS21Behavior!Q4<>0),CANS21Behavior!Q4,"") -> 86 | AG6: =IF(AND(CANS19Strength!Q4<>"",CANS19Strength!Q4<>0),CANS19Strength!Q4,"") -> 67 | AH6: =IF(AND(CANS20Strength!Q4<>"",CANS20Strength!Q4<>0),CANS20Strength!Q4,"") -> 53 | AI6: =IF(AND(CANS21Strength!Q4<>"",CANS21Strength!Q4<>0),CANS21Strength!Q4,"") -> 72 | AJ6: =IF(AND('ICC19'!P4<>"",'ICC19'!P4<>0),'ICC19'!P4,"") -> 1t | AK6: =IF(AND('ICC20'!P4<>"",'ICC20'!P4<>0),'ICC20'!P4,"") -> 1t | AL6: =IF(AND('ICC21'!P4<>"",'ICC21'!P4<>0),'ICC21'!P4,"") -> 1t | AM6: =IF(AND('CBS19'!P4<>"",'CBS19'!P4<>0),'CBS19'!P4,"") -> 12 | AN6: =IF(AND('CBS20'!P4<>"",'CBS20'!P4<>0),'CBS20'!P4,"") -> 16 | AO6: =IF(AND('CBS21'!P4<>"",'CBS21'!P4<>0),'CBS21'!P4,"") -> 25 | AP6: =IF(AND(FamilyFC19!AG4<>"",FamilyFC19!AG4<>0),FamilyFC19!AG4,"") -> 30t | AQ6: =IF(AND(FamilyFC20!AG4<>"",FamilyFC20!AG4<>0),FamilyFC20!AG4,"") -> 35 | AR6: =IF(AND(FamilyFC21!AG4<>"",FamilyFC21!AG4<>0),FamilyFC21!AG4,"") -> 19 | AS6: =IF(AND(Permanency19!AG4<>"",Permanency19!AG4<>0),Permanency19!AG4,"") -> 87t | AT6: =IF(AND(Permanency20!AG4<>"",Permanency20!AG4<>0),Permanency20!AG4,"") -> 91 | AU6: =IF(AND(Permanency21!AG4<>"",Permanency21!AG4<>0),Permanency21!AG4,"") -> 84 | AV6: =IF(AND(Summary19!AL5<>"",Summary19!AL5<>0),Summary19!AL5,"") -> 29t | AW6: =IF(AND(Summary20!AL5<>"",Summary20!AL5<>0),Summary20!AL5,"") -> 42t | AX6: =IF(AND(Summary21!AL5<>"",Summary21!AL5<>0),Summary21!AL5,"") -> 31t | AY6: 0.39 | AZ6: 0.5961538462 | BA6: 39 | BB6: 0.98 | BC6: 0.98 | BD6: 98 | BE6: 0.67 | BF6: 0.67 | BG6: 67 | BH6: 0.01 | BI6: 1 | BJ6: 1t | BK6: 0.12 | BL6: 0.9201877934 | BM6: 12 | BN6: 0.3 | BO6: 0.9263157895 | BP6: 30t | BQ6: 0.87 | BR6: 0.87 | BS6: 87t | BT6: 0.29 | BU6: 3.142857143 | BV6: 29t | BW6: 0.82 | BX6: 0.82 | BY6: 82 | BZ6: 0.84 | CA6: 0.84 | CB6: 84 | CC6: 0.53 | CD6: 0.6578947368 | CE6: 53 | CF6: 0.01 | CG6: 1 | CH6: 1t | CI6: 0.16 | CJ6: 0.9323671498 | CK6: 16 | CL6: 0.35 | CM6: 0.931372549 | CN6: 35 | CO6: 0.91 | CP6: 0.91 | CQ6: 91 | CR6: 0.42 | CS6: 2.857142857 | CT6: 42t | CU6: 0.09 | CV6: 0.9411764706 | CW6: 9 | CX6: 0.86 | CY6: 0.86 | CZ6: 86 | DA6: 0.72 | DB6: 0.72 | DC6: 72 | DD6: 0.01 | DE6: 1 | DF6: 1t | DG6: 0.25 | DH6: 0.9116022099 | DI6: 25 | DJ6: 0.19 | DK6: 0.9638554217 | DL6: 19 | DM6: 0.84 | DN6: 0.84 | DO6: 84 | DP6: 0.31 | DQ6: 3 | DR6: 31t
A7: 5 | B7: Alleghany | C7: =CANS19School!O5 -> 0.6153846154 | D7: =CANS20School!O5 -> 0.3333333333 | E7: =CANS21School!O5 -> 0.6 | F7: =CANS19Behavior!O5 -> 0.4615384615 | G7: =CANS20Behavior!O5 -> 0.3333333333 | H7: =CANS21Behavior!O5 -> 0.4 | I7: =CANS19Strength!O5 -> 0.3846153846 | J7: =CANS20Strength!O5 -> 0.6666666667 | K7: =CANS21Strength!O5 -> 0.6 | L7: ='ICC19'!N5 ->  | M7: ='ICC20'!N5 ->  | N7: ='ICC21'!N5 ->  | O7: ='CBS19'!N5 -> 0.8833333333 | P7: ='CBS20'!N5 -> 0.8125 | Q7: ='CBS21'!N5 -> 0.8958333333 | R7: =FamilyFC19!AE5 -> 0.8571428571 | S7: =FamilyFC20!AE5 -> 0.7777777778 | T7: =FamilyFC21!AE5 -> 0.78125 | U7: =Permanency19!AE5 -> 0.9166666667 | V7: =Permanency20!AE5 -> 0.8571428571 | W7: =Permanency21!AE5 -> 1 | X7: =Summary19!AJ6 -> 3.166666667 | Y7: =Summary20!AJ6 -> 2 | Z7: =Summary21!AJ6 -> 3.333333333 | AA7: =IF(AND(CANS19School!Q5<>"",CANS19School!Q5<>0),CANS19School!Q5,"") -> 33t | AB7: =IF(AND(CANS20School!Q5<>"",CANS20School!Q5<>0),CANS20School!Q5,"") -> 109t | AC7: =IF(AND(CANS21School!Q5<>"",CANS21School!Q5<>0),CANS21School!Q5,"") -> 20t | AD7: =IF(AND(CANS19Behavior!Q5<>"",CANS19Behavior!Q5<>0),CANS19Behavior!Q5,"") -> 87t | AE7: =IF(AND(CANS20Behavior!Q5<>"",CANS20Behavior!Q5<>0),CANS20Behavior!Q5,"") -> 108t | AF7: =IF(AND(CANS21Behavior!Q5<>"",CANS21Behavior!Q5<>0),CANS21Behavior!Q5,"") -> 73t | AG7: =IF(AND(CANS19Strength!Q5<>"",CANS19Strength!Q5<>0),CANS19Strength!Q5,"") -> 119 | AH7: =IF(AND(CANS20Strength!Q5<>"",CANS20Strength!Q5<>0),CANS20Strength!Q5,"") -> 44t | AI7: =IF(AND(CANS21Strength!Q5<>"",CANS21Strength!Q5<>0),CANS21Strength!Q5,"") -> 46t | AJ7: =IF(AND('ICC19'!P5<>"",'ICC19'!P5<>0),'ICC19'!P5,"") ->  | AK7: =IF(AND('ICC20'!P5<>"",'ICC20'!P5<>0),'ICC20'!P5,"") ->  | AL7: =IF(AND('ICC21'!P5<>"",'ICC21'!P5<>0),'ICC21'!P5,"") ->  | AM7: =IF(AND('CBS19'!P5<>"",'CBS19'!P5<>0),'CBS19'!P5,"") -> 31 | AN7: =IF(AND('CBS20'!P5<>"",'CBS20'!P5<>0),'CBS20'!P5,"") -> 88t | AO7: =IF(AND('CBS21'!P5<>"",'CBS21'!P5<>0),'CBS21'!P5,"") -> 32 | AP7: =IF(AND(FamilyFC19!AG5<>"",FamilyFC19!AG5<>0),FamilyFC19!AG5,"") -> 60t | AQ7: =IF(AND(FamilyFC20!AG5<>"",FamilyFC20!AG5<>0),FamilyFC20!AG5,"") -> 99t | AR7: =IF(AND(FamilyFC21!AG5<>"",FamilyFC21!AG5<>0),FamilyFC21!AG5,"") -> 104t | AS7: =IF(AND(Permanency19!AG5<>"",Permanency19!AG5<>0),Permanency19!AG5,"") -> 28t | AT7: =IF(AND(Permanency20!AG5<>"",Permanency20!AG5<>0),Permanency20!AG5,"") -> 30t | AU7: =IF(AND(Permanency21!AG5<>"",Permanency21!AG5<>0),Permanency21!AG5,"") -> 1t | AV7: =IF(AND(Summary19!AL6<>"",Summary19!AL6<>0),Summary19!AL6,"") -> 21t | AW7: =IF(AND(Summary20!AL6<>"",Summary20!AL6<>0),Summary20!AL6,"") -> 112t | AX7: =IF(AND(Summary21!AL6<>"",Summary21!AL6<>0),Summary21!AL6,"") -> 17t | AY7: 0.33 | AZ7: 0.6153846154 | BA7: 33t | BB7: 0.87 | BC7: 0.87 | BD7: 87t | BE7: 1.19 | BF7: 1.19 | BG7: 119 | BK7: 0.31 | BL7: 0.8833333333 | BM7: 31 | BN7: 0.6 | BO7: 0.8571428571 | BP7: 60t | BQ7: 0.28 | BR7: 0.9166666667 | BS7: 28t | BT7: 0.21 | BU7: 3.166666667 | BV7: 21t | BW7: 1.09 | BX7: 1.09 | BY7: 109t | BZ7: 1.08 | CA7: 1.08 | CB7: 108t | CC7: 0.44 | CD7: 0.6666666667 | CE7: 44t | CI7: 0.88 | CJ7: 0.88 | CK7: 88t | CL7: 0.99 | CM7: 0.99 | CN7: 99t | CO7: 0.3 | CP7: 0.8571428571 | CQ7: 30t | CR7: 1.12 | CS7: 2 | CT7: 112t | CU7: 0.2 | CV7: 0.6 | CW7: 20t | CX7: 0.73 | CY7: 0.73 | CZ7: 73t | DA7: 0.46 | DB7: 0.6 | DC7: 46t | DG7: 0.32 | DH7: 0.8958333333 | DI7: 32 | DJ7: 1.04 | DK7: 1.04 | DL7: 104t | DM7: 0.01 | DN7: 1 | DO7: 1t | DP7: 0.17 | DQ7: 3.333333333 | DR7: 17t
A8: 7 | B8: Amelia | C8: =CANS19School!O6 -> 1 | D8: =CANS20School!O6 -> 0.75 | E8: =CANS21School!O6 -> 1 | F8: =CANS19Behavior!O6 -> 1 | G8: =CANS20Behavior!O6 -> 0.5 | H8: =CANS21Behavior!O6 -> 1 | I8: =CANS19Strength!O6 -> 0.6666666667 | J8: =CANS20Strength!O6 -> 0.5 | K8: =CANS21Strength!O6 -> 1 | L8: ='ICC19'!N6 ->  | M8: ='ICC20'!N6 ->  | N8: ='ICC21'!N6 ->  | O8: ='CBS19'!N6 -> 0.75 | P8: ='CBS20'!N6 -> 0.5714285714 | Q8: ='CBS21'!N6 -> 0.8 | R8: =FamilyFC19!AE6 -> 1 | S8: =FamilyFC20!AE6 -> 1 | T8: =FamilyFC21!AE6 -> 1 | U8: =Permanency19!AE6 -> 1 | V8: =Permanency20!AE6 ->  | W8: =Permanency21!AE6 ->  | X8: =Summary19!AJ7 -> 3.5 | Y8: =Summary20!AJ7 -> 2.6 | Z8: =Summary21!AJ7 -> 3.4 | AA8: =IF(AND(CANS19School!Q6<>"",CANS19School!Q6<>0),CANS19School!Q6,"") -> 1t | AB8: =IF(AND(CANS20School!Q6<>"",CANS20School!Q6<>0),CANS20School!Q6,"") -> 7t | AC8: =IF(AND(CANS21School!Q6<>"",CANS21School!Q6<>0),CANS21School!Q6,"") -> 1t | AD8: =IF(AND(CANS19Behavior!Q6<>"",CANS19Behavior!Q6<>0),CANS19Behavior!Q6,"") -> 1t | AE8: =IF(AND(CANS20Behavior!Q6<>"",CANS20Behavior!Q6<>0),CANS20Behavior!Q6,"") -> 55t | AF8: =IF(AND(CANS21Behavior!Q6<>"",CANS21Behavior!Q6<>0),CANS21Behavior!Q6,"") -> 1t | AG8: =IF(AND(CANS19Strength!Q6<>"",CANS19Strength!Q6<>0),CANS19Strength!Q6,"") -> 43t | AH8: =IF(AND(CANS20Strength!Q6<>"",CANS20Strength!Q6<>0),CANS20Strength!Q6,"") -> 102t | AI8: =IF(AND(CANS21Strength!Q6<>"",CANS21Strength!Q6<>0),CANS21Strength!Q6,"") -> 1t | AJ8: =IF(AND('ICC19'!P6<>"",'ICC19'!P6<>0),'ICC19'!P6,"") ->  | AK8: =IF(AND('ICC20'!P6<>"",'ICC20'!P6<>0),'ICC20'!P6,"") ->  | AL8: =IF(AND('ICC21'!P6<>"",'ICC21'!P6<>0),'ICC21'!P6,"") ->  | AM8: =IF(AND('CBS19'!P6<>"",'CBS19'!P6<>0),'CBS19'!P6,"") -> 111t | AN8: =IF(AND('CBS20'!P6<>"",'CBS20'!P6<>0),'CBS20'!P6,"") -> 129 | AO8: =IF(AND('CBS21'!P6<>"",'CBS21'!P6<>0),'CBS21'!P6,"") -> 96t | AP8: =IF(AND(FamilyFC19!AG6<>"",FamilyFC19!AG6<>0),FamilyFC19!AG6,"") -> 1t | AQ8: =IF(AND(FamilyFC20!AG6<>"",FamilyFC20!AG6<>0),FamilyFC20!AG6,"") -> 1t | AR8: =IF(AND(FamilyFC21!AG6<>"",FamilyFC21!AG6<>0),FamilyFC21!AG6,"") -> 1t | AS8: =IF(AND(Permanency19!AG6<>"",Permanency19!AG6<>0),Permanency19!AG6,"") -> 1t | AT8: =IF(AND(Permanency20!AG6<>"",Permanency20!AG6<>0),Permanency20!AG6,"") ->  | AU8: =IF(AND(Permanency21!AG6<>"",Permanency21!AG6<>0),Permanency21!AG6,"") ->  | AV8: =IF(AND(Summary19!AL7<>"",Summary19!AL7<>0),Summary19!AL7,"") -> 10t | AW8: =IF(AND(Summary20!AL7<>"",Summary20!AL7<>0),Summary20!AL7,"") -> 63t | AX8: =IF(AND(Summary21!AL7<>"",Summary21!AL7<>0),Summary21!AL7,"") -> 15t | AY8: 0.01 | AZ8: 1 | BA8: 1t | BB8: 0.01 | BC8: 1 | BD8: 1t | BE8: 0.43 | BF8: 0.6666666667 | BG8: 43t | BK8: 1.11 | BL8: 1.11 | BM8: 111t | BN8: 0.01 | BO8: 1 | BP8: 1t | BQ8: 0.01 | BR8: 1 | BS8: 1t | BT8: 0.1 | BU8: 3.5 | BV8: 10t | BW8: 0.07 | BX8: 0.75 | BY8: 7t | BZ8: 0.55 | CA8: 1 | CB8: 55t | CC8: 1.02 | CD8: 1.02 | CE8: 102t | CI8: 1.29 | CJ8: 1.29 | CK8: 129 | CL8: 0.01 | CM8: 1 | CN8: 1t | CR8: 0.63 | CS8: 2.6 | CT8: 63t | CU8: 0.01 | CV8: 1 | CW8: 1t | CX8: 0.01 | CY8: 1 | CZ8: 1t | DA8: 0.01 | DB8: 1 | DC8: 1t | DG8: 0.96 | DH8: 0.96 | DI8: 96t | DJ8: 0.01 | DK8: 1 | DL8: 1t | DP8: 0.15 | DQ8: 3.4 | DR8: 15t
A9: 9 | B9: Amherst | C9: =CANS19School!O7 -> 0.5952380952 | D9: =CANS20School!O7 -> 0.4705882353 | E9: =CANS21School!O7 -> 0.48 | F9: =CANS19Behavior!O7 -> 0.4761904762 | G9: =CANS20Behavior!O7 -> 0.5588235294 | H9: =CANS21Behavior!O7 -> 0.44 | I9: =CANS19Strength!O7 -> 0.5952380952 | J9: =CANS20Strength!O7 -> 0.6764705882 | K9: =CANS21Strength!O7 -> 0.48 | L9: ='ICC19'!N7 -> 0.1666666667 | M9: ='ICC20'!N7 ->  | N9: ='ICC21'!N7 ->  | O9: ='CBS19'!N7 -> 0.8444444444 | P9: ='CBS20'!N7 -> 0.8617021277 | Q9: ='CBS21'!N7 -> 0.8829787234 | R9: =FamilyFC19!AE7 -> 0.8709677419 | S9: =FamilyFC20!AE7 -> 1 | T9: =FamilyFC21!AE7 -> 0.9285714286 | U9: =Permanency19!AE7 -> 0.625 | V9: =Permanency20!AE7 -> 0.8 | W9: =Permanency21!AE7 -> 0.8666666667 | X9: =Summary19!AJ8 -> 2.428571429 | Y9: =Summary20!AJ8 -> 3.166666667 | Z9: =Summary21!AJ8 -> 3.166666667 | AA9: =IF(AND(CANS19School!Q7<>"",CANS19School!Q7<>0),CANS19School!Q7,"") -> 40 | AB9: =IF(AND(CANS20School!Q7<>"",CANS20School!Q7<>0),CANS20School!Q7,"") -> 68 | AC9: =IF(AND(CANS21School!Q7<>"",CANS21School!Q7<>0),CANS21School!Q7,"") -> 38 | AD9: =IF(AND(CANS19Behavior!Q7<>"",CANS19Behavior!Q7<>0),CANS19Behavior!Q7,"") -> 80 | AE9: =IF(AND(CANS20Behavior!Q7<>"",CANS20Behavior!Q7<>0),CANS20Behavior!Q7,"") -> 47 | AF9: =IF(AND(CANS21Behavior!Q7<>"",CANS21Behavior!Q7<>0),CANS21Behavior!Q7,"") -> 65 | AG9: =IF(AND(CANS19Strength!Q7<>"",CANS19Strength!Q7<>0),CANS19Strength!Q7,"") -> 75t | AH9: =IF(AND(CANS20Strength!Q7<>"",CANS20Strength!Q7<>0),CANS20Strength!Q7,"") -> 43 | AI9: =IF(AND(CANS21Strength!Q7<>"",CANS21Strength!Q7<>0),CANS21Strength!Q7,"") -> 94 | AJ9: =IF(AND('ICC19'!P7<>"",'ICC19'!P7<>0),'ICC19'!P7,"") -> 47t | AK9: =IF(AND('ICC20'!P7<>"",'ICC20'!P7<>0),'ICC20'!P7,"") ->  | AL9: =IF(AND('ICC21'!P7<>"",'ICC21'!P7<>0),'ICC21'!P7,"") ->  | AM9: =IF(AND('CBS19'!P7<>"",'CBS19'!P7<>0),'CBS19'!P7,"") -> 57 | AN9: =IF(AND('CBS20'!P7<>"",'CBS20'!P7<>0),'CBS20'!P7,"") -> 55 | AO9: =IF(AND('CBS21'!P7<>"",'CBS21'!P7<>0),'CBS21'!P7,"") -> 39 | AP9: =IF(AND(FamilyFC19!AG7<>"",FamilyFC19!AG7<>0),FamilyFC19!AG7,"") -> 52t | AQ9: =IF(AND(FamilyFC20!AG7<>"",FamilyFC20!AG7<>0),FamilyFC20!AG7,"") -> 1t | AR9: =IF(AND(FamilyFC21!AG7<>"",FamilyFC21!AG7<>0),FamilyFC21!AG7,"") -> 36t | AS9: =IF(AND(Permanency19!AG7<>"",Permanency19!AG7<>0),Permanency19!AG7,"") -> 103t | AT9: =IF(AND(Permanency20!AG7<>"",Permanency20!AG7<>0),Permanency20!AG7,"") -> 47t | AU9: =IF(AND(Permanency21!AG7<>"",Permanency21!AG7<>0),Permanency21!AG7,"") -> 50t | AV9: =IF(AND(Summary19!AL8<>"",Summary19!AL8<>0),Summary19!AL8,"") -> 85t | AW9: =IF(AND(Summary20!AL8<>"",Summary20!AL8<>0),Summary20!AL8,"") -> 22t | AX9: =IF(AND(Summary21!AL8<>"",Summary21!AL8<>0),Summary21!AL8,"") -> 24 | AY9: 0.4 | AZ9: 0.5952380952 | BA9: 40 | BB9: 0.8 | BC9: 0.8 | BD9: 80 | BE9: 0.75 | BF9: 0.75 | BG9: 75t | BH9: 0.47 | BI9: 0.47 | BJ9: 47t | BK9: 0.57 | BL9: 0.8444444444 | BM9: 57 | BN9: 0.52 | BO9: 0.8709677419 | BP9: 52t | BQ9: 1.03 | BR9: 1.03 | BS9: 103t | BT9: 0.85 | BU9: 2.428571429 | BV9: 85t | BW9: 0.68 | BX9: 0.68 | BY9: 68 | BZ9: 0.47 | CA9: 0.47 | CB9: 47 | CC9: 0.43 | CD9: 0.6764705882 | CE9: 43 | CI9: 0.55 | CJ9: 0.8617021277 | CK9: 55 | CL9: 0.01 | CM9: 1 | CN9: 1t | CO9: 0.47 | CP9: 0.8 | CQ9: 47t | CR9: 0.22 | CS9: 3.166666667 | CT9: 22t | CU9: 0.38 | CV9: 0.48 | CW9: 38 | CX9: 0.65 | CY9: 0.65 | CZ9: 65 | DA9: 0.94 | DB9: 0.94 | DC9: 94 | DG9: 0.39 | DH9: 0.8829787234 | DI9: 39 | DJ9: 0.36 | DK9: 0.9285714286 | DL9: 36t | DM9: 0.5 | DN9: 0.8666666667 | DO9: 50t | DP9: 0.24 | DQ9: 3.166666667 | DR9: 24
A10: 11 | B10: Appomattox | C10: =CANS19School!O8 -> 0.5806451613 | D10: =CANS20School!O8 -> 0.5161290323 | E10: =CANS21School!O8 -> 0.2 | F10: =CANS19Behavior!O8 -> 0.5483870968 | G10: =CANS20Behavior!O8 -> 0.4193548387 | H10: =CANS21Behavior!O8 -> 0.4666666667 | I10: =CANS19Strength!O8 -> 0.4516129032 | J10: =CANS20Strength!O8 -> 0.6129032258 | K10: =CANS21Strength!O8 -> 0.3333333333 | L10: ='ICC19'!N8 -> 0.125 | M10: ='ICC20'!N8 ->  | N10: ='ICC21'!N8 -> 0 | O10: ='CBS19'!N8 -> 0.8108108108 | P10: ='CBS20'!N8 -> 0.8170731707 | Q10: ='CBS21'!N8 -> 0.8313253012 | R10: =FamilyFC19!AE8 -> 0.8260869565 | S10: =FamilyFC20!AE8 -> 0.8695652174 | T10: =FamilyFC21!AE8 -> 0.8518518519 | U10: =Permanency19!AE8 -> 0.9285714286 | V10: =Permanency20!AE8 -> 0.6875 | W10: =Permanency21!AE8 -> 1 | X10: =Summary19!AJ9 -> 2.571428571 | Y10: =Summary20!AJ9 -> 2.333333333 | Z10: =Summary21!AJ9 -> 2.428571429 | AA10: =IF(AND(CANS19School!Q8<>"",CANS19School!Q8<>0),CANS19School!Q8,"") -> 47 | AB10: =IF(AND(CANS20School!Q8<>"",CANS20School!Q8<>0),CANS20School!Q8,"") -> 45 | AC10: =IF(AND(CANS21School!Q8<>"",CANS21School!Q8<>0),CANS21School!Q8,"") -> 117t | AD10: =IF(AND(CANS19Behavior!Q8<>"",CANS19Behavior!Q8<>0),CANS19Behavior!Q8,"") -> 54t | AE10: =IF(AND(CANS20Behavior!Q8<>"",CANS20Behavior!Q8<>0),CANS20Behavior!Q8,"") -> 85 | AF10: =IF(AND(CANS21Behavior!Q8<>"",CANS21Behavior!Q8<>0),CANS21Behavior!Q8,"") -> 57t | AG10: =IF(AND(CANS19Strength!Q8<>"",CANS19Strength!Q8<>0),CANS19Strength!Q8,"") -> 111 | AH10: =IF(AND(CANS20Strength!Q8<>"",CANS20Strength!Q8<>0),CANS20Strength!Q8,"") -> 75 | AI10: =IF(AND(CANS21Strength!Q8<>"",CANS21Strength!Q8<>0),CANS21Strength!Q8,"") -> 116t | AJ10: =IF(AND('ICC19'!P8<>"",'ICC19'!P8<>0),'ICC19'!P8,"") -> 52 | AK10: =IF(AND('ICC20'!P8<>"",'ICC20'!P8<>0),'ICC20'!P8,"") ->  | AL10: =IF(AND('ICC21'!P8<>"",'ICC21'!P8<>0),'ICC21'!P8,"") -> 55t | AM10: =IF(AND('CBS19'!P8<>"",'CBS19'!P8<>0),'CBS19'!P8,"") -> 79 | AN10: =IF(AND('CBS20'!P8<>"",'CBS20'!P8<>0),'CBS20'!P8,"") -> 83 | AO10: =IF(AND('CBS21'!P8<>"",'CBS21'!P8<>0),'CBS21'!P8,"") -> 74 | AP10: =IF(AND(FamilyFC19!AG8<>"",FamilyFC19!AG8<>0),FamilyFC19!AG8,"") -> 84t | AQ10: =IF(AND(FamilyFC20!AG8<>"",FamilyFC20!AG8<>0),FamilyFC20!AG8,"") -> 64 | AR10: =IF(AND(FamilyFC21!AG8<>"",FamilyFC21!AG8<>0),FamilyFC21!AG8,"") -> 79 | AS10: =IF(AND(Permanency19!AG8<>"",Permanency19!AG8<>0),Permanency19!AG8,"") -> 25 | AT10: =IF(AND(Permanency20!AG8<>"",Permanency20!AG8<>0),Permanency20!AG8,"") -> 89t | AU10: =IF(AND(Permanency21!AG8<>"",Permanency21!AG8<>0),Permanency21!AG8,"") -> 1t | AV10: =IF(AND(Summary19!AL9<>"",Summary19!AL9<>0),Summary19!AL9,"") -> 78t | AW10: =IF(AND(Summary20!AL9<>"",Summary20!AL9<>0),Summary20!AL9,"") -> 84t | AX10: =IF(AND(Summary21!AL9<>"",Summary21!AL9<>0),Summary21!AL9,"") -> 89t | AY10: 0.47 | AZ10: 0.5806451613 | BA10: 47 | BB10: 0.54 | BC10: 0.5483870968 | BD10: 54t | BE10: 1.11 | BF10: 1.11 | BG10: 111 | BH10: 0.52 | BI10: 0.52 | BJ10: 52 | BK10: 0.79 | BL10: 0.8108108108 | BM10: 79 | BN10: 0.84 | BO10: 0.84 | BP10: 84t | BQ10: 0.25 | BR10: 0.9285714286 | BS10: 25 | BT10: 0.78 | BU10: 2.571428571 | BV10: 78t | BW10: 0.45 | BX10: 0.5161290323 | BY10: 45 | BZ10: 0.85 | CA10: 0.85 | CB10: 85 | CC10: 0.75 | CD10: 0.75 | CE10: 75 | CI10: 0.83 | CJ10: 0.83 | CK10: 83 | CL10: 0.64 | CM10: 0.8695652174 | CN10: 64 | CO10: 0.89 | CP10: 0.89 | CQ10: 89t | CR10: 0.84 | CS10: 2.333333333 | CT10: 84t | CU10: 1.17 | CV10: 1.17 | CW10: 117t | CX10: 0.57 | CY10: 0.57 | CZ10: 57t | DA10: 1.16 | DB10: 1.16 | DC10: 116t | DD10: 0.55 | DE10: 0.55 | DF10: 55t | DG10: 0.74 | DH10: 0.8313253012 | DI10: 74 | DJ10: 0.79 | DK10: 0.8518518519 | DL10: 79 | DM10: 0.01 | DN10: 1 | DO10: 1t | DP10: 0.89 | DQ10: 2.428571429 | DR10: 89t
A11: 13 | B11: Arlington | C11: =CANS19School!O9 -> 0.55 | D11: =CANS20School!O9 -> 0.6046511628 | E11: =CANS21School!O9 -> 0.4090909091 | F11: =CANS19Behavior!O9 -> 0.5166666667 | G11: =CANS20Behavior!O9 -> 0.5813953488 | H11: =CANS21Behavior!O9 -> 0.3181818182 | I11: =CANS19Strength!O9 -> 0.65 | J11: =CANS20Strength!O9 -> 0.5348837209 | K11: =CANS21Strength!O9 -> 0.5909090909 | L11: ='ICC19'!N9 -> 0.2 | M11: ='ICC20'!N9 -> 0 | N11: ='ICC21'!N9 -> 0.1428571429 | O11: ='CBS19'!N9 -> 0.902173913 | P11: ='CBS20'!N9 -> 0.8630952381 | Q11: ='CBS21'!N9 -> 0.8255813953 | R11: =FamilyFC19!AE9 -> 0.9253731343 | S11: =FamilyFC20!AE9 -> 0.9074074074 | T11: =FamilyFC21!AE9 -> 0.9534883721 | U11: =Permanency19!AE9 -> 0.7678571429 | V11: =Permanency20!AE9 -> 0.7234042553 | W11: =Permanency21!AE9 -> 0.7555555556 | X11: =Summary19!AJ10 -> 3.142857143 | Y11: =Summary20!AJ10 -> 2.714285714 | Z11: =Summary21!AJ10 -> 2.428571429 | AA11: =IF(AND(CANS19School!Q9<>"",CANS19School!Q9<>0),CANS19School!Q9,"") -> 60 | AB11: =IF(AND(CANS20School!Q9<>"",CANS20School!Q9<>0),CANS20School!Q9,"") -> 25 | AC11: =IF(AND(CANS21School!Q9<>"",CANS21School!Q9<>0),CANS21School!Q9,"") -> 61t | AD11: =IF(AND(CANS19Behavior!Q9<>"",CANS19Behavior!Q9<>0),CANS19Behavior!Q9,"") -> 63 | AE11: =IF(AND(CANS20Behavior!Q9<>"",CANS20Behavior!Q9<>0),CANS20Behavior!Q9,"") -> 40 | AF11: =IF(AND(CANS21Behavior!Q9<>"",CANS21Behavior!Q9<>0),CANS21Behavior!Q9,"") -> 96t | AG11: =IF(AND(CANS19Strength!Q9<>"",CANS19Strength!Q9<>0),CANS19Strength!Q9,"") -> 55t | AH11: =IF(AND(CANS20Strength!Q9<>"",CANS20Strength!Q9<>0),CANS20Strength!Q9,"") -> 97 | AI11: =IF(AND(CANS21Strength!Q9<>"",CANS21Strength!Q9<>0),CANS21Strength!Q9,"") -> 51t | AJ11: =IF(AND('ICC19'!P9<>"",'ICC19'!P9<>0),'ICC19'!P9,"") -> 45 | AK11: =IF(AND('ICC20'!P9<>"",'ICC20'!P9<>0),'ICC20'!P9,"") -> 55t | AL11: =IF(AND('ICC21'!P9<>"",'ICC21'!P9<>0),'ICC21'!P9,"") -> 46t | AM11: =IF(AND('CBS19'!P9<>"",'CBS19'!P9<>0),'CBS19'!P9,"") -> 19 | AN11: =IF(AND('CBS20'!P9<>"",'CBS20'!P9<>0),'CBS20'!P9,"") -> 52 | AO11: =IF(AND('CBS21'!P9<>"",'CBS21'!P9<>0),'CBS21'!P9,"") -> 80 | AP11: =IF(AND(FamilyFC19!AG9<>"",FamilyFC19!AG9<>0),FamilyFC19!AG9,"") -> 33 | AQ11: =IF(AND(FamilyFC20!AG9<>"",FamilyFC20!AG9<>0),FamilyFC20!AG9,"") -> 45 | AR11: =IF(AND(FamilyFC21!AG9<>"",FamilyFC21!AG9<>0),FamilyFC21!AG9,"") -> 26 | AS11: =IF(AND(Permanency19!AG9<>"",Permanency19!AG9<>0),Permanency19!AG9,"") -> 72 | AT11: =IF(AND(Permanency20!AG9<>"",Permanency20!AG9<>0),Permanency20!AG9,"") -> 76 | AU11: =IF(AND(Permanency21!AG9<>"",Permanency21!AG9<>0),Permanency21!AG9,"") -> 85 | AV11: =IF(AND(Summary19!AL10<>"",Summary19!AL10<>0),Summary19!AL10,"") -> 29t | AW11: =IF(AND(Summary20!AL10<>"",Summary20!AL10<>0),Summary20!AL10,"") -> 55t | AX11: =IF(AND(Summary21!AL10<>"",Summary21!AL10<>0),Summary21!AL10,"") -> 89t | AY11: 0.6 | AZ11: 0.6 | BA11: 60 | BB11: 0.63 | BC11: 0.63 | BD11: 63 | BE11: 0.55 | BF11: 0.65 | BG11: 55t | BH11: 0.45 | BI11: 0.45 | BJ11: 45 | BK11: 0.19 | BL11: 0.902173913 | BM11: 19 | BN11: 0.33 | BO11: 0.9253731343 | BP11: 33 | BQ11: 0.72 | BR11: 0.7678571429 | BS11: 72 | BT11: 0.29 | BU11: 3.142857143 | BV11: 29t | BW11: 0.25 | BX11: 0.6046511628 | BY11: 25 | BZ11: 0.4 | CA11: 0.4 | CB11: 40 | CC11: 0.97 | CD11: 0.97 | CE11: 97 | CF11: 0.55 | CG11: 0.55 | CH11: 55t | CI11: 0.52 | CJ11: 0.8630952381 | CK11: 52 | CL11: 0.45 | CM11: 0.9074074074 | CN11: 45 | CO11: 0.76 | CP11: 0.76 | CQ11: 76 | CR11: 0.55 | CS11: 2.714285714 | CT11: 55t | CU11: 0.61 | CV11: 0.61 | CW11: 61t | CX11: 0.96 | CY11: 0.96 | CZ11: 96t | DA11: 0.51 | DB11: 0.5909090909 | DC11: 51t | DD11: 0.46 | DE11: 0.46 | DF11: 46t | DG11: 0.8 | DH11: 0.8255813953 | DI11: 80 | DJ11: 0.26 | DK11: 0.9534883721 | DL11: 26 | DM11: 0.85 | DN11: 0.85 | DO11: 85 | DP11: 0.89 | DQ11: 2.428571429 | DR11: 89t
A12: 15 | B12: Augusta | C12: =CANS19School!O10 -> 0.3936170213 | D12: =CANS20School!O10 -> 0.6444444444 | E12: =CANS21School!O10 -> 0.4146341463 | F12: =CANS19Behavior!O10 -> 0.6595744681 | G12: =CANS20Behavior!O10 -> 0.6 | H12: =CANS21Behavior!O10 -> 0.487804878 | I12: =CANS19Strength!O10 -> 0.3510638298 | J12: =CANS20Strength!O10 -> 0.6444444444 | K12: =CANS21Strength!O10 -> 0.5365853659 | L12: ='ICC19'!N10 -> 1 | M12: ='ICC20'!N10 -> 1 | N12: ='ICC21'!N10 -> 1 | O12: ='CBS19'!N10 -> 0.8918918919 | P12: ='CBS20'!N10 -> 0.8933333333 | Q12: ='CBS21'!N10 -> 0.8947368421 | R12: =FamilyFC19!AE10 -> 0.8544303797 | S12: =FamilyFC20!AE10 -> 0.8130081301 | T12: =FamilyFC21!AE10 -> 0.8666666667 | U12: =Permanency19!AE10 -> 1 | V12: =Permanency20!AE10 -> 1 | W12: =Permanency21!AE10 -> 1 | X12: =Summary19!AJ11 -> 3.142857143 | Y12: =Summary20!AJ11 -> 3.714285714 | Z12: =Summary21!AJ11 -> 3.714285714 | AA12: =IF(AND(CANS19School!Q10<>"",CANS19School!Q10<>0),CANS19School!Q10,"") -> 108 | AB12: =IF(AND(CANS20School!Q10<>"",CANS20School!Q10<>0),CANS20School!Q10,"") -> 18 | AC12: =IF(AND(CANS21School!Q10<>"",CANS21School!Q10<>0),CANS21School!Q10,"") -> 58 | AD12: =IF(AND(CANS19Behavior!Q10<>"",CANS19Behavior!Q10<>0),CANS19Behavior!Q10,"") -> 32 | AE12: =IF(AND(CANS20Behavior!Q10<>"",CANS20Behavior!Q10<>0),CANS20Behavior!Q10,"") -> 31t | AF12: =IF(AND(CANS21Behavior!Q10<>"",CANS21Behavior!Q10<>0),CANS21Behavior!Q10,"") -> 51 | AG12: =IF(AND(CANS19Strength!Q10<>"",CANS19Strength!Q10<>0),CANS19Strength!Q10,"") -> 121 | AH12: =IF(AND(CANS20Strength!Q10<>"",CANS20Strength!Q10<>0),CANS20Strength!Q10,"") -> 63 | AI12: =IF(AND(CANS21Strength!Q10<>"",CANS21Strength!Q10<>0),CANS21Strength!Q10,"") -> 70 | AJ12: =IF(AND('ICC19'!P10<>"",'ICC19'!P10<>0),'ICC19'!P10,"") -> 1t | AK12: =IF(AND('ICC20'!P10<>"",'ICC20'!P10<>0),'ICC20'!P10,"") -> 1t | AL12: =IF(AND('ICC21'!P10<>"",'ICC21'!P10<>0),'ICC21'!P10,"") -> 1t | AM12: =IF(AND('CBS19'!P10<>"",'CBS19'!P10<>0),'CBS19'!P10,"") -> 25 | AN12: =IF(AND('CBS20'!P10<>"",'CBS20'!P10<>0),'CBS20'!P10,"") -> 35 | AO12: =IF(AND('CBS21'!P10<>"",'CBS21'!P10<>0),'CBS21'!P10,"") -> 33 | AP12: =IF(AND(FamilyFC19!AG10<>"",FamilyFC19!AG10<>0),FamilyFC19!AG10,"") -> 67t | AQ12: =IF(AND(FamilyFC20!AG10<>"",FamilyFC20!AG10<>0),FamilyFC20!AG10,"") -> 84t | AR12: =IF(AND(FamilyFC21!AG10<>"",FamilyFC21!AG10<>0),FamilyFC21!AG10,"") -> 68t | AS12: =IF(AND(Permanency19!AG10<>"",Permanency19!AG10<>0),Permanency19!AG10,"") -> 1t | AT12: =IF(AND(Permanency20!AG10<>"",Permanency20!AG10<>0),Permanency20!AG10,"") -> 1t | AU12: =IF(AND(Permanency21!AG10<>"",Permanency21!AG10<>0),Permanency21!AG10,"") -> 1t | AV12: =IF(AND(Summary19!AL11<>"",Summary19!AL11<>0),Summary19!AL11,"") -> 29t | AW12: =IF(AND(Summary20!AL11<>"",Summary20!AL11<>0),Summary20!AL11,"") -> 2 | AX12: =IF(AND(Summary21!AL11<>"",Summary21!AL11<>0),Summary21!AL11,"") -> 6 | AY12: 1.08 | AZ12: 1.08 | BA12: 108 | BB12: 0.32 | BC12: 0.6595744681 | BD12: 32 | BE12: 1.21 | BF12: 1.21 | BG12: 121 | BH12: 0.01 | BI12: 1 | BJ12: 1t | BK12: 0.25 | BL12: 0.8918918919 | BM12: 25 | BN12: 0.67 | BO12: 0.8544303797 | BP12: 67t | BQ12: 0.01 | BR12: 1 | BS12: 1t | BT12: 0.29 | BU12: 3.142857143 | BV12: 29t | BW12: 0.18 | BX12: 0.6444444444 | BY12: 18 | BZ12: 0.31 | CA12: 0.487804878 | CB12: 31t | CC12: 0.63 | CD12: 0.6444444444 | CE12: 63 | CF12: 0.01 | CG12: 1 | CH12: 1t | CI12: 0.35 | CJ12: 0.8933333333 | CK12: 35 | CL12: 0.84 | CM12: 0.84 | CN12: 84t | CO12: 0.01 | CP12: 1 | CQ12: 1t | CR12: 0.02 | CS12: 3.714285714 | CT12: 2 | CU12: 0.58 | CV12: 0.58 | CW12: 58 | CX12: 0.51 | CY12: 0.51 | CZ12: 51 | DA12: 0.7 | DB12: 0.7 | DC12: 70 | DD12: 0.01 | DE12: 1 | DF12: 1t | DG12: 0.33 | DH12: 0.8947368421 | DI12: 33 | DJ12: 0.68 | DK12: 0.8666666667 | DL12: 68t | DM12: 0.01 | DN12: 1 | DO12: 1t | DP12: 0.06 | DQ12: 3.714285714 | DR12: 6
A13: 17 | B13: Bath | C13: =CANS19School!O11 -> 1 | D13: =CANS20School!O11 -> 1 | E13: =CANS21School!O11 -> 0.5 | F13: =CANS19Behavior!O11 -> 1 | G13: =CANS20Behavior!O11 -> 0.3333333333 | H13: =CANS21Behavior!O11 -> 1 | I13: =CANS19Strength!O11 -> 1 | J13: =CANS20Strength!O11 -> 1 | K13: =CANS21Strength!O11 -> 0.5 | L13: ='ICC19'!N11 ->  | M13: ='ICC20'!N11 ->  | N13: ='ICC21'!N11 ->  | O13: ='CBS19'!N11 -> 0.8 | P13: ='CBS20'!N11 -> 0.5 | Q13: ='CBS21'!N11 -> 0.5714285714 | R13: =FamilyFC19!AE11 -> 0 | S13: =FamilyFC20!AE11 -> 0 | T13: =FamilyFC21!AE11 -> 0 | U13: =Permanency19!AE11 ->  | V13: =Permanency20!AE11 ->  | W13: =Permanency21!AE11 ->  | X13: =Summary19!AJ12 -> 3.25 | Y13: =Summary20!AJ12 -> 2.5 | Z13: =Summary21!AJ12 -> 2.6 | AA13: =IF(AND(CANS19School!Q11<>"",CANS19School!Q11<>0),CANS19School!Q11,"") -> 1t | AB13: =IF(AND(CANS20School!Q11<>"",CANS20School!Q11<>0),CANS20School!Q11,"") -> 1t | AC13: =IF(AND(CANS21School!Q11<>"",CANS21School!Q11<>0),CANS21School!Q11,"") -> 30t | AD13: =IF(AND(CANS19Behavior!Q11<>"",CANS19Behavior!Q11<>0),CANS19Behavior!Q11,"") -> 1t | AE13: =IF(AND(CANS20Behavior!Q11<>"",CANS20Behavior!Q11<>0),CANS20Behavior!Q11,"") -> 108t | AF13: =IF(AND(CANS21Behavior!Q11<>"",CANS21Behavior!Q11<>0),CANS21Behavior!Q11,"") -> 1t | AG13: =IF(AND(CANS19Strength!Q11<>"",CANS19Strength!Q11<>0),CANS19Strength!Q11,"") -> 1t | AH13: =IF(AND(CANS20Strength!Q11<>"",CANS20Strength!Q11<>0),CANS20Strength!Q11,"") -> 1t | AI13: =IF(AND(CANS21Strength!Q11<>"",CANS21Strength!Q11<>0),CANS21Strength!Q11,"") -> 75t | AJ13: =IF(AND('ICC19'!P11<>"",'ICC19'!P11<>0),'ICC19'!P11,"") ->  | AK13: =IF(AND('ICC20'!P11<>"",'ICC20'!P11<>0),'ICC20'!P11,"") ->  | AL13: =IF(AND('ICC21'!P11<>"",'ICC21'!P11<>0),'ICC21'!P11,"") ->  | AM13: =IF(AND('CBS19'!P11<>"",'CBS19'!P11<>0),'CBS19'!P11,"") -> 83t | AN13: =IF(AND('CBS20'!P11<>"",'CBS20'!P11<>0),'CBS20'!P11,"") -> 130 | AO13: =IF(AND('CBS21'!P11<>"",'CBS21'!P11<>0),'CBS21'!P11,"") -> 130 | AP13: =IF(AND(FamilyFC19!AG11<>"",FamilyFC19!AG11<>0),FamilyFC19!AG11,"") ->  | AQ13: =IF(AND(FamilyFC20!AG11<>"",FamilyFC20!AG11<>0),FamilyFC20!AG11,"") ->  | AR13: =IF(AND(FamilyFC21!AG11<>"",FamilyFC21!AG11<>0),FamilyFC21!AG11,"") -> 125t | AS13: =IF(AND(Permanency19!AG11<>"",Permanency19!AG11<>0),Permanency19!AG11,"") ->  | AT13: =IF(AND(Permanency20!AG11<>"",Permanency20!AG11<>0),Permanency20!AG11,"") ->  | AU13: =IF(AND(Permanency21!AG11<>"",Permanency21!AG11<>0),Permanency21!AG11,"") ->  | AV13: =IF(AND(Summary19!AL12<>"",Summary19!AL12<>0),Summary19!AL12,"") -> 20 | AW13: =IF(AND(Summary20!AL12<>"",Summary20!AL12<>0),Summary20!AL12,"") -> 71t | AX13: =IF(AND(Summary21!AL12<>"",Summary21!AL12<>0),Summary21!AL12,"") -> 72 | AY13: 0.01 | AZ13: 1 | BA13: 1t | BB13: 0.01 | BC13: 1 | BD13: 1t | BE13: 0.01 | BF13: 1 | BG13: 1t | BK13: 0.83 | BL13: 0.83 | BM13: 83t | BO13: 0 | BT13: 0.2 | BU13: 3.25 | BV13: 20 | BW13: 0.01 | BX13: 1 | BY13: 1t | BZ13: 1.08 | CA13: 1.08 | CB13: 108t | CC13: 0.01 | CD13: 1 | CE13: 1t | CI13: 1.3 | CJ13: 1.3 | CK13: 130 | CM13: 0 | CR13: 0.71 | CS13: 2.5 | CT13: 71t | CU13: 0.3 | CV13: 0.5 | CW13: 30t | CX13: 0.01 | CY13: 1 | CZ13: 1t | DA13: 0.75 | DB13: 0.75 | DC13: 75t | DG13: 1.3 | DH13: 1.3 | DI13: 130 | DJ13: 1.25 | DK13: 1.25 | DL13: 125t | DP13: 0.72 | DQ13: 2.6 | DR13: 72
A14: 19 | B14: Bedford | C14: =CANS19School!O12 -> 0.5465116279 | D14: =CANS20School!O12 -> 0.3720930233 | E14: =CANS21School!O12 -> 0.3818181818 | F14: =CANS19Behavior!O12 -> 0.476744186 | G14: =CANS20Behavior!O12 -> 0.511627907 | H14: =CANS21Behavior!O12 -> 0.4 | I14: =CANS19Strength!O12 -> 0.6511627907 | J14: =CANS20Strength!O12 -> 0.6395348837 | K14: =CANS21Strength!O12 -> 0.4 | L14: ='ICC19'!N12 -> 0 | M14: ='ICC20'!N12 -> 0 | N14: ='ICC21'!N12 -> 0 | O14: ='CBS19'!N12 -> 0.7678571429 | P14: ='CBS20'!N12 -> 0.7791666667 | Q14: ='CBS21'!N12 -> 0.8222222222 | R14: =FamilyFC19!AE12 -> 0.7179487179 | S14: =FamilyFC20!AE12 -> 0.797752809 | T14: =FamilyFC21!AE12 -> 0.768115942 | U14: =Permanency19!AE12 -> 0.6923076923 | V14: =Permanency20!AE12 -> 0.75 | W14: =Permanency21!AE12 -> 0.8333333333 | X14: =Summary19!AJ13 -> 2.285714286 | Y14: =Summary20!AJ13 -> 1.857142857 | Z14: =Summary21!AJ13 -> 1.714285714 | AA14: =IF(AND(CANS19School!Q12<>"",CANS19School!Q12<>0),CANS19School!Q12,"") -> 61 | AB14: =IF(AND(CANS20School!Q12<>"",CANS20School!Q12<>0),CANS20School!Q12,"") -> 101 | AC14: =IF(AND(CANS21School!Q12<>"",CANS21School!Q12<>0),CANS21School!Q12,"") -> 70 | AD14: =IF(AND(CANS19Behavior!Q12<>"",CANS19Behavior!Q12<>0),CANS19Behavior!Q12,"") -> 79 | AE14: =IF(AND(CANS20Behavior!Q12<>"",CANS20Behavior!Q12<>0),CANS20Behavior!Q12,"") -> 54 | AF14: =IF(AND(CANS21Behavior!Q12<>"",CANS21Behavior!Q12<>0),CANS21Behavior!Q12,"") -> 73t | AG14: =IF(AND(CANS19Strength!Q12<>"",CANS19Strength!Q12<>0),CANS19Strength!Q12,"") -> 53t | AH14: =IF(AND(CANS20Strength!Q12<>"",CANS20Strength!Q12<>0),CANS20Strength!Q12,"") -> 66 | AI14: =IF(AND(CANS21Strength!Q12<>"",CANS21Strength!Q12<>0),CANS21Strength!Q12,"") -> 107t | AJ14: =IF(AND('ICC19'!P12<>"",'ICC19'!P12<>0),'ICC19'!P12,"") -> 57t | AK14: =IF(AND('ICC20'!P12<>"",'ICC20'!P12<>0),'ICC20'!P12,"") -> 55t | AL14: =IF(AND('ICC21'!P12<>"",'ICC21'!P12<>0),'ICC21'!P12,"") -> 55t | AM14: =IF(AND('CBS19'!P12<>"",'CBS19'!P12<>0),'CBS19'!P12,"") -> 103 | AN14: =IF(AND('CBS20'!P12<>"",'CBS20'!P12<>0),'CBS20'!P12,"") -> 105 | AO14: =IF(AND('CBS21'!P12<>"",'CBS21'!P12<>0),'CBS21'!P12,"") -> 82 | AP14: =IF(AND(FamilyFC19!AG12<>"",FamilyFC19!AG12<>0),FamilyFC19!AG12,"") -> 108 | AQ14: =IF(AND(FamilyFC20!AG12<>"",FamilyFC20!AG12<>0),FamilyFC20!AG12,"") -> 93 | AR14: =IF(AND(FamilyFC21!AG12<>"",FamilyFC21!AG12<>0),FamilyFC21!AG12,"") -> 109 | AS14: =IF(AND(Permanency19!AG12<>"",Permanency19!AG12<>0),Permanency19!AG12,"") -> 91t | AT14: =IF(AND(Permanency20!AG12<>"",Permanency20!AG12<>0),Permanency20!AG12,"") -> 66t | AU14: =IF(AND(Permanency21!AG12<>"",Permanency21!AG12<>0),Permanency21!AG12,"") -> 56t | AV14: =IF(AND(Summary19!AL13<>"",Summary19!AL13<>0),Summary19!AL13,"") -> 99t | AW14: =IF(AND(Summary20!AL13<>"",Summary20!AL13<>0),Summary20!AL13,"") -> 117t | AX14: =IF(AND(Summary21!AL13<>"",Summary21!AL13<>0),Summary21!AL13,"") -> 126t | AY14: 0.61 | AZ14: 0.61 | BA14: 61 | BB14: 0.79 | BC14: 0.79 | BD14: 79 | BE14: 0.53 | BF14: 0.6511627907 | BG14: 53t | BH14: 0.57 | BI14: 0.57 | BJ14: 57t | BK14: 1.03 | BL14: 1.03 | BM14: 103 | BN14: 1.08 | BO14: 1.08 | BP14: 108 | BQ14: 0.91 | BR14: 0.91 | BS14: 91t | BT14: 0.99 | BU14: 2.285714286 | BV14: 99t | BW14: 1.01 | BX14: 1.01 | BY14: 101 | BZ14: 0.54 | CA14: 0.54 | CB14: 54 | CC14: 0.66 | CD14: 0.66 | CE14: 66 | CF14: 0.55 | CG14: 0.55 | CH14: 55t | CI14: 1.05 | CJ14: 1.05 | CK14: 105 | CL14: 0.93 | CM14: 0.93 | CN14: 93 | CO14: 0.66 | CP14: 0.75 | CQ14: 66t | CR14: 1.17 | CS14: 1.857142857 | CT14: 117t | CU14: 0.7 | CV14: 0.7 | CW14: 70 | CX14: 0.73 | CY14: 0.73 | CZ14: 73t | DA14: 1.07 | DB14: 1.07 | DC14: 107t | DD14: 0.55 | DE14: 0.55 | DF14: 55t | DG14: 0.82 | DH14: 0.8222222222 | DI14: 82 | DJ14: 1.09 | DK14: 1.09 | DL14: 109 | DM14: 0.56 | DN14: 0.8333333333 | DO14: 56t | DP14: 1.26 | DQ14: 1.714285714 | DR14: 126t
A15: 21 | B15: Bland | C15: =CANS19School!O13 -> 0 | D15: =CANS20School!O13 -> 0 | E15: =CANS21School!O13 -> 0 | F15: =CANS19Behavior!O13 -> 0.3333333333 | G15: =CANS20Behavior!O13 -> 0 | H15: =CANS21Behavior!O13 -> 0 | I15: =CANS19Strength!O13 -> 0.6666666667 | J15: =CANS20Strength!O13 -> 0 | K15: =CANS21Strength!O13 -> 1 | L15: ='ICC19'!N13 ->  | M15: ='ICC20'!N13 ->  | N15: ='ICC21'!N13 ->  | O15: ='CBS19'!N13 -> 0.9166666667 | P15: ='CBS20'!N13 -> 0.9090909091 | Q15: ='CBS21'!N13 -> 0.8181818182 | R15: =FamilyFC19!AE13 -> 1 | S15: =FamilyFC20!AE13 -> 1 | T15: =FamilyFC21!AE13 -> 1 | U15: =Permanency19!AE13 -> 1 | V15: =Permanency20!AE13 -> 0.25 | W15: =Permanency21!AE13 -> 0.5 | X15: =Summary19!AJ14 -> 3 | Y15: =Summary20!AJ14 -> 2.166666667 | Z15: =Summary21!AJ14 -> 2.166666667 | AA15: =IF(AND(CANS19School!Q13<>"",CANS19School!Q13<>0),CANS19School!Q13,"") -> 126t | AB15: =IF(AND(CANS20School!Q13<>"",CANS20School!Q13<>0),CANS20School!Q13,"") -> 125t | AC15: =IF(AND(CANS21School!Q13<>"",CANS21School!Q13<>0),CANS21School!Q13,"") -> 124t | AD15: =IF(AND(CANS19Behavior!Q13<>"",CANS19Behavior!Q13<>0),CANS19Behavior!Q13,"") -> 114t | AE15: =IF(AND(CANS20Behavior!Q13<>"",CANS20Behavior!Q13<>0),CANS20Behavior!Q13,"") -> 126t | AF15: =IF(AND(CANS21Behavior!Q13<>"",CANS21Behavior!Q13<>0),CANS21Behavior!Q13,"") -> 124t | AG15: =IF(AND(CANS19Strength!Q13<>"",CANS19Strength!Q13<>0),CANS19Strength!Q13,"") -> 43t | AH15: =IF(AND(CANS20Strength!Q13<>"",CANS20Strength!Q13<>0),CANS20Strength!Q13,"") -> 127t | AI15: =IF(AND(CANS21Strength!Q13<>"",CANS21Strength!Q13<>0),CANS21Strength!Q13,"") -> 1t | AJ15: =IF(AND('ICC19'!P13<>"",'ICC19'!P13<>0),'ICC19'!P13,"") ->  | AK15: =IF(AND('ICC20'!P13<>"",'ICC20'!P13<>0),'ICC20'!P13,"") ->  | AL15: =IF(AND('ICC21'!P13<>"",'ICC21'!P13<>0),'ICC21'!P13,"") ->  | AM15: =IF(AND('CBS19'!P13<>"",'CBS19'!P13<>0),'CBS19'!P13,"") -> 16 | AN15: =IF(AND('CBS20'!P13<>"",'CBS20'!P13<>0),'CBS20'!P13,"") -> 24t | AO15: =IF(AND('CBS21'!P13<>"",'CBS21'!P13<>0),'CBS21'!P13,"") -> 86t | AP15: =IF(AND(FamilyFC19!AG13<>"",FamilyFC19!AG13<>0),FamilyFC19!AG13,"") -> 1t | AQ15: =IF(AND(FamilyFC20!AG13<>"",FamilyFC20!AG13<>0),FamilyFC20!AG13,"") -> 1t | AR15: =IF(AND(FamilyFC21!AG13<>"",FamilyFC21!AG13<>0),FamilyFC21!AG13,"") -> 1t | AS15: =IF(AND(Permanency19!AG13<>"",Permanency19!AG13<>0),Permanency19!AG13,"") -> 1t | AT15: =IF(AND(Permanency20!AG13<>"",Permanency20!AG13<>0),Permanency20!AG13,"") -> 117t | AU15: =IF(AND(Permanency21!AG13<>"",Permanency21!AG13<>0),Permanency21!AG13,"") -> 110t | AV15: =IF(AND(Summary19!AL14<>"",Summary19!AL14<>0),Summary19!AL14,"") -> 38t | AW15: =IF(AND(Summary20!AL14<>"",Summary20!AL14<>0),Summary20!AL14,"") -> 100t | AX15: =IF(AND(Summary21!AL14<>"",Summary21!AL14<>0),Summary21!AL14,"") -> 106t | AY15: 1.26 | AZ15: 1.26 | BA15: 126t | BB15: 1.14 | BC15: 1.14 | BD15: 114t | BE15: 0.43 | BF15: 0.6666666667 | BG15: 43t | BK15: 0.16 | BL15: 0.9166666667 | BM15: 16 | BN15: 0.01 | BO15: 1 | BP15: 1t | BQ15: 0.01 | BR15: 1 | BS15: 1t | BT15: 0.38 | BU15: 3 | BV15: 38t | BW15: 1.25 | BX15: 1.25 | BY15: 125t | BZ15: 1.26 | CA15: 1.26 | CB15: 126t | CC15: 1.27 | CD15: 1.27 | CE15: 127t | CI15: 0.24 | CJ15: 0.9090909091 | CK15: 24t | CL15: 0.01 | CM15: 1 | CN15: 1t | CO15: 1.17 | CP15: 1.17 | CQ15: 117t | CR15: 1 | CS15: 2.166666667 | CT15: 100t | CU15: 1.24 | CV15: 1.24 | CW15: 124t | CX15: 1.24 | CY15: 1.24 | CZ15: 124t | DA15: 0.01 | DB15: 1 | DC15: 1t | DG15: 0.86 | DH15: 0.86 | DI15: 86t | DJ15: 0.01 | DK15: 1 | DL15: 1t | DM15: 1.1 | DN15: 1.1 | DO15: 110t | DP15: 1.06 | DQ15: 2.166666667 | DR15: 106t
A16: 23 | B16: Botetourt | C16: =CANS19School!O14 -> 0.5294117647 | D16: =CANS20School!O14 -> 0.5714285714 | E16: =CANS21School!O14 -> 0.2727272727 | F16: =CANS19Behavior!O14 -> 0.5882352941 | G16: =CANS20Behavior!O14 -> 0.1428571429 | H16: =CANS21Behavior!O14 -> 0.2727272727 | I16: =CANS19Strength!O14 -> 0.8823529412 | J16: =CANS20Strength!O14 -> 0.5714285714 | K16: =CANS21Strength!O14 -> 0.4545454545 | L16: ='ICC19'!N14 -> 0.1666666667 | M16: ='ICC20'!N14 ->  | N16: ='ICC21'!N14 ->  | O16: ='CBS19'!N14 -> 0.7872340426 | P16: ='CBS20'!N14 -> 0.8048780488 | Q16: ='CBS21'!N14 -> 0.8636363636 | R16: =FamilyFC19!AE14 -> 0.375 | S16: =FamilyFC20!AE14 -> 0.8461538462 | T16: =FamilyFC21!AE14 -> 0.8823529412 | U16: =Permanency19!AE14 -> 0.8 | V16: =Permanency20!AE14 ->  | W16: =Permanency21!AE14 -> 0.875 | X16: =Summary19!AJ15 -> 2.428571429 | Y16: =Summary20!AJ15 -> 2.2 | Z16: =Summary21!AJ15 -> 2.333333333 | AA16: =IF(AND(CANS19School!Q14<>"",CANS19School!Q14<>0),CANS19School!Q14,"") -> 66 | AB16: =IF(AND(CANS20School!Q14<>"",CANS20School!Q14<>0),CANS20School!Q14,"") -> 33t | AC16: =IF(AND(CANS21School!Q14<>"",CANS21School!Q14<>0),CANS21School!Q14,"") -> 104t | AD16: =IF(AND(CANS19Behavior!Q14<>"",CANS19Behavior!Q14<>0),CANS19Behavior!Q14,"") -> 45t | AE16: =IF(AND(CANS20Behavior!Q14<>"",CANS20Behavior!Q14<>0),CANS20Behavior!Q14,"") -> 123 | AF16: =IF(AND(CANS21Behavior!Q14<>"",CANS21Behavior!Q14<>0),CANS21Behavior!Q14,"") -> 106 | AG16: =IF(AND(CANS19Strength!Q14<>"",CANS19Strength!Q14<>0),CANS19Strength!Q14,"") -> 6 | AH16: =IF(AND(CANS20Strength!Q14<>"",CANS20Strength!Q14<>0),CANS20Strength!Q14,"") -> 86t | AI16: =IF(AND(CANS21Strength!Q14<>"",CANS21Strength!Q14<>0),CANS21Strength!Q14,"") -> 100 | AJ16: =IF(AND('ICC19'!P14<>"",'ICC19'!P14<>0),'ICC19'!P14,"") -> 47t | AK16: =IF(AND('ICC20'!P14<>"",'ICC20'!P14<>0),'ICC20'!P14,"") ->  | AL16: =IF(AND('ICC21'!P14<>"",'ICC21'!P14<>0),'ICC21'!P14,"") ->  | AM16: =IF(AND('CBS19'!P14<>"",'CBS19'!P14<>0),'CBS19'!P14,"") -> 94t | AN16: =IF(AND('CBS20'!P14<>"",'CBS20'!P14<>0),'CBS20'!P14,"") -> 91 | AO16: =IF(AND('CBS21'!P14<>"",'CBS21'!P14<>0),'CBS21'!P14,"") -> 54t | AP16: =IF(AND(FamilyFC19!AG14<>"",FamilyFC19!AG14<>0),FamilyFC19!AG14,"") -> 125 | AQ16: =IF(AND(FamilyFC20!AG14<>"",FamilyFC20!AG14<>0),FamilyFC20!AG14,"") -> 76 | AR16: =IF(AND(FamilyFC21!AG14<>"",FamilyFC21!AG14<>0),FamilyFC21!AG14,"") -> 62t | AS16: =IF(AND(Permanency19!AG14<>"",Permanency19!AG14<>0),Permanency19!AG14,"") -> 60t | AT16: =IF(AND(Permanency20!AG14<>"",Permanency20!AG14<>0),Permanency20!AG14,"") ->  | AU16: =IF(AND(Permanency21!AG14<>"",Permanency21!AG14<>0),Permanency21!AG14,"") -> 46t | AV16: =IF(AND(Summary19!AL15<>"",Summary19!AL15<>0),Summary19!AL15,"") -> 85t | AW16: =IF(AND(Summary20!AL15<>"",Summary20!AL15<>0),Summary20!AL15,"") -> 97t | AX16: =IF(AND(Summary21!AL15<>"",Summary21!AL15<>0),Summary21!AL15,"") -> 99t | AY16: 0.66 | AZ16: 0.66 | BA16: 66 | BB16: 0.45 | BC16: 0.5882352941 | BD16: 45t | BE16: 0.06 | BF16: 0.8823529412 | BG16: 6 | BH16: 0.47 | BI16: 0.47 | BJ16: 47t | BK16: 0.94 | BL16: 0.94 | BM16: 94t | BN16: 1.25 | BO16: 1.25 | BP16: 125 | BQ16: 0.6 | BR16: 0.8 | BS16: 60t | BT16: 0.85 | BU16: 2.428571429 | BV16: 85t | BW16: 0.33 | BX16: 0.5714285714 | BY16: 33t | BZ16: 1.23 | CA16: 1.23 | CB16: 123 | CC16: 0.86 | CD16: 0.86 | CE16: 86t | CI16: 0.91 | CJ16: 0.91 | CK16: 91 | CL16: 0.76 | CM16: 0.8461538462 | CN16: 76 | CR16: 0.97 | CS16: 2.2 | CT16: 97t | CU16: 1.04 | CV16: 1.04 | CW16: 104t | CX16: 1.06 | CY16: 1.06 | CZ16: 106 | DA16: 1 | DB16: 1 | DC16: 100 | DG16: 0.54 | DH16: 0.8636363636 | DI16: 54t | DJ16: 0.62 | DK16: 0.8823529412 | DL16: 62t | DM16: 0.46 | DN16: 0.875 | DO16: 46t | DP16: 0.99 | DQ16: 2.333333333 | DR16: 99t
A17: 520 | B17: Bristol | C17: =CANS19School!O15 -> 0.8125 | D17: =CANS20School!O15 -> 0.45 | E17: =CANS21School!O15 -> 0.3333333333 | F17: =CANS19Behavior!O15 -> 0.375 | G17: =CANS20Behavior!O15 -> 0.4 | H17: =CANS21Behavior!O15 -> 0.25 | I17: =CANS19Strength!O15 -> 0.625 | J17: =CANS20Strength!O15 -> 0.65 | K17: =CANS21Strength!O15 -> 0.5 | L17: ='ICC19'!N15 -> 0.05263157895 | M17: ='ICC20'!N15 -> 0.1176470588 | N17: ='ICC21'!N15 -> 0 | O17: ='CBS19'!N15 -> 0.7272727273 | P17: ='CBS20'!N15 -> 0.7469879518 | Q17: ='CBS21'!N15 -> 0.8045977011 | R17: =FamilyFC19!AE15 -> 0.7843137255 | S17: =FamilyFC20!AE15 -> 0.8421052632 | T17: =FamilyFC21!AE15 -> 0.8196721311 | U17: =Permanency19!AE15 -> 0.64 | V17: =Permanency20!AE15 -> 0.5555555556 | W17: =Permanency21!AE15 -> 0.6363636364 | X17: =Summary19!AJ16 -> 2 | Y17: =Summary20!AJ16 -> 1.857142857 | Z17: =Summary21!AJ16 -> 1.571428571 | AA17: =IF(AND(CANS19School!Q15<>"",CANS19School!Q15<>0),CANS19School!Q15,"") -> 7 | AB17: =IF(AND(CANS20School!Q15<>"",CANS20School!Q15<>0),CANS20School!Q15,"") -> 73t | AC17: =IF(AND(CANS21School!Q15<>"",CANS21School!Q15<>0),CANS21School!Q15,"") -> 88t | AD17: =IF(AND(CANS19Behavior!Q15<>"",CANS19Behavior!Q15<>0),CANS19Behavior!Q15,"") -> 112 | AE17: =IF(AND(CANS20Behavior!Q15<>"",CANS20Behavior!Q15<>0),CANS20Behavior!Q15,"") -> 90t | AF17: =IF(AND(CANS21Behavior!Q15<>"",CANS21Behavior!Q15<>0),CANS21Behavior!Q15,"") -> 109t | AG17: =IF(AND(CANS19Strength!Q15<>"",CANS19Strength!Q15<>0),CANS19Strength!Q15,"") -> 63t | AH17: =IF(AND(CANS20Strength!Q15<>"",CANS20Strength!Q15<>0),CANS20Strength!Q15,"") -> 57t | AI17: =IF(AND(CANS21Strength!Q15<>"",CANS21Strength!Q15<>0),CANS21Strength!Q15,"") -> 75t | AJ17: =IF(AND('ICC19'!P15<>"",'ICC19'!P15<>0),'ICC19'!P15,"") -> 56 | AK17: =IF(AND('ICC20'!P15<>"",'ICC20'!P15<>0),'ICC20'!P15,"") -> 50 | AL17: =IF(AND('ICC21'!P15<>"",'ICC21'!P15<>0),'ICC21'!P15,"") -> 55t | AM17: =IF(AND('CBS19'!P15<>"",'CBS19'!P15<>0),'CBS19'!P15,"") -> 119t | AN17: =IF(AND('CBS20'!P15<>"",'CBS20'!P15<>0),'CBS20'!P15,"") -> 114 | AO17: =IF(AND('CBS21'!P15<>"",'CBS21'!P15<>0),'CBS21'!P15,"") -> 94 | AP17: =IF(AND(FamilyFC19!AG15<>"",FamilyFC19!AG15<>0),FamilyFC19!AG15,"") -> 97 | AQ17: =IF(AND(FamilyFC20!AG15<>"",FamilyFC20!AG15<>0),FamilyFC20!AG15,"") -> 78t | AR17: =IF(AND(FamilyFC21!AG15<>"",FamilyFC21!AG15<>0),FamilyFC21!AG15,"") -> 90 | AS17: =IF(AND(Permanency19!AG15<>"",Permanency19!AG15<>0),Permanency19!AG15,"") -> 102 | AT17: =IF(AND(Permanency20!AG15<>"",Permanency20!AG15<>0),Permanency20!AG15,"") -> 104t | AU17: =IF(AND(Permanency21!AG15<>"",Permanency21!AG15<>0),Permanency21!AG15,"") -> 107t | AV17: =IF(AND(Summary19!AL16<>"",Summary19!AL16<>0),Summary19!AL16,"") -> 111t | AW17: =IF(AND(Summary20!AL16<>"",Summary20!AL16<>0),Summary20!AL16,"") -> 117t | AX17: =IF(AND(Summary21!AL16<>"",Summary21!AL16<>0),Summary21!AL16,"") -> 128 | AY17: 0.07 | AZ17: 0.8125 | BA17: 7 | BB17: 1.12 | BC17: 1.12 | BD17: 112 | BE17: 0.63 | BF17: 0.63 | BG17: 63t | BH17: 0.56 | BI17: 0.56 | BJ17: 56 | BK17: 1.19 | BL17: 1.19 | BM17: 119t | BN17: 0.97 | BO17: 0.97 | BP17: 97 | BQ17: 1.02 | BR17: 1.02 | BS17: 102 | BT17: 1.11 | BU17: 2 | BV17: 111t | BW17: 0.73 | BX17: 0.73 | BY17: 73t | BZ17: 0.9 | CA17: 0.9 | CB17: 90t | CC17: 0.57 | CD17: 0.65 | CE17: 57t | CF17: 0.5 | CG17: 0.5 | CH17: 50 | CI17: 1.14 | CJ17: 1.14 | CK17: 114 | CL17: 0.78 | CM17: 0.8421052632 | CN17: 78t | CO17: 1.04 | CP17: 1.04 | CQ17: 104t | CR17: 1.17 | CS17: 1.857142857 | CT17: 117t | CU17: 0.88 | CV17: 0.88 | CW17: 88t | CX17: 1.09 | CY17: 1.09 | CZ17: 109t | DA17: 0.75 | DB17: 0.75 | DC17: 75t | DD17: 0.55 | DE17: 0.55 | DF17: 55t | DG17: 0.94 | DH17: 0.94 | DI17: 94 | DJ17: 0.9 | DK17: 0.9 | DL17: 90 | DM17: 1.07 | DN17: 1.07 | DO17: 107t | DP17: 1.28 | DQ17: 1.571428571 | DR17: 128
A18: 25 | B18: Brunswick | C18: =CANS19School!O16 -> 0.625 | D18: =CANS20School!O16 -> 0 | E18: =CANS21School!O16 ->  | F18: =CANS19Behavior!O16 -> 0.875 | G18: =CANS20Behavior!O16 -> 0 | H18: =CANS21Behavior!O16 ->  | I18: =CANS19Strength!O16 -> 0.625 | J18: =CANS20Strength!O16 -> 0.3333333333 | K18: =CANS21Strength!O16 ->  | L18: ='ICC19'!N16 ->  | M18: ='ICC20'!N16 ->  | N18: ='ICC21'!N16 ->  | O18: ='CBS19'!N16 -> 0.7272727273 | P18: ='CBS20'!N16 -> 0.7391304348 | Q18: ='CBS21'!N16 -> 0.7647058824 | R18: =FamilyFC19!AE16 -> 0.5 | S18: =FamilyFC20!AE16 -> 0.8571428571 | T18: =FamilyFC21!AE16 -> 0.75 | U18: =Permanency19!AE16 ->  | V18: =Permanency20!AE16 -> 0.5 | W18: =Permanency21!AE16 -> 1 | X18: =Summary19!AJ17 -> 2.8 | Y18: =Summary20!AJ17 -> 1.666666667 | Z18: =Summary21!AJ17 -> 2.333333333 | AA18: =IF(AND(CANS19School!Q16<>"",CANS19School!Q16<>0),CANS19School!Q16,"") -> 28t | AB18: =IF(AND(CANS20School!Q16<>"",CANS20School!Q16<>0),CANS20School!Q16,"") -> 125t | AC18: =IF(AND(CANS21School!Q16<>"",CANS21School!Q16<>0),CANS21School!Q16,"") ->  | AD18: =IF(AND(CANS19Behavior!Q16<>"",CANS19Behavior!Q16<>0),CANS19Behavior!Q16,"") -> 8 | AE18: =IF(AND(CANS20Behavior!Q16<>"",CANS20Behavior!Q16<>0),CANS20Behavior!Q16,"") -> 126t | AF18: =IF(AND(CANS21Behavior!Q16<>"",CANS21Behavior!Q16<>0),CANS21Behavior!Q16,"") ->  | AG18: =IF(AND(CANS19Strength!Q16<>"",CANS19Strength!Q16<>0),CANS19Strength!Q16,"") -> 63t | AH18: =IF(AND(CANS20Strength!Q16<>"",CANS20Strength!Q16<>0),CANS20Strength!Q16,"") -> 122 | AI18: =IF(AND(CANS21Strength!Q16<>"",CANS21Strength!Q16<>0),CANS21Strength!Q16,"") ->  | AJ18: =IF(AND('ICC19'!P16<>"",'ICC19'!P16<>0),'ICC19'!P16,"") ->  | AK18: =IF(AND('ICC20'!P16<>"",'ICC20'!P16<>0),'ICC20'!P16,"") ->  | AL18: =IF(AND('ICC21'!P16<>"",'ICC21'!P16<>0),'ICC21'!P16,"") ->  | AM18: =IF(AND('CBS19'!P16<>"",'CBS19'!P16<>0),'CBS19'!P16,"") -> 119t | AN18: =IF(AND('CBS20'!P16<>"",'CBS20'!P16<>0),'CBS20'!P16,"") -> 117t | AO18: =IF(AND('CBS21'!P16<>"",'CBS21'!P16<>0),'CBS21'!P16,"") -> 114 | AP18: =IF(AND(FamilyFC19!AG16<>"",FamilyFC19!AG16<>0),FamilyFC19!AG16,"") -> 121t | AQ18: =IF(AND(FamilyFC20!AG16<>"",FamilyFC20!AG16<>0),FamilyFC20!AG16,"") -> 69t | AR18: =IF(AND(FamilyFC21!AG16<>"",FamilyFC21!AG16<>0),FamilyFC21!AG16,"") -> 111 | AS18: =IF(AND(Permanency19!AG16<>"",Permanency19!AG16<>0),Permanency19!AG16,"") ->  | AT18: =IF(AND(Permanency20!AG16<>"",Permanency20!AG16<>0),Permanency20!AG16,"") -> 108t | AU18: =IF(AND(Permanency21!AG16<>"",Permanency21!AG16<>0),Permanency21!AG16,"") -> 1t | AV18: =IF(AND(Summary19!AL17<>"",Summary19!AL17<>0),Summary19!AL17,"") -> 64 | AW18: =IF(AND(Summary20!AL17<>"",Summary20!AL17<>0),Summary20!AL17,"") -> 125 | AX18: =IF(AND(Summary21!AL17<>"",Summary21!AL17<>0),Summary21!AL17,"") -> 99t | AY18: 0.28 | AZ18: 0.625 | BA18: 28t | BB18: 0.08 | BC18: 0.875 | BD18: 8 | BE18: 0.63 | BF18: 0.63 | BG18: 63t | BK18: 1.19 | BL18: 1.19 | BM18: 119t | BN18: 1.21 | BO18: 1.21 | BP18: 121t | BT18: 0.64 | BU18: 2.8 | BV18: 64 | BW18: 1.25 | BX18: 1.25 | BY18: 125t | BZ18: 1.26 | CB18: 126t | CC18: 1.22 | CD18: 1.22 | CE18: 122 | CI18: 1.17 | CJ18: 1.17 | CK18: 117t | CL18: 0.69 | CM18: 0.8571428571 | CN18: 69t | CO18: 1.08 | CP18: 1.08 | CQ18: 108t | CR18: 1.25 | CS18: 1.666666667 | CT18: 125 | DG18: 1.14 | DH18: 1.14 | DI18: 114 | DJ18: 1.11 | DK18: 1.11 | DL18: 111 | DM18: 0.01 | DN18: 1 | DO18: 1t | DP18: 0.99 | DQ18: 2.333333333 | DR18: 99t
A19: 27 | B19: Buchanan | C19: =CANS19School!O17 -> 0.4736842105 | D19: =CANS20School!O17 -> 0.4444444444 | E19: =CANS21School!O17 -> 0.4 | F19: =CANS19Behavior!O17 -> 0.3333333333 | G19: =CANS20Behavior!O17 -> 0.3448275862 | H19: =CANS21Behavior!O17 -> 0.2666666667 | I19: =CANS19Strength!O17 -> 0.5714285714 | J19: =CANS20Strength!O17 -> 0.6551724138 | K19: =CANS21Strength!O17 -> 0.7333333333 | L19: ='ICC19'!N17 -> 0 | M19: ='ICC20'!N17 -> 0.05882352941 | N19: ='ICC21'!N17 -> 0.1666666667 | O19: ='CBS19'!N17 -> 0.7872340426 | P19: ='CBS20'!N17 -> 0.6603773585 | Q19: ='CBS21'!N17 -> 0.8103448276 | R19: =FamilyFC19!AE17 -> 0.6808510638 | S19: =FamilyFC20!AE17 -> 0.8421052632 | T19: =FamilyFC21!AE17 -> 0.8955223881 | U19: =Permanency19!AE17 -> 0.8 | V19: =Permanency20!AE17 -> 0.5862068966 | W19: =Permanency21!AE17 -> 0.9130434783 | X19: =Summary19!AJ18 -> 1.571428571 | Y19: =Summary20!AJ18 -> 1.857142857 | Z19: =Summary21!AJ18 -> 2.428571429 | AA19: =IF(AND(CANS19School!Q17<>"",CANS19School!Q17<>0),CANS19School!Q17,"") -> 83t | AB19: =IF(AND(CANS20School!Q17<>"",CANS20School!Q17<>0),CANS20School!Q17,"") -> 75t | AC19: =IF(AND(CANS21School!Q17<>"",CANS21School!Q17<>0),CANS21School!Q17,"") -> 65t | AD19: =IF(AND(CANS19Behavior!Q17<>"",CANS19Behavior!Q17<>0),CANS19Behavior!Q17,"") -> 114t | AE19: =IF(AND(CANS20Behavior!Q17<>"",CANS20Behavior!Q17<>0),CANS20Behavior!Q17,"") -> 106 | AF19: =IF(AND(CANS21Behavior!Q17<>"",CANS21Behavior!Q17<>0),CANS21Behavior!Q17,"") -> 107 | AG19: =IF(AND(CANS19Strength!Q17<>"",CANS19Strength!Q17<>0),CANS19Strength!Q17,"") -> 82t | AH19: =IF(AND(CANS20Strength!Q17<>"",CANS20Strength!Q17<>0),CANS20Strength!Q17,"") -> 55 | AI19: =IF(AND(CANS21Strength!Q17<>"",CANS21Strength!Q17<>0),CANS21Strength!Q17,"") -> 22t | AJ19: =IF(AND('ICC19'!P17<>"",'ICC19'!P17<>0),'ICC19'!P17,"") -> 57t | AK19: =IF(AND('ICC20'!P17<>"",'ICC20'!P17<>0),'ICC20'!P17,"") -> 53 | AL19: =IF(AND('ICC21'!P17<>"",'ICC21'!P17<>0),'ICC21'!P17,"") -> 45 | AM19: =IF(AND('CBS19'!P17<>"",'CBS19'!P17<>0),'CBS19'!P17,"") -> 94t | AN19: =IF(AND('CBS20'!P17<>"",'CBS20'!P17<>0),'CBS20'!P17,"") -> 127 | AO19: =IF(AND('CBS21'!P17<>"",'CBS21'!P17<>0),'CBS21'!P17,"") -> 90 | AP19: =IF(AND(FamilyFC19!AG17<>"",FamilyFC19!AG17<>0),FamilyFC19!AG17,"") -> 113 | AQ19: =IF(AND(FamilyFC20!AG17<>"",FamilyFC20!AG17<>0),FamilyFC20!AG17,"") -> 78t | AR19: =IF(AND(FamilyFC21!AG17<>"",FamilyFC21!AG17<>0),FamilyFC21!AG17,"") -> 53 | AS19: =IF(AND(Permanency19!AG17<>"",Permanency19!AG17<>0),Permanency19!AG17,"") -> 60t | AT19: =IF(AND(Permanency20!AG17<>"",Permanency20!AG17<>0),Permanency20!AG17,"") -> 103 | AU19: =IF(AND(Permanency21!AG17<>"",Permanency21!AG17<>0),Permanency21!AG17,"") -> 32 | AV19: =IF(AND(Summary19!AL18<>"",Summary19!AL18<>0),Summary19!AL18,"") -> 127 | AW19: =IF(AND(Summary20!AL18<>"",Summary20!AL18<>0),Summary20!AL18,"") -> 117t | AX19: =IF(AND(Summary21!AL18<>"",Summary21!AL18<>0),Summary21!AL18,"") -> 89t | AY19: 0.83 | AZ19: 0.83 | BA19: 83t | BB19: 1.14 | BC19: 1.14 | BD19: 114t | BE19: 0.82 | BF19: 0.82 | BG19: 82t | BH19: 0.57 | BI19: 0.57 | BJ19: 57t | BK19: 0.94 | BL19: 0.94 | BM19: 94t | BN19: 1.13 | BO19: 1.13 | BP19: 113 | BQ19: 0.6 | BR19: 0.8 | BS19: 60t | BT19: 1.27 | BU19: 1.571428571 | BV19: 127 | BW19: 0.75 | BX19: 0.75 | BY19: 75t | BZ19: 1.06 | CA19: 1.06 | CB19: 106 | CC19: 0.55 | CD19: 0.6551724138 | CE19: 55 | CF19: 0.53 | CG19: 0.53 | CH19: 53 | CI19: 1.27 | CJ19: 1.27 | CK19: 127 | CL19: 0.78 | CM19: 0.8421052632 | CN19: 78t | CO19: 1.03 | CP19: 1.03 | CQ19: 103 | CR19: 1.17 | CS19: 1.857142857 | CT19: 117t | CU19: 0.65 | CV19: 0.65 | CW19: 65t | CX19: 1.07 | CY19: 1.07 | CZ19: 107 | DA19: 0.22 | DB19: 0.7333333333 | DC19: 22t | DD19: 0.45 | DE19: 0.45 | DF19: 45 | DG19: 0.9 | DH19: 0.9 | DI19: 90 | DJ19: 0.53 | DK19: 0.8955223881 | DL19: 53 | DM19: 0.32 | DN19: 0.9130434783 | DO19: 32 | DP19: 0.89 | DQ19: 2.428571429 | DR19: 89t
A20: 29 | B20: Buckingham | C20: =CANS19School!O18 -> 0.625 | D20: =CANS20School!O18 -> 0.5 | E20: =CANS21School!O18 -> 0.3333333333 | F20: =CANS19Behavior!O18 -> 0.4375 | G20: =CANS20Behavior!O18 -> 0.1666666667 | H20: =CANS21Behavior!O18 -> 0.3333333333 | I20: =CANS19Strength!O18 -> 0.6875 | J20: =CANS20Strength!O18 -> 0.6666666667 | K20: =CANS21Strength!O18 -> 0.4166666667 | L20: ='ICC19'!N18 ->  | M20: ='ICC20'!N18 ->  | N20: ='ICC21'!N18 ->  | O20: ='CBS19'!N18 -> 0.9402985075 | P20: ='CBS20'!N18 -> 0.9523809524 | Q20: ='CBS21'!N18 -> 0.9333333333 | R20: =FamilyFC19!AE18 -> 1 | S20: =FamilyFC20!AE18 -> 0.9523809524 | T20: =FamilyFC21!AE18 -> 0.8888888889 | U20: =Permanency19!AE18 -> 0.5 | V20: =Permanency20!AE18 -> 0.7142857143 | W20: =Permanency21!AE18 -> 0.8 | X20: =Summary19!AJ19 -> 3.166666667 | Y20: =Summary20!AJ19 -> 3 | Z20: =Summary21!AJ19 -> 2.166666667 | AA20: =IF(AND(CANS19School!Q18<>"",CANS19School!Q18<>0),CANS19School!Q18,"") -> 28t | AB20: =IF(AND(CANS20School!Q18<>"",CANS20School!Q18<>0),CANS20School!Q18,"") -> 49t | AC20: =IF(AND(CANS21School!Q18<>"",CANS21School!Q18<>0),CANS21School!Q18,"") -> 88t | AD20: =IF(AND(CANS19Behavior!Q18<>"",CANS19Behavior!Q18<>0),CANS19Behavior!Q18,"") -> 100 | AE20: =IF(AND(CANS20Behavior!Q18<>"",CANS20Behavior!Q18<>0),CANS20Behavior!Q18,"") -> 121 | AF20: =IF(AND(CANS21Behavior!Q18<>"",CANS21Behavior!Q18<>0),CANS21Behavior!Q18,"") -> 87t | AG20: =IF(AND(CANS19Strength!Q18<>"",CANS19Strength!Q18<>0),CANS19Strength!Q18,"") -> 38t | AH20: =IF(AND(CANS20Strength!Q18<>"",CANS20Strength!Q18<>0),CANS20Strength!Q18,"") -> 44t | AI20: =IF(AND(CANS21Strength!Q18<>"",CANS21Strength!Q18<>0),CANS21Strength!Q18,"") -> 106 | AJ20: =IF(AND('ICC19'!P18<>"",'ICC19'!P18<>0),'ICC19'!P18,"") ->  | AK20: =IF(AND('ICC20'!P18<>"",'ICC20'!P18<>0),'ICC20'!P18,"") ->  | AL20: =IF(AND('ICC21'!P18<>"",'ICC21'!P18<>0),'ICC21'!P18,"") ->  | AM20: =IF(AND('CBS19'!P18<>"",'CBS19'!P18<>0),'CBS19'!P18,"") -> 7 | AN20: =IF(AND('CBS20'!P18<>"",'CBS20'!P18<>0),'CBS20'!P18,"") -> 10 | AO20: =IF(AND('CBS21'!P18<>"",'CBS21'!P18<>0),'CBS21'!P18,"") -> 16 | AP20: =IF(AND(FamilyFC19!AG18<>"",FamilyFC19!AG18<>0),FamilyFC19!AG18,"") -> 1t | AQ20: =IF(AND(FamilyFC20!AG18<>"",FamilyFC20!AG18<>0),FamilyFC20!AG18,"") -> 21 | AR20: =IF(AND(FamilyFC21!AG18<>"",FamilyFC21!AG18<>0),FamilyFC21!AG18,"") -> 56t | AS20: =IF(AND(Permanency19!AG18<>"",Permanency19!AG18<>0),Permanency19!AG18,"") -> 112t | AT20: =IF(AND(Permanency20!AG18<>"",Permanency20!AG18<>0),Permanency20!AG18,"") -> 78t | AU20: =IF(AND(Permanency21!AG18<>"",Permanency21!AG18<>0),Permanency21!AG18,"") -> 69t | AV20: =IF(AND(Summary19!AL19<>"",Summary19!AL19<>0),Summary19!AL19,"") -> 21t | AW20: =IF(AND(Summary20!AL19<>"",Summary20!AL19<>0),Summary20!AL19,"") -> 31t | AX20: =IF(AND(Summary21!AL19<>"",Summary21!AL19<>0),Summary21!AL19,"") -> 106t | AY20: 0.28 | AZ20: 0.625 | BA20: 28t | BB20: 1 | BC20: 1 | BD20: 100 | BE20: 0.38 | BF20: 0.6875 | BG20: 38t | BK20: 0.07 | BL20: 0.9402985075 | BM20: 7 | BN20: 0.01 | BO20: 1 | BP20: 1t | BQ20: 1.12 | BR20: 1.12 | BS20: 112t | BT20: 0.21 | BU20: 3.166666667 | BV20: 21t | BW20: 0.49 | BX20: 0.5 | BY20: 49t | BZ20: 1.21 | CA20: 1.21 | CB20: 121 | CC20: 0.44 | CD20: 0.6666666667 | CE20: 44t | CI20: 0.1 | CJ20: 0.9523809524 | CK20: 10 | CL20: 0.21 | CM20: 0.9523809524 | CN20: 21 | CO20: 0.78 | CP20: 0.78 | CQ20: 78t | CR20: 0.31 | CS20: 3 | CT20: 31t | CU20: 0.88 | CV20: 0.88 | CW20: 88t | CX20: 0.87 | CY20: 0.87 | CZ20: 87t | DA20: 1.06 | DB20: 1.06 | DC20: 106 | DG20: 0.16 | DH20: 0.9333333333 | DI20: 16 | DJ20: 0.56 | DK20: 0.8888888889 | DL20: 56t | DM20: 0.69 | DN20: 0.8 | DO20: 69t | DP20: 1.06 | DQ20: 2.166666667 | DR20: 106t
A21: 530 | B21: Buena Vista | C21: =CANS19School!O19 -> 0.65 | D21: =CANS20School!O19 -> 0.375 | E21: =CANS21School!O19 -> 0.1666666667 | F21: =CANS19Behavior!O19 -> 0.6 | G21: =CANS20Behavior!O19 -> 0.375 | H21: =CANS21Behavior!O19 -> 0 | I21: =CANS19Strength!O19 -> 0.5 | J21: =CANS20Strength!O19 -> 0.75 | K21: =CANS21Strength!O19 -> 0.6666666667 | L21: ='ICC19'!N19 -> 0.09090909091 | M21: ='ICC20'!N19 -> 0.1 | N21: ='ICC21'!N19 ->  | O21: ='CBS19'!N19 -> 0.8181818182 | P21: ='CBS20'!N19 -> 0.7846153846 | Q21: ='CBS21'!N19 -> 0.82 | R21: =FamilyFC19!AE19 -> 0.8636363636 | S21: =FamilyFC20!AE19 -> 0.9 | T21: =FamilyFC21!AE19 -> 0.9117647059 | U21: =Permanency19!AE19 -> 0.8421052632 | V21: =Permanency20!AE19 -> 0.9473684211 | W21: =Permanency21!AE19 -> 0.9375 | X21: =Summary19!AJ20 -> 2.714285714 | Y21: =Summary20!AJ20 -> 2.285714286 | Z21: =Summary21!AJ20 -> 2.5 | AA21: =IF(AND(CANS19School!Q19<>"",CANS19School!Q19<>0),CANS19School!Q19,"") -> 22t | AB21: =IF(AND(CANS20School!Q19<>"",CANS20School!Q19<>0),CANS20School!Q19,"") -> 97t | AC21: =IF(AND(CANS21School!Q19<>"",CANS21School!Q19<>0),CANS21School!Q19,"") -> 121t | AD21: =IF(AND(CANS19Behavior!Q19<>"",CANS19Behavior!Q19<>0),CANS19Behavior!Q19,"") -> 41t | AE21: =IF(AND(CANS20Behavior!Q19<>"",CANS20Behavior!Q19<>0),CANS20Behavior!Q19,"") -> 98t | AF21: =IF(AND(CANS21Behavior!Q19<>"",CANS21Behavior!Q19<>0),CANS21Behavior!Q19,"") -> 124t | AG21: =IF(AND(CANS19Strength!Q19<>"",CANS19Strength!Q19<>0),CANS19Strength!Q19,"") -> 96t | AH21: =IF(AND(CANS20Strength!Q19<>"",CANS20Strength!Q19<>0),CANS20Strength!Q19,"") -> 22t | AI21: =IF(AND(CANS21Strength!Q19<>"",CANS21Strength!Q19<>0),CANS21Strength!Q19,"") -> 31t | AJ21: =IF(AND('ICC19'!P19<>"",'ICC19'!P19<>0),'ICC19'!P19,"") -> 54 | AK21: =IF(AND('ICC20'!P19<>"",'ICC20'!P19<>0),'ICC20'!P19,"") -> 52 | AL21: =IF(AND('ICC21'!P19<>"",'ICC21'!P19<>0),'ICC21'!P19,"") ->  | AM21: =IF(AND('CBS19'!P19<>"",'CBS19'!P19<>0),'CBS19'!P19,"") -> 74t | AN21: =IF(AND('CBS20'!P19<>"",'CBS20'!P19<>0),'CBS20'!P19,"") -> 100 | AO21: =IF(AND('CBS21'!P19<>"",'CBS21'!P19<>0),'CBS21'!P19,"") -> 84 | AP21: =IF(AND(FamilyFC19!AG19<>"",FamilyFC19!AG19<>0),FamilyFC19!AG19,"") -> 55t | AQ21: =IF(AND(FamilyFC20!AG19<>"",FamilyFC20!AG19<>0),FamilyFC20!AG19,"") -> 49t | AR21: =IF(AND(FamilyFC21!AG19<>"",FamilyFC21!AG19<>0),FamilyFC21!AG19,"") -> 46t | AS21: =IF(AND(Permanency19!AG19<>"",Permanency19!AG19<>0),Permanency19!AG19,"") -> 47t | AT21: =IF(AND(Permanency20!AG19<>"",Permanency20!AG19<>0),Permanency20!AG19,"") -> 11t | AU21: =IF(AND(Permanency21!AG19<>"",Permanency21!AG19<>0),Permanency21!AG19,"") -> 24t | AV21: =IF(AND(Summary19!AL20<>"",Summary19!AL20<>0),Summary19!AL20,"") -> 65t | AW21: =IF(AND(Summary20!AL20<>"",Summary20!AL20<>0),Summary20!AL20,"") -> 89t | AX21: =IF(AND(Summary21!AL20<>"",Summary21!AL20<>0),Summary21!AL20,"") -> 82t | AY21: 0.22 | AZ21: 0.65 | BA21: 22t | BB21: 0.41 | BC21: 0.6 | BD21: 41t | BE21: 0.96 | BF21: 0.96 | BG21: 96t | BH21: 0.54 | BI21: 0.54 | BJ21: 54 | BK21: 0.74 | BL21: 0.8181818182 | BM21: 74t | BN21: 0.55 | BO21: 0.8636363636 | BP21: 55t | BQ21: 0.47 | BR21: 0.8421052632 | BS21: 47t | BT21: 0.65 | BU21: 2.714285714 | BV21: 65t | BW21: 0.97 | BX21: 0.97 | BY21: 97t | BZ21: 0.98 | CA21: 0.98 | CB21: 98t | CC21: 0.22 | CD21: 0.75 | CE21: 22t | CF21: 0.52 | CG21: 0.52 | CH21: 52 | CI21: 1 | CJ21: 1 | CK21: 100 | CL21: 0.49 | CM21: 0.9 | CN21: 49t | CO21: 0.11 | CP21: 0.9473684211 | CQ21: 11t | CR21: 0.89 | CS21: 2.285714286 | CT21: 89t | CU21: 1.21 | CV21: 1.21 | CW21: 121t | CX21: 1.24 | CY21: 1.24 | CZ21: 124t | DA21: 0.31 | DB21: 0.6666666667 | DC21: 31t | DG21: 0.84 | DH21: 0.84 | DI21: 84 | DJ21: 0.46 | DK21: 0.9117647059 | DL21: 46t | DM21: 0.24 | DN21: 0.9375 | DO21: 24t | DP21: 0.82 | DQ21: 2.5 | DR21: 82t
A22: 31 | B22: Campbell | C22: =CANS19School!O20 -> 0.3793103448 | D22: =CANS20School!O20 -> 0.4375 | E22: =CANS21School!O20 -> 0.5806451613 | F22: =CANS19Behavior!O20 -> 0.4482758621 | G22: =CANS20Behavior!O20 -> 0.4166666667 | H22: =CANS21Behavior!O20 -> 0.5483870968 | I22: =CANS19Strength!O20 -> 0.5517241379 | J22: =CANS20Strength!O20 -> 0.5416666667 | K22: =CANS21Strength!O20 -> 0.5483870968 | L22: ='ICC19'!N20 -> 0 | M22: ='ICC20'!N20 -> 0 | N22: ='ICC21'!N20 -> 0 | O22: ='CBS19'!N20 -> 0.8159509202 | P22: ='CBS20'!N20 -> 0.8415300546 | Q22: ='CBS21'!N20 -> 0.8355263158 | R22: =FamilyFC19!AE20 -> 0.9166666667 | S22: =FamilyFC20!AE20 -> 0.8823529412 | T22: =FamilyFC21!AE20 -> 0.8378378378 | U22: =Permanency19!AE20 -> 0.7058823529 | V22: =Permanency20!AE20 -> 0.8823529412 | W22: =Permanency21!AE20 -> 0.8888888889 | X22: =Summary19!AJ21 -> 1.714285714 | Y22: =Summary20!AJ21 -> 2 | Z22: =Summary21!AJ21 -> 2.5 | AA22: =IF(AND(CANS19School!Q20<>"",CANS19School!Q20<>0),CANS19School!Q20,"") -> 110 | AB22: =IF(AND(CANS20School!Q20<>"",CANS20School!Q20<>0),CANS20School!Q20,"") -> 77t | AC22: =IF(AND(CANS21School!Q20<>"",CANS21School!Q20<>0),CANS21School!Q20,"") -> 22 | AD22: =IF(AND(CANS19Behavior!Q20<>"",CANS19Behavior!Q20<>0),CANS19Behavior!Q20,"") -> 95 | AE22: =IF(AND(CANS20Behavior!Q20<>"",CANS20Behavior!Q20<>0),CANS20Behavior!Q20,"") -> 86 | AF22: =IF(AND(CANS21Behavior!Q20<>"",CANS21Behavior!Q20<>0),CANS21Behavior!Q20,"") -> 28 | AG22: =IF(AND(CANS19Strength!Q20<>"",CANS19Strength!Q20<>0),CANS19Strength!Q20,"") -> 84 | AH22: =IF(AND(CANS20Strength!Q20<>"",CANS20Strength!Q20<>0),CANS20Strength!Q20,"") -> 93t | AI22: =IF(AND(CANS21Strength!Q20<>"",CANS21Strength!Q20<>0),CANS21Strength!Q20,"") -> 65 | AJ22: =IF(AND('ICC19'!P20<>"",'ICC19'!P20<>0),'ICC19'!P20,"") -> 57t | AK22: =IF(AND('ICC20'!P20<>"",'ICC20'!P20<>0),'ICC20'!P20,"") -> 55t | AL22: =IF(AND('ICC21'!P20<>"",'ICC21'!P20<>0),'ICC21'!P20,"") -> 55t | AM22: =IF(AND('CBS19'!P20<>"",'CBS19'!P20<>0),'CBS19'!P20,"") -> 77 | AN22: =IF(AND('CBS20'!P20<>"",'CBS20'!P20<>0),'CBS20'!P20,"") -> 64 | AO22: =IF(AND('CBS21'!P20<>"",'CBS21'!P20<>0),'CBS21'!P20,"") -> 70 | AP22: =IF(AND(FamilyFC19!AG20<>"",FamilyFC19!AG20<>0),FamilyFC19!AG20,"") -> 34t | AQ22: =IF(AND(FamilyFC20!AG20<>"",FamilyFC20!AG20<>0),FamilyFC20!AG20,"") -> 58t | AR22: =IF(AND(FamilyFC21!AG20<>"",FamilyFC21!AG20<>0),FamilyFC21!AG20,"") -> 84 | AS22: =IF(AND(Permanency19!AG20<>"",Permanency19!AG20<>0),Permanency19!AG20,"") -> 87t | AT22: =IF(AND(Permanency20!AG20<>"",Permanency20!AG20<>0),Permanency20!AG20,"") -> 25 | AU22: =IF(AND(Permanency21!AG20<>"",Permanency21!AG20<>0),Permanency21!AG20,"") -> 43t | AV22: =IF(AND(Summary19!AL21<>"",Summary19!AL21<>0),Summary19!AL21,"") -> 120t | AW22: =IF(AND(Summary20!AL21<>"",Summary20!AL21<>0),Summary20!AL21,"") -> 112t | AX22: =IF(AND(Summary21!AL21<>"",Summary21!AL21<>0),Summary21!AL21,"") -> 82t | AY22: 1.1 | AZ22: 1.1 | BA22: 110 | BB22: 0.95 | BC22: 0.95 | BD22: 95 | BE22: 0.84 | BF22: 0.84 | BG22: 84 | BH22: 0.57 | BI22: 0.57 | BJ22: 57t | BK22: 0.77 | BL22: 0.8159509202 | BM22: 77 | BN22: 0.34 | BO22: 0.9166666667 | BP22: 34t | BQ22: 0.87 | BR22: 0.87 | BS22: 87t | BT22: 1.2 | BU22: 1.714285714 | BV22: 120t | BW22: 0.77 | BX22: 0.77 | BY22: 77t | BZ22: 0.86 | CA22: 0.86 | CB22: 86 | CC22: 0.93 | CD22: 0.93 | CE22: 93t | CF22: 0.55 | CG22: 0.55 | CH22: 55t | CI22: 0.64 | CJ22: 0.8415300546 | CK22: 64 | CL22: 0.58 | CM22: 0.8823529412 | CN22: 58t | CO22: 0.25 | CP22: 0.8823529412 | CQ22: 25 | CR22: 1.12 | CS22: 2 | CT22: 112t | CU22: 0.22 | CV22: 0.5806451613 | CW22: 22 | CX22: 0.28 | CY22: 0.5483870968 | CZ22: 28 | DA22: 0.65 | DB22: 0.65 | DC22: 65 | DD22: 0.55 | DE22: 0.55 | DF22: 55t | DG22: 0.7 | DH22: 0.8355263158 | DI22: 70 | DJ22: 0.84 | DK22: 0.84 | DL22: 84 | DM22: 0.43 | DN22: 0.8888888889 | DO22: 43t | DP22: 0.82 | DQ22: 2.5 | DR22: 82t
A23: 33 | B23: Caroline | C23: =CANS19School!O21 -> 0.5833333333 | D23: =CANS20School!O21 -> 0.5384615385 | E23: =CANS21School!O21 -> 0.7272727273 | F23: =CANS19Behavior!O21 -> 0.5833333333 | G23: =CANS20Behavior!O21 -> 0.3846153846 | H23: =CANS21Behavior!O21 -> 0.4545454545 | I23: =CANS19Strength!O21 -> 0.5833333333 | J23: =CANS20Strength!O21 -> 0.3846153846 | K23: =CANS21Strength!O21 -> 0.3636363636 | L23: ='ICC19'!N21 ->  | M23: ='ICC20'!N21 ->  | N23: ='ICC21'!N21 ->  | O23: ='CBS19'!N21 -> 0.8541666667 | P23: ='CBS20'!N21 -> 0.8409090909 | Q23: ='CBS21'!N21 -> 0.8333333333 | R23: =FamilyFC19!AE21 -> 0.8333333333 | S23: =FamilyFC20!AE21 -> 0.7272727273 | T23: =FamilyFC21!AE21 -> 0.8 | U23: =Permanency19!AE21 -> 0.875 | V23: =Permanency20!AE21 -> 0.6666666667 | W23: =Permanency21!AE21 -> 0.75 | X23: =Summary19!AJ22 -> 3.333333333 | Y23: =Summary20!AJ22 -> 2 | Z23: =Summary21!AJ22 -> 2.5 | AA23: =IF(AND(CANS19School!Q21<>"",CANS19School!Q21<>0),CANS19School!Q21,"") -> 44t | AB23: =IF(AND(CANS20School!Q21<>"",CANS20School!Q21<>0),CANS20School!Q21,"") -> 41 | AC23: =IF(AND(CANS21School!Q21<>"",CANS21School!Q21<>0),CANS21School!Q21,"") -> 12 | AD23: =IF(AND(CANS19Behavior!Q21<>"",CANS19Behavior!Q21<>0),CANS19Behavior!Q21,"") -> 47 | AE23: =IF(AND(CANS20Behavior!Q21<>"",CANS20Behavior!Q21<>0),CANS20Behavior!Q21,"") -> 95 | AF23: =IF(AND(CANS21Behavior!Q21<>"",CANS21Behavior!Q21<>0),CANS21Behavior!Q21,"") -> 62 | AG23: =IF(AND(CANS19Strength!Q21<>"",CANS19Strength!Q21<>0),CANS19Strength!Q21,"") -> 80 | AH23: =IF(AND(CANS20Strength!Q21<>"",CANS20Strength!Q21<>0),CANS20Strength!Q21,"") -> 120 | AI23: =IF(AND(CANS21Strength!Q21<>"",CANS21Strength!Q21<>0),CANS21Strength!Q21,"") -> 112t | AJ23: =IF(AND('ICC19'!P21<>"",'ICC19'!P21<>0),'ICC19'!P21,"") ->  | AK23: =IF(AND('ICC20'!P21<>"",'ICC20'!P21<>0),'ICC20'!P21,"") ->  | AL23: =IF(AND('ICC21'!P21<>"",'ICC21'!P21<>0),'ICC21'!P21,"") ->  | AM23: =IF(AND('CBS19'!P21<>"",'CBS19'!P21<>0),'CBS19'!P21,"") -> 52t | AN23: =IF(AND('CBS20'!P21<>"",'CBS20'!P21<>0),'CBS20'!P21,"") -> 65 | AO23: =IF(AND('CBS21'!P21<>"",'CBS21'!P21<>0),'CBS21'!P21,"") -> 71t | AP23: =IF(AND(FamilyFC19!AG21<>"",FamilyFC19!AG21<>0),FamilyFC19!AG21,"") -> 80t | AQ23: =IF(AND(FamilyFC20!AG21<>"",FamilyFC20!AG21<>0),FamilyFC20!AG21,"") -> 112 | AR23: =IF(AND(FamilyFC21!AG21<>"",FamilyFC21!AG21<>0),FamilyFC21!AG21,"") -> 94t | AS23: =IF(AND(Permanency19!AG21<>"",Permanency19!AG21<>0),Permanency19!AG21,"") -> 37t | AT23: =IF(AND(Permanency20!AG21<>"",Permanency20!AG21<>0),Permanency20!AG21,"") -> 92t | AU23: =IF(AND(Permanency21!AG21<>"",Permanency21!AG21<>0),Permanency21!AG21,"") -> 86t | AV23: =IF(AND(Summary19!AL22<>"",Summary19!AL22<>0),Summary19!AL22,"") -> 14t | AW23: =IF(AND(Summary20!AL22<>"",Summary20!AL22<>0),Summary20!AL22,"") -> 112t | AX23: =IF(AND(Summary21!AL22<>"",Summary21!AL22<>0),Summary21!AL22,"") -> 82t | AY23: 0.44 | AZ23: 0.5833333333 | BA23: 44t | BB23: 0.47 | BC23: 0.5833333333 | BD23: 47 | BE23: 0.8 | BF23: 0.8 | BG23: 80 | BK23: 0.52 | BL23: 0.8541666667 | BM23: 52t | BN23: 0.8 | BO23: 0.8333333333 | BP23: 80t | BQ23: 0.37 | BR23: 0.875 | BS23: 37t | BT23: 0.14 | BU23: 3.333333333 | BV23: 14t | BW23: 0.41 | BX23: 0.5384615385 | BY23: 41 | BZ23: 0.95 | CA23: 0.95 | CB23: 95 | CC23: 1.2 | CD23: 1.2 | CE23: 120 | CI23: 0.65 | CJ23: 0.8409090909 | CK23: 65 | CL23: 1.12 | CM23: 1.12 | CN23: 112 | CO23: 0.92 | CP23: 0.92 | CQ23: 92t | CR23: 1.12 | CS23: 2 | CT23: 112t | CU23: 0.12 | CV23: 0.7272727273 | CW23: 12 | CX23: 0.62 | CY23: 0.62 | CZ23: 62 | DA23: 1.12 | DB23: 1.12 | DC23: 112t | DG23: 0.71 | DH23: 0.8333333333 | DI23: 71t | DJ23: 0.94 | DK23: 0.94 | DL23: 94t | DM23: 0.86 | DN23: 0.86 | DO23: 86t | DP23: 0.82 | DQ23: 2.5 | DR23: 82t
A24: 35 | B24: Carroll | C24: =CANS19School!O22 -> 0.3714285714 | D24: =CANS20School!O22 -> 0.3783783784 | E24: =CANS21School!O22 -> 0.2857142857 | F24: =CANS19Behavior!O22 -> 0.2 | G24: =CANS20Behavior!O22 -> 0.3783783784 | H24: =CANS21Behavior!O22 -> 0.3571428571 | I24: =CANS19Strength!O22 -> 0.3142857143 | J24: =CANS20Strength!O22 -> 0.2432432432 | K24: =CANS21Strength!O22 -> 0.3571428571 | L24: ='ICC19'!N22 -> 0.375 | M24: ='ICC20'!N22 -> 0.4193548387 | N24: ='ICC21'!N22 -> 0.9230769231 | O24: ='CBS19'!N22 -> 0.7619047619 | P24: ='CBS20'!N22 -> 0.7345679012 | Q24: ='CBS21'!N22 -> 0.7205882353 | R24: =FamilyFC19!AE22 -> 0.7956989247 | S24: =FamilyFC20!AE22 -> 0.7916666667 | T24: =FamilyFC21!AE22 -> 0.7466666667 | U24: =Permanency19!AE22 -> 0.6086956522 | V24: =Permanency20!AE22 -> 0.825 | W24: =Permanency21!AE22 -> 0.7419354839 | X24: =Summary19!AJ23 -> 1.285714286 | Y24: =Summary20!AJ23 -> 1.428571429 | Z24: =Summary21!AJ23 -> 1.714285714 | AA24: =IF(AND(CANS19School!Q22<>"",CANS19School!Q22<>0),CANS19School!Q22,"") -> 112 | AB24: =IF(AND(CANS20School!Q22<>"",CANS20School!Q22<>0),CANS20School!Q22,"") -> 96 | AC24: =IF(AND(CANS21School!Q22<>"",CANS21School!Q22<>0),CANS21School!Q22,"") -> 100t | AD24: =IF(AND(CANS19Behavior!Q22<>"",CANS19Behavior!Q22<>0),CANS19Behavior!Q22,"") -> 126t | AE24: =IF(AND(CANS20Behavior!Q22<>"",CANS20Behavior!Q22<>0),CANS20Behavior!Q22,"") -> 97 | AF24: =IF(AND(CANS21Behavior!Q22<>"",CANS21Behavior!Q22<>0),CANS21Behavior!Q22,"") -> 85 | AG24: =IF(AND(CANS19Strength!Q22<>"",CANS19Strength!Q22<>0),CANS19Strength!Q22,"") -> 124 | AH24: =IF(AND(CANS20Strength!Q22<>"",CANS20Strength!Q22<>0),CANS20Strength!Q22,"") -> 126 | AI24: =IF(AND(CANS21Strength!Q22<>"",CANS21Strength!Q22<>0),CANS21Strength!Q22,"") -> 114 | AJ24: =IF(AND('ICC19'!P22<>"",'ICC19'!P22<>0),'ICC19'!P22,"") -> 40 | AK24: =IF(AND('ICC20'!P22<>"",'ICC20'!P22<>0),'ICC20'!P22,"") -> 35 | AL24: =IF(AND('ICC21'!P22<>"",'ICC21'!P22<>0),'ICC21'!P22,"") -> 23 | AM24: =IF(AND('CBS19'!P22<>"",'CBS19'!P22<>0),'CBS19'!P22,"") -> 108t | AN24: =IF(AND('CBS20'!P22<>"",'CBS20'!P22<>0),'CBS20'!P22,"") -> 120 | AO24: =IF(AND('CBS21'!P22<>"",'CBS21'!P22<>0),'CBS21'!P22,"") -> 126 | AP24: =IF(AND(FamilyFC19!AG22<>"",FamilyFC19!AG22<>0),FamilyFC19!AG22,"") -> 96 | AQ24: =IF(AND(FamilyFC20!AG22<>"",FamilyFC20!AG22<>0),FamilyFC20!AG22,"") -> 94t | AR24: =IF(AND(FamilyFC21!AG22<>"",FamilyFC21!AG22<>0),FamilyFC21!AG22,"") -> 112 | AS24: =IF(AND(Permanency19!AG22<>"",Permanency19!AG22<>0),Permanency19!AG22,"") -> 106 | AT24: =IF(AND(Permanency20!AG22<>"",Permanency20!AG22<>0),Permanency20!AG22,"") -> 43 | AU24: =IF(AND(Permanency21!AG22<>"",Permanency21!AG22<>0),Permanency21!AG22,"") -> 89 | AV24: =IF(AND(Summary19!AL23<>"",Summary19!AL23<>0),Summary19!AL23,"") -> 130 | AW24: =IF(AND(Summary20!AL23<>"",Summary20!AL23<>0),Summary20!AL23,"") -> 130 | AX24: =IF(AND(Summary21!AL23<>"",Summary21!AL23<>0),Summary21!AL23,"") -> 126t | AY24: 1.12 | AZ24: 1.12 | BA24: 112 | BB24: 1.26 | BC24: 1.26 | BD24: 126t | BE24: 1.24 | BF24: 1.24 | BG24: 124 | BH24: 0.4 | BI24: 0.4 | BJ24: 40 | BK24: 1.08 | BL24: 1.08 | BM24: 108t | BN24: 0.96 | BO24: 0.96 | BP24: 96 | BQ24: 1.06 | BR24: 1.06 | BS24: 106 | BT24: 1.3 | BU24: 1.3 | BV24: 130 | BW24: 0.96 | BX24: 0.96 | BY24: 96 | BZ24: 0.97 | CA24: 0.97 | CB24: 97 | CC24: 1.26 | CD24: 1.26 | CE24: 126 | CF24: 0.35 | CG24: 0.4193548387 | CH24: 35 | CI24: 1.2 | CJ24: 1.2 | CK24: 120 | CL24: 0.94 | CM24: 0.94 | CN24: 94t | CO24: 0.43 | CP24: 0.825 | CQ24: 43 | CR24: 1.3 | CS24: 1.428571429 | CT24: 130 | CU24: 1 | CV24: 1 | CW24: 100t | CX24: 0.85 | CY24: 0.85 | CZ24: 85 | DA24: 1.14 | DB24: 1.14 | DC24: 114 | DD24: 0.23 | DE24: 0.9230769231 | DF24: 23 | DG24: 1.26 | DH24: 1.26 | DI24: 126 | DJ24: 1.12 | DK24: 1.12 | DL24: 112 | DM24: 0.89 | DN24: 0.89 | DO24: 89 | DP24: 1.26 | DQ24: 1.714285714 | DR24: 126t
A25: 36 | B25: Charles City | C25: =CANS19School!O23 -> 0.8 | D25: =CANS20School!O23 -> 0.5 | E25: =CANS21School!O23 -> 0.25 | F25: =CANS19Behavior!O23 -> 1 | G25: =CANS20Behavior!O23 -> 0.6666666667 | H25: =CANS21Behavior!O23 -> 0.75 | I25: =CANS19Strength!O23 -> 0.8 | J25: =CANS20Strength!O23 -> 0.5 | K25: =CANS21Strength!O23 -> 1 | L25: ='ICC19'!N23 ->  | M25: ='ICC20'!N23 ->  | N25: ='ICC21'!N23 ->  | O25: ='CBS19'!N23 -> 0.875 | P25: ='CBS20'!N23 -> 0.8947368421 | Q25: ='CBS21'!N23 -> 0.875 | R25: =FamilyFC19!AE23 -> 0.6666666667 | S25: =FamilyFC20!AE23 -> 1 | T25: =FamilyFC21!AE23 -> 0.8571428571 | U25: =Permanency19!AE23 ->  | V25: =Permanency20!AE23 -> 0.8571428571 | W25: =Permanency21!AE23 -> 1 | X25: =Summary19!AJ24 -> 3.4 | Y25: =Summary20!AJ24 -> 3.166666667 | Z25: =Summary21!AJ24 -> 3.333333333 | AA25: =IF(AND(CANS19School!Q23<>"",CANS19School!Q23<>0),CANS19School!Q23,"") -> 8t | AB25: =IF(AND(CANS20School!Q23<>"",CANS20School!Q23<>0),CANS20School!Q23,"") -> 49t | AC25: =IF(AND(CANS21School!Q23<>"",CANS21School!Q23<>0),CANS21School!Q23,"") -> 106t | AD25: =IF(AND(CANS19Behavior!Q23<>"",CANS19Behavior!Q23<>0),CANS19Behavior!Q23,"") -> 1t | AE25: =IF(AND(CANS20Behavior!Q23<>"",CANS20Behavior!Q23<>0),CANS20Behavior!Q23,"") -> 14t | AF25: =IF(AND(CANS21Behavior!Q23<>"",CANS21Behavior!Q23<>0),CANS21Behavior!Q23,"") -> 9t | AG25: =IF(AND(CANS19Strength!Q23<>"",CANS19Strength!Q23<>0),CANS19Strength!Q23,"") -> 15t | AH25: =IF(AND(CANS20Strength!Q23<>"",CANS20Strength!Q23<>0),CANS20Strength!Q23,"") -> 102t | AI25: =IF(AND(CANS21Strength!Q23<>"",CANS21Strength!Q23<>0),CANS21Strength!Q23,"") -> 1t | AJ25: =IF(AND('ICC19'!P23<>"",'ICC19'!P23<>0),'ICC19'!P23,"") ->  | AK25: =IF(AND('ICC20'!P23<>"",'ICC20'!P23<>0),'ICC20'!P23,"") ->  | AL25: =IF(AND('ICC21'!P23<>"",'ICC21'!P23<>0),'ICC21'!P23,"") ->  | AM25: =IF(AND('CBS19'!P23<>"",'CBS19'!P23<>0),'CBS19'!P23,"") -> 35t | AN25: =IF(AND('CBS20'!P23<>"",'CBS20'!P23<>0),'CBS20'!P23,"") -> 33t | AO25: =IF(AND('CBS21'!P23<>"",'CBS21'!P23<>0),'CBS21'!P23,"") -> 44 | AP25: =IF(AND(FamilyFC19!AG23<>"",FamilyFC19!AG23<>0),FamilyFC19!AG23,"") -> 114t | AQ25: =IF(AND(FamilyFC20!AG23<>"",FamilyFC20!AG23<>0),FamilyFC20!AG23,"") -> 1t | AR25: =IF(AND(FamilyFC21!AG23<>"",FamilyFC21!AG23<>0),FamilyFC21!AG23,"") -> 76t | AS25: =IF(AND(Permanency19!AG23<>"",Permanency19!AG23<>0),Permanency19!AG23,"") ->  | AT25: =IF(AND(Permanency20!AG23<>"",Permanency20!AG23<>0),Permanency20!AG23,"") -> 30t | AU25: =IF(AND(Permanency21!AG23<>"",Permanency21!AG23<>0),Permanency21!AG23,"") -> 1t | AV25: =IF(AND(Summary19!AL24<>"",Summary19!AL24<>0),Summary19!AL24,"") -> 13 | AW25: =IF(AND(Summary20!AL24<>"",Summary20!AL24<>0),Summary20!AL24,"") -> 22t | AX25: =IF(AND(Summary21!AL24<>"",Summary21!AL24<>0),Summary21!AL24,"") -> 17t | AY25: 0.08 | AZ25: 0.8 | BA25: 8t | BB25: 0.01 | BC25: 1 | BD25: 1t | BE25: 0.15 | BF25: 0.8 | BG25: 15t | BK25: 0.35 | BL25: 0.875 | BM25: 35t | BN25: 1.14 | BO25: 1.14 | BP25: 114t | BT25: 0.13 | BU25: 3.4 | BV25: 13 | BW25: 0.49 | BX25: 0.5 | BY25: 49t | BZ25: 0.14 | CA25: 0.75 | CB25: 14t | CC25: 1.02 | CD25: 1.02 | CE25: 102t | CI25: 0.33 | CJ25: 0.8947368421 | CK25: 33t | CL25: 0.01 | CM25: 1 | CN25: 1t | CO25: 0.3 | CP25: 0.8571428571 | CQ25: 30t | CR25: 0.22 | CS25: 3.166666667 | CT25: 22t | CU25: 1.06 | CV25: 1.06 | CW25: 106t | CX25: 0.09 | CY25: 0.75 | CZ25: 9t | DA25: 0.01 | DB25: 1 | DC25: 1t | DG25: 0.44 | DH25: 0.875 | DI25: 44 | DJ25: 0.76 | DK25: 0.8571428571 | DL25: 76t | DM25: 0.01 | DN25: 1 | DO25: 1t | DP25: 0.17 | DQ25: 3.333333333 | DR25: 17t
A26: 37 | B26: Charlotte | C26: =CANS19School!O24 -> 0.4705882353 | D26: =CANS20School!O24 -> 0.55 | E26: =CANS21School!O24 -> 0.5 | F26: =CANS19Behavior!O24 -> 0.5882352941 | G26: =CANS20Behavior!O24 -> 0.6 | H26: =CANS21Behavior!O24 -> 0.5714285714 | I26: =CANS19Strength!O24 -> 0.8235294118 | J26: =CANS20Strength!O24 -> 0.6 | K26: =CANS21Strength!O24 -> 0.5 | L26: ='ICC19'!N24 ->  | M26: ='ICC20'!N24 ->  | N26: ='ICC21'!N24 ->  | O26: ='CBS19'!N24 -> 0.9152542373 | P26: ='CBS20'!N24 -> 0.9 | Q26: ='CBS21'!N24 -> 0.9393939394 | R26: =FamilyFC19!AE24 -> 0.8571428571 | S26: =FamilyFC20!AE24 -> 0.9411764706 | T26: =FamilyFC21!AE24 -> 0.8823529412 | U26: =Permanency19!AE24 -> 0.9090909091 | V26: =Permanency20!AE24 -> 0.5 | W26: =Permanency21!AE24 -> 0.8 | X26: =Summary19!AJ25 -> 3.666666667 | Y26: =Summary20!AJ25 -> 3.333333333 | Z26: =Summary21!AJ25 -> 3.333333333 | AA26: =IF(AND(CANS19School!Q24<>"",CANS19School!Q24<>0),CANS19School!Q24,"") -> 85 | AB26: =IF(AND(CANS20School!Q24<>"",CANS20School!Q24<>0),CANS20School!Q24,"") -> 38 | AC26: =IF(AND(CANS21School!Q24<>"",CANS21School!Q24<>0),CANS21School!Q24,"") -> 30t | AD26: =IF(AND(CANS19Behavior!Q24<>"",CANS19Behavior!Q24<>0),CANS19Behavior!Q24,"") -> 45t | AE26: =IF(AND(CANS20Behavior!Q24<>"",CANS20Behavior!Q24<>0),CANS20Behavior!Q24,"") -> 31t | AF26: =IF(AND(CANS21Behavior!Q24<>"",CANS21Behavior!Q24<>0),CANS21Behavior!Q24,"") -> 25t | AG26: =IF(AND(CANS19Strength!Q24<>"",CANS19Strength!Q24<>0),CANS19Strength!Q24,"") -> 13 | AH26: =IF(AND(CANS20Strength!Q24<>"",CANS20Strength!Q24<>0),CANS20Strength!Q24,"") -> 79t | AI26: =IF(AND(CANS21Strength!Q24<>"",CANS21Strength!Q24<>0),CANS21Strength!Q24,"") -> 75t | AJ26: =IF(AND('ICC19'!P24<>"",'ICC19'!P24<>0),'ICC19'!P24,"") ->  | AK26: =IF(AND('ICC20'!P24<>"",'ICC20'!P24<>0),'ICC20'!P24,"") ->  | AL26: =IF(AND('ICC21'!P24<>"",'ICC21'!P24<>0),'ICC21'!P24,"") ->  | AM26: =IF(AND('CBS19'!P24<>"",'CBS19'!P24<>0),'CBS19'!P24,"") -> 18 | AN26: =IF(AND('CBS20'!P24<>"",'CBS20'!P24<>0),'CBS20'!P24,"") -> 29t | AO26: =IF(AND('CBS21'!P24<>"",'CBS21'!P24<>0),'CBS21'!P24,"") -> 14 | AP26: =IF(AND(FamilyFC19!AG24<>"",FamilyFC19!AG24<>0),FamilyFC19!AG24,"") -> 60t | AQ26: =IF(AND(FamilyFC20!AG24<>"",FamilyFC20!AG24<>0),FamilyFC20!AG24,"") -> 29t | AR26: =IF(AND(FamilyFC21!AG24<>"",FamilyFC21!AG24<>0),FamilyFC21!AG24,"") -> 62t | AS26: =IF(AND(Permanency19!AG24<>"",Permanency19!AG24<>0),Permanency19!AG24,"") -> 31t | AT26: =IF(AND(Permanency20!AG24<>"",Permanency20!AG24<>0),Permanency20!AG24,"") -> 108t | AU26: =IF(AND(Permanency21!AG24<>"",Permanency21!AG24<>0),Permanency21!AG24,"") -> 69t | AV26: =IF(AND(Summary19!AL25<>"",Summary19!AL25<>0),Summary19!AL25,"") -> 5t | AW26: =IF(AND(Summary20!AL25<>"",Summary20!AL25<>0),Summary20!AL25,"") -> 12t | AX26: =IF(AND(Summary21!AL25<>"",Summary21!AL25<>0),Summary21!AL25,"") -> 17t | AY26: 0.85 | AZ26: 0.85 | BA26: 85 | BB26: 0.45 | BC26: 0.5882352941 | BD26: 45t | BE26: 0.13 | BF26: 0.8235294118 | BG26: 13 | BK26: 0.18 | BL26: 0.9152542373 | BM26: 18 | BN26: 0.6 | BO26: 0.8571428571 | BP26: 60t | BQ26: 0.31 | BR26: 0.9090909091 | BS26: 31t | BT26: 0.05 | BU26: 3.666666667 | BV26: 5t | BW26: 0.38 | BX26: 0.55 | BY26: 38 | BZ26: 0.31 | CA26: 0.5714285714 | CB26: 31t | CC26: 0.79 | CD26: 0.79 | CE26: 79t | CI26: 0.29 | CJ26: 0.9 | CK26: 29t | CL26: 0.29 | CM26: 0.9411764706 | CN26: 29t | CO26: 1.08 | CP26: 1.08 | CQ26: 108t | CR26: 0.12 | CS26: 3.333333333 | CT26: 12t | CU26: 0.3 | CV26: 0.5 | CW26: 30t | CX26: 0.25 | CY26: 0.5714285714 | CZ26: 25t | DA26: 0.75 | DB26: 0.75 | DC26: 75t | DG26: 0.14 | DH26: 0.9393939394 | DI26: 14 | DJ26: 0.62 | DK26: 0.8823529412 | DL26: 62t | DM26: 0.69 | DN26: 0.8 | DO26: 69t | DP26: 0.17 | DQ26: 3.333333333 | DR26: 17t
A27: 540 | B27: Charlottesville | C27: =CANS19School!O25 -> 0.3658536585 | D27: =CANS20School!O25 -> 0.4242424242 | E27: =CANS21School!O25 -> 0.2105263158 | F27: =CANS19Behavior!O25 -> 0.5365853659 | G27: =CANS20Behavior!O25 -> 0.4848484848 | H27: =CANS21Behavior!O25 -> 0.05263157895 | I27: =CANS19Strength!O25 -> 0.4390243902 | J27: =CANS20Strength!O25 -> 0.7272727273 | K27: =CANS21Strength!O25 -> 0.4736842105 | L27: ='ICC19'!N25 -> 1 | M27: ='ICC20'!N25 -> 0.6666666667 | N27: ='ICC21'!N25 -> 0.5625 | O27: ='CBS19'!N25 -> 0.9498607242 | P27: ='CBS20'!N25 -> 0.9383561644 | Q27: ='CBS21'!N25 -> 0.9208333333 | R27: =FamilyFC19!AE25 -> 0.9444444444 | S27: =FamilyFC20!AE25 -> 0.9204545455 | T27: =FamilyFC21!AE25 -> 0.9538461538 | U27: =Permanency19!AE25 -> 0.8367346939 | V27: =Permanency20!AE25 -> 0.8653846154 | W27: =Permanency21!AE25 -> 0.8571428571 | X27: =Summary19!AJ26 -> 2.857142857 | Y27: =Summary20!AJ26 -> 3.285714286 | Z27: =Summary21!AJ26 -> 2.285714286 | AA27: =IF(AND(CANS19School!Q25<>"",CANS19School!Q25<>0),CANS19School!Q25,"") -> 115 | AB27: =IF(AND(CANS20School!Q25<>"",CANS20School!Q25<>0),CANS20School!Q25,"") -> 81 | AC27: =IF(AND(CANS21School!Q25<>"",CANS21School!Q25<>0),CANS21School!Q25,"") -> 116 | AD27: =IF(AND(CANS19Behavior!Q25<>"",CANS19Behavior!Q25<>0),CANS19Behavior!Q25,"") -> 58 | AE27: =IF(AND(CANS20Behavior!Q25<>"",CANS20Behavior!Q25<>0),CANS20Behavior!Q25,"") -> 68 | AF27: =IF(AND(CANS21Behavior!Q25<>"",CANS21Behavior!Q25<>0),CANS21Behavior!Q25,"") -> 123 | AG27: =IF(AND(CANS19Strength!Q25<>"",CANS19Strength!Q25<>0),CANS19Strength!Q25,"") -> 113 | AH27: =IF(AND(CANS20Strength!Q25<>"",CANS20Strength!Q25<>0),CANS20Strength!Q25,"") -> 27 | AI27: =IF(AND(CANS21Strength!Q25<>"",CANS21Strength!Q25<>0),CANS21Strength!Q25,"") -> 95 | AJ27: =IF(AND('ICC19'!P25<>"",'ICC19'!P25<>0),'ICC19'!P25,"") -> 1t | AK27: =IF(AND('ICC20'!P25<>"",'ICC20'!P25<>0),'ICC20'!P25,"") -> 25t | AL27: =IF(AND('ICC21'!P25<>"",'ICC21'!P25<>0),'ICC21'!P25,"") -> 31 | AM27: =IF(AND('CBS19'!P25<>"",'CBS19'!P25<>0),'CBS19'!P25,"") -> 5 | AN27: =IF(AND('CBS20'!P25<>"",'CBS20'!P25<>0),'CBS20'!P25,"") -> 14 | AO27: =IF(AND('CBS21'!P25<>"",'CBS21'!P25<>0),'CBS21'!P25,"") -> 24 | AP27: =IF(AND(FamilyFC19!AG25<>"",FamilyFC19!AG25<>0),FamilyFC19!AG25,"") -> 24 | AQ27: =IF(AND(FamilyFC20!AG25<>"",FamilyFC20!AG25<>0),FamilyFC20!AG25,"") -> 38 | AR27: =IF(AND(FamilyFC21!AG25<>"",FamilyFC21!AG25<>0),FamilyFC21!AG25,"") -> 25 | AS27: =IF(AND(Permanency19!AG25<>"",Permanency19!AG25<>0),Permanency19!AG25,"") -> 50 | AT27: =IF(AND(Permanency20!AG25<>"",Permanency20!AG25<>0),Permanency20!AG25,"") -> 29 | AU27: =IF(AND(Permanency21!AG25<>"",Permanency21!AG25<>0),Permanency21!AG25,"") -> 53 | AV27: =IF(AND(Summary19!AL26<>"",Summary19!AL26<>0),Summary19!AL26,"") -> 49t | AW27: =IF(AND(Summary20!AL26<>"",Summary20!AL26<>0),Summary20!AL26,"") -> 16t | AX27: =IF(AND(Summary21!AL26<>"",Summary21!AL26<>0),Summary21!AL26,"") -> 102t | AY27: 1.15 | AZ27: 1.15 | BA27: 115 | BB27: 0.58 | BC27: 0.58 | BD27: 58 | BE27: 1.13 | BF27: 1.13 | BG27: 113 | BH27: 0.01 | BI27: 1 | BJ27: 1t | BK27: 0.05 | BL27: 0.9498607242 | BM27: 5 | BN27: 0.24 | BO27: 0.9444444444 | BP27: 24 | BQ27: 0.5 | BR27: 0.8367346939 | BS27: 50 | BT27: 0.49 | BU27: 2.857142857 | BV27: 49t | BW27: 0.81 | BX27: 0.81 | BY27: 81 | BZ27: 0.68 | CA27: 0.68 | CB27: 68 | CC27: 0.27 | CD27: 0.7272727273 | CE27: 27 | CF27: 0.25 | CG27: 0.6666666667 | CH27: 25t | CI27: 0.14 | CJ27: 0.9383561644 | CK27: 14 | CL27: 0.38 | CM27: 0.9204545455 | CN27: 38 | CO27: 0.29 | CP27: 0.8653846154 | CQ27: 29 | CR27: 0.16 | CS27: 3.285714286 | CT27: 16t | CU27: 1.16 | CV27: 1.16 | CW27: 116 | CX27: 1.23 | CY27: 1.23 | CZ27: 123 | DA27: 0.95 | DB27: 0.95 | DC27: 95 | DD27: 0.31 | DE27: 0.5625 | DF27: 31 | DG27: 0.24 | DH27: 0.9208333333 | DI27: 24 | DJ27: 0.25 | DK27: 0.9538461538 | DL27: 25 | DM27: 0.53 | DN27: 0.8571428571 | DO27: 53 | DP27: 1.02 | DQ27: 2.285714286 | DR27: 102t
A28: 550 | B28: Chesapeake | C28: =CANS19School!O26 -> 0.511627907 | D28: =CANS20School!O26 -> 0.6285714286 | E28: =CANS21School!O26 -> 0.5333333333 | F28: =CANS19Behavior!O26 -> 0.4651162791 | G28: =CANS20Behavior!O26 -> 0.4571428571 | H28: =CANS21Behavior!O26 -> 0.4333333333 | I28: =CANS19Strength!O26 -> 0.488372093 | J28: =CANS20Strength!O26 -> 0.6857142857 | K28: =CANS21Strength!O26 -> 0.5666666667 | L28: ='ICC19'!N26 -> 0.75 | M28: ='ICC20'!N26 -> 1 | N28: ='ICC21'!N26 -> 1 | O28: ='CBS19'!N26 -> 0.8827160494 | P28: ='CBS20'!N26 -> 0.9333333333 | Q28: ='CBS21'!N26 -> 0.9542857143 | R28: =FamilyFC19!AE26 -> 0.9259259259 | S28: =FamilyFC20!AE26 -> 0.9411764706 | T28: =FamilyFC21!AE26 -> 0.9367088608 | U28: =Permanency19!AE26 -> 0.7142857143 | V28: =Permanency20!AE26 -> 0.625 | W28: =Permanency21!AE26 -> 0.7777777778 | X28: =Summary19!AJ27 -> 2.857142857 | Y28: =Summary20!AJ27 -> 3.428571429 | Z28: =Summary21!AJ27 -> 3.428571429 | AA28: =IF(AND(CANS19School!Q26<>"",CANS19School!Q26<>0),CANS19School!Q26,"") -> 70 | AB28: =IF(AND(CANS20School!Q26<>"",CANS20School!Q26<>0),CANS20School!Q26,"") -> 20 | AC28: =IF(AND(CANS21School!Q26<>"",CANS21School!Q26<>0),CANS21School!Q26,"") -> 28 | AD28: =IF(AND(CANS19Behavior!Q26<>"",CANS19Behavior!Q26<>0),CANS19Behavior!Q26,"") -> 85 | AE28: =IF(AND(CANS20Behavior!Q26<>"",CANS20Behavior!Q26<>0),CANS20Behavior!Q26,"") -> 74 | AF28: =IF(AND(CANS21Behavior!Q26<>"",CANS21Behavior!Q26<>0),CANS21Behavior!Q26,"") -> 66 | AG28: =IF(AND(CANS19Strength!Q26<>"",CANS19Strength!Q26<>0),CANS19Strength!Q26,"") -> 106 | AH28: =IF(AND(CANS20Strength!Q26<>"",CANS20Strength!Q26<>0),CANS20Strength!Q26,"") -> 40t | AI28: =IF(AND(CANS21Strength!Q26<>"",CANS21Strength!Q26<>0),CANS21Strength!Q26,"") -> 58 | AJ28: =IF(AND('ICC19'!P26<>"",'ICC19'!P26<>0),'ICC19'!P26,"") -> 23 | AK28: =IF(AND('ICC20'!P26<>"",'ICC20'!P26<>0),'ICC20'!P26,"") -> 1t | AL28: =IF(AND('ICC21'!P26<>"",'ICC21'!P26<>0),'ICC21'!P26,"") -> 1t | AM28: =IF(AND('CBS19'!P26<>"",'CBS19'!P26<>0),'CBS19'!P26,"") -> 32 | AN28: =IF(AND('CBS20'!P26<>"",'CBS20'!P26<>0),'CBS20'!P26,"") -> 15 | AO28: =IF(AND('CBS21'!P26<>"",'CBS21'!P26<>0),'CBS21'!P26,"") -> 7 | AP28: =IF(AND(FamilyFC19!AG26<>"",FamilyFC19!AG26<>0),FamilyFC19!AG26,"") -> 32 | AQ28: =IF(AND(FamilyFC20!AG26<>"",FamilyFC20!AG26<>0),FamilyFC20!AG26,"") -> 29t | AR28: =IF(AND(FamilyFC21!AG26<>"",FamilyFC21!AG26<>0),FamilyFC21!AG26,"") -> 32 | AS28: =IF(AND(Permanency19!AG26<>"",Permanency19!AG26<>0),Permanency19!AG26,"") -> 85t | AT28: =IF(AND(Permanency20!AG26<>"",Permanency20!AG26<>0),Permanency20!AG26,"") -> 100 | AU28: =IF(AND(Permanency21!AG26<>"",Permanency21!AG26<>0),Permanency21!AG26,"") -> 80t | AV28: =IF(AND(Summary19!AL27<>"",Summary19!AL27<>0),Summary19!AL27,"") -> 49t | AW28: =IF(AND(Summary20!AL27<>"",Summary20!AL27<>0),Summary20!AL27,"") -> 9t | AX28: =IF(AND(Summary21!AL27<>"",Summary21!AL27<>0),Summary21!AL27,"") -> 14 | AY28: 0.7 | AZ28: 0.7 | BA28: 70 | BB28: 0.85 | BC28: 0.85 | BD28: 85 | BE28: 1.06 | BF28: 1.06 | BG28: 106 | BH28: 0.23 | BI28: 0.75 | BJ28: 23 | BK28: 0.32 | BL28: 0.8827160494 | BM28: 32 | BN28: 0.32 | BO28: 0.9259259259 | BP28: 32 | BQ28: 0.85 | BR28: 0.85 | BS28: 85t | BT28: 0.49 | BU28: 2.857142857 | BV28: 49t | BW28: 0.2 | BX28: 0.6285714286 | BY28: 20 | BZ28: 0.74 | CA28: 0.74 | CB28: 74 | CC28: 0.4 | CD28: 0.6857142857 | CE28: 40t | CF28: 0.01 | CG28: 1 | CH28: 1t | CI28: 0.15 | CJ28: 0.9333333333 | CK28: 15 | CL28: 0.29 | CM28: 0.9411764706 | CN28: 29t | CO28: 1 | CP28: 1 | CQ28: 100 | CR28: 0.09 | CS28: 3.428571429 | CT28: 9t | CU28: 0.28 | CV28: 0.5333333333 | CW28: 28 | CX28: 0.66 | CY28: 0.66 | CZ28: 66 | DA28: 0.58 | DB28: 0.58 | DC28: 58 | DD28: 0.01 | DE28: 1 | DF28: 1t | DG28: 0.07 | DH28: 0.9542857143 | DI28: 7 | DJ28: 0.32 | DK28: 0.9367088608 | DL28: 32 | DM28: 0.8 | DN28: 0.8 | DO28: 80t | DP28: 0.14 | DQ28: 3.428571429 | DR28: 14
A29: 41 | B29: Chesterfield | C29: =CANS19School!O27 -> 0.5698924731 | D29: =CANS20School!O27 -> 0.479338843 | E29: =CANS21School!O27 -> 0.4107142857 | F29: =CANS19Behavior!O27 -> 0.5483870968 | G29: =CANS20Behavior!O27 -> 0.3801652893 | H29: =CANS21Behavior!O27 -> 0.4821428571 | I29: =CANS19Strength!O27 -> 0.6021505376 | J29: =CANS20Strength!O27 -> 0.6033057851 | K29: =CANS21Strength!O27 -> 0.4821428571 | L29: ='ICC19'!N27 -> 0.1785714286 | M29: ='ICC20'!N27 -> 0.1142857143 | N29: ='ICC21'!N27 -> 0.05 | O29: ='CBS19'!N27 -> 0.8192090395 | P29: ='CBS20'!N27 -> 0.8298969072 | Q29: ='CBS21'!N27 -> 0.8184143223 | R29: =FamilyFC19!AE27 -> 0.7391304348 | S29: =FamilyFC20!AE27 -> 0.77 | T29: =FamilyFC21!AE27 -> 0.793814433 | U29: =Permanency19!AE27 -> 0.6909090909 | V29: =Permanency20!AE27 -> 0.7636363636 | W29: =Permanency21!AE27 -> 0.6829268293 | X29: =Summary19!AJ28 -> 2.571428571 | Y29: =Summary20!AJ28 -> 1.714285714 | Z29: =Summary21!AJ28 -> 2 | AA29: =IF(AND(CANS19School!Q27<>"",CANS19School!Q27<>0),CANS19School!Q27,"") -> 51 | AB29: =IF(AND(CANS20School!Q27<>"",CANS20School!Q27<>0),CANS20School!Q27,"") -> 67 | AC29: =IF(AND(CANS21School!Q27<>"",CANS21School!Q27<>0),CANS21School!Q27,"") -> 60 | AD29: =IF(AND(CANS19Behavior!Q27<>"",CANS19Behavior!Q27<>0),CANS19Behavior!Q27,"") -> 54t | AE29: =IF(AND(CANS20Behavior!Q27<>"",CANS20Behavior!Q27<>0),CANS20Behavior!Q27,"") -> 96 | AF29: =IF(AND(CANS21Behavior!Q27<>"",CANS21Behavior!Q27<>0),CANS21Behavior!Q27,"") -> 52 | AG29: =IF(AND(CANS19Strength!Q27<>"",CANS19Strength!Q27<>0),CANS19Strength!Q27,"") -> 69 | AH29: =IF(AND(CANS20Strength!Q27<>"",CANS20Strength!Q27<>0),CANS20Strength!Q27,"") -> 78 | AI29: =IF(AND(CANS21Strength!Q27<>"",CANS21Strength!Q27<>0),CANS21Strength!Q27,"") -> 93 | AJ29: =IF(AND('ICC19'!P27<>"",'ICC19'!P27<>0),'ICC19'!P27,"") -> 46 | AK29: =IF(AND('ICC20'!P27<>"",'ICC20'!P27<>0),'ICC20'!P27,"") -> 51 | AL29: =IF(AND('ICC21'!P27<>"",'ICC21'!P27<>0),'ICC21'!P27,"") -> 53 | AM29: =IF(AND('CBS19'!P27<>"",'CBS19'!P27<>0),'CBS19'!P27,"") -> 72 | AN29: =IF(AND('CBS20'!P27<>"",'CBS20'!P27<>0),'CBS20'!P27,"") -> 73 | AO29: =IF(AND('CBS21'!P27<>"",'CBS21'!P27<>0),'CBS21'!P27,"") -> 85 | AP29: =IF(AND(FamilyFC19!AG27<>"",FamilyFC19!AG27<>0),FamilyFC19!AG27,"") -> 103t | AQ29: =IF(AND(FamilyFC20!AG27<>"",FamilyFC20!AG27<>0),FamilyFC20!AG27,"") -> 103t | AR29: =IF(AND(FamilyFC21!AG27<>"",FamilyFC21!AG27<>0),FamilyFC21!AG27,"") -> 100t | AS29: =IF(AND(Permanency19!AG27<>"",Permanency19!AG27<>0),Permanency19!AG27,"") -> 93t | AT29: =IF(AND(Permanency20!AG27<>"",Permanency20!AG27<>0),Permanency20!AG27,"") -> 60t | AU29: =IF(AND(Permanency21!AG27<>"",Permanency21!AG27<>0),Permanency21!AG27,"") -> 100t | AV29: =IF(AND(Summary19!AL28<>"",Summary19!AL28<>0),Summary19!AL28,"") -> 78t | AW29: =IF(AND(Summary20!AL28<>"",Summary20!AL28<>0),Summary20!AL28,"") -> 123t | AX29: =IF(AND(Summary21!AL28<>"",Summary21!AL28<>0),Summary21!AL28,"") -> 116t | AY29: 0.51 | AZ29: 0.5698924731 | BA29: 51 | BB29: 0.54 | BC29: 0.5483870968 | BD29: 54t | BE29: 0.69 | BF29: 0.69 | BG29: 69 | BH29: 0.46 | BI29: 0.46 | BJ29: 46 | BK29: 0.72 | BL29: 0.8192090395 | BM29: 72 | BN29: 1.03 | BO29: 1.03 | BP29: 103t | BQ29: 0.93 | BR29: 0.93 | BS29: 93t | BT29: 0.78 | BU29: 2.571428571 | BV29: 78t | BW29: 0.67 | BX29: 0.67 | BY29: 67 | BZ29: 0.96 | CA29: 0.96 | CB29: 96 | CC29: 0.78 | CD29: 0.78 | CE29: 78 | CF29: 0.51 | CG29: 0.51 | CH29: 51 | CI29: 0.73 | CJ29: 0.8298969072 | CK29: 73 | CL29: 1.03 | CM29: 1.03 | CN29: 103t | CO29: 0.6 | CP29: 0.7636363636 | CQ29: 60t | CR29: 1.23 | CS29: 1.714285714 | CT29: 123t | CU29: 0.6 | CV29: 0.6 | CW29: 60 | CX29: 0.52 | CY29: 0.52 | CZ29: 52 | DA29: 0.93 | DB29: 0.93 | DC29: 93 | DD29: 0.53 | DE29: 0.53 | DF29: 53 | DG29: 0.85 | DH29: 0.85 | DI29: 85 | DJ29: 1 | DK29: 1 | DL29: 100t | DM29: 1 | DN29: 1 | DO29: 100t | DP29: 1.16 | DQ29: 2 | DR29: 116t
A30: 43 | B30: Clarke | C30: =CANS19School!O28 -> 0.5555555556 | D30: =CANS20School!O28 -> 0.6666666667 | E30: =CANS21School!O28 -> 1 | F30: =CANS19Behavior!O28 -> 0.4444444444 | G30: =CANS20Behavior!O28 -> 0.5 | H30: =CANS21Behavior!O28 -> 1 | I30: =CANS19Strength!O28 -> 0.7777777778 | J30: =CANS20Strength!O28 -> 0.5 | K30: =CANS21Strength!O28 -> 1 | L30: ='ICC19'!N28 -> 1 | M30: ='ICC20'!N28 ->  | N30: ='ICC21'!N28 ->  | O30: ='CBS19'!N28 -> 0.8421052632 | P30: ='CBS20'!N28 -> 0.6842105263 | Q30: ='CBS21'!N28 -> 0.75 | R30: =FamilyFC19!AE28 -> 0.75 | S30: =FamilyFC20!AE28 -> 0.75 | T30: =FamilyFC21!AE28 -> 1 | U30: =Permanency19!AE28 -> 0.6666666667 | V30: =Permanency20!AE28 ->  | W30: =Permanency21!AE28 -> 1 | X30: =Summary19!AJ29 -> 2.714285714 | Y30: =Summary20!AJ29 -> 2.2 | Z30: =Summary21!AJ29 -> 3.5 | AA30: =IF(AND(CANS19School!Q28<>"",CANS19School!Q28<>0),CANS19School!Q28,"") -> 58t | AB30: =IF(AND(CANS20School!Q28<>"",CANS20School!Q28<>0),CANS20School!Q28,"") -> 15t | AC30: =IF(AND(CANS21School!Q28<>"",CANS21School!Q28<>0),CANS21School!Q28,"") -> 1t | AD30: =IF(AND(CANS19Behavior!Q28<>"",CANS19Behavior!Q28<>0),CANS19Behavior!Q28,"") -> 96t | AE30: =IF(AND(CANS20Behavior!Q28<>"",CANS20Behavior!Q28<>0),CANS20Behavior!Q28,"") -> 55t | AF30: =IF(AND(CANS21Behavior!Q28<>"",CANS21Behavior!Q28<>0),CANS21Behavior!Q28,"") -> 1t | AG30: =IF(AND(CANS19Strength!Q28<>"",CANS19Strength!Q28<>0),CANS19Strength!Q28,"") -> 19 | AH30: =IF(AND(CANS20Strength!Q28<>"",CANS20Strength!Q28<>0),CANS20Strength!Q28,"") -> 102t | AI30: =IF(AND(CANS21Strength!Q28<>"",CANS21Strength!Q28<>0),CANS21Strength!Q28,"") -> 1t | AJ30: =IF(AND('ICC19'!P28<>"",'ICC19'!P28<>0),'ICC19'!P28,"") -> 1t | AK30: =IF(AND('ICC20'!P28<>"",'ICC20'!P28<>0),'ICC20'!P28,"") ->  | AL30: =IF(AND('ICC21'!P28<>"",'ICC21'!P28<>0),'ICC21'!P28,"") ->  | AM30: =IF(AND('CBS19'!P28<>"",'CBS19'!P28<>0),'CBS19'!P28,"") -> 61t | AN30: =IF(AND('CBS20'!P28<>"",'CBS20'!P28<>0),'CBS20'!P28,"") -> 125 | AO30: =IF(AND('CBS21'!P28<>"",'CBS21'!P28<>0),'CBS21'!P28,"") -> 115t | AP30: =IF(AND(FamilyFC19!AG28<>"",FamilyFC19!AG28<>0),FamilyFC19!AG28,"") -> 101t | AQ30: =IF(AND(FamilyFC20!AG28<>"",FamilyFC20!AG28<>0),FamilyFC20!AG28,"") -> 106t | AR30: =IF(AND(FamilyFC21!AG28<>"",FamilyFC21!AG28<>0),FamilyFC21!AG28,"") -> 1t | AS30: =IF(AND(Permanency19!AG28<>"",Permanency19!AG28<>0),Permanency19!AG28,"") -> 98t | AT30: =IF(AND(Permanency20!AG28<>"",Permanency20!AG28<>0),Permanency20!AG28,"") ->  | AU30: =IF(AND(Permanency21!AG28<>"",Permanency21!AG28<>0),Permanency21!AG28,"") -> 1t | AV30: =IF(AND(Summary19!AL29<>"",Summary19!AL29<>0),Summary19!AL29,"") -> 65t | AW30: =IF(AND(Summary20!AL29<>"",Summary20!AL29<>0),Summary20!AL29,"") -> 97t | AX30: =IF(AND(Summary21!AL29<>"",Summary21!AL29<>0),Summary21!AL29,"") -> 12t | AY30: 0.58 | AZ30: 0.58 | BA30: 58t | BB30: =IF(BD30<>"",SUBSTITUTE(BD30,"t","")/100,"") -> 0.96 | BC30: 0.96 | BD30: =AD30 -> 96t | BE30: 0.19 | BF30: 0.7777777778 | BG30: 19 | BH30: 0.01 | BI30: 1 | BJ30: 1t | BK30: 0.61 | BL30: 0.8421052632 | BM30: 61t | BN30: 1.01 | BO30: 1.01 | BP30: 101t | BQ30: 0.98 | BR30: 0.98 | BS30: 98t | BT30: 0.65 | BU30: 2.714285714 | BV30: 65t | BW30: 0.15 | BX30: 0.6666666667 | BY30: 15t | BZ30: 0.55 | CA30: 1 | CB30: 55t | CC30: 1.02 | CD30: 1.02 | CE30: 102t | CI30: 1.25 | CJ30: 1.25 | CK30: 125 | CL30: 1.06 | CM30: 1.06 | CN30: 106t | CR30: 0.97 | CS30: 2.2 | CT30: 97t | CU30: 0.01 | CV30: 1 | CW30: 1t | CX30: 0.01 | CY30: 1 | CZ30: 1t | DA30: 0.01 | DB30: 1 | DC30: 1t | DG30: 1.15 | DH30: 1.15 | DI30: 115t | DJ30: 0.01 | DK30: 1 | DL30: 1t | DM30: 0.01 | DN30: 1 | DO30: 1t | DP30: 0.12 | DQ30: 3.5 | DR30: 12t
A31: 570 | B31: Colonial Heights | C31: =CANS19School!O29 -> 0.375 | D31: =CANS20School!O29 -> 0.8125 | E31: =CANS21School!O29 -> 0.25 | F31: =CANS19Behavior!O29 -> 0.625 | G31: =CANS20Behavior!O29 -> 0.6875 | H31: =CANS21Behavior!O29 -> 0.5 | I31: =CANS19Strength!O29 -> 0.75 | J31: =CANS20Strength!O29 -> 0.8125 | K31: =CANS21Strength!O29 -> 0.75 | L31: ='ICC19'!N29 ->  | M31: ='ICC20'!N29 ->  | N31: ='ICC21'!N29 ->  | O31: ='CBS19'!N29 -> 0.8571428571 | P31: ='CBS20'!N29 -> 0.8648648649 | Q31: ='CBS21'!N29 -> 0.8780487805 | R31: =FamilyFC19!AE29 -> 0.7391304348 | S31: =FamilyFC20!AE29 -> 0.77 | T31: =FamilyFC21!AE29 -> 0.793814433 | U31: =Permanency19!AE29 -> 0.6909090909 | V31: =Permanency20!AE29 -> 0.7636363636 | W31: =Permanency21!AE29 -> 0.6829268293 | X31: =Summary19!AJ30 -> 2.666666667 | Y31: =Summary20!AJ30 -> 3.166666667 | Z31: =Summary21!AJ30 -> 2.666666667 | AA31: =IF(AND(CANS19School!Q29<>"",CANS19School!Q29<>0),CANS19School!Q29,"") -> 111 | AB31: =IF(AND(CANS20School!Q29<>"",CANS20School!Q29<>0),CANS20School!Q29,"") -> 5 | AC31: =IF(AND(CANS21School!Q29<>"",CANS21School!Q29<>0),CANS21School!Q29,"") -> 106t | AD31: =IF(AND(CANS19Behavior!Q29<>"",CANS19Behavior!Q29<>0),CANS19Behavior!Q29,"") -> 38 | AE31: =IF(AND(CANS20Behavior!Q29<>"",CANS20Behavior!Q29<>0),CANS20Behavior!Q29,"") -> 13 | AF31: =IF(AND(CANS21Behavior!Q29<>"",CANS21Behavior!Q29<>0),CANS21Behavior!Q29,"") -> 36t | AG31: =IF(AND(CANS19Strength!Q29<>"",CANS19Strength!Q29<>0),CANS19Strength!Q29,"") -> 21t | AH31: =IF(AND(CANS20Strength!Q29<>"",CANS20Strength!Q29<>0),CANS20Strength!Q29,"") -> 12 | AI31: =IF(AND(CANS21Strength!Q29<>"",CANS21Strength!Q29<>0),CANS21Strength!Q29,"") -> 19t | AJ31: =IF(AND('ICC19'!P29<>"",'ICC19'!P29<>0),'ICC19'!P29,"") ->  | AK31: =IF(AND('ICC20'!P29<>"",'ICC20'!P29<>0),'ICC20'!P29,"") ->  | AL31: =IF(AND('ICC21'!P29<>"",'ICC21'!P29<>0),'ICC21'!P29,"") ->  | AM31: =IF(AND('CBS19'!P29<>"",'CBS19'!P29<>0),'CBS19'!P29,"") -> 50t | AN31: =IF(AND('CBS20'!P29<>"",'CBS20'!P29<>0),'CBS20'!P29,"") -> 50 | AO31: =IF(AND('CBS21'!P29<>"",'CBS21'!P29<>0),'CBS21'!P29,"") -> 41t | AP31: =IF(AND(FamilyFC19!AG29<>"",FamilyFC19!AG29<>0),FamilyFC19!AG29,"") -> 103t | AQ31: =IF(AND(FamilyFC20!AG29<>"",FamilyFC20!AG29<>0),FamilyFC20!AG29,"") -> 103t | AR31: =IF(AND(FamilyFC21!AG29<>"",FamilyFC21!AG29<>0),FamilyFC21!AG29,"") -> 100t | AS31: =IF(AND(Permanency19!AG29<>"",Permanency19!AG29<>0),Permanency19!AG29,"") -> 93t | AT31: =IF(AND(Permanency20!AG29<>"",Permanency20!AG29<>0),Permanency20!AG29,"") -> 60t | AU31: =IF(AND(Permanency21!AG29<>"",Permanency21!AG29<>0),Permanency21!AG29,"") -> 100t | AV31: =IF(AND(Summary19!AL30<>"",Summary19!AL30<>0),Summary19!AL30,"") -> 72t | AW31: =IF(AND(Summary20!AL30<>"",Summary20!AL30<>0),Summary20!AL30,"") -> 22t | AX31: =IF(AND(Summary21!AL30<>"",Summary21!AL30<>0),Summary21!AL30,"") -> 66t | AY31: 1.11 | AZ31: 1.11 | BA31: 111 | BB31: =IF(BD31<>"",SUBSTITUTE(BD31,"t","")/100,"") -> 0.38 | BC31: 0.625 | BD31: =AD31 -> 38 | BE31: 0.21 | BF31: 0.75 | BG31: 21t | BK31: 0.5 | BL31: 0.8571428571 | BM31: 50t | BN31: 1.03 | BO31: 1.03 | BP31: 103t | BQ31: 0.93 | BR31: 0.93 | BS31: 93t | BT31: 0.72 | BU31: 2.666666667 | BV31: 72t | BW31: 0.05 | BX31: 0.8125 | BY31: 5 | BZ31: 0.13 | CA31: 0.5 | CB31: 13 | CC31: 0.12 | CD31: 0.8125 | CE31: 12 | CI31: 0.5 | CJ31: 0.8648648649 | CK31: 50 | CL31: 1.03 | CM31: 1.03 | CN31: 103t | CO31: 0.6 | CP31: 0.7636363636 | CQ31: 60t | CR31: 0.22 | CS31: 3.166666667 | CT31: 22t | CU31: 1.06 | CV31: 1.06 | CW31: 106t | CX31: 0.36 | CY31: 0.5 | CZ31: 36t | DA31: 0.19 | DB31: 0.75 | DC31: 19t | DG31: 0.41 | DH31: 0.8780487805 | DI31: 41t | DJ31: 1 | DK31: 1 | DL31: 100t | DM31: 1 | DN31: 1 | DO31: 100t | DP31: 0.66 | DQ31: 2.666666667 | DR31: 66t
A32: 580 | B32: Covington | C32: =CANS19School!O30 -> 0.6153846154 | D32: =CANS20School!O30 -> 0.5 | E32: =CANS21School!O30 -> 0.5555555556 | F32: =CANS19Behavior!O30 -> 0.5384615385 | G32: =CANS20Behavior!O30 -> 0.1 | H32: =CANS21Behavior!O30 -> 0.4444444444 | I32: =CANS19Strength!O30 -> 0.4615384615 | J32: =CANS20Strength!O30 -> 0.8 | K32: =CANS21Strength!O30 -> 0.6666666667 | L32: ='ICC19'!N30 ->  | M32: ='ICC20'!N30 -> 0 | N32: ='ICC21'!N30 -> 0 | O32: ='CBS19'!N30 -> 0.9183673469 | P32: ='CBS20'!N30 -> 0.7804878049 | Q32: ='CBS21'!N30 -> 0.7454545455 | R32: =FamilyFC19!AE30 -> 0.8571428571 | S32: =FamilyFC20!AE30 -> 0.7777777778 | T32: =FamilyFC21!AE30 -> 0.78125 | U32: =Permanency19!AE30 -> 0.9166666667 | V32: =Permanency20!AE30 -> 0.8571428571 | W32: =Permanency21!AE30 -> 1 | X32: =Summary19!AJ31 -> 3.333333333 | Y32: =Summary20!AJ31 -> 2.142857143 | Z32: =Summary21!AJ31 -> 2.714285714 | AA32: =IF(AND(CANS19School!Q30<>"",CANS19School!Q30<>0),CANS19School!Q30,"") -> 33t | AB32: =IF(AND(CANS20School!Q30<>"",CANS20School!Q30<>0),CANS20School!Q30,"") -> 49t | AC32: =IF(AND(CANS21School!Q30<>"",CANS21School!Q30<>0),CANS21School!Q30,"") -> 24t | AD32: =IF(AND(CANS19Behavior!Q30<>"",CANS19Behavior!Q30<>0),CANS19Behavior!Q30,"") -> 57 | AE32: =IF(AND(CANS20Behavior!Q30<>"",CANS20Behavior!Q30<>0),CANS20Behavior!Q30,"") -> 125 | AF32: =IF(AND(CANS21Behavior!Q30<>"",CANS21Behavior!Q30<>0),CANS21Behavior!Q30,"") -> 64 | AG32: =IF(AND(CANS19Strength!Q30<>"",CANS19Strength!Q30<>0),CANS19Strength!Q30,"") -> 109t | AH32: =IF(AND(CANS20Strength!Q30<>"",CANS20Strength!Q30<>0),CANS20Strength!Q30,"") -> 13t | AI32: =IF(AND(CANS21Strength!Q30<>"",CANS21Strength!Q30<>0),CANS21Strength!Q30,"") -> 31t | AJ32: =IF(AND('ICC19'!P30<>"",'ICC19'!P30<>0),'ICC19'!P30,"") ->  | AK32: =IF(AND('ICC20'!P30<>"",'ICC20'!P30<>0),'ICC20'!P30,"") -> 55t | AL32: =IF(AND('ICC21'!P30<>"",'ICC21'!P30<>0),'ICC21'!P30,"") -> 55t | AM32: =IF(AND('CBS19'!P30<>"",'CBS19'!P30<>0),'CBS19'!P30,"") -> 15 | AN32: =IF(AND('CBS20'!P30<>"",'CBS20'!P30<>0),'CBS20'!P30,"") -> 104 | AO32: =IF(AND('CBS21'!P30<>"",'CBS21'!P30<>0),'CBS21'!P30,"") -> 119 | AP32: =IF(AND(FamilyFC19!AG30<>"",FamilyFC19!AG30<>0),FamilyFC19!AG30,"") -> 60t | AQ32: =IF(AND(FamilyFC20!AG30<>"",FamilyFC20!AG30<>0),FamilyFC20!AG30,"") -> 99t | AR32: =IF(AND(FamilyFC21!AG30<>"",FamilyFC21!AG30<>0),FamilyFC21!AG30,"") -> 104t | AS32: =IF(AND(Permanency19!AG30<>"",Permanency19!AG30<>0),Permanency19!AG30,"") -> 28t | AT32: =IF(AND(Permanency20!AG30<>"",Permanency20!AG30<>0),Permanency20!AG30,"") -> 30t | AU32: =IF(AND(Permanency21!AG30<>"",Permanency21!AG30<>0),Permanency21!AG30,"") -> 1t | AV32: =IF(AND(Summary19!AL31<>"",Summary19!AL31<>0),Summary19!AL31,"") -> 14t | AW32: =IF(AND(Summary20!AL31<>"",Summary20!AL31<>0),Summary20!AL31,"") -> 103t | AX32: =IF(AND(Summary21!AL31<>"",Summary21!AL31<>0),Summary21!AL31,"") -> 56t | AY32: 0.33 | AZ32: 0.6153846154 | BA32: 33t | BB32: 0.57 | BC32: 0.57 | BD32: 57 | BE32: 1.09 | BF32: 1.09 | BG32: 109t | BK32: 0.15 | BL32: 0.9183673469 | BM32: 15 | BN32: 0.6 | BO32: 0.8571428571 | BP32: 60t | BQ32: 0.28 | BR32: 0.9166666667 | BS32: 28t | BT32: 0.14 | BU32: 3.333333333 | BV32: 14t | BW32: 0.49 | BX32: 0.5 | BY32: 49t | BZ32: 1.25 | CA32: 1.25 | CB32: 125 | CC32: 0.13 | CD32: 0.8 | CE32: 13t | CF32: 0.55 | CG32: 0.55 | CH32: 55t | CI32: 1.04 | CJ32: 1.04 | CK32: 104 | CL32: 0.99 | CM32: 0.99 | CN32: 99t | CO32: 0.3 | CP32: 0.8571428571 | CQ32: 30t | CR32: 1.03 | CS32: 2.142857143 | CT32: 103t | CU32: 0.24 | CV32: 0.5555555556 | CW32: 24t | CX32: 0.64 | CY32: 0.64 | CZ32: 64 | DA32: 0.31 | DB32: 0.6666666667 | DC32: 31t | DD32: 0.55 | DE32: 0.55 | DF32: 55t | DG32: 1.19 | DH32: 1.19 | DI32: 119 | DJ32: 1.04 | DK32: 1.04 | DL32: 104t | DM32: 0.01 | DN32: 1 | DO32: 1t | DP32: 0.56 | DQ32: 2.714285714 | DR32: 56t
A33: 45 | B33: Craig | C33: =CANS19School!O31 -> 0.5925925926 | D33: =CANS20School!O31 -> 0.2222222222 | E33: =CANS21School!O31 -> 0.3 | F33: =CANS19Behavior!O31 -> 0.5925925926 | G33: =CANS20Behavior!O31 -> 0.4444444444 | H33: =CANS21Behavior!O31 -> 0.6 | I33: =CANS19Strength!O31 -> 0.8518518519 | J33: =CANS20Strength!O31 -> 0.7777777778 | K33: =CANS21Strength!O31 -> 0.8 | L33: ='ICC19'!N31 -> 1 | M33: ='ICC20'!N31 -> 1 | N33: ='ICC21'!N31 -> 1 | O33: ='CBS19'!N31 -> 0.9302325581 | P33: ='CBS20'!N31 -> 0.9230769231 | Q33: ='CBS21'!N31 -> 0.9259259259 | R33: =FamilyFC19!AE31 -> 0.8823529412 | S33: =FamilyFC20!AE31 -> 0.9333333333 | T33: =FamilyFC21!AE31 -> 0.9 | U33: =Permanency19!AE31 -> 1 | V33: =Permanency20!AE31 -> 1 | W33: =Permanency21!AE31 -> 1 | X33: =Summary19!AJ32 -> 4 | Y33: =Summary20!AJ32 -> 3.285714286 | Z33: =Summary21!AJ32 -> 3.571428571 | AA33: =IF(AND(CANS19School!Q31<>"",CANS19School!Q31<>0),CANS19School!Q31,"") -> 41 | AB33: =IF(AND(CANS20School!Q31<>"",CANS20School!Q31<>0),CANS20School!Q31,"") -> 123 | AC33: =IF(AND(CANS21School!Q31<>"",CANS21School!Q31<>0),CANS21School!Q31,"") -> 97t | AD33: =IF(AND(CANS19Behavior!Q31<>"",CANS19Behavior!Q31<>0),CANS19Behavior!Q31,"") -> 44 | AE33: =IF(AND(CANS20Behavior!Q31<>"",CANS20Behavior!Q31<>0),CANS20Behavior!Q31,"") -> 80 | AF33: =IF(AND(CANS21Behavior!Q31<>"",CANS21Behavior!Q31<>0),CANS21Behavior!Q31,"") -> 20t | AG33: =IF(AND(CANS19Strength!Q31<>"",CANS19Strength!Q31<>0),CANS19Strength!Q31,"") -> 10 | AH33: =IF(AND(CANS20Strength!Q31<>"",CANS20Strength!Q31<>0),CANS20Strength!Q31,"") -> 16t | AI33: =IF(AND(CANS21Strength!Q31<>"",CANS21Strength!Q31<>0),CANS21Strength!Q31,"") -> 15 | AJ33: =IF(AND('ICC19'!P31<>"",'ICC19'!P31<>0),'ICC19'!P31,"") -> 1t | AK33: =IF(AND('ICC20'!P31<>"",'ICC20'!P31<>0),'ICC20'!P31,"") -> 1t | AL33: =IF(AND('ICC21'!P31<>"",'ICC21'!P31<>0),'ICC21'!P31,"") -> 1t | AM33: =IF(AND('CBS19'!P31<>"",'CBS19'!P31<>0),'CBS19'!P31,"") -> 8 | AN33: =IF(AND('CBS20'!P31<>"",'CBS20'!P31<>0),'CBS20'!P31,"") -> 19t | AO33: =IF(AND('CBS21'!P31<>"",'CBS21'!P31<>0),'CBS21'!P31,"") -> 20 | AP33: =IF(AND(FamilyFC19!AG31<>"",FamilyFC19!AG31<>0),FamilyFC19!AG31,"") -> 45t | AQ33: =IF(AND(FamilyFC20!AG31<>"",FamilyFC20!AG31<>0),FamilyFC20!AG31,"") -> 34 | AR33: =IF(AND(FamilyFC21!AG31<>"",FamilyFC21!AG31<>0),FamilyFC21!AG31,"") -> 50t | AS33: =IF(AND(Permanency19!AG31<>"",Permanency19!AG31<>0),Permanency19!AG31,"") -> 1t | AT33: =IF(AND(Permanency20!AG31<>"",Permanency20!AG31<>0),Permanency20!AG31,"") -> 1t | AU33: =IF(AND(Permanency21!AG31<>"",Permanency21!AG31<>0),Permanency21!AG31,"") -> 1t | AV33: =IF(AND(Summary19!AL32<>"",Summary19!AL32<>0),Summary19!AL32,"") -> 1t | AW33: =IF(AND(Summary20!AL32<>"",Summary20!AL32<>0),Summary20!AL32,"") -> 16t | AX33: =IF(AND(Summary21!AL32<>"",Summary21!AL32<>0),Summary21!AL32,"") -> 8t | AY33: 0.41 | AZ33: 0.5925925926 | BA33: 41 | BB33: 0.44 | BC33: 0.5925925926 | BD33: 44 | BE33: 0.1 | BF33: 0.8518518519 | BG33: 10 | BH33: 0.01 | BI33: 1 | BJ33: 1t | BK33: 0.08 | BL33: 0.9302325581 | BM33: 8 | BN33: 0.45 | BO33: 0.8823529412 | BP33: 45t | BQ33: 0.01 | BR33: 1 | BS33: 1t | BT33: 0.01 | BU33: 4 | BV33: 1t | BW33: 1.23 | BX33: 1.23 | BY33: 123 | BZ33: 0.8 | CA33: 0.8 | CB33: 80 | CC33: 0.16 | CD33: 0.7777777778 | CE33: 16t | CF33: 0.01 | CG33: 1 | CH33: 1t | CI33: 0.19 | CJ33: 0.9230769231 | CK33: 19t | CL33: 0.34 | CM33: 0.9333333333 | CN33: 34 | CO33: 0.01 | CP33: 1 | CQ33: 1t | CR33: 0.16 | CS33: 3.285714286 | CT33: 16t | CU33: 0.97 | CV33: 0.97 | CW33: 97t | CX33: 0.2 | CY33: 0.6 | CZ33: 20t | DA33: 0.15 | DB33: 0.8 | DC33: 15 | DD33: 0.01 | DE33: 1 | DF33: 1t | DG33: 0.2 | DH33: 0.9259259259 | DI33: 20 | DJ33: 0.5 | DK33: 0.9 | DL33: 50t | DM33: 0.01 | DN33: 1 | DO33: 1t | DP33: 0.08 | DQ33: 3.571428571 | DR33: 8t
A34: 47 | B34: Culpeper | C34: =CANS19School!O32 -> 0.4918032787 | D34: =CANS20School!O32 -> 0.4285714286 | E34: =CANS21School!O32 -> 0.5490196078 | F34: =CANS19Behavior!O32 -> 0.5081967213 | G34: =CANS20Behavior!O32 -> 0.4642857143 | H34: =CANS21Behavior!O32 -> 0.4705882353 | I34: =CANS19Strength!O32 -> 0.5901639344 | J34: =CANS20Strength!O32 -> 0.6428571429 | K34: =CANS21Strength!O32 -> 0.431372549 | L34: ='ICC19'!N32 -> 0 | M34: ='ICC20'!N32 -> 0 | N34: ='ICC21'!N32 -> 0 | O34: ='CBS19'!N32 -> 0.9153439153 | P34: ='CBS20'!N32 -> 0.9075144509 | Q34: ='CBS21'!N32 -> 0.8591549296 | R34: =FamilyFC19!AE32 -> 0.9117647059 | S34: =FamilyFC20!AE32 -> 0.8095238095 | T34: =FamilyFC21!AE32 -> 0.9523809524 | U34: =Permanency19!AE32 -> 0.7 | V34: =Permanency20!AE32 -> 0.7333333333 | W34: =Permanency21!AE32 -> 0.8333333333 | X34: =Summary19!AJ33 -> 2.571428571 | Y34: =Summary20!AJ33 -> 2.285714286 | Z34: =Summary21!AJ33 -> 2.857142857 | AA34: =IF(AND(CANS19School!Q32<>"",CANS19School!Q32<>0),CANS19School!Q32,"") -> 79 | AB34: =IF(AND(CANS20School!Q32<>"",CANS20School!Q32<>0),CANS20School!Q32,"") -> 79t | AC34: =IF(AND(CANS21School!Q32<>"",CANS21School!Q32<>0),CANS21School!Q32,"") -> 26 | AD34: =IF(AND(CANS19Behavior!Q32<>"",CANS19Behavior!Q32<>0),CANS19Behavior!Q32,"") -> 65 | AE34: =IF(AND(CANS20Behavior!Q32<>"",CANS20Behavior!Q32<>0),CANS20Behavior!Q32,"") -> 73 | AF34: =IF(AND(CANS21Behavior!Q32<>"",CANS21Behavior!Q32<>0),CANS21Behavior!Q32,"") -> 55 | AG34: =IF(AND(CANS19Strength!Q32<>"",CANS19Strength!Q32<>0),CANS19Strength!Q32,"") -> 77 | AH34: =IF(AND(CANS20Strength!Q32<>"",CANS20Strength!Q32<>0),CANS20Strength!Q32,"") -> 64t | AI34: =IF(AND(CANS21Strength!Q32<>"",CANS21Strength!Q32<>0),CANS21Strength!Q32,"") -> 103 | AJ34: =IF(AND('ICC19'!P32<>"",'ICC19'!P32<>0),'ICC19'!P32,"") -> 57t | AK34: =IF(AND('ICC20'!P32<>"",'ICC20'!P32<>0),'ICC20'!P32,"") -> 55t | AL34: =IF(AND('ICC21'!P32<>"",'ICC21'!P32<>0),'ICC21'!P32,"") -> 55t | AM34: =IF(AND('CBS19'!P32<>"",'CBS19'!P32<>0),'CBS19'!P32,"") -> 17 | AN34: =IF(AND('CBS20'!P32<>"",'CBS20'!P32<>0),'CBS20'!P32,"") -> 26 | AO34: =IF(AND('CBS21'!P32<>"",'CBS21'!P32<>0),'CBS21'!P32,"") -> 57 | AP34: =IF(AND(FamilyFC19!AG32<>"",FamilyFC19!AG32<>0),FamilyFC19!AG32,"") -> 37 | AQ34: =IF(AND(FamilyFC20!AG32<>"",FamilyFC20!AG32<>0),FamilyFC20!AG32,"") -> 88 | AR34: =IF(AND(FamilyFC21!AG32<>"",FamilyFC21!AG32<>0),FamilyFC21!AG32,"") -> 27 | AS34: =IF(AND(Permanency19!AG32<>"",Permanency19!AG32<>0),Permanency19!AG32,"") -> 89t | AT34: =IF(AND(Permanency20!AG32<>"",Permanency20!AG32<>0),Permanency20!AG32,"") -> 74t | AU34: =IF(AND(Permanency21!AG32<>"",Permanency21!AG32<>0),Permanency21!AG32,"") -> 56t | AV34: =IF(AND(Summary19!AL33<>"",Summary19!AL33<>0),Summary19!AL33,"") -> 78t | AW34: =IF(AND(Summary20!AL33<>"",Summary20!AL33<>0),Summary20!AL33,"") -> 89t | AX34: =IF(AND(Summary21!AL33<>"",Summary21!AL33<>0),Summary21!AL33,"") -> 42t | AY34: 0.79 | AZ34: 0.79 | BA34: 79 | BB34: 0.65 | BC34: 0.65 | BD34: 65 | BE34: 0.77 | BF34: 0.77 | BG34: 77 | BH34: 0.57 | BI34: 0.57 | BJ34: 57t | BK34: 0.17 | BL34: 0.9153439153 | BM34: 17 | BN34: 0.37 | BO34: 0.9117647059 | BP34: 37 | BQ34: 0.89 | BR34: 0.89 | BS34: 89t | BT34: 0.78 | BU34: 2.571428571 | BV34: 78t | BW34: 0.79 | BX34: 0.79 | BY34: 79t | BZ34: 0.73 | CA34: 0.73 | CB34: 73 | CC34: 0.64 | CD34: 0.6428571429 | CE34: 64t | CF34: 0.55 | CG34: 0.55 | CH34: 55t | CI34: 0.26 | CJ34: 0.9075144509 | CK34: 26 | CL34: 0.88 | CM34: 0.88 | CN34: 88 | CO34: 0.74 | CP34: 0.74 | CQ34: 74t | CR34: 0.89 | CS34: 2.285714286 | CT34: 89t | CU34: 0.26 | CV34: 0.5490196078 | CW34: 26 | CX34: 0.55 | CY34: 0.55 | CZ34: 55 | DA34: 1.03 | DB34: 1.03 | DC34: 103 | DD34: 0.55 | DE34: 0.55 | DF34: 55t | DG34: 0.57 | DH34: 0.8591549296 | DI34: 57 | DJ34: 0.27 | DK34: 0.9523809524 | DL34: 27 | DM34: 0.56 | DN34: 0.8333333333 | DO34: 56t | DP34: 0.42 | DQ34: 2.857142857 | DR34: 42t
A35: 49 | B35: Cumberland | C35: =CANS19School!O33 -> 0.2 | D35: =CANS20School!O33 -> 0.2857142857 | E35: =CANS21School!O33 -> 0.25 | F35: =CANS19Behavior!O33 -> 0.2 | G35: =CANS20Behavior!O33 -> 0.5714285714 | H35: =CANS21Behavior!O33 -> 0.5 | I35: =CANS19Strength!O33 -> 0.6 | J35: =CANS20Strength!O33 -> 0.5714285714 | K35: =CANS21Strength!O33 -> 1 | L35: ='ICC19'!N33 ->  | M35: ='ICC20'!N33 ->  | N35: ='ICC21'!N33 ->  | O35: ='CBS19'!N33 -> 0.8387096774 | P35: ='CBS20'!N33 -> 0.8387096774 | Q35: ='CBS21'!N33 -> 0.75 | R35: =FamilyFC19!AE33 -> 0.7692307692 | S35: =FamilyFC20!AE33 -> 0.9 | T35: =FamilyFC21!AE33 -> 0.8 | U35: =Permanency19!AE33 -> 0.6666666667 | V35: =Permanency20!AE33 -> 0.8 | W35: =Permanency21!AE33 -> 0.8333333333 | X35: =Summary19!AJ34 -> 1.666666667 | Y35: =Summary20!AJ34 -> 2.5 | Z35: =Summary21!AJ34 -> 2.666666667 | AA35: =IF(AND(CANS19School!Q33<>"",CANS19School!Q33<>0),CANS19School!Q33,"") -> 124t | AB35: =IF(AND(CANS20School!Q33<>"",CANS20School!Q33<>0),CANS20School!Q33,"") -> 118 | AC35: =IF(AND(CANS21School!Q33<>"",CANS21School!Q33<>0),CANS21School!Q33,"") -> 106t | AD35: =IF(AND(CANS19Behavior!Q33<>"",CANS19Behavior!Q33<>0),CANS19Behavior!Q33,"") -> 126t | AE35: =IF(AND(CANS20Behavior!Q33<>"",CANS20Behavior!Q33<>0),CANS20Behavior!Q33,"") -> 41t | AF35: =IF(AND(CANS21Behavior!Q33<>"",CANS21Behavior!Q33<>0),CANS21Behavior!Q33,"") -> 36t | AG35: =IF(AND(CANS19Strength!Q33<>"",CANS19Strength!Q33<>0),CANS19Strength!Q33,"") -> 71t | AH35: =IF(AND(CANS20Strength!Q33<>"",CANS20Strength!Q33<>0),CANS20Strength!Q33,"") -> 86t | AI35: =IF(AND(CANS21Strength!Q33<>"",CANS21Strength!Q33<>0),CANS21Strength!Q33,"") -> 1t | AJ35: =IF(AND('ICC19'!P33<>"",'ICC19'!P33<>0),'ICC19'!P33,"") ->  | AK35: =IF(AND('ICC20'!P33<>"",'ICC20'!P33<>0),'ICC20'!P33,"") ->  | AL35: =IF(AND('ICC21'!P33<>"",'ICC21'!P33<>0),'ICC21'!P33,"") ->  | AM35: =IF(AND('CBS19'!P33<>"",'CBS19'!P33<>0),'CBS19'!P33,"") -> 66 | AN35: =IF(AND('CBS20'!P33<>"",'CBS20'!P33<>0),'CBS20'!P33,"") -> 67 | AO35: =IF(AND('CBS21'!P33<>"",'CBS21'!P33<>0),'CBS21'!P33,"") -> 115t | AP35: =IF(AND(FamilyFC19!AG33<>"",FamilyFC19!AG33<>0),FamilyFC19!AG33,"") -> 99 | AQ35: =IF(AND(FamilyFC20!AG33<>"",FamilyFC20!AG33<>0),FamilyFC20!AG33,"") -> 49t | AR35: =IF(AND(FamilyFC21!AG33<>"",FamilyFC21!AG33<>0),FamilyFC21!AG33,"") -> 94t | AS35: =IF(AND(Permanency19!AG33<>"",Permanency19!AG33<>0),Permanency19!AG33,"") -> 98t | AT35: =IF(AND(Permanency20!AG33<>"",Permanency20!AG33<>0),Permanency20!AG33,"") -> 47t | AU35: =IF(AND(Permanency21!AG33<>"",Permanency21!AG33<>0),Permanency21!AG33,"") -> 56t | AV35: =IF(AND(Summary19!AL34<>"",Summary19!AL34<>0),Summary19!AL34,"") -> 124t | AW35: =IF(AND(Summary20!AL34<>"",Summary20!AL34<>0),Summary20!AL34,"") -> 71t | AX35: =IF(AND(Summary21!AL34<>"",Summary21!AL34<>0),Summary21!AL34,"") -> 66t | AY35: 1.24 | AZ35: 1.24 | BA35: 124t | BB35: 1.26 | BC35: 1.26 | BD35: 126t | BE35: 0.71 | BF35: 0.71 | BG35: 71t | BK35: 0.66 | BL35: 0.8387096774 | BM35: 66 | BN35: 0.99 | BO35: 0.99 | BP35: 99 | BQ35: 0.98 | BR35: 0.98 | BS35: 98t | BT35: 1.24 | BU35: 1.666666667 | BV35: 124t | BW35: 1.18 | BX35: 1.18 | BY35: 118 | BZ35: 0.41 | CA35: 0.5 | CB35: 41t | CC35: 0.86 | CD35: 0.86 | CE35: 86t | CI35: 0.67 | CJ35: 0.8387096774 | CK35: 67 | CL35: 0.49 | CM35: 0.9 | CN35: 49t | CO35: 0.47 | CP35: 0.8 | CQ35: 47t | CR35: 0.71 | CS35: 2.5 | CT35: 71t | CU35: 1.06 | CV35: 1.06 | CW35: 106t | CX35: 0.36 | CY35: 0.5 | CZ35: 36t | DA35: 0.01 | DB35: 1 | DC35: 1t | DG35: 1.15 | DH35: 1.15 | DI35: 115t | DJ35: 0.94 | DK35: 0.94 | DL35: 94t | DM35: 0.56 | DN35: 0.8333333333 | DO35: 56t | DP35: 0.66 | DQ35: 2.666666667 | DR35: 66t
A36: 590 | B36: Danville | C36: =CANS19School!O34 -> 0.5254237288 | D36: =CANS20School!O34 -> 0.6349206349 | E36: =CANS21School!O34 -> 0.5 | F36: =CANS19Behavior!O34 -> 0.4915254237 | G36: =CANS20Behavior!O34 -> 0.5873015873 | H36: =CANS21Behavior!O34 -> 0.3695652174 | I36: =CANS19Strength!O34 -> 0.5254237288 | J36: =CANS20Strength!O34 -> 0.7142857143 | K36: =CANS21Strength!O34 -> 0.6086956522 | L36: ='ICC19'!N34 -> 0 | M36: ='ICC20'!N34 -> 0 | N36: ='ICC21'!N34 -> 0 | O36: ='CBS19'!N34 -> 0.7054794521 | P36: ='CBS20'!N34 -> 0.7058823529 | Q36: ='CBS21'!N34 -> 0.7709923664 | R36: =FamilyFC19!AE34 -> 0.6136363636 | S36: =FamilyFC20!AE34 -> 0.7 | T36: =FamilyFC21!AE34 -> 0.6222222222 | U36: =Permanency19!AE34 -> 0.5454545455 | V36: =Permanency20!AE34 -> 0.6875 | W36: =Permanency21!AE34 -> 0.7333333333 | X36: =Summary19!AJ35 -> 1.714285714 | Y36: =Summary20!AJ35 -> 2.571428571 | Z36: =Summary21!AJ35 -> 2.142857143 | AA36: =IF(AND(CANS19School!Q34<>"",CANS19School!Q34<>0),CANS19School!Q34,"") -> 67 | AB36: =IF(AND(CANS20School!Q34<>"",CANS20School!Q34<>0),CANS20School!Q34,"") -> 19 | AC36: =IF(AND(CANS21School!Q34<>"",CANS21School!Q34<>0),CANS21School!Q34,"") -> 30t | AD36: =IF(AND(CANS19Behavior!Q34<>"",CANS19Behavior!Q34<>0),CANS19Behavior!Q34,"") -> 75 | AE36: =IF(AND(CANS20Behavior!Q34<>"",CANS20Behavior!Q34<>0),CANS20Behavior!Q34,"") -> 38 | AF36: =IF(AND(CANS21Behavior!Q34<>"",CANS21Behavior!Q34<>0),CANS21Behavior!Q34,"") -> 83 | AG36: =IF(AND(CANS19Strength!Q34<>"",CANS19Strength!Q34<>0),CANS19Strength!Q34,"") -> 90 | AH36: =IF(AND(CANS20Strength!Q34<>"",CANS20Strength!Q34<>0),CANS20Strength!Q34,"") -> 29t | AI36: =IF(AND(CANS21Strength!Q34<>"",CANS21Strength!Q34<>0),CANS21Strength!Q34,"") -> 45 | AJ36: =IF(AND('ICC19'!P34<>"",'ICC19'!P34<>0),'ICC19'!P34,"") -> 57t | AK36: =IF(AND('ICC20'!P34<>"",'ICC20'!P34<>0),'ICC20'!P34,"") -> 55t | AL36: =IF(AND('ICC21'!P34<>"",'ICC21'!P34<>0),'ICC21'!P34,"") -> 55t | AM36: =IF(AND('CBS19'!P34<>"",'CBS19'!P34<>0),'CBS19'!P34,"") -> 123 | AN36: =IF(AND('CBS20'!P34<>"",'CBS20'!P34<>0),'CBS20'!P34,"") -> 123 | AO36: =IF(AND('CBS21'!P34<>"",'CBS21'!P34<>0),'CBS21'!P34,"") -> 112 | AP36: =IF(AND(FamilyFC19!AG34<>"",FamilyFC19!AG34<>0),FamilyFC19!AG34,"") -> 118 | AQ36: =IF(AND(FamilyFC20!AG34<>"",FamilyFC20!AG34<>0),FamilyFC20!AG34,"") -> 113 | AR36: =IF(AND(FamilyFC21!AG34<>"",FamilyFC21!AG34<>0),FamilyFC21!AG34,"") -> 119 | AS36: =IF(AND(Permanency19!AG34<>"",Permanency19!AG34<>0),Permanency19!AG34,"") -> 111 | AT36: =IF(AND(Permanency20!AG34<>"",Permanency20!AG34<>0),Permanency20!AG34,"") -> 89t | AU36: =IF(AND(Permanency21!AG34<>"",Permanency21!AG34<>0),Permanency21!AG34,"") -> 91 | AV36: =IF(AND(Summary19!AL35<>"",Summary19!AL35<>0),Summary19!AL35,"") -> 120t | AW36: =IF(AND(Summary20!AL35<>"",Summary20!AL35<>0),Summary20!AL35,"") -> 65t | AX36: =IF(AND(Summary21!AL35<>"",Summary21!AL35<>0),Summary21!AL35,"") -> 110t | AY36: 0.67 | AZ36: =IF(C36<>"",MAX(C36,AY36),"") -> 0.67 | BA36: 67 | BB36: 0.75 | BC36: =IF(F36<>"",MAX(F36,BB36),"") -> 0.75 | BD36: 75 | BE36: 0.9 | BF36: =IF(I36<>"",MAX(I36,BE36),"") -> 0.9 | BG36: 90 | BH36: 0.57 | BI36: =IF(L36<>"",MAX(L36,BH36),"") -> 0.57 | BJ36: 57t | BK36: 1.23 | BL36: =IF(O36<>"",MAX(O36,BK36),"") -> 1.23 | BM36: 123 | BN36: 1.18 | BO36: =IF(R36<>"",MAX(R36,BN36),"") -> 1.18 | BP36: 118 | BQ36: 1.11 | BR36: =IF(U36<>"",MAX(U36,BQ36),"") -> 1.11 | BS36: 111 | BT36: 1.2 | BU36: =IF(X36<>"",MAX(X36,BT36),"") -> 1.714285714 | BV36: 120t | BW36: 0.19 | BX36: =IF(D36<>"",MAX(D36,BW36),"") -> 0.6349206349 | BY36: 19 | BZ36: 0.38 | CA36: 0.38 | CB36: 38 | CC36: 0.29 | CD36: =IF(J36<>"",MAX(J36,CC36),"") -> 0.7142857143 | CE36: 29t | CF36: 0.55 | CG36: =IF(M36<>"",MAX(M36,CF36),"") -> 0.55 | CH36: 55t | CI36: 1.23 | CJ36: =IF(P36<>"",MAX(P36,CI36),"") -> 1.23 | CK36: 123 | CL36: 1.13 | CM36: =IF(S36<>"",MAX(S36,CL36),"") -> 1.13 | CN36: 113 | CO36: 0.89 | CP36: =IF(V36<>"",MAX(V36,CO36),"") -> 0.89 | CQ36: 89t | CR36: 0.65 | CS36: =IF(Y36<>"",MAX(Y36,CR36),"") -> 2.571428571 | CT36: 65t | CU36: 0.3 | CV36: =IF(E36<>"",MAX(E36,CU36),"") -> 0.5 | CW36: 30t | CX36: 0.83 | CY36: =IF(H36<>"",MAX(H36,CX36),"") -> 0.83 | CZ36: 83 | DA36: 0.45 | DB36: =IF(K36<>"",MAX(K36,DA36),"") -> 0.6086956522 | DC36: 45 | DD36: 0.55 | DE36: =IF(N36<>"",MAX(N36,DD36),"") -> 0.55 | DF36: 55t | DG36: 1.12 | DH36: =IF(Q36<>"",MAX(Q36,DG36),"") -> 1.12 | DI36: 112 | DJ36: 1.19 | DK36: =IF(T36<>"",MAX(T36,DJ36),"") -> 1.19 | DL36: 119 | DM36: 0.91 | DN36: =IF(W36<>"",MAX(W36,DM36),"") -> 0.91 | DO36: 91 | DP36: 1.1 | DQ36: =IF(Z36<>"",MAX(Z36,DP36),"") -> 2.142857143 | DR36: 110t
A37: 51 | B37: Dickenson | C37: =CANS19School!O35 -> 0.6666666667 | D37: =CANS20School!O35 -> 0.4 | E37: =CANS21School!O35 -> 0.1666666667 | F37: =CANS19Behavior!O35 -> 0.5151515152 | G37: =CANS20Behavior!O35 -> 0.4666666667 | H37: =CANS21Behavior!O35 -> 0.3333333333 | I37: =CANS19Strength!O35 -> 0.7272727273 | J37: =CANS20Strength!O35 -> 0.5333333333 | K37: =CANS21Strength!O35 -> 0.5 | L37: ='ICC19'!N35 -> 0 | M37: ='ICC20'!N35 ->  | N37: ='ICC21'!N35 ->  | O37: ='CBS19'!N35 -> 0.8383838384 | P37: ='CBS20'!N35 -> 0.9090909091 | Q37: ='CBS21'!N35 -> 0.8085106383 | R37: =FamilyFC19!AE35 -> 0.84375 | S37: =FamilyFC20!AE35 -> 0.8571428571 | T37: =FamilyFC21!AE35 -> 0.7727272727 | U37: =Permanency19!AE35 -> 0.7916666667 | V37: =Permanency20!AE35 -> 0.8260869565 | W37: =Permanency21!AE35 -> 0.875 | X37: =Summary19!AJ36 -> 2.714285714 | Y37: =Summary20!AJ36 -> 2.5 | Z37: =Summary21!AJ36 -> 1.833333333 | AA37: =IF(AND(CANS19School!Q35<>"",CANS19School!Q35<>0),CANS19School!Q35,"") -> 17t | AB37: =IF(AND(CANS20School!Q35<>"",CANS20School!Q35<>0),CANS20School!Q35,"") -> 87t | AC37: =IF(AND(CANS21School!Q35<>"",CANS21School!Q35<>0),CANS21School!Q35,"") -> 121t | AD37: =IF(AND(CANS19Behavior!Q35<>"",CANS19Behavior!Q35<>0),CANS19Behavior!Q35,"") -> 64 | AE37: =IF(AND(CANS20Behavior!Q35<>"",CANS20Behavior!Q35<>0),CANS20Behavior!Q35,"") -> 72 | AF37: =IF(AND(CANS21Behavior!Q35<>"",CANS21Behavior!Q35<>0),CANS21Behavior!Q35,"") -> 87t | AG37: =IF(AND(CANS19Strength!Q35<>"",CANS19Strength!Q35<>0),CANS19Strength!Q35,"") -> 29t | AH37: =IF(AND(CANS20Strength!Q35<>"",CANS20Strength!Q35<>0),CANS20Strength!Q35,"") -> 98 | AI37: =IF(AND(CANS21Strength!Q35<>"",CANS21Strength!Q35<>0),CANS21Strength!Q35,"") -> 75t | AJ37: =IF(AND('ICC19'!P35<>"",'ICC19'!P35<>0),'ICC19'!P35,"") -> 57t | AK37: =IF(AND('ICC20'!P35<>"",'ICC20'!P35<>0),'ICC20'!P35,"") ->  | AL37: =IF(AND('ICC21'!P35<>"",'ICC21'!P35<>0),'ICC21'!P35,"") ->  | AM37: =IF(AND('CBS19'!P35<>"",'CBS19'!P35<>0),'CBS19'!P35,"") -> 67 | AN37: =IF(AND('CBS20'!P35<>"",'CBS20'!P35<>0),'CBS20'!P35,"") -> 24t | AO37: =IF(AND('CBS21'!P35<>"",'CBS21'!P35<>0),'CBS21'!P35,"") -> 92 | AP37: =IF(AND(FamilyFC19!AG35<>"",FamilyFC19!AG35<>0),FamilyFC19!AG35,"") -> 77t | AQ37: =IF(AND(FamilyFC20!AG35<>"",FamilyFC20!AG35<>0),FamilyFC20!AG35,"") -> 69t | AR37: =IF(AND(FamilyFC21!AG35<>"",FamilyFC21!AG35<>0),FamilyFC21!AG35,"") -> 108 | AS37: =IF(AND(Permanency19!AG35<>"",Permanency19!AG35<>0),Permanency19!AG35,"") -> 64t | AT37: =IF(AND(Permanency20!AG35<>"",Permanency20!AG35<>0),Permanency20!AG35,"") -> 42 | AU37: =IF(AND(Permanency21!AG35<>"",Permanency21!AG35<>0),Permanency21!AG35,"") -> 46t | AV37: =IF(AND(Summary19!AL36<>"",Summary19!AL36<>0),Summary19!AL36,"") -> 65t | AW37: =IF(AND(Summary20!AL36<>"",Summary20!AL36<>0),Summary20!AL36,"") -> 71t | AX37: =IF(AND(Summary21!AL36<>"",Summary21!AL36<>0),Summary21!AL36,"") -> 124 | AY37: 0.17 | AZ37: 0.6666666667 | BA37: 17t | BB37: 0.64 | BC37: 0.64 | BD37: 64 | BE37: 0.29 | BF37: 0.7272727273 | BG37: 29t | BH37: 0.57 | BI37: 0.57 | BJ37: 57t | BK37: 0.67 | BL37: 0.8383838384 | BM37: 67 | BN37: 0.77 | BO37: 0.84375 | BP37: 77t | BQ37: 0.64 | BR37: 0.7916666667 | BS37: 64t | BT37: 0.65 | BU37: 2.714285714 | BV37: 65t | BW37: 0.87 | BX37: 0.87 | BY37: 87t | BZ37: 0.72 | CA37: =IF(H37<>"",MAX(H37,BZ37),"") -> 0.72 | CB37: 72 | CC37: 0.98 | CD37: 0.98 | CE37: 98 | CI37: 0.24 | CJ37: 0.9090909091 | CK37: 24t | CL37: 0.69 | CM37: 0.8571428571 | CN37: 69t | CO37: 0.42 | CP37: 0.8260869565 | CQ37: 42 | CR37: 0.71 | CS37: 2.5 | CT37: 71t | CU37: 1.21 | CV37: 1.21 | CW37: 121t | CX37: 0.87 | CY37: 0.87 | CZ37: 87t | DA37: 0.75 | DB37: 0.75 | DC37: 75t | DG37: 0.92 | DH37: 0.92 | DI37: 92 | DJ37: 1.08 | DK37: 1.08 | DL37: 108 | DM37: 0.46 | DN37: 0.875 | DO37: 46t | DP37: 1.24 | DQ37: 1.833333333 | DR37: 124
A38: 53 | B38: Dinwiddie | C38: =CANS19School!O36 -> 0.619047619 | D38: =CANS20School!O36 -> 0.6 | E38: =CANS21School!O36 -> 0.3888888889 | F38: =CANS19Behavior!O36 -> 0.7142857143 | G38: =CANS20Behavior!O36 -> 0.6 | H38: =CANS21Behavior!O36 -> 0.6666666667 | I38: =CANS19Strength!O36 -> 0.619047619 | J38: =CANS20Strength!O36 -> 0.6 | K38: =CANS21Strength!O36 -> 0.4444444444 | L38: ='ICC19'!N36 -> 0.6363636364 | M38: ='ICC20'!N36 -> 1 | N38: ='ICC21'!N36 -> 1 | O38: ='CBS19'!N36 -> 0.8194444444 | P38: ='CBS20'!N36 -> 0.8208955224 | Q38: ='CBS21'!N36 -> 0.7966101695 | R38: =FamilyFC19!AE36 -> 0.9285714286 | S38: =FamilyFC20!AE36 -> 0.9444444444 | T38: =FamilyFC21!AE36 -> 0.9473684211 | U38: =Permanency19!AE36 -> 0.5555555556 | V38: =Permanency20!AE36 -> 0.5 | W38: =Permanency21!AE36 -> 0.6666666667 | X38: =Summary19!AJ37 -> 3.285714286 | Y38: =Summary20!AJ37 -> 3.142857143 | Z38: =Summary21!AJ37 -> 2.571428571 | AA38: =IF(AND(CANS19School!Q36<>"",CANS19School!Q36<>0),CANS19School!Q36,"") -> 32 | AB38: =IF(AND(CANS20School!Q36<>"",CANS20School!Q36<>0),CANS20School!Q36,"") -> 27t | AC38: =IF(AND(CANS21School!Q36<>"",CANS21School!Q36<>0),CANS21School!Q36,"") -> 69 | AD38: =IF(AND(CANS19Behavior!Q36<>"",CANS19Behavior!Q36<>0),CANS19Behavior!Q36,"") -> 19 | AE38: =IF(AND(CANS20Behavior!Q36<>"",CANS20Behavior!Q36<>0),CANS20Behavior!Q36,"") -> 31t | AF38: =IF(AND(CANS21Behavior!Q36<>"",CANS21Behavior!Q36<>0),CANS21Behavior!Q36,"") -> 14t | AG38: =IF(AND(CANS19Strength!Q36<>"",CANS19Strength!Q36<>0),CANS19Strength!Q36,"") -> 66 | AH38: =IF(AND(CANS20Strength!Q36<>"",CANS20Strength!Q36<>0),CANS20Strength!Q36,"") -> 79t | AI38: =IF(AND(CANS21Strength!Q36<>"",CANS21Strength!Q36<>0),CANS21Strength!Q36,"") -> 101 | AJ38: =IF(AND('ICC19'!P36<>"",'ICC19'!P36<>0),'ICC19'!P36,"") -> 28 | AK38: =IF(AND('ICC20'!P36<>"",'ICC20'!P36<>0),'ICC20'!P36,"") -> 1t | AL38: =IF(AND('ICC21'!P36<>"",'ICC21'!P36<>0),'ICC21'!P36,"") -> 1t | AM38: =IF(AND('CBS19'!P36<>"",'CBS19'!P36<>0),'CBS19'!P36,"") -> 71 | AN38: =IF(AND('CBS20'!P36<>"",'CBS20'!P36<>0),'CBS20'!P36,"") -> 81 | AO38: =IF(AND('CBS21'!P36<>"",'CBS21'!P36<>0),'CBS21'!P36,"") -> 101 | AP38: =IF(AND(FamilyFC19!AG36<>"",FamilyFC19!AG36<>0),FamilyFC19!AG36,"") -> 27t | AQ38: =IF(AND(FamilyFC20!AG36<>"",FamilyFC20!AG36<>0),FamilyFC20!AG36,"") -> 26t | AR38: =IF(AND(FamilyFC21!AG36<>"",FamilyFC21!AG36<>0),FamilyFC21!AG36,"") -> 28 | AS38: =IF(AND(Permanency19!AG36<>"",Permanency19!AG36<>0),Permanency19!AG36,"") -> 110 | AT38: =IF(AND(Permanency20!AG36<>"",Permanency20!AG36<>0),Permanency20!AG36,"") -> 108t | AU38: =IF(AND(Permanency21!AG36<>"",Permanency21!AG36<>0),Permanency21!AG36,"") -> 103t | AV38: =IF(AND(Summary19!AL37<>"",Summary19!AL37<>0),Summary19!AL37,"") -> 16t | AW38: =IF(AND(Summary20!AL37<>"",Summary20!AL37<>0),Summary20!AL37,"") -> 26t | AX38: =IF(AND(Summary21!AL37<>"",Summary21!AL37<>0),Summary21!AL37,"") -> 73t | AY38: 0.32 | AZ38: 0.619047619 | BA38: 32 | BB38: 0.19 | BC38: 0.7142857143 | BD38: 19 | BE38: 0.66 | BF38: 0.66 | BG38: 66 | BH38: 0.28 | BI38: 0.6363636364 | BJ38: 28 | BK38: 0.71 | BL38: 0.8194444444 | BM38: 71 | BN38: 0.27 | BO38: 0.9285714286 | BP38: 27t | BQ38: 1.1 | BR38: 1.1 | BS38: 110 | BT38: 0.16 | BU38: 3.285714286 | BV38: 16t | BW38: 0.27 | BX38: 0.6 | BY38: 27t | BZ38: 0.31 | CA38: 0.6666666667 | CB38: 31t | CC38: 0.79 | CD38: 0.79 | CE38: 79t | CF38: 0.01 | CG38: 1 | CH38: 1t | CI38: 0.81 | CJ38: 0.8208955224 | CK38: 81 | CL38: 0.26 | CM38: 0.9444444444 | CN38: 26t | CO38: 1.08 | CP38: 1.08 | CQ38: 108t | CR38: 0.26 | CS38: 3.142857143 | CT38: 26t | CU38: 0.69 | CV38: 0.69 | CW38: 69 | CX38: 0.14 | CY38: 0.6666666667 | CZ38: 14t | DA38: 1.01 | DB38: 1.01 | DC38: 101 | DD38: 0.01 | DE38: 1 | DF38: 1t | DG38: 1.01 | DH38: 1.01 | DI38: 101 | DJ38: 0.28 | DK38: 0.9473684211 | DL38: 28 | DM38: 1.03 | DN38: 1.03 | DO38: 103t | DP38: 0.73 | DQ38: 2.571428571 | DR38: 73t
A39: 57 | B39: Essex | C39: =CANS19School!O37 -> 0.75 | D39: =CANS20School!O37 -> 0.6 | E39: =CANS21School!O37 -> 0.5714285714 | F39: =CANS19Behavior!O37 -> 0.5 | G39: =CANS20Behavior!O37 -> 0.6 | H39: =CANS21Behavior!O37 -> 0.4285714286 | I39: =CANS19Strength!O37 -> 1 | J39: =CANS20Strength!O37 -> 0.8666666667 | K39: =CANS21Strength!O37 -> 0.7142857143 | L39: ='ICC19'!N37 -> 0.1666666667 | M39: ='ICC20'!N37 ->  | N39: ='ICC21'!N37 -> 0.4 | O39: ='CBS19'!N37 -> 0.8 | P39: ='CBS20'!N37 -> 0.8095238095 | Q39: ='CBS21'!N37 -> 0.7714285714 | R39: =FamilyFC19!AE37 -> 0.5 | S39: =FamilyFC20!AE37 -> 0.7857142857 | T39: =FamilyFC21!AE37 -> 0.8333333333 | U39: =Permanency19!AE37 -> 0.5 | V39: =Permanency20!AE37 -> 0.7 | W39: =Permanency21!AE37 -> 1 | X39: =Summary19!AJ38 -> 2.285714286 | Y39: =Summary20!AJ38 -> 2.833333333 | Z39: =Summary21!AJ38 -> 2.857142857 | AA39: =IF(AND(CANS19School!Q37<>"",CANS19School!Q37<>0),CANS19School!Q37,"") -> 12t | AB39: =IF(AND(CANS20School!Q37<>"",CANS20School!Q37<>0),CANS20School!Q37,"") -> 27t | AC39: =IF(AND(CANS21School!Q37<>"",CANS21School!Q37<>0),CANS21School!Q37,"") -> 23 | AD39: =IF(AND(CANS19Behavior!Q37<>"",CANS19Behavior!Q37<>0),CANS19Behavior!Q37,"") -> 66t | AE39: =IF(AND(CANS20Behavior!Q37<>"",CANS20Behavior!Q37<>0),CANS20Behavior!Q37,"") -> 31t | AF39: =IF(AND(CANS21Behavior!Q37<>"",CANS21Behavior!Q37<>0),CANS21Behavior!Q37,"") -> 68 | AG39: =IF(AND(CANS19Strength!Q37<>"",CANS19Strength!Q37<>0),CANS19Strength!Q37,"") -> 1t | AH39: =IF(AND(CANS20Strength!Q37<>"",CANS20Strength!Q37<>0),CANS20Strength!Q37,"") -> 9 | AI39: =IF(AND(CANS21Strength!Q37<>"",CANS21Strength!Q37<>0),CANS21Strength!Q37,"") -> 25t | AJ39: =IF(AND('ICC19'!P37<>"",'ICC19'!P37<>0),'ICC19'!P37,"") -> 47t | AK39: =IF(AND('ICC20'!P37<>"",'ICC20'!P37<>0),'ICC20'!P37,"") ->  | AL39: =IF(AND('ICC21'!P37<>"",'ICC21'!P37<>0),'ICC21'!P37,"") -> 38 | AM39: =IF(AND('CBS19'!P37<>"",'CBS19'!P37<>0),'CBS19'!P37,"") -> 83t | AN39: =IF(AND('CBS20'!P37<>"",'CBS20'!P37<>0),'CBS20'!P37,"") -> 90 | AO39: =IF(AND('CBS21'!P37<>"",'CBS21'!P37<>0),'CBS21'!P37,"") -> 111 | AP39: =IF(AND(FamilyFC19!AG37<>"",FamilyFC19!AG37<>0),FamilyFC19!AG37,"") -> 121t | AQ39: =IF(AND(FamilyFC20!AG37<>"",FamilyFC20!AG37<>0),FamilyFC20!AG37,"") -> 98 | AR39: =IF(AND(FamilyFC21!AG37<>"",FamilyFC21!AG37<>0),FamilyFC21!AG37,"") -> 86t | AS39: =IF(AND(Permanency19!AG37<>"",Permanency19!AG37<>0),Permanency19!AG37,"") -> 112t | AT39: =IF(AND(Permanency20!AG37<>"",Permanency20!AG37<>0),Permanency20!AG37,"") -> 85t | AU39: =IF(AND(Permanency21!AG37<>"",Permanency21!AG37<>0),Permanency21!AG37,"") -> 1t | AV39: =IF(AND(Summary19!AL38<>"",Summary19!AL38<>0),Summary19!AL38,"") -> 99t | AW39: =IF(AND(Summary20!AL38<>"",Summary20!AL38<>0),Summary20!AL38,"") -> 50t | AX39: =IF(AND(Summary21!AL38<>"",Summary21!AL38<>0),Summary21!AL38,"") -> 42t | AY39: 0.12 | AZ39: 0.75 | BA39: 12t | BB39: 0.66 | BC39: 0.66 | BD39: 66t | BE39: 0.01 | BF39: 1 | BG39: 1t | BH39: 0.47 | BI39: 0.47 | BJ39: 47t | BK39: 0.83 | BL39: 0.83 | BM39: 83t | BN39: 1.21 | BO39: 1.21 | BP39: 121t | BQ39: 1.12 | BR39: 1.12 | BS39: 112t | BT39: 0.99 | BU39: 2.285714286 | BV39: 99t | BW39: 0.27 | BX39: 0.6 | BY39: 27t | BZ39: 0.31 | CA39: 0.4285714286 | CB39: 31t | CC39: 0.09 | CD39: 0.8666666667 | CE39: 9 | CI39: 0.9 | CJ39: 0.9 | CK39: 90 | CL39: 0.98 | CM39: 0.98 | CN39: 98 | CO39: 0.85 | CP39: 0.85 | CQ39: 85t | CR39: 0.5 | CS39: 2.833333333 | CT39: 50t | CU39: 0.23 | CV39: 0.5714285714 | CW39: 23 | CX39: 0.68 | CY39: 0.68 | CZ39: 68 | DA39: 0.25 | DB39: 0.7142857143 | DC39: 25t | DD39: 0.38 | DE39: 0.4 | DF39: 38 | DG39: 1.11 | DH39: 1.11 | DI39: 111 | DJ39: 0.86 | DK39: 0.86 | DL39: 86t | DM39: 0.01 | DN39: 1 | DO39: 1t | DP39: 0.42 | DQ39: 2.857142857 | DR39: 42t
A40: 1300 | B40: Fairfax_Falls Church | C40: =CANS19School!O38 -> 0.4736842105 | D40: =CANS20School!O38 -> 0.5109034268 | E40: =CANS21School!O38 -> 0.4017094017 | F40: =CANS19Behavior!O38 -> 0.4903047091 | G40: =CANS20Behavior!O38 -> 0.5607476636 | H40: =CANS21Behavior!O38 -> 0.4102564103 | I40: =CANS19Strength!O38 -> 0.6011080332 | J40: =CANS20Strength!O38 -> 0.6230529595 | K40: =CANS21Strength!O38 -> 0.4957264957 | L40: ='ICC19'!N38 -> 1 | M40: ='ICC20'!N38 -> 1 | N40: ='ICC21'!N38 -> 1 | O40: ='CBS19'!N38 -> 0.8881789137 | P40: ='CBS20'!N38 -> 0.8877284595 | Q40: ='CBS21'!N38 -> 0.8989412897 | R40: =FamilyFC19!AE38 -> 0.8810810811 | S40: =FamilyFC20!AE38 -> 0.8850574713 | T40: =FamilyFC21!AE38 -> 0.9306930693 | U40: =Permanency19!AE38 -> 0.6790123457 | V40: =Permanency20!AE38 -> 0.77 | W40: =Permanency21!AE38 -> 0.8271604938 | X40: =Summary19!AJ39 -> 2.857142857 | Y40: =Summary20!AJ39 -> 3.428571429 | Z40: =Summary21!AJ39 -> 3.142857143 | AA40: =IF(AND(CANS19School!Q38<>"",CANS19School!Q38<>0),CANS19School!Q38,"") -> 83t | AB40: =IF(AND(CANS20School!Q38<>"",CANS20School!Q38<>0),CANS20School!Q38,"") -> 46 | AC40: =IF(AND(CANS21School!Q38<>"",CANS21School!Q38<>0),CANS21School!Q38,"") -> 64 | AD40: =IF(AND(CANS19Behavior!Q38<>"",CANS19Behavior!Q38<>0),CANS19Behavior!Q38,"") -> 76 | AE40: =IF(AND(CANS20Behavior!Q38<>"",CANS20Behavior!Q38<>0),CANS20Behavior!Q38,"") -> 46 | AF40: =IF(AND(CANS21Behavior!Q38<>"",CANS21Behavior!Q38<>0),CANS21Behavior!Q38,"") -> 71 | AG40: =IF(AND(CANS19Strength!Q38<>"",CANS19Strength!Q38<>0),CANS19Strength!Q38,"") -> 70 | AH40: =IF(AND(CANS20Strength!Q38<>"",CANS20Strength!Q38<>0),CANS20Strength!Q38,"") -> 73 | AI40: =IF(AND(CANS21Strength!Q38<>"",CANS21Strength!Q38<>0),CANS21Strength!Q38,"") -> 90 | AJ40: =IF(AND('ICC19'!P38<>"",'ICC19'!P38<>0),'ICC19'!P38,"") -> 1t | AK40: =IF(AND('ICC20'!P38<>"",'ICC20'!P38<>0),'ICC20'!P38,"") -> 1t | AL40: =IF(AND('ICC21'!P38<>"",'ICC21'!P38<>0),'ICC21'!P38,"") -> 1t | AM40: =IF(AND('CBS19'!P38<>"",'CBS19'!P38<>0),'CBS19'!P38,"") -> 28 | AN40: =IF(AND('CBS20'!P38<>"",'CBS20'!P38<>0),'CBS20'!P38,"") -> 40 | AO40: =IF(AND('CBS21'!P38<>"",'CBS21'!P38<>0),'CBS21'!P38,"") -> 29 | AP40: =IF(AND(FamilyFC19!AG38<>"",FamilyFC19!AG38<>0),FamilyFC19!AG38,"") -> 47 | AQ40: =IF(AND(FamilyFC20!AG38<>"",FamilyFC20!AG38<>0),FamilyFC20!AG38,"") -> 56 | AR40: =IF(AND(FamilyFC21!AG38<>"",FamilyFC21!AG38<>0),FamilyFC21!AG38,"") -> 34 | AS40: =IF(AND(Permanency19!AG38<>"",Permanency19!AG38<>0),Permanency19!AG38,"") -> 97 | AT40: =IF(AND(Permanency20!AG38<>"",Permanency20!AG38<>0),Permanency20!AG38,"") -> 57 | AU40: =IF(AND(Permanency21!AG38<>"",Permanency21!AG38<>0),Permanency21!AG38,"") -> 62 | AV40: =IF(AND(Summary19!AL39<>"",Summary19!AL39<>0),Summary19!AL39,"") -> 49t | AW40: =IF(AND(Summary20!AL39<>"",Summary20!AL39<>0),Summary20!AL39,"") -> 9t | AX40: =IF(AND(Summary21!AL39<>"",Summary21!AL39<>0),Summary21!AL39,"") -> 25t | AY40: 0.83 | AZ40: 0.83 | BA40: 83t | BB40: 0.76 | BC40: 0.76 | BD40: 76 | BE40: 0.7 | BF40: 0.7 | BG40: 70 | BH40: 0.01 | BI40: 1 | BJ40: 1t | BK40: 0.28 | BL40: 0.8881789137 | BM40: 28 | BN40: 0.47 | BO40: 0.8810810811 | BP40: 47 | BQ40: 0.97 | BR40: 0.97 | BS40: 97 | BT40: 0.49 | BU40: 2.857142857 | BV40: 49t | BW40: 0.46 | BX40: 0.5109034268 | BY40: 46 | BZ40: 0.46 | CA40: 0.46 | CB40: 46 | CC40: 0.73 | CD40: 0.73 | CE40: 73 | CF40: 0.01 | CG40: 1 | CH40: 1t | CI40: 0.4 | CJ40: 0.8877284595 | CK40: 40 | CL40: 0.56 | CM40: 0.8850574713 | CN40: 56 | CO40: 0.57 | CP40: 0.77 | CQ40: 57 | CR40: 0.09 | CS40: 3.428571429 | CT40: 9t | CU40: 0.64 | CV40: 0.64 | CW40: 64 | CX40: 0.71 | CY40: 0.71 | CZ40: 71 | DA40: 0.9 | DB40: 0.9 | DC40: 90 | DD40: 0.01 | DE40: 1 | DF40: 1t | DG40: 0.29 | DH40: 0.8989412897 | DI40: 29 | DJ40: 0.34 | DK40: 0.9306930693 | DL40: 34 | DM40: 0.62 | DN40: 0.8271604938 | DO40: 62 | DP40: 0.25 | DQ40: 3.142857143 | DR40: 25t
A41: 61 | B41: Fauquier | C41: =CANS19School!O39 -> 0.5652173913 | D41: =CANS20School!O39 -> 0.3235294118 | E41: =CANS21School!O39 -> 0.3488372093 | F41: =CANS19Behavior!O39 -> 0.6304347826 | G41: =CANS20Behavior!O39 -> 0.6176470588 | H41: =CANS21Behavior!O39 -> 0.6744186047 | I41: =CANS19Strength!O39 -> 0.7391304348 | J41: =CANS20Strength!O39 -> 0.7647058824 | K41: =CANS21Strength!O39 -> 0.5581395349 | L41: ='ICC19'!N39 -> 0.1538461538 | M41: ='ICC20'!N39 -> 0.1875 | N41: ='ICC21'!N39 -> 0 | O41: ='CBS19'!N39 -> 0.8369565217 | P41: ='CBS20'!N39 -> 0.843373494 | Q41: ='CBS21'!N39 -> 0.8678571429 | R41: =FamilyFC19!AE39 -> 0.8 | S41: =FamilyFC20!AE39 -> 0.7906976744 | T41: =FamilyFC21!AE39 -> 0.8888888889 | U41: =Permanency19!AE39 -> 0.8333333333 | V41: =Permanency20!AE39 -> 0.9473684211 | W41: =Permanency21!AE39 -> 0.8636363636 | X41: =Summary19!AJ40 -> 3 | Y41: =Summary20!AJ40 -> 2.571428571 | Z41: =Summary21!AJ40 -> 2.857142857 | AA41: =IF(AND(CANS19School!Q39<>"",CANS19School!Q39<>0),CANS19School!Q39,"") -> 52 | AB41: =IF(AND(CANS20School!Q39<>"",CANS20School!Q39<>0),CANS20School!Q39,"") -> 113 | AC41: =IF(AND(CANS21School!Q39<>"",CANS21School!Q39<>0),CANS21School!Q39,"") -> 82 | AD41: =IF(AND(CANS19Behavior!Q39<>"",CANS19Behavior!Q39<>0),CANS19Behavior!Q39,"") -> 37 | AE41: =IF(AND(CANS20Behavior!Q39<>"",CANS20Behavior!Q39<>0),CANS20Behavior!Q39,"") -> 28 | AF41: =IF(AND(CANS21Behavior!Q39<>"",CANS21Behavior!Q39<>0),CANS21Behavior!Q39,"") -> 13 | AG41: =IF(AND(CANS19Strength!Q39<>"",CANS19Strength!Q39<>0),CANS19Strength!Q39,"") -> 27 | AH41: =IF(AND(CANS20Strength!Q39<>"",CANS20Strength!Q39<>0),CANS20Strength!Q39,"") -> 20t | AI41: =IF(AND(CANS21Strength!Q39<>"",CANS21Strength!Q39<>0),CANS21Strength!Q39,"") -> 60 | AJ41: =IF(AND('ICC19'!P39<>"",'ICC19'!P39<>0),'ICC19'!P39,"") -> 50 | AK41: =IF(AND('ICC20'!P39<>"",'ICC20'!P39<>0),'ICC20'!P39,"") -> 47 | AL41: =IF(AND('ICC21'!P39<>"",'ICC21'!P39<>0),'ICC21'!P39,"") -> 55t | AM41: =IF(AND('CBS19'!P39<>"",'CBS19'!P39<>0),'CBS19'!P39,"") -> 68 | AN41: =IF(AND('CBS20'!P39<>"",'CBS20'!P39<>0),'CBS20'!P39,"") -> 62 | AO41: =IF(AND('CBS21'!P39<>"",'CBS21'!P39<>0),'CBS21'!P39,"") -> 49 | AP41: =IF(AND(FamilyFC19!AG39<>"",FamilyFC19!AG39<>0),FamilyFC19!AG39,"") -> 93t | AQ41: =IF(AND(FamilyFC20!AG39<>"",FamilyFC20!AG39<>0),FamilyFC20!AG39,"") -> 96 | AR41: =IF(AND(FamilyFC21!AG39<>"",FamilyFC21!AG39<>0),FamilyFC21!AG39,"") -> 56t | AS41: =IF(AND(Permanency19!AG39<>"",Permanency19!AG39<>0),Permanency19!AG39,"") -> 51t | AT41: =IF(AND(Permanency20!AG39<>"",Permanency20!AG39<>0),Permanency20!AG39,"") -> 11t | AU41: =IF(AND(Permanency21!AG39<>"",Permanency21!AG39<>0),Permanency21!AG39,"") -> 52 | AV41: =IF(AND(Summary19!AL40<>"",Summary19!AL40<>0),Summary19!AL40,"") -> 38t | AW41: =IF(AND(Summary20!AL40<>"",Summary20!AL40<>0),Summary20!AL40,"") -> 65t | AX41: =IF(AND(Summary21!AL40<>"",Summary21!AL40<>0),Summary21!AL40,"") -> 42t | AY41: 0.52 | AZ41: 0.5652173913 | BA41: 52 | BB41: 0.37 | BC41: 0.6304347826 | BD41: 37 | BE41: 0.27 | BF41: 0.7391304348 | BG41: 27 | BH41: 0.5 | BI41: 0.5 | BJ41: 50 | BK41: 0.68 | BL41: 0.8369565217 | BM41: 68 | BN41: 0.93 | BO41: 0.93 | BP41: 93t | BQ41: 0.51 | BR41: 0.8333333333 | BS41: 51t | BT41: 0.38 | BU41: 3 | BV41: 38t | BW41: 1.13 | BX41: 1.13 | BY41: 113 | BZ41: 0.28 | CA41: 0.6744186047 | CB41: 28 | CC41: 0.2 | CD41: 0.7647058824 | CE41: 20t | CF41: 0.47 | CG41: 0.47 | CH41: 47 | CI41: 0.62 | CJ41: 0.843373494 | CK41: 62 | CL41: 0.96 | CM41: 0.96 | CN41: 96 | CO41: 0.11 | CP41: 0.9473684211 | CQ41: 11t | CR41: 0.65 | CS41: 2.571428571 | CT41: 65t | CU41: 0.82 | CV41: 0.82 | CW41: 82 | CX41: 0.13 | CY41: 0.6744186047 | CZ41: 13 | DA41: 0.6 | DB41: 0.6 | DC41: 60 | DD41: 0.55 | DE41: 0.55 | DF41: 55t | DG41: 0.49 | DH41: 0.8678571429 | DI41: 49 | DJ41: 0.56 | DK41: 0.8888888889 | DL41: 56t | DM41: 0.52 | DN41: 0.8636363636 | DO41: 52 | DP41: 0.42 | DQ41: 2.857142857 | DR41: 42t
A42: 63 | B42: Floyd | C42: =CANS19School!O40 -> 0.4166666667 | D42: =CANS20School!O40 -> 0.3636363636 | E42: =CANS21School!O40 -> 0.3571428571 | F42: =CANS19Behavior!O40 -> 0.6666666667 | G42: =CANS20Behavior!O40 -> 0.6363636364 | H42: =CANS21Behavior!O40 -> 0.5 | I42: =CANS19Strength!O40 -> 0.75 | J42: =CANS20Strength!O40 -> 0.6363636364 | K42: =CANS21Strength!O40 -> 0.6428571429 | L42: ='ICC19'!N40 -> 0 | M42: ='ICC20'!N40 -> 0.2 | N42: ='ICC21'!N40 -> 0.2 | O42: ='CBS19'!N40 -> 0.7954545455 | P42: ='CBS20'!N40 -> 0.7567567568 | Q42: ='CBS21'!N40 -> 0.8095238095 | R42: =FamilyFC19!AE40 -> 0.6842105263 | S42: =FamilyFC20!AE40 -> 0.8 | T42: =FamilyFC21!AE40 -> 0.8421052632 | U42: =Permanency19!AE40 -> 0.9230769231 | V42: =Permanency20!AE40 -> 0.6666666667 | W42: =Permanency21!AE40 -> 0.875 | X42: =Summary19!AJ41 -> 2.428571429 | Y42: =Summary20!AJ41 -> 2.142857143 | Z42: =Summary21!AJ41 -> 2.571428571 | AA42: =IF(AND(CANS19School!Q40<>"",CANS19School!Q40<>0),CANS19School!Q40,"") -> 102 | AB42: =IF(AND(CANS20School!Q40<>"",CANS20School!Q40<>0),CANS20School!Q40,"") -> 104t | AC42: =IF(AND(CANS21School!Q40<>"",CANS21School!Q40<>0),CANS21School!Q40,"") -> 77t | AD42: =IF(AND(CANS19Behavior!Q40<>"",CANS19Behavior!Q40<>0),CANS19Behavior!Q40,"") -> 24t | AE42: =IF(AND(CANS20Behavior!Q40<>"",CANS20Behavior!Q40<>0),CANS20Behavior!Q40,"") -> 21t | AF42: =IF(AND(CANS21Behavior!Q40<>"",CANS21Behavior!Q40<>0),CANS21Behavior!Q40,"") -> 36t | AG42: =IF(AND(CANS19Strength!Q40<>"",CANS19Strength!Q40<>0),CANS19Strength!Q40,"") -> 21t | AH42: =IF(AND(CANS20Strength!Q40<>"",CANS20Strength!Q40<>0),CANS20Strength!Q40,"") -> 67t | AI42: =IF(AND(CANS21Strength!Q40<>"",CANS21Strength!Q40<>0),CANS21Strength!Q40,"") -> 38t | AJ42: =IF(AND('ICC19'!P40<>"",'ICC19'!P40<>0),'ICC19'!P40,"") -> 57t | AK42: =IF(AND('ICC20'!P40<>"",'ICC20'!P40<>0),'ICC20'!P40,"") -> 46 | AL42: =IF(AND('ICC21'!P40<>"",'ICC21'!P40<>0),'ICC21'!P40,"") -> 43t | AM42: =IF(AND('CBS19'!P40<>"",'CBS19'!P40<>0),'CBS19'!P40,"") -> 88 | AN42: =IF(AND('CBS20'!P40<>"",'CBS20'!P40<>0),'CBS20'!P40,"") -> 112 | AO42: =IF(AND('CBS21'!P40<>"",'CBS21'!P40<>0),'CBS21'!P40,"") -> 91 | AP42: =IF(AND(FamilyFC19!AG40<>"",FamilyFC19!AG40<>0),FamilyFC19!AG40,"") -> 112 | AQ42: =IF(AND(FamilyFC20!AG40<>"",FamilyFC20!AG40<>0),FamilyFC20!AG40,"") -> 90t | AR42: =IF(AND(FamilyFC21!AG40<>"",FamilyFC21!AG40<>0),FamilyFC21!AG40,"") -> 83 | AS42: =IF(AND(Permanency19!AG40<>"",Permanency19!AG40<>0),Permanency19!AG40,"") -> 26t | AT42: =IF(AND(Permanency20!AG40<>"",Permanency20!AG40<>0),Permanency20!AG40,"") -> 92t | AU42: =IF(AND(Permanency21!AG40<>"",Permanency21!AG40<>0),Permanency21!AG40,"") -> 46t | AV42: =IF(AND(Summary19!AL41<>"",Summary19!AL41<>0),Summary19!AL41,"") -> 85t | AW42: =IF(AND(Summary20!AL41<>"",Summary20!AL41<>0),Summary20!AL41,"") -> 103t | AX42: =IF(AND(Summary21!AL41<>"",Summary21!AL41<>0),Summary21!AL41,"") -> 73t | AY42: 1.02 | AZ42: 1.02 | BA42: 102 | BB42: 0.24 | BC42: 0.6666666667 | BD42: 24t | BE42: 0.21 | BF42: 0.75 | BG42: 21t | BH42: 0.57 | BI42: 0.57 | BJ42: 57t | BK42: 0.88 | BL42: 0.88 | BM42: 88 | BN42: 1.12 | BO42: 1.12 | BP42: 112 | BQ42: 0.26 | BR42: 0.9230769231 | BS42: 26t | BT42: 0.85 | BU42: 2.428571429 | BV42: 85t | BW42: 1.04 | BX42: 1.04 | BY42: 104t | BZ42: 0.21 | CA42: 0.5 | CB42: 21t | CC42: 0.67 | CD42: 0.67 | CE42: 67t | CF42: 0.46 | CG42: 0.46 | CH42: 46 | CI42: 1.12 | CJ42: 1.12 | CK42: 112 | CL42: 0.9 | CM42: 0.9 | CN42: 90t | CO42: 0.92 | CP42: 0.92 | CQ42: 92t | CR42: 1.03 | CS42: 2.142857143 | CT42: 103t | CU42: 0.77 | CV42: 0.77 | CW42: 77t | CX42: 0.36 | CY42: 0.5 | CZ42: 36t | DA42: 0.38 | DB42: 0.6428571429 | DC42: 38t | DD42: 0.43 | DE42: 0.43 | DF42: 43t | DG42: 0.91 | DH42: 0.91 | DI42: 91 | DJ42: 0.83 | DK42: 0.8421052632 | DL42: 83 | DM42: 0.46 | DN42: 0.875 | DO42: 46t | DP42: 0.73 | DQ42: 2.571428571 | DR42: 73t
